Workbook

Sheet 2019 NUOS Tariff schedule
A1: Jemena Electricity Networks (VIC) Ltd - Network Tariffs For The 2019 Calendar Year (Exclusive of GST)
A3: Tariff Class | B3: Code | C3: Tariff Name | D3: Units | E3: Rate
A5: Residential
A6: Only available to residential customers
B7: A100 / F100a / T100b | C7: General Purpose
C8: Single rate all times
C9: - Standing charge | D9: $/customer pa | E9: ='2019 DUOS Tariff schedule'!E9+'2019 TUOS+JS Tariff schedule'!E9 -> 51.308
C10: - Unit rate | D10: ¢/kWh | E10: ='2019 DUOS Tariff schedule'!E10+'2019 TUOS+JS Tariff schedule'!E10 -> 7.97
B12: A10X / F10Xa / T10Xb | C12: Flexible
B13: Available to customers with a remotely read AMI meter
B14: Summer period: is the daylight savings period; Non-summer period: All other times
B15: Peak Summer/Non-summer: 3 PM to 9 PM local time weekdays
B16: Shoulder Summer/Non-summer: 7 AM to 3 PM and 9 PM to 10 PM local time weekdays
B17: and 7 AM to 10 PM local time weekends
B18: Off peak Summer/Non-summer: 10 PM to 7 AM local time all days
C19: - Standing charge | D19: $/customer pa | E19: ='2019 DUOS Tariff schedule'!E19+'2019 TUOS+JS Tariff schedule'!E19 -> 51.308
C20: Summer rates
C21: - Peak Unit rate | D21: ¢/kWh | E21: ='2019 DUOS Tariff schedule'!E21+'2019 TUOS+JS Tariff schedule'!E21 -> 12.366
C22: - Shoulder Unit rate | D22: ¢/kWh | E22: ='2019 DUOS Tariff schedule'!E22+'2019 TUOS+JS Tariff schedule'!E22 -> 7.97
C23: - Off Peak Unit rate | D23: ¢/kWh | E23: ='2019 DUOS Tariff schedule'!E23+'2019 TUOS+JS Tariff schedule'!E23 -> 3.798
C24: Non-summer rates
C25: - Peak Unit rate | D25: ¢/kWh | E25: ='2019 DUOS Tariff schedule'!E25+'2019 TUOS+JS Tariff schedule'!E25 -> 12.366
C26: - Shoulder Unit rate | D26: ¢/kWh | E26: ='2019 DUOS Tariff schedule'!E26+'2019 TUOS+JS Tariff schedule'!E26 -> 7.97
C27: - Off Peak Unit rate | D27: ¢/kWh | E27: ='2019 DUOS Tariff schedule'!E27+'2019 TUOS+JS Tariff schedule'!E27 -> 3.798
B29: A10D / F10Da / T10Db | C29: General Purpose - Demand
B30: Available to customers with a remotely read AMI meter
C31: Energy consumption - single rate all times
C32: Demand charging window 3pm - 9pm work days; reset monthly
C33: - Standing charge | D33: $/customer pa | E33: ='2019 DUOS Tariff schedule'!E33+'2019 TUOS+JS Tariff schedule'!E33 -> 51.308
C34: - Unit rate | D34: ¢/kWh | E34: ='2019 DUOS Tariff schedule'!E34+'2019 TUOS+JS Tariff schedule'!E34 -> 3.737
C35: - Demand rate | D35: $/kW pa | E35: ='2019 DUOS Tariff schedule'!E35+'2019 TUOS+JS Tariff schedule'!E35 -> 59.091
B37: A10I / F10Ia / T10Ib | C37: Time of Use Interval Meter (closed to new entrants)c
B38: Available to customers with an interval meter
C39: Peak: 7 AM to 11 PM AEST "Mon - Fri" ; Off peak all other times
C40: - Standing charge | D40: $/customer pa | E40: ='2019 DUOS Tariff schedule'!E40+'2019 TUOS+JS Tariff schedule'!E40 -> 51.308
C41: - Peak Unit rate | D41: ¢/kWh | E41: ='2019 DUOS Tariff schedule'!E41+'2019 TUOS+JS Tariff schedule'!E41 -> 12.366
C42: - Off Peak Unit rate | D42: ¢/kWh | E42: ='2019 DUOS Tariff schedule'!E42+'2019 TUOS+JS Tariff schedule'!E42 -> 2.33
B44: A140 | C44: Time of Use (closed to new entrants)
B45: This tariff is not available to existing customers that install an interval meter
C46: Peak: 7 AM to 11 PM AEST "Mon - Fri" ; Off peak all other times
C47: - Standing charge | D47: $/customer pa | E47: ='2019 DUOS Tariff schedule'!E47+'2019 TUOS+JS Tariff schedule'!E47 -> 86.493
C48: - Peak Unit rate | D48: ¢/kWh | E48: ='2019 DUOS Tariff schedule'!E48+'2019 TUOS+JS Tariff schedule'!E48 -> 10.286
C49: - Off Peak Unit rate | D49: ¢/kWh | E49: ='2019 DUOS Tariff schedule'!E49+'2019 TUOS+JS Tariff schedule'!E49 -> 2.593
B51: A180 | C51: Off Peak Heating Only (dedicated ciruit)
B52: Available as a complementary tariff to the "Residential - General Purpose" A100 tariff only.
B53: This tariff is not available to new or existing customers that install embedded generationd
C54: 11 PM to 7 AM AEST all days
C55: - Standing charge | D55: $/customer pa | E55: ='2019 DUOS Tariff schedule'!E55+'2019 TUOS+JS Tariff schedule'!E55 -> 0
C56: - Off Peak Unit rate | D56: ¢/kWh | E56: ='2019 DUOS Tariff schedule'!E56+'2019 TUOS+JS Tariff schedule'!E56 -> 2.568
A58: Small Business
A59: Only available to non-embedded network customers
A60: with annual consumption < 0.4 GWh AND maximum demand < 120 kVA
B62: A200 / F200a / T200b | C62: General Purpose
B63: Only available to customer consuming < 40 MWh pa
C64: Single rate all times
C65: - Standing charge | D65: $/customer pa | E65: ='2019 DUOS Tariff schedule'!E65+'2019 TUOS+JS Tariff schedule'!E65 -> 95.534
C66: - Unit rate | D66: ¢/kWh | E66: ='2019 DUOS Tariff schedule'!E66+'2019 TUOS+JS Tariff schedule'!E66 -> 9.905
B68: A20D / F20Da / T20Db | C68: General Purpose - Demand
B69: Only available to customers with meter capable of measuring demand AND consuming < 40 MWh pa
C70: Single rate all times
C71: Demand charging window 10am - 8pm work days
C72: - Standing charge | D72: $/customer pa | E72: ='2019 DUOS Tariff schedule'!E72+'2019 TUOS+JS Tariff schedule'!E72 -> 95.534
C73: - Unit rate | D73: ¢/kWh | E73: ='2019 DUOS Tariff schedule'!E73+'2019 TUOS+JS Tariff schedule'!E73 -> 7.984
C74: - Demand rate | D74: $/kW pa | E74: ='2019 DUOS Tariff schedule'!E74+'2019 TUOS+JS Tariff schedule'!E74 -> 57.272
B76: A210 / F210a / T210b | C76: Time of Use Weekdays
B77: Only available to customers with two rate accumulation meter (or Interval meter) AND
B78: consuming < 40 MWh pa
C79: Peak: 7 AM to 11 PM AEST "Mon - Fri" ; Off peak all other times
C80: - Standing charge | D80: $/customer pa | E80: ='2019 DUOS Tariff schedule'!E80+'2019 TUOS+JS Tariff schedule'!E80 -> 151.86
C81: - Peak Unit rate | D81: ¢/kWh | E81: ='2019 DUOS Tariff schedule'!E81+'2019 TUOS+JS Tariff schedule'!E81 -> 12.102
C82: - Off Peak Unit rate | D82: ¢/kWh | E82: ='2019 DUOS Tariff schedule'!E82+'2019 TUOS+JS Tariff schedule'!E82 -> 2.625
B84: A230 / F230a / T230b | C84: Time of Use Weekdays - Demand
B85: Only available to customers with a meter capable of measuring demand AND consuming > 40 MWh pa
C86: Peak: 7 AM to 11 PM AEST "Mon - Fri" ; Off peak all other times
C87: - Standing charge | D87: $/customer pa | E87: ='2019 DUOS Tariff schedule'!E87+'2019 TUOS+JS Tariff schedule'!E87 -> 304.396
C88: - Peak Unit rate | D88: ¢/kWh | E88: ='2019 DUOS Tariff schedule'!E88+'2019 TUOS+JS Tariff schedule'!E88 -> 7.344
C89: - Off Peak Unit rate | D89: ¢/kWh | E89: ='2019 DUOS Tariff schedule'!E89+'2019 TUOS+JS Tariff schedule'!E89 -> 2.714
C90: - Demand rate | D90: $/kW pa | E90: ='2019 DUOS Tariff schedule'!E90+'2019 TUOS+JS Tariff schedule'!E90 -> 64.683
B92: A23N / F23Na / T23Nb | C92: Time of Use - Opt-out
B93: Only available to customers with a meter capable of measuring demand AND consuming > 40 MWh pa
C94: Peak: 7 AM to 11 PM AEST "Mon - Fri" ; Off peak all other times
C95: - Standing charge | D95: $/customer pa | E95: ='2019 DUOS Tariff schedule'!E95+'2019 TUOS+JS Tariff schedule'!E95 -> 304.396
C96: - Peak Unit rate | D96: ¢/kWh | E96: ='2019 DUOS Tariff schedule'!E96+'2019 TUOS+JS Tariff schedule'!E96 -> 12.102
C97: - Off Peak Unit rate | D97: ¢/kWh | E97: ='2019 DUOS Tariff schedule'!E97+'2019 TUOS+JS Tariff schedule'!E97 -> 2.625
C98: - Demand rate | D98: $/kW pa | E98: ='2019 DUOS Tariff schedule'!E98+'2019 TUOS+JS Tariff schedule'!E98 -> 0
B100: A250 / F250a / T250b | C100: Time of Use Extended (closed to new entrants)
B101: Only available to customers with a two rate accumulation meter (or interval meter) AND
B102: consuming < 40 MWh pa
C103: Peak: 7 AM to 11 PM AEST "Mon - Sun" ; Off peak all other times
C104: - Standing charge | D104: $/customer pa | E104: ='2019 DUOS Tariff schedule'!E104+'2019 TUOS+JS Tariff schedule'!E104 -> 151.86
C105: - Peak Unit rate | D105: ¢/kWh | E105: ='2019 DUOS Tariff schedule'!E105+'2019 TUOS+JS Tariff schedule'!E105 -> 10.695
C106: - Off Peak Unit rate | D106: ¢/kWh | E106: ='2019 DUOS Tariff schedule'!E106+'2019 TUOS+JS Tariff schedule'!E106 -> 2.808
B108: A270 / F270a / T270b | C108: Time of Use Extended - Demand (closed to new entrants)
B109: Only available to customers with a meter capable of measuring demand AND consuming >40 MWh pa
C110: Peak: 7 AM to 11 PM AEST "Mon - Sun" ; Off peak all other times
C111: - Standing charge | D111: $/customer pa | E111: ='2019 DUOS Tariff schedule'!E112+'2019 TUOS+JS Tariff schedule'!E111 -> 304.396
C112: - Peak Unit rate | D112: ¢/kWh | E112: ='2019 DUOS Tariff schedule'!E113+'2019 TUOS+JS Tariff schedule'!E112 -> 6.135
C113: - Off Peak Unit rate | D113: ¢/kWh | E113: ='2019 DUOS Tariff schedule'!E114+'2019 TUOS+JS Tariff schedule'!E113 -> 2.841
C114: - Demand rate | D114: $/kW pa | E114: ='2019 DUOS Tariff schedule'!E115+'2019 TUOS+JS Tariff schedule'!E114 -> 64.683
C115: Minimum Chargeable Demand | D115: 60 kW
B117: A290 | C117: Unmetered Supply
C118: Peak: 7 AM to 11 PM AEST "Mon - Fri" ; Off peak all other times
C119: - Peak Unit rate | D119: ¢/kWh | E119: ='2019 DUOS Tariff schedule'!E120+'2019 TUOS+JS Tariff schedule'!E119 -> 11.053
C120: - Off Peak Unit rate | D120: ¢/kWh | E120: ='2019 DUOS Tariff schedule'!E121+'2019 TUOS+JS Tariff schedule'!E120 -> 2.829
A122: Large Business - LV
A123: Low Voltage Tariffs (nominal voltage < 1000 Volts)
A124: Only available to embedded network customers OR non-embedded network customers
A125: with annual consumption ³ 0.4 GWh OR maximum demand ³ 120 kVA
B127: A300 / F300a / T300b | C127: LV 0.4 - 0.8 GWh
B128: Only available to non-embedded network customers consuming £ 0.8 GWh pa
C129: Peak: 7 AM to 11 PM AEST "Mon - Fri" ; Off peak all other times
C130: - Standing charge | D130: $/customer pa | E130: ='2019 DUOS Tariff schedule'!E131+'2019 TUOS+JS Tariff schedule'!E131 -> 2299.068
C131: - Peak Unit rate | D131: ¢/kWh | E131: ='2019 DUOS Tariff schedule'!E132+'2019 TUOS+JS Tariff schedule'!E132 -> 4.257
C132: - Off Peak Unit rate | D132: ¢/kWh | E132: ='2019 DUOS Tariff schedule'!E133+'2019 TUOS+JS Tariff schedule'!E133 -> 1.779
C133: - Demand rate | D133: $/kVA pa | E133: ='2019 DUOS Tariff schedule'!E134+'2019 TUOS+JS Tariff schedule'!E134 -> 97.685
C134: Minimum Chargeable Demand | D134: 120 kVA
B136: A30E | C136: LVEN Annual Consumption  0.8 GWh
B137: Only available to embedded network customers consuming £ 0.8 GWh pa
C138: Peak: 7 AM to 11 PM AEST "Mon - Fri" ; Off peak all other times
C139: - Standing charge | D139: $/customer pa | E139: ='2019 DUOS Tariff schedule'!E140+'2019 TUOS+JS Tariff schedule'!E140 -> 2299.068
C140: - Peak Unit rate | D140: ¢/kWh | E140: ='2019 DUOS Tariff schedule'!E141+'2019 TUOS+JS Tariff schedule'!E141 -> 4.286
C141: - Off Peak Unit rate | D141: ¢/kWh | E141: ='2019 DUOS Tariff schedule'!E142+'2019 TUOS+JS Tariff schedule'!E142 -> 1.779
C142: - Demand rate | D142: $/kVA pa | E142: ='2019 DUOS Tariff schedule'!E143+'2019 TUOS+JS Tariff schedule'!E143 -> 110.449
C143: Minimum Chargeable Demand | D143: 120 kVA
B145: A320 | C145: LV 0.8+ - 2.2 GWh
B146: Only available to non-embedded network customers consuming > 0.8 GWh pa BUT £ 2.2 GWh pa
C147: Peak: 7 AM to 11 PM AEST "Mon - Fri" ; Off peak all other times
C148: - Standing charge | D148: $/customer pa | E148: ='2019 DUOS Tariff schedule'!E149+'2019 TUOS+JS Tariff schedule'!E149 -> 4049.215
C149: - Peak Unit rate | D149: ¢/kWh | E149: ='2019 DUOS Tariff schedule'!E150+'2019 TUOS+JS Tariff schedule'!E150 -> 3.806
C150: - Off Peak Unit rate | D150: ¢/kWh | E150: ='2019 DUOS Tariff schedule'!E151+'2019 TUOS+JS Tariff schedule'!E151 -> 1.774
C151: - Demand rate | D151: $/kVA pa | E151: ='2019 DUOS Tariff schedule'!E152+'2019 TUOS+JS Tariff schedule'!E152 -> 91.141
C152: Minimum Chargeable Demand | D152: 250 kVA
B154: A32E | C154: LVEN 0.8+ - 2.2 GWh
B155: Only available to embedded network customers consuming > 0.8 GWh pa BUT £ 2.2 GWh pa
C156: Peak: 7 AM to 11 PM AEST "Mon - Fri" ; Off peak all other times
C157: - Standing charge | D157: $/customer pa | E157: ='2019 DUOS Tariff schedule'!E158+'2019 TUOS+JS Tariff schedule'!E158 -> 4049.215
C158: - Peak Unit rate | D158: ¢/kWh | E158: ='2019 DUOS Tariff schedule'!E159+'2019 TUOS+JS Tariff schedule'!E159 -> 3.658
C159: - Off Peak Unit rate | D159: ¢/kWh | E159: ='2019 DUOS Tariff schedule'!E160+'2019 TUOS+JS Tariff schedule'!E160 -> 1.774
C160: - Demand rate | D160: $/kVA pa | E160: ='2019 DUOS Tariff schedule'!E161+'2019 TUOS+JS Tariff schedule'!E161 -> 100.614
C161: Minimum Chargeable Demand | D161: 250 kVA
B163: A340 | C163: LV 2.2+ - 6.0 GWh
B164: Only available to non-embedded network customers consuming > 2.2 GWh pa BUT £ 6.0 GWh pa
C165: Peak: 7 AM to 11 PM AEST "Mon - Fri" ; Off peak all other times
C166: - Standing charge | D166: $/customer pa | E166: ='2019 DUOS Tariff schedule'!E167+'2019 TUOS+JS Tariff schedule'!E167 -> 6945.78
C167: - Peak Unit rate | D167: ¢/kWh | E167: ='2019 DUOS Tariff schedule'!E168+'2019 TUOS+JS Tariff schedule'!E168 -> 3.762
C168: - Off Peak Unit rate | D168: ¢/kWh | E168: ='2019 DUOS Tariff schedule'!E169+'2019 TUOS+JS Tariff schedule'!E169 -> 1.656
C169: - Demand rate | D169: $/kVA pa | E169: ='2019 DUOS Tariff schedule'!E170+'2019 TUOS+JS Tariff schedule'!E170 -> 90.232
C170: Minimum Chargeable Demand | D170: 250 kVA
B172: A34E | C172: LVEN 2.2+ GWh
B173: Only available to embedded network customers consuming > 2.2 GWh pa
C174: Peak: 7 AM to 11 PM AEST "Mon - Fri" ; Off peak all other times
C175: - Standing charge | D175: $/customer pa | E175: ='2019 DUOS Tariff schedule'!E176+'2019 TUOS+JS Tariff schedule'!E176 -> 6945.78
C176: - Peak Unit rate | D176: ¢/kWh | E176: ='2019 DUOS Tariff schedule'!E177+'2019 TUOS+JS Tariff schedule'!E177 -> 3.391
C177: - Off Peak Unit rate | D177: ¢/kWh | E177: ='2019 DUOS Tariff schedule'!E178+'2019 TUOS+JS Tariff schedule'!E178 -> 1.652
C178: - Demand rate | D178: $/kVA pa | E178: ='2019 DUOS Tariff schedule'!E179+'2019 TUOS+JS Tariff schedule'!E179 -> 96.551
C179: Minimum Chargeable Demand | D179: 250 kVA
B181: A34M | C181: LVMS 2.2+ - 6.0 GWh (closed to new entrants)e
B182: Only available to non-embedded network customer taking supply from multiple NMIs on a single
B183: site AND the aggregated annual consumption from those NMIs is > 2.2 GWh pa BUT £ 6.0 GWh pa
C185: - Standing charge | D185: $/customer pa | E185: ='2019 DUOS Tariff schedule'!E186+'2019 TUOS+JS Tariff schedule'!E186 -> 4807.191
C186: - Peak Unit rate | D186: ¢/kWh | E186: ='2019 DUOS Tariff schedule'!E187+'2019 TUOS+JS Tariff schedule'!E187 -> 3.987
C187: - Off Peak Unit rate | D187: ¢/kWh | E187: ='2019 DUOS Tariff schedule'!E188+'2019 TUOS+JS Tariff schedule'!E188 -> 1.649
C188: - Demand rate | D188: $/kVA pa | E188: ='2019 DUOS Tariff schedule'!E189+'2019 TUOS+JS Tariff schedule'!E189 -> 62.488
C189: Minimum Chargeable Demand | D189: 250 kVA
B191: A370 | C191: LV 6.0+ GWh
B192: Only available to non-embedded network customers consuming > 6.0 GWh pa
C193: Peak: 7 AM to 11 PM AEST "Mon - Fri" ; Off peak all other times
C194: - Standing charge | D194: $/customer pa | E194: ='2019 DUOS Tariff schedule'!E195+'2019 TUOS+JS Tariff schedule'!E195 -> 10672.686
C195: - Peak Unit rate | D195: ¢/kWh | E195: ='2019 DUOS Tariff schedule'!E196+'2019 TUOS+JS Tariff schedule'!E196 -> 3.458
C196: - Off Peak Unit rate | D196: ¢/kWh | E196: ='2019 DUOS Tariff schedule'!E197+'2019 TUOS+JS Tariff schedule'!E197 -> 1.592
C197: - Demand rate | D197: $/kVA pa | E197: ='2019 DUOS Tariff schedule'!E198+'2019 TUOS+JS Tariff schedule'!E198 -> 86.905
C198: Minimum Chargeable Demand | D198: 450 kVA
B200: A37M | C200: LVMS 6.0+ GWh (closed to new entrants)e
B201: Only available to non-embedded network customer taking supply from multiple NMIs on a single
B202: site AND the aggregated annual consumption from those NMIs is > 6.0 Gwh
C203: Peak: 7 AM to 11 PM AEST "Mon - Fri" ; Off peak all other times
C204: - Standing charge | D204: $/customer pa | E204: ='2019 DUOS Tariff schedule'!E205+'2019 TUOS+JS Tariff schedule'!E205 -> 7828.385
C205: - Peak Unit rate | D205: ¢/kWh | E205: ='2019 DUOS Tariff schedule'!E206+'2019 TUOS+JS Tariff schedule'!E206 -> 3.564
C206: - Off Peak Unit rate | D206: ¢/kWh | E206: ='2019 DUOS Tariff schedule'!E207+'2019 TUOS+JS Tariff schedule'!E207 -> 1.592
C207: - Demand rate | D207: $/kVA pa | E207: ='2019 DUOS Tariff schedule'!E208+'2019 TUOS+JS Tariff schedule'!E208 -> 62.627
C208: Minimum Chargeable Demand | D208: 450 kVA
A210: Large Business - HV
A211: High Voltage Tariffs (nominal voltage ³ 1000 Volts AND £ 22,000 Volts)
B213: A400 | C213: HV
B214: Only available to non-embedded network customers consuming < 55 GWh pa
C215: Peak: 7 AM to 11 PM AEST "Mon - Fri" ; Off peak all other times
C216: - Standing charge | D216: $/customer pa | E216: ='2019 DUOS Tariff schedule'!E217+'2019 TUOS+JS Tariff schedule'!E217 -> 13283.536
C217: - Peak Unit rate | D217: ¢/kWh | E217: ='2019 DUOS Tariff schedule'!E218+'2019 TUOS+JS Tariff schedule'!E218 -> 3.374
C218: - Off Peak Unit rate | D218: ¢/kWh | E218: ='2019 DUOS Tariff schedule'!E219+'2019 TUOS+JS Tariff schedule'!E219 -> 1.124
C219: - Demand rate | D219: $/kVA pa | E219: ='2019 DUOS Tariff schedule'!E220+'2019 TUOS+JS Tariff schedule'!E220 -> 73.463
C220: Minimum Chargeable Demand | D220: 1,000 kVA
B222: A40E | C222: HVEN
B223: Only available to embedded network customers
C224: Peak: 7 AM to 11 PM AEST "Mon - Fri" ; Off peak all other times
C225: - Standing charge | D225: $/customer pa | E225: ='2019 DUOS Tariff schedule'!E226+'2019 TUOS+JS Tariff schedule'!E226 -> 13283.536
C226: - Peak Unit rate | D226: ¢/kWh | E226: ='2019 DUOS Tariff schedule'!E227+'2019 TUOS+JS Tariff schedule'!E227 -> 3.202
C227: - Off Peak Unit rate | D227: ¢/kWh | E227: ='2019 DUOS Tariff schedule'!E228+'2019 TUOS+JS Tariff schedule'!E228 -> 1.124
C228: - Demand rate | D228: $/kVA pa | E228: ='2019 DUOS Tariff schedule'!E229+'2019 TUOS+JS Tariff schedule'!E229 -> 75.547
C229: Minimum Chargeable Demand | D229: 1,000 kVA
B231: A40R | C231: HVRF (closed to new entrants)e
... 56 more rows

Sheet 2019 DUOS Tariff schedule
A1: Jemena Electricity Networks (VIC) Ltd - Distribution Tariffs For The 2019 Calendar Year (Exclusive of GST)
A3: Tariff Class | B3: Code | C3: Tariff Name | D3: Units | E3: Rate
A5: Residential
A6: Only available to residential customers
B7: A100 / F100a / T100b | C7: General Purpose
C8: Single rate all times
C9: - Standing charge | D9: $/customer pa | E9: =Prop2019DistTar!D6 -> 51.008
C10: - Unit rate | D10: ¢/kWh | E10: =Prop2019DistTar!E6 -> 7.562
B12: A10X / F10Xa / T10Xb | C12: Flexible
B13: Available to customers with a remotely read AMI meter
B14: Summer period: is the daylight savings period; Non-summer period: All other times
B15: Peak Summer/Non-summer: 3 PM to 9 PM local time weekdays
B16: Shoulder Summer/Non-summer: 7 AM to 3 PM and 9 PM to 10 PM local time weekdays
B17: and 7 AM to 10 PM local time weekends
B18: Off peak Summer/Non-summer: 10 PM to 7 AM local time all days
C19: - Standing charge | D19: $/customer pa | E19: =Prop2019DistTar!D8 -> 51.008
C20: Summer rates
C21: - Peak Unit rate | D21: ¢/kWh | E21: =Prop2019DistTar!E8 -> 12.183
C22: - Shoulder Unit rate | D22: ¢/kWh | E22: =Prop2019DistTar!F8 -> 7.562
C23: - Off Peak Unit rate | D23: ¢/kWh | E23: =Prop2019DistTar!I8 -> 3.676
C24: Non-summer rates
C25: - Peak Unit rate | D25: ¢/kWh | E25: =Prop2019DistTar!G8 -> 12.183
C26: - Shoulder Unit rate | D26: ¢/kWh | E26: =Prop2019DistTar!H8 -> 7.562
C27: - Off Peak Unit rate | D27: ¢/kWh | E27: =Prop2019DistTar!J8 -> 3.676
B29: A10D / F10Da / T10Db | C29: General Purpose - Demand
B30: Available to customers with a remotely read AMI meter
C31: Energy consumption - single rate all times
C32: Demand charging window 3pm - 9pm work days; reset monthly
C33: - Standing charge | D33: $/customer pa | E33: =Prop2019DistTar!D7 -> 51.008
C34: - Unit rate | D34: ¢/kWh | E34: =Prop2019DistTar!E7 -> 3.329
C35: - Demand rate | D35: $/kW pa | E35: =Prop2019DistTar!M7 -> 59.091
B37: A10I / F10Ia / T10Ib | C37: Time of Use Interval Meter (closed to new entrants)c
B38: Available to customers with an interval meter
C39: Peak: 7 AM to 11 PM AEST "Mon - Fri" ; Off peak all other times
C40: - Standing charge | D40: $/customer pa | E40: =Prop2019DistTar!D9 -> 51.008
C41: - Peak Unit rate | D41: ¢/kWh | E41: =Prop2019DistTar!E9 -> 12.183
C42: - Off Peak Unit rate | D42: ¢/kWh | E42: =Prop2019DistTar!I9 -> 1.844
B44: A140 | C44: Time of Use (closed to new entrants)
B45: This tariff is not available to existing customers that install an interval meter
C46: Peak: 7 AM to 11 PM AEST "Mon - Fri" ; Off peak all other times
C47: - Standing charge | D47: $/customer pa | E47: =Prop2019DistTar!D10 -> 86.193
C48: - Peak Unit rate | D48: ¢/kWh | E48: =Prop2019DistTar!E10 -> 8.403
C49: - Off Peak Unit rate | D49: ¢/kWh | E49: =Prop2019DistTar!I10 -> 1.475
B51: A180 | C51: Off Peak Heating Only (dedicated ciruit)
B52: Available as a complementary tariff to the "Residential - General Purpose" A100 tariff only.
B53: This tariff is not available to new or existing customers that install embedded generationd
C54: 11 PM to 7 AM AEST all days
C55: - Standing charge | D55: $/customer pa | E55: 0
C56: - Off Peak Unit rate | D56: ¢/kWh | E56: =Prop2019DistTar!I11 -> 1.7
A58: Small Business
A59: Only available to non-embedded network customers
A60: with annual consumption < 0.4 GWh AND maximum demand < 120 kVA
B62: A200 / F200a / T200b | C62: General Purpose
B63: Only available to customer consuming < 40 MWh pa
C64: Single rate all times
C65: - Standing charge | D65: $/customer pa | E65: =Prop2019DistTar!D12 -> 94.773
C66: - Unit rate | D66: ¢/kWh | E66: =Prop2019DistTar!E12 -> 9.021
B68: A20D / F20Da / T20Db | C68: General Purpose - Demand
B69: Only available to customers with meter capable of measuring demand AND consuming < 40 MWh pa
C70: Single rate all times
C71: Demand charging window 10am - 8pm work days
C72: - Standing charge | D72: $/customer pa | E72: =Prop2019DistTar!D13 -> 94.773
C73: - Unit rate | D73: ¢/kWh | E73: =Prop2019DistTar!E13 -> 7.1
C74: - Demand rate | D74: $/kW pa | E74: =Prop2019DistTar!M13 -> 57.272
B76: A210 / F210a / T210b | C76: Time of Use Weekdays
B77: Only available to customers with two rate accumulation meter (or Interval meter) AND
B78: consuming < 40 MWh pa
C79: Peak: 7 AM to 11 PM AEST "Mon - Fri" ; Off peak all other times
C80: - Standing charge | D80: $/customer pa | E80: =Prop2019DistTar!D14 -> 141.843
C81: - Peak Unit rate | D81: ¢/kWh | E81: =Prop2019DistTar!E14 -> 10.649
C82: - Off Peak Unit rate | D82: ¢/kWh | E82: =Prop2019DistTar!I14 -> 1.818
B84: A230 / F230a / T230b | C84: Time of Use Weekdays - Demand
B85: Only available to customers with a meter capable of measuring demand AND consuming > 40 MWh pa
C86: Peak: 7 AM to 11 PM AEST "Mon - Fri" ; Off peak all other times
C87: - Standing charge | D87: $/customer pa | E87: =Prop2019DistTar!D15 -> 209.147
C88: - Peak Unit rate | D88: ¢/kWh | E88: =Prop2019DistTar!E15 -> 6.572
C89: - Off Peak Unit rate | D89: ¢/kWh | E89: =Prop2019DistTar!I15 -> 2.121
C90: - Demand rate | D90: $/kW pa | E90: =Prop2019DistTar!M15 -> 64.297
B92: A23N / F23Na / T23Nb | C92: Time of Use - Opt-out
B93: Only available to customers with a meter capable of measuring demand AND consuming > 40 MWh pa
C94: Peak: 7 AM to 11 PM AEST "Mon - Fri" ; Off peak all other times
C95: - Standing charge | D95: $/customer pa | E95: =Prop2019DistTar!D16 -> 209.147
C96: - Peak Unit rate | D96: ¢/kWh | E96: =Prop2019DistTar!E16 -> 10.649
C97: - Off Peak Unit rate | D97: ¢/kWh | E97: =Prop2019DistTar!I16 -> 1.818
C98: - Demand rate | D98: $/kW pa | E98: =Prop2019DistTar!M16 -> 0
B100: A250 / F250a / T250b | C100: Time of Use Extended (closed to new entrants)
B101: Only available to customers with a two rate accumulation meter (or interval meter) AND
B102: consuming < 40 MWh pa
C103: Peak: 7 AM to 11 PM AEST "Mon - Sun" ; Off peak all other times
C104: - Standing charge | D104: $/customer pa | E104: =Prop2019DistTar!D17 -> 141.843
C105: - Peak Unit rate | D105: ¢/kWh | E105: =Prop2019DistTar!E17 -> 9.38
C106: - Off Peak Unit rate | D106: ¢/kWh | E106: =Prop2019DistTar!I17 -> 1.97
B109: A270 / F270a / T270b | C109: Time of Use Extended - Demand (closed to new entrants)
B110: Only available to customers with a meter capable of measuring demand AND consuming >40 MWh pa
C111: Peak: 7 AM to 11 PM AEST "Mon - Sun" ; Off peak all other times
C112: - Standing charge | D112: $/customer pa | E112: =Prop2019DistTar!D18 -> 209.147
C113: - Peak Unit rate | D113: ¢/kWh | E113: =Prop2019DistTar!E18 -> 4.945
C114: - Off Peak Unit rate | D114: ¢/kWh | E114: =Prop2019DistTar!I18 -> 2.261
C115: - Demand rate | D115: $/kW pa | E115: =Prop2019DistTar!M18 -> 64.297
C116: Minimum Chargeable Demand | D116: 60 kW
B118: A290 | C118: Unmetered Supply
C119: Peak: 7 AM to 11 PM AEST "Mon - Fri" ; Off peak all other times
C120: - Peak Unit rate | D120: ¢/kWh | E120: =Prop2019DistTar!E19 -> 10.121
C121: - Off Peak Unit rate | D121: ¢/kWh | E121: =Prop2019DistTar!I19 -> 1.888
A123: Large Business - LV
A124: Low Voltage Tariffs (nominal voltage < 1000 Volts)
A125: Only available to embedded network customers OR non-embedded network customers
A126: with annual consumption ³ 0.4 GWh OR maximum demand ³ 120 kVA
B128: A300 / F300a / T300b | C128: LV 0.4 - 0.8 GWh
B129: Only available to non-embedded network customers consuming £ 0.8 GWh pa
C130: Peak: 7 AM to 11 PM AEST "Mon - Fri" ; Off peak all other times
C131: - Standing charge | D131: $/customer pa | E131: =Prop2019DistTar!D20 -> 2231.165
C132: - Peak Unit rate | D132: ¢/kWh | E132: =Prop2019DistTar!E20 -> 1.968
C133: - Off Peak Unit rate | D133: ¢/kWh | E133: =Prop2019DistTar!I20 -> 0.639
C134: - Demand rate | D134: $/kVA pa | E134: =Prop2019DistTar!M20 -> 96.639
C135: Minimum Chargeable Demand | D135: 120 kVA
B137: A30E | C137: LVEN Annual Consumption  0.8 GWh
B138: Only available to embedded network customers consuming £ 0.8 GWh pa
C139: Peak: 7 AM to 11 PM AEST "Mon - Fri" ; Off peak all other times
C140: - Standing charge | D140: $/customer pa | E140: =Prop2019DistTar!D21 -> 2231.165
C141: - Peak Unit rate | D141: ¢/kWh | E141: =Prop2019DistTar!E21 -> 1.985
C142: - Off Peak Unit rate | D142: ¢/kWh | E142: =Prop2019DistTar!I21 -> 0.639
C143: - Demand rate | D143: $/kVA pa | E143: =Prop2019DistTar!M21 -> 109.033
C144: Minimum Chargeable Demand | D144: 120 kVA
B146: A320 | C146: LV 0.8+ - 2.2 GWh
B147: Only available to non-embedded network customers consuming > 0.8 GWh pa BUT £ 2.2 GWh pa
C148: Peak: 7 AM to 11 PM AEST "Mon - Fri" ; Off peak all other times
C149: - Standing charge | D149: $/customer pa | E149: =Prop2019DistTar!D22 -> 3905.456
C150: - Peak Unit rate | D150: ¢/kWh | E150: =Prop2019DistTar!E22 -> 1.343
C151: - Off Peak Unit rate | D151: ¢/kWh | E151: =Prop2019DistTar!I22 -> 0.628
C152: - Demand rate | D152: $/kVA pa | E152: =Prop2019DistTar!M22 -> 89.327
C153: Minimum Chargeable Demand | D153: 250 kVA
B155: A32E | C155: LVEN 0.8+ - 2.2 GWh
B156: Only available to embedded network customers consuming > 0.8 GWh pa BUT £ 2.2 GWh pa
C157: Peak: 7 AM to 11 PM AEST "Mon - Fri" ; Off peak all other times
C158: - Standing charge | D158: $/customer pa | E158: =Prop2019DistTar!D23 -> 3905.456
C159: - Peak Unit rate | D159: ¢/kWh | E159: =Prop2019DistTar!E23 -> 1.342
C160: - Off Peak Unit rate | D160: ¢/kWh | E160: =Prop2019DistTar!I23 -> 0.628
C161: - Demand rate | D161: $/kVA pa | E161: =Prop2019DistTar!M23 -> 98.268
C162: Minimum Chargeable Demand | D162: 250 kVA
B164: A340 | C164: LV 2.2+ - 6.0 GWh
B165: Only available to non-embedded network customers consuming > 2.2 GWh pa BUT £ 6.0 GWh pa
C166: Peak: 7 AM to 11 PM AEST "Mon - Fri" ; Off peak all other times
C167: - Standing charge | D167: $/customer pa | E167: =Prop2019DistTar!D24 -> 5990.235
C168: - Peak Unit rate | D168: ¢/kWh | E168: =Prop2019DistTar!E24 -> 1.229
C169: - Off Peak Unit rate | D169: ¢/kWh | E169: =Prop2019DistTar!I24 -> 0.511
C170: - Demand rate | D170: $/kVA pa | E170: =Prop2019DistTar!M24 -> 88.362
C171: Minimum Chargeable Demand | D171: 250 kVA
B173: A34E | C173: LVEN 2.2+ GWh
B174: Only available to embedded network customers consuming > 2.2 GWh pa
C175: Peak: 7 AM to 11 PM AEST "Mon - Fri" ; Off peak all other times
C176: - Standing charge | D176: $/customer pa | E176: =Prop2019DistTar!D25 -> 5990.235
C177: - Peak Unit rate | D177: ¢/kWh | E177: =Prop2019DistTar!E25 -> 1.229
C178: - Off Peak Unit rate | D178: ¢/kWh | E178: =Prop2019DistTar!I25 -> 0.511
C179: - Demand rate | D179: $/kVA pa | E179: =Prop2019DistTar!M25 -> 93.317
C180: Minimum Chargeable Demand | D180: 250 kVA
B182: A34M | C182: LVMS 2.2+ - 6.0 GWh (closed to new entrants)e
B183: Only available to non-embedded network customer taking supply from multiple NMIs on a single
B184: site AND the aggregated annual consumption from those NMIs is > 2.2 GWh pa BUT £ 6.0 GWh pa
C185: Peak: 7 AM to 11 PM AEST "Mon - Fri" ; Off peak all other times
C186: - Standing charge | D186: $/customer pa | E186: =Prop2019DistTar!D26 -> 3530.574
C187: - Peak Unit rate | D187: ¢/kWh | E187: =Prop2019DistTar!E26 -> 1.216
C188: - Off Peak Unit rate | D188: ¢/kWh | E188: =Prop2019DistTar!I26 -> 0.511
C189: - Demand rate | D189: $/kVA pa | E189: =Prop2019DistTar!M26 -> 59.988
C190: Minimum Chargeable Demand | D190: 250 kVA
B192: A370 | C192: LV 6.0+ GWh
B193: Only available to non-embedded network customers consuming > 6.0 GWh pa
C194: Peak: 7 AM to 11 PM AEST "Mon - Fri" ; Off peak all other times
C195: - Standing charge | D195: $/customer pa | E195: =Prop2019DistTar!D27 -> 8210.417
C196: - Peak Unit rate | D196: ¢/kWh | E196: =Prop2019DistTar!E27 -> 1.194
C197: - Off Peak Unit rate | D197: ¢/kWh | E197: =Prop2019DistTar!I27 -> 0.455
C198: - Demand rate | D198: $/kVA pa | E198: =Prop2019DistTar!M27 -> 84.863
C199: Minimum Chargeable Demand | D199: 450 kVA
B201: A37M | C201: LVMS 6.0+ GWh (closed to new entrants)e
B202: Only available to non-embedded network customer taking supply from multiple NMIs on a single
B203: site AND the aggregated annual consumption from those NMIs is > 6.0 Gwh
C204: Peak: 7 AM to 11 PM AEST "Mon - Fri" ; Off peak all other times
C205: - Standing charge | D205: $/customer pa | E205: =Prop2019DistTar!D28 -> 4768.3
C206: - Peak Unit rate | D206: ¢/kWh | E206: =Prop2019DistTar!E28 -> 1.194
C207: - Off Peak Unit rate | D207: ¢/kWh | E207: =Prop2019DistTar!I28 -> 0.455
C208: - Demand rate | D208: $/kVA pa | E208: =Prop2019DistTar!M28 -> 60.09
C209: Minimum Chargeable Demand | D209: 450 kVA
A211: Large Business - HV
A212: High Voltage Tariffs (nominal voltage ³ 1000 Volts AND £ 22,000 Volts)
B214: A400 | C214: HV
B215: Only available to non-embedded network customers consuming < 55 GWh pa
C216: Peak: 7 AM to 11 PM AEST "Mon - Fri" ; Off peak all other times
C217: - Standing charge | D217: $/customer pa | E217: =Prop2019DistTar!D29 -> 6069.36
C218: - Peak Unit rate | D218: ¢/kWh | E218: =Prop2019DistTar!E29 -> 0.797
C219: - Off Peak Unit rate | D219: ¢/kWh | E219: =Prop2019DistTar!I29 -> 0.237
C220: - Demand rate | D220: $/kVA pa | E220: =Prop2019DistTar!M29 -> 71.142
C221: Minimum Chargeable Demand | D221: 1,000 kVA
B223: A40E | C223: HVEN
B224: Only available to embedded network customers
C225: Peak: 7 AM to 11 PM AEST "Mon - Fri" ; Off peak all other times
C226: - Standing charge | D226: $/customer pa | E226: =Prop2019DistTar!D30 -> 6069.36
C227: - Peak Unit rate | D227: ¢/kWh | E227: =Prop2019DistTar!E30 -> 0.8
C228: - Off Peak Unit rate | D228: ¢/kWh | E228: =Prop2019DistTar!I30 -> 0.237
C229: - Demand rate | D229: $/kVA pa | E229: =Prop2019DistTar!M30 -> 73.298
C230: Minimum Chargeable Demand | D230: 1,000 kVA
... 57 more rows

Sheet 2019 TUOS+JS Tariff schedule
A1: Jemena Electricity Networks (VIC) Ltd - TUOS and JS Tariffs For The 2019 Calendar Year (Exclusive of GST)
A3: Tariff Class | B3: Code | C3: Tariff Name | D3: Units | E3: Rate
A5: Residential
A6: Only available to residential customers
B7: A100 / F100a / T100b | C7: General Purpose
C8: Single rate all times
C9: - Standing charge | D9: $/customer pa | E9: ='2019 TUOS Tariff schedule'!E9+'2019 JS Tariff schedule'!E9 -> 0.3
C10: - Unit rate | D10: ¢/kWh | E10: ='2019 TUOS Tariff schedule'!E10+'2019 JS Tariff schedule'!E10 -> 0.408
B12: A10X / F10Xa / T10Xb | C12: Flexible
B13: Available to customers with a remotely read AMI meter
B14: Summer period: is the daylight savings period; Non-summer period: All other times
B15: Peak Summer/Non-summer: 3 PM to 9 PM local time weekdays
B16: Shoulder Summer/Non-summer: 7 AM to 3 PM and 9 PM to 10 PM local time weekdays
B17: and 7 AM to 10 PM local time weekends
B18: Off peak Summer/Non-summer: 10 PM to 7 AM local time all days
C19: - Standing charge | D19: $/customer pa | E19: ='2019 TUOS Tariff schedule'!E19+'2019 JS Tariff schedule'!E19 -> 0.3
C20: Summer rates
C21: - Peak Unit rate | D21: ¢/kWh | E21: ='2019 TUOS Tariff schedule'!E21+'2019 JS Tariff schedule'!E21 -> 0.183
C22: - Shoulder Unit rate | D22: ¢/kWh | E22: ='2019 TUOS Tariff schedule'!E22+'2019 JS Tariff schedule'!E22 -> 0.408
C23: - Off Peak Unit rate | D23: ¢/kWh | E23: ='2019 TUOS Tariff schedule'!E23+'2019 JS Tariff schedule'!E23 -> 0.122
C24: Non-summer rates
C25: - Peak Unit rate | D25: ¢/kWh | E25: ='2019 TUOS Tariff schedule'!E25+'2019 JS Tariff schedule'!E25 -> 0.183
C26: - Shoulder Unit rate | D26: ¢/kWh | E26: ='2019 TUOS Tariff schedule'!E26+'2019 JS Tariff schedule'!E26 -> 0.408
C27: - Off Peak Unit rate | D27: ¢/kWh | E27: ='2019 TUOS Tariff schedule'!E27+'2019 JS Tariff schedule'!E27 -> 0.122
B29: A10D / F10Da / T10Db | C29: General Purpose - Demand
B30: Available to customers with a remotely read AMI meter
C31: Energy consumption - single rate all times
C32: Demand charging window 3pm - 9pm work days; reset monthly
C33: - Standing charge | D33: $/customer pa | E33: ='2019 TUOS Tariff schedule'!E33+'2019 JS Tariff schedule'!E33 -> 0.3
C34: - Unit rate | D34: ¢/kWh | E34: ='2019 TUOS Tariff schedule'!E34+'2019 JS Tariff schedule'!E34 -> 0.408
C35: - Demand rate | D35: $/kW pa | E35: ='2019 TUOS Tariff schedule'!E35+'2019 JS Tariff schedule'!E35 -> 0
B37: A10I / F10Ia / T10Ib | C37: Time of Use Interval Meter (closed to new entrants)c
B38: Available to customers with an interval meter
C39: Peak: 7 AM to 11 PM AEST "Mon - Fri" ; Off peak all other times
C40: - Standing charge | D40: $/customer pa | E40: ='2019 TUOS Tariff schedule'!E40+'2019 JS Tariff schedule'!E40 -> 0.3
C41: - Peak Unit rate | D41: ¢/kWh | E41: ='2019 TUOS Tariff schedule'!E41+'2019 JS Tariff schedule'!E41 -> 0.183
C42: - Off Peak Unit rate | D42: ¢/kWh | E42: ='2019 TUOS Tariff schedule'!E42+'2019 JS Tariff schedule'!E42 -> 0.486
B44: A140 | C44: Time of Use (closed to new entrants)
B45: This tariff is not available to existing customers that install an interval meter
C46: Peak: 7 AM to 11 PM AEST "Mon - Fri" ; Off peak all other times
C47: - Standing charge | D47: $/customer pa | E47: ='2019 TUOS Tariff schedule'!E47+'2019 JS Tariff schedule'!E47 -> 0.3
C48: - Peak Unit rate | D48: ¢/kWh | E48: ='2019 TUOS Tariff schedule'!E48+'2019 JS Tariff schedule'!E48 -> 1.883
C49: - Off Peak Unit rate | D49: ¢/kWh | E49: ='2019 TUOS Tariff schedule'!E49+'2019 JS Tariff schedule'!E49 -> 1.118
B51: A180 | C51: Off Peak Heating Only (dedicated ciruit)
B52: Available as a complementary tariff to the "Residential - General Purpose" A100 tariff only.
B53: This tariff is not available to new or existing customers that install embedded generationd
C54: 11 PM to 7 AM AEST all days
C55: - Standing charge | D55: $/customer pa | E55: ='2019 TUOS Tariff schedule'!E55+'2019 JS Tariff schedule'!E55 -> 0
C56: - Off Peak Unit rate | D56: ¢/kWh | E56: ='2019 TUOS Tariff schedule'!E56+'2019 JS Tariff schedule'!E56 -> 0.868
A58: Small Business
A59: Only available to non-embedded network customers
A60: with annual consumption < 0.4 GWh AND maximum demand < 120 kVA
B62: A200 / F200a / T200b | C62: General Purpose
B63: Only available to customer consuming < 40 MWh pa
C64: Single rate all times
C65: - Standing charge | D65: $/customer pa | E65: ='2019 TUOS Tariff schedule'!E65+'2019 JS Tariff schedule'!E65 -> 0.761
C66: - Unit rate | D66: ¢/kWh | E66: ='2019 TUOS Tariff schedule'!E66+'2019 JS Tariff schedule'!E66 -> 0.884
B68: A20D / F20Da / T20Db | C68: General Purpose - Demand
B69: Only available to customers with meter capable of measuring demand AND consuming < 40 MWh pa
C70: Single rate all times
C71: Demand charging window 10am - 8pm work days
C72: - Standing charge | D72: $/customer pa | E72: ='2019 TUOS Tariff schedule'!E72+'2019 JS Tariff schedule'!E72 -> 0.761
C73: - Unit rate | D73: ¢/kWh | E73: ='2019 TUOS Tariff schedule'!E73+'2019 JS Tariff schedule'!E73 -> 0.884
C74: - Demand rate | D74: $/kW pa | E74: ='2019 TUOS Tariff schedule'!E74+'2019 JS Tariff schedule'!E74 -> 0
B76: A210 / F210a / T210b | C76: Time of Use Weekdays
B77: Only available to customers with two rate accumulation meter (or Interval meter) AND
B78: consuming < 40 MWh pa
C79: Peak: 7 AM to 11 PM AEST "Mon - Fri" ; Off peak all other times
C80: - Standing charge | D80: $/customer pa | E80: ='2019 TUOS Tariff schedule'!E80+'2019 JS Tariff schedule'!E80 -> 10.017
C81: - Peak Unit rate | D81: ¢/kWh | E81: ='2019 TUOS Tariff schedule'!E81+'2019 JS Tariff schedule'!E81 -> 1.453
C82: - Off Peak Unit rate | D82: ¢/kWh | E82: ='2019 TUOS Tariff schedule'!E82+'2019 JS Tariff schedule'!E82 -> 0.807
B84: A230 / F230a / T230b | C84: Time of Use Weekdays - Demand
B85: Only available to customers with a meter capable of measuring demand AND consuming > 40 MWh pa
C86: Peak: 7 AM to 11 PM AEST "Mon - Fri" ; Off peak all other times
C87: - Standing charge | D87: $/customer pa | E87: ='2019 TUOS Tariff schedule'!E87+'2019 JS Tariff schedule'!E87 -> 95.249
C88: - Peak Unit rate | D88: ¢/kWh | E88: ='2019 TUOS Tariff schedule'!E88+'2019 JS Tariff schedule'!E88 -> 0.772
C89: - Off Peak Unit rate | D89: ¢/kWh | E89: ='2019 TUOS Tariff schedule'!E89+'2019 JS Tariff schedule'!E89 -> 0.593
C90: - Demand rate | D90: $/kW pa | E90: ='2019 TUOS Tariff schedule'!E90+'2019 JS Tariff schedule'!E90 -> 0.386
B92: A23N / F23Na / T23Nb | C92: Time of Use - Opt-out
B93: Only available to customers with a meter capable of measuring demand AND consuming > 40 MWh pa
C94: Peak: 7 AM to 11 PM AEST "Mon - Fri" ; Off peak all other times
C95: - Standing charge | D95: $/customer pa | E95: ='2019 TUOS Tariff schedule'!E95+'2019 JS Tariff schedule'!E95 -> 95.249
C96: - Peak Unit rate | D96: ¢/kWh | E96: ='2019 TUOS Tariff schedule'!E96+'2019 JS Tariff schedule'!E96 -> 1.453
C97: - Off Peak Unit rate | D97: ¢/kWh | E97: ='2019 TUOS Tariff schedule'!E97+'2019 JS Tariff schedule'!E97 -> 0.807
C98: - Demand rate | D98: $/kW pa | E98: ='2019 TUOS Tariff schedule'!E98+'2019 JS Tariff schedule'!E98 -> 0
B100: A250 / F250a / T250b | C100: Time of Use Extended (closed to new entrants)
B101: Only available to customers with a two rate accumulation meter (or interval meter) AND
B102: consuming < 40 MWh pa
C103: Peak: 7 AM to 11 PM AEST "Mon - Sun" ; Off peak all other times
C104: - Standing charge | D104: $/customer pa | E104: ='2019 TUOS Tariff schedule'!E104+'2019 JS Tariff schedule'!E104 -> 10.017
C105: - Peak Unit rate | D105: ¢/kWh | E105: ='2019 TUOS Tariff schedule'!E105+'2019 JS Tariff schedule'!E105 -> 1.315
C106: - Off Peak Unit rate | D106: ¢/kWh | E106: ='2019 TUOS Tariff schedule'!E106+'2019 JS Tariff schedule'!E106 -> 0.838
B108: A270 / F270a / T270b | C108: Time of Use Extended - Demand (closed to new entrants)
B109: Only available to customers with a meter capable of measuring demand AND consuming >40 MWh pa
C110: Peak: 7 AM to 11 PM AEST "Mon - Sun" ; Off peak all other times
C111: - Standing charge | D111: $/customer pa | E111: ='2019 TUOS Tariff schedule'!E111+'2019 JS Tariff schedule'!E111 -> 95.249
C112: - Peak Unit rate | D112: ¢/kWh | E112: ='2019 TUOS Tariff schedule'!E112+'2019 JS Tariff schedule'!E112 -> 1.19
C113: - Off Peak Unit rate | D113: ¢/kWh | E113: ='2019 TUOS Tariff schedule'!E113+'2019 JS Tariff schedule'!E113 -> 0.58
C114: - Demand rate | D114: $/kW pa | E114: ='2019 TUOS Tariff schedule'!E114+'2019 JS Tariff schedule'!E114 -> 0.386
C115: Minimum Chargeable Demand | D115: 60 kW
B117: A290 | C117: Unmetered Supply
C118: Peak: 7 AM to 11 PM AEST "Mon - Fri" ; Off peak all other times
C119: - Peak Unit rate | D119: ¢/kWh | E119: ='2019 TUOS Tariff schedule'!E119+'2019 JS Tariff schedule'!E119 -> 0.932
C120: - Off Peak Unit rate | D120: ¢/kWh | E120: ='2019 TUOS Tariff schedule'!E120+'2019 JS Tariff schedule'!E120 -> 0.941
A123: Large Business - LV
A124: Low Voltage Tariffs (nominal voltage < 1000 Volts)
A125: Only available to embedded network customers OR non-embedded network customers
A126: with annual consumption ³ 0.4 GWh OR maximum demand ³ 120 kVA
B128: A300 / F300a / T300b | C128: LV 0.4 - 0.8 GWh
B129: Only available to non-embedded network customers consuming £ 0.8 GWh pa
C130: Peak: 7 AM to 11 PM AEST "Mon - Fri" ; Off peak all other times
C131: - Standing charge | D131: $/customer pa | E131: ='2019 TUOS Tariff schedule'!E130+'2019 JS Tariff schedule'!E130 -> 67.903
C132: - Peak Unit rate | D132: ¢/kWh | E132: ='2019 TUOS Tariff schedule'!E131+'2019 JS Tariff schedule'!E131 -> 2.289
C133: - Off Peak Unit rate | D133: ¢/kWh | E133: ='2019 TUOS Tariff schedule'!E132+'2019 JS Tariff schedule'!E132 -> 1.14
C134: - Demand rate | D134: $/kVA pa | E134: ='2019 TUOS Tariff schedule'!E133+'2019 JS Tariff schedule'!E133 -> 1.046
C135: Minimum Chargeable Demand | D135: 120 kVA
B137: A30E | C137: LVEN Annual Consumption  0.8 GWh
B138: Only available to embedded network customers consuming £ 0.8 GWh pa
C139: Peak: 7 AM to 11 PM AEST "Mon - Fri" ; Off peak all other times
C140: - Standing charge | D140: $/customer pa | E140: ='2019 TUOS Tariff schedule'!E139+'2019 JS Tariff schedule'!E139 -> 67.903
C141: - Peak Unit rate | D141: ¢/kWh | E141: ='2019 TUOS Tariff schedule'!E140+'2019 JS Tariff schedule'!E140 -> 2.301
C142: - Off Peak Unit rate | D142: ¢/kWh | E142: ='2019 TUOS Tariff schedule'!E141+'2019 JS Tariff schedule'!E141 -> 1.14
C143: - Demand rate | D143: $/kVA pa | E143: ='2019 TUOS Tariff schedule'!E142+'2019 JS Tariff schedule'!E142 -> 1.416
C144: Minimum Chargeable Demand | D144: 120 kVA
B146: A320 | C146: LV 0.8+ - 2.2 GWh
B147: Only available to non-embedded network customers consuming > 0.8 GWh pa BUT £ 2.2 GWh pa
C148: Peak: 7 AM to 11 PM AEST "Mon - Fri" ; Off peak all other times
C149: - Standing charge | D149: $/customer pa | E149: ='2019 TUOS Tariff schedule'!E148+'2019 JS Tariff schedule'!E148 -> 143.759
C150: - Peak Unit rate | D150: ¢/kWh | E150: ='2019 TUOS Tariff schedule'!E149+'2019 JS Tariff schedule'!E149 -> 2.463
C151: - Off Peak Unit rate | D151: ¢/kWh | E151: ='2019 TUOS Tariff schedule'!E150+'2019 JS Tariff schedule'!E150 -> 1.146
C152: - Demand rate | D152: $/kVA pa | E152: ='2019 TUOS Tariff schedule'!E151+'2019 JS Tariff schedule'!E151 -> 1.814
C153: Minimum Chargeable Demand | D153: 250 kVA
B155: A32E | C155: LVEN 0.8+ - 2.2 GWh
B156: Only available to embedded network customers consuming > 0.8 GWh pa BUT £ 2.2 GWh pa
C157: Peak: 7 AM to 11 PM AEST "Mon - Fri" ; Off peak all other times
C158: - Standing charge | D158: $/customer pa | E158: ='2019 TUOS Tariff schedule'!E157+'2019 JS Tariff schedule'!E157 -> 143.759
C159: - Peak Unit rate | D159: ¢/kWh | E159: ='2019 TUOS Tariff schedule'!E158+'2019 JS Tariff schedule'!E158 -> 2.316
C160: - Off Peak Unit rate | D160: ¢/kWh | E160: ='2019 TUOS Tariff schedule'!E159+'2019 JS Tariff schedule'!E159 -> 1.146
C161: - Demand rate | D161: $/kVA pa | E161: ='2019 TUOS Tariff schedule'!E160+'2019 JS Tariff schedule'!E160 -> 2.346
C162: Minimum Chargeable Demand | D162: 250 kVA
B164: A340 | C164: LV 2.2+ - 6.0 GWh
B165: Only available to non-embedded network customers consuming > 2.2 GWh pa BUT £ 6.0 GWh pa
C166: Peak: 7 AM to 11 PM AEST "Mon - Fri" ; Off peak all other times
C167: - Standing charge | D167: $/customer pa | E167: ='2019 TUOS Tariff schedule'!E166+'2019 JS Tariff schedule'!E166 -> 955.545
C168: - Peak Unit rate | D168: ¢/kWh | E168: ='2019 TUOS Tariff schedule'!E167+'2019 JS Tariff schedule'!E167 -> 2.533
C169: - Off Peak Unit rate | D169: ¢/kWh | E169: ='2019 TUOS Tariff schedule'!E168+'2019 JS Tariff schedule'!E168 -> 1.145
C170: - Demand rate | D170: $/kVA pa | E170: ='2019 TUOS Tariff schedule'!E169+'2019 JS Tariff schedule'!E169 -> 1.87
C171: Minimum Chargeable Demand | D171: 250 kVA
B173: A34E | C173: LVEN 2.2+ GWh
B174: Only available to embedded network customers consuming > 2.2 GWh pa
C175: Peak: 7 AM to 11 PM AEST "Mon - Fri" ; Off peak all other times
C176: - Standing charge | D176: $/customer pa | E176: ='2019 TUOS Tariff schedule'!E175+'2019 JS Tariff schedule'!E175 -> 955.545
C177: - Peak Unit rate | D177: ¢/kWh | E177: ='2019 TUOS Tariff schedule'!E176+'2019 JS Tariff schedule'!E176 -> 2.162
C178: - Off Peak Unit rate | D178: ¢/kWh | E178: ='2019 TUOS Tariff schedule'!E177+'2019 JS Tariff schedule'!E177 -> 1.141
C179: - Demand rate | D179: $/kVA pa | E179: ='2019 TUOS Tariff schedule'!E178+'2019 JS Tariff schedule'!E178 -> 3.234
C180: Minimum Chargeable Demand | D180: 250 kVA
B182: A34M | C182: LVMS 2.2+ - 6.0 GWh (closed to new entrants)e
B183: Only available to non-embedded network customer taking supply from multiple NMIs on a single
B184: site AND the aggregated annual consumption from those NMIs is > 2.2 GWh pa BUT £ 6.0 GWh pa
C185: Peak: 7 AM to 11 PM AEST "Mon - Fri" ; Off peak all other times
C186: - Standing charge | D186: $/customer pa | E186: ='2019 TUOS Tariff schedule'!E186+'2019 JS Tariff schedule'!E186 -> 1276.617
C187: - Peak Unit rate | D187: ¢/kWh | E187: ='2019 TUOS Tariff schedule'!E187+'2019 JS Tariff schedule'!E187 -> 2.771
C188: - Off Peak Unit rate | D188: ¢/kWh | E188: ='2019 TUOS Tariff schedule'!E188+'2019 JS Tariff schedule'!E188 -> 1.138
C189: - Demand rate | D189: $/kVA pa | E189: ='2019 TUOS Tariff schedule'!E189+'2019 JS Tariff schedule'!E189 -> 2.5
C190: Minimum Chargeable Demand | D190: 250 kVA
B192: A370 | C192: LV 6.0+ GWh
B193: Only available to non-embedded network customers consuming > 6.0 GWh pa
C194: Peak: 7 AM to 11 PM AEST "Mon - Fri" ; Off peak all other times
C195: - Standing charge | D195: $/customer pa | E195: ='2019 TUOS Tariff schedule'!E195+'2019 JS Tariff schedule'!E195 -> 2462.269
C196: - Peak Unit rate | D196: ¢/kWh | E196: ='2019 TUOS Tariff schedule'!E196+'2019 JS Tariff schedule'!E196 -> 2.264
C197: - Off Peak Unit rate | D197: ¢/kWh | E197: ='2019 TUOS Tariff schedule'!E197+'2019 JS Tariff schedule'!E197 -> 1.137
C198: - Demand rate | D198: $/kVA pa | E198: ='2019 TUOS Tariff schedule'!E198+'2019 JS Tariff schedule'!E198 -> 2.042
C199: Minimum Chargeable Demand | D199: 450 kVA
B201: A37M | C201: LVMS 6.0+ GWh (closed to new entrants)e
B202: Only available to non-embedded network customer taking supply from multiple NMIs on a single
B203: site AND the aggregated annual consumption from those NMIs is > 6.0 Gwh
C204: Peak: 7 AM to 11 PM AEST "Mon - Fri" ; Off peak all other times
C205: - Standing charge | D205: $/customer pa | E205: ='2019 TUOS Tariff schedule'!E205+'2019 JS Tariff schedule'!E205 -> 3060.085
C206: - Peak Unit rate | D206: ¢/kWh | E206: ='2019 TUOS Tariff schedule'!E206+'2019 JS Tariff schedule'!E206 -> 2.37
C207: - Off Peak Unit rate | D207: ¢/kWh | E207: ='2019 TUOS Tariff schedule'!E207+'2019 JS Tariff schedule'!E207 -> 1.137
C208: - Demand rate | D208: $/kVA pa | E208: ='2019 TUOS Tariff schedule'!E208+'2019 JS Tariff schedule'!E208 -> 2.537
C209: Minimum Chargeable Demand | D209: 450 kVA
A211: Large Business - HV
A212: High Voltage Tariffs (nominal voltage ³ 1000 Volts AND £ 22,000 Volts)
B214: A400 | C214: HV
B215: Only available to non-embedded network customers consuming < 55 GWh pa
C216: Peak: 7 AM to 11 PM AEST "Mon - Fri" ; Off peak all other times
C217: - Standing charge | D217: $/customer pa | E217: ='2019 TUOS Tariff schedule'!E217+'2019 JS Tariff schedule'!E217 -> 7214.176
C218: - Peak Unit rate | D218: ¢/kWh | E218: ='2019 TUOS Tariff schedule'!E218+'2019 JS Tariff schedule'!E218 -> 2.577
C219: - Off Peak Unit rate | D219: ¢/kWh | E219: ='2019 TUOS Tariff schedule'!E219+'2019 JS Tariff schedule'!E219 -> 0.887
C220: - Demand rate | D220: $/kVA pa | E220: ='2019 TUOS Tariff schedule'!E220+'2019 JS Tariff schedule'!E220 -> 2.321
C221: Minimum Chargeable Demand | D221: 1,000 kVA
B223: A40E | C223: HVEN
B224: Only available to embedded network customers
C225: Peak: 7 AM to 11 PM AEST "Mon - Fri" ; Off peak all other times
C226: - Standing charge | D226: $/customer pa | E226: ='2019 TUOS Tariff schedule'!E226+'2019 JS Tariff schedule'!E226 -> 7214.176
C227: - Peak Unit rate | D227: ¢/kWh | E227: ='2019 TUOS Tariff schedule'!E227+'2019 JS Tariff schedule'!E227 -> 2.402
C228: - Off Peak Unit rate | D228: ¢/kWh | E228: ='2019 TUOS Tariff schedule'!E228+'2019 JS Tariff schedule'!E228 -> 0.887
C229: - Demand rate | D229: $/kVA pa | E229: ='2019 TUOS Tariff schedule'!E229+'2019 JS Tariff schedule'!E229 -> 2.249
C230: Minimum Chargeable Demand | D230: 1,000 kVA
... 56 more rows

Sheet 2019 TUOS Tariff schedule
A1: Jemena Electricity Networks (VIC) Ltd - Transmission Tariffs For The 2019 Calendar Year (Exclusive of GST)
A3: Tariff Class | B3: Code | C3: Tariff Name | D3: Units | E3: Rate
A5: Residential
A6: Only available to residential customers
B7: A100 / F100a / T100b | C7: General Purpose
C8: Single rate all times
C9: - Standing charge | D9: $/customer pa | E9: =Prop2019TransTar!D6 -> 0.3
C10: - Unit rate | D10: ¢/kWh | E10: =Prop2019TransTar!E6 -> 0.299
B12: A10X / F10Xa / T10Xb | C12: Flexible
B13: Available to customers with a remotely read AMI meter
B14: Summer period: is the daylight savings period; Non-summer period: All other times
B15: Peak Summer/Non-summer: 3 PM to 9 PM local time weekdays
B16: Shoulder Summer/Non-summer: 7 AM to 3 PM and 9 PM to 10 PM local time weekdays
B17: and 7 AM to 10 PM local time weekends
B18: Off peak Summer/Non-summer: 10 PM to 7 AM local time all days
C19: - Standing charge | D19: $/customer pa | E19: =Prop2019TransTar!D8 -> 0.3
C20: Summer rates
C21: - Peak Unit rate | D21: ¢/kWh | E21: =Prop2019TransTar!E8 -> 0.074
C22: - Shoulder Unit rate | D22: ¢/kWh | E22: =Prop2019TransTar!F8 -> 0.299
C23: - Off Peak Unit rate | D23: ¢/kWh | E23: =Prop2019TransTar!I8 -> 0.017
C24: Non-summer rates
C25: - Peak Unit rate | D25: ¢/kWh | E25: =Prop2019TransTar!G8 -> 0.074
C26: - Shoulder Unit rate | D26: ¢/kWh | E26: =Prop2019TransTar!H8 -> 0.299
C27: - Off Peak Unit rate | D27: ¢/kWh | E27: =Prop2019TransTar!J8 -> 0.017
B29: A10D / F10Da / T10Db | C29: General Purpose - Demand
B30: Available to customers with a remotely read AMI meter
C31: Energy consumption - single rate all times.
C32: Demand charging window 3pm - 9pm work days; reset monthly
C33: - Standing charge | D33: $/customer pa | E33: =Prop2019TransTar!D7 -> 0.3
C34: - Unit rate | D34: ¢/kWh | E34: =Prop2019TransTar!E7 -> 0.299
C35: - Demand rate | D35: $/kW pa | E35: =Prop2019TransTar!M7 -> 0
B37: A10I / F10Ia / T10Ib | C37: Time of Use Interval Meter (closed to new entrants)c
B38: Available to customers with an interval meter
C39: Peak: 7 AM to 11 PM AEST "Mon - Fri" ; Off peak all other times
C40: - Standing charge | D40: $/customer pa | E40: =Prop2019TransTar!D9 -> 0.3
C41: - Peak Unit rate | D41: ¢/kWh | E41: =Prop2019TransTar!E9 -> 0.074
C42: - Off Peak Unit rate | D42: ¢/kWh | E42: =Prop2019TransTar!I9 -> 0.381
B44: A140 | C44: Time of Use (closed to new entrants)
B45: This tariff is not available to existing customers that install an interval meter
C46: Peak: 7 AM to 11 PM AEST "Mon - Fri" ; Off peak all other times
C47: - Standing charge | D47: $/customer pa | E47: =Prop2019TransTar!D10 -> 0.3
C48: - Peak Unit rate | D48: ¢/kWh | E48: =Prop2019TransTar!E10 -> 1.774
C49: - Off Peak Unit rate | D49: ¢/kWh | E49: =Prop2019TransTar!I10 -> 1.013
B51: A180 | C51: Off Peak Heating Only (dedicated ciruit)
B52: Available as a complementary tariff to the "Residential - General Purpose" A100 tariff only.
B53: This tariff is not available to new or existing customers that install embedded generationd
C54: 11 PM to 7 AM AEST all days
C55: - Standing charge | D55: $/customer pa | E55: 0
C56: - Off Peak Unit rate | D56: ¢/kWh | E56: =Prop2019TransTar!I11 -> 0.765
A58: Small Business
A59: Only available to non-embedded network customers
A60: with annual consumption < 0.4 GWh AND maximum demand < 120 kVA
B62: A200 / F200a / T200b | C62: General Purpose
B63: Only available to customer consuming < 40 MWh pa
C64: Single rate all times
C65: - Standing charge | D65: $/customer pa | E65: =Prop2019TransTar!D12 -> 0.761
C66: - Unit rate | D66: ¢/kWh | E66: =Prop2019TransTar!E12 -> 0.755
B68: A20D / F20Da / T20Db | C68: General Purpose - Demand
B69: Only available to customers with meter capable of measuring demand AND consuming < 40 MWh pa
C70: Single rate all times
C71: Demand charging window 10am - 8pm work days
C72: - Standing charge | D72: $/customer pa | E72: =Prop2019TransTar!D13 -> 0.761
C73: - Unit rate | D73: ¢/kWh | E73: =Prop2019TransTar!E13 -> 0.755
C74: - Demand rate | D74: $/kW pa | E74: =Prop2019TransTar!M13 -> 0
B76: A210 / F210a / T210b | C76: Time of Use Weekdays
B77: Only available to customers with two rate accumulation meter (or Interval meter) AND
B78: consuming < 40 MWh pa
C79: Peak: 7 AM to 11 PM AEST "Mon - Fri" ; Off peak all other times
C80: - Standing charge | D80: $/customer pa | E80: =Prop2019TransTar!D14 -> 10.017
C81: - Peak Unit rate | D81: ¢/kWh | E81: =Prop2019TransTar!E14 -> 1.324
C82: - Off Peak Unit rate | D82: ¢/kWh | E82: =Prop2019TransTar!I14 -> 0.695
B84: A230 / F230a / T230b | C84: Time of Use Weekdays - Demand
B85: Only available to customers with a meter capable of measuring demand AND consuming > 40 MWh pa
C86: Peak: 7 AM to 11 PM AEST "Mon - Fri" ; Off peak all other times
C87: - Standing charge | D87: $/customer pa | E87: =Prop2019TransTar!D15 -> 95.249
C88: - Peak Unit rate | D88: ¢/kWh | E88: =Prop2019TransTar!E15 -> 0.643
C89: - Off Peak Unit rate | D89: ¢/kWh | E89: =Prop2019TransTar!I15 -> 0.481
C90: - Demand rate | D90: $/kW pa | E90: =Prop2019TransTar!M15 -> 0.386
B92: A23N / F23Na / T23Nb | C92: Time of Use - Opt-out
B93: Only available to customers with a meter capable of measuring demand AND consuming > 40 MWh pa
C94: Peak: 7 AM to 11 PM AEST "Mon - Fri" ; Off peak all other times
C95: - Standing charge | D95: $/customer pa | E95: =Prop2019TransTar!D16 -> 95.249
C96: - Peak Unit rate | D96: ¢/kWh | E96: =Prop2019TransTar!E16 -> 1.324
C97: - Off Peak Unit rate | D97: ¢/kWh | E97: =Prop2019TransTar!I16 -> 0.695
C98: - Demand rate | D98: $/kW pa | E98: =Prop2019TransTar!M16 -> 0
B100: A250 / F250a / T250b | C100: Time of Use Extended (closed to new entrants)
B101: Only available to customers with a two rate accumulation meter (or interval meter) AND
B102: consuming < 40 MWh pa
C103: Peak: 7 AM to 11 PM AEST "Mon - Sun" ; Off peak all other times
C104: - Standing charge | D104: $/customer pa | E104: =Prop2019TransTar!D17 -> 10.017
C105: - Peak Unit rate | D105: ¢/kWh | E105: =Prop2019TransTar!E17 -> 1.186
C106: - Off Peak Unit rate | D106: ¢/kWh | E106: =Prop2019TransTar!I17 -> 0.726
B108: A270 / F270a / T270b | C108: Time of Use Extended - Demand (closed to new entrants)
B109: Only available to customers with a meter capable of measuring demand AND consuming >40 MWh pa
C110: Peak: 7 AM to 11 PM AEST "Mon - Sun" ; Off peak all other times
C111: - Standing charge | D111: $/customer pa | E111: =Prop2019TransTar!D18 -> 95.249
C112: - Peak Unit rate | D112: ¢/kWh | E112: =Prop2019TransTar!E18 -> 1.061
C113: - Off Peak Unit rate | D113: ¢/kWh | E113: =Prop2019TransTar!I18 -> 0.468
C114: - Demand rate | D114: $/kW pa | E114: =Prop2019TransTar!M18 -> 0.386
C115: Minimum Chargeable Demand | D115: 60 kW
B117: A290 | C117: Unmetered Supply
C118: Peak: 7 AM to 11 PM AEST "Mon - Fri" ; Off peak all other times
C119: - Peak Unit rate | D119: ¢/kWh | E119: =Prop2019TransTar!E19 -> 0.803
C120: - Off Peak Unit rate | D120: ¢/kWh | E120: =Prop2019TransTar!I19 -> 0.829
A122: Large Business - LV
A123: Low Voltage Tariffs (nominal voltage < 1000 Volts)
A124: Only available to embedded network customers OR non-embedded network customers
A125: with annual consumption ³ 0.4 GWh OR maximum demand ³ 120 kVA
B127: A300 / F300a / T300b | C127: LV 0.4 - 0.8 GWh
B128: Only available to non-embedded network customers consuming £ 0.8 GWh pa
C129: Peak: 7 AM to 11 PM AEST "Mon - Fri" ; Off peak all other times
C130: - Standing charge | D130: $/customer pa | E130: =Prop2019TransTar!D20 -> 67.903
C131: - Peak Unit rate | D131: ¢/kWh | E131: =Prop2019TransTar!E20 -> 2.144
C132: - Off Peak Unit rate | D132: ¢/kWh | E132: =Prop2019TransTar!I20 -> 1.021
C133: - Demand rate | D133: $/kVA pa | E133: =Prop2019TransTar!M20 -> 1.046
C134: Minimum Chargeable Demand | D134: 120 kVA
B136: A30E | C136: LVEN Annual Consumption  0.8 GWh
B137: Only available to embedded network customers consuming £ 0.8 GWh pa
C138: Peak: 7 AM to 11 PM AEST "Mon - Fri" ; Off peak all other times
C139: - Standing charge | D139: $/customer pa | E139: =Prop2019TransTar!D21 -> 67.903
C140: - Peak Unit rate | D140: ¢/kWh | E140: =Prop2019TransTar!E21 -> 2.156
C141: - Off Peak Unit rate | D141: ¢/kWh | E141: =Prop2019TransTar!I21 -> 1.021
C142: - Demand rate | D142: $/kVA pa | E142: =Prop2019TransTar!M21 -> 1.416
C143: Minimum Chargeable Demand | D143: 120 kVA
B145: A320 | C145: LV 0.8+ - 2.2 GWh
B146: Only available to non-embedded network customers consuming > 0.8 GWh pa BUT £ 2.2 GWh pa
C147: Peak: 7 AM to 11 PM AEST "Mon - Fri" ; Off peak all other times
C148: - Standing charge | D148: $/customer pa | E148: =Prop2019TransTar!D22 -> 143.759
C149: - Peak Unit rate | D149: ¢/kWh | E149: =Prop2019TransTar!E22 -> 2.318
C150: - Off Peak Unit rate | D150: ¢/kWh | E150: =Prop2019TransTar!I22 -> 1.027
C151: - Demand rate | D151: $/kVA pa | E151: =Prop2019TransTar!M22 -> 1.814
C152: Minimum Chargeable Demand | D152: 250 kVA
B154: A32E | C154: LVEN 0.8+ - 2.2 GWh
B155: Only available to embedded network customers consuming > 0.8 GWh pa BUT £ 2.2 GWh pa
C156: Peak: 7 AM to 11 PM AEST "Mon - Fri" ; Off peak all other times
C157: - Standing charge | D157: $/customer pa | E157: =Prop2019TransTar!D23 -> 143.759
C158: - Peak Unit rate | D158: ¢/kWh | E158: =Prop2019TransTar!E23 -> 2.171
C159: - Off Peak Unit rate | D159: ¢/kWh | E159: =Prop2019TransTar!I23 -> 1.027
C160: - Demand rate | D160: $/kVA pa | E160: =Prop2019TransTar!M23 -> 2.346
C161: Minimum Chargeable Demand | D161: 250 kVA
B163: A340 | C163: LV 2.2+ - 6.0 GWh
B164: Only available to non-embedded network customers consuming > 2.2 GWh pa BUT £ 6.0 GWh pa
C165: Peak: 7 AM to 11 PM AEST "Mon - Fri" ; Off peak all other times
C166: - Standing charge | D166: $/customer pa | E166: =Prop2019TransTar!D24 -> 955.545
C167: - Peak Unit rate | D167: ¢/kWh | E167: =Prop2019TransTar!E24 -> 2.388
C168: - Off Peak Unit rate | D168: ¢/kWh | E168: =Prop2019TransTar!I24 -> 1.026
C169: - Demand rate | D169: $/kVA pa | E169: =Prop2019TransTar!M24 -> 1.87
C170: Minimum Chargeable Demand | D170: 250 kVA
B172: A34E | C172: LVEN 2.2+ GWh
B173: Only available to embedded network customers consuming > 2.2 GWh pa
C174: Peak: 7 AM to 11 PM AEST "Mon - Fri" ; Off peak all other times
C175: - Standing charge | D175: $/customer pa | E175: =Prop2019TransTar!D25 -> 955.545
C176: - Peak Unit rate | D176: ¢/kWh | E176: =Prop2019TransTar!E25 -> 2.017
C177: - Off Peak Unit rate | D177: ¢/kWh | E177: =Prop2019TransTar!I25 -> 1.022
C178: - Demand rate | D178: $/kVA pa | E178: =Prop2019TransTar!M25 -> 3.234
C179: Minimum Chargeable Demand | D179: 250 kVA
B181: A34M | C181: LVMS 2.2+ - 6.0 GWh (closed to new entrants)e
B182: Only available to non-embedded network customer taking supply from multiple NMIs on a single
B183: site AND the aggregated annual consumption from those NMIs is > 2.2 GWh pa BUT £ 6.0 GWh pa
C185: Peak: 7 AM to 11 PM AEST "Mon - Fri" ; Off peak all other times
C186: - Standing charge | D186: $/customer pa | E186: =Prop2019TransTar!D26 -> 1276.617
C187: - Peak Unit rate | D187: ¢/kWh | E187: =Prop2019TransTar!E26 -> 2.626
C188: - Off Peak Unit rate | D188: ¢/kWh | E188: =Prop2019TransTar!I26 -> 1.019
C189: - Demand rate | D189: $/kVA pa | E189: =Prop2019TransTar!M26 -> 2.5
C190: Minimum Chargeable Demand | D190: 250 kVA
B192: A370 | C192: LV 6.0+ GWh
B193: Only available to non-embedded network customers consuming > 6.0 GWh pa
C194: Peak: 7 AM to 11 PM AEST "Mon - Fri" ; Off peak all other times
C195: - Standing charge | D195: $/customer pa | E195: =Prop2019TransTar!D27 -> 2462.269
C196: - Peak Unit rate | D196: ¢/kWh | E196: =Prop2019TransTar!E27 -> 2.119
C197: - Off Peak Unit rate | D197: ¢/kWh | E197: =Prop2019TransTar!I27 -> 1.018
C198: - Demand rate | D198: $/kVA pa | E198: =Prop2019TransTar!M27 -> 2.042
C199: Minimum Chargeable Demand | D199: 450 kVA
B201: A37M | C201: LVMS 6.0+ GWh (closed to new entrants)e
B202: Only available to non-embedded network customer taking supply from multiple NMIs on a single
B203: site AND the aggregated annual consumption from those NMIs is > 6.0 Gwh
C204: Peak: 7 AM to 11 PM AEST "Mon - Fri" ; Off peak all other times
C205: - Standing charge | D205: $/customer pa | E205: =Prop2019TransTar!D28 -> 3060.085
C206: - Peak Unit rate | D206: ¢/kWh | E206: =Prop2019TransTar!E28 -> 2.225
C207: - Off Peak Unit rate | D207: ¢/kWh | E207: =Prop2019TransTar!I28 -> 1.018
C208: - Demand rate | D208: $/kVA pa | E208: =Prop2019TransTar!M28 -> 2.537
C209: Minimum Chargeable Demand | D209: 450 kVA
A211: Large Business - HV
A212: High Voltage Tariffs (nominal voltage ³ 1000 Volts AND £ 22,000 Volts)
B214: A400 | C214: HV
B215: Only available to non-embedded network customers consuming < 55 GWh pa
C216: Peak: 7 AM to 11 PM AEST "Mon - Fri" ; Off peak all other times
C217: - Standing charge | D217: $/customer pa | E217: =Prop2019TransTar!D29 -> 7214.176
C218: - Peak Unit rate | D218: ¢/kWh | E218: =Prop2019TransTar!E29 -> 2.424
C219: - Off Peak Unit rate | D219: ¢/kWh | E219: =Prop2019TransTar!I29 -> 0.757
C220: - Demand rate | D220: $/kVA pa | E220: =Prop2019TransTar!M29 -> 2.321
C221: Minimum Chargeable Demand | D221: 1,000 kVA
B223: A40E | C223: HVEN
B224: Only available to embedded network customers
C225: Peak: 7 AM to 11 PM AEST "Mon - Fri" ; Off peak all other times
C226: - Standing charge | D226: $/customer pa | E226: =Prop2019TransTar!D30 -> 7214.176
C227: - Peak Unit rate | D227: ¢/kWh | E227: =Prop2019TransTar!E30 -> 2.249
C228: - Off Peak Unit rate | D228: ¢/kWh | E228: =Prop2019TransTar!I30 -> 0.757
C229: - Demand rate | D229: $/kVA pa | E229: =Prop2019TransTar!M30 -> 2.249
C230: Minimum Chargeable Demand | D230: 1,000 kVA
... 56 more rows

Sheet 2019 JS Tariff schedule
A1: Jemena Electricity Networks (VIC) Ltd - Jurisdictional Scheme Tariffs For The 2019 Calendar Year (Exclusive of GST)
A3: Tariff Class | B3: Code | C3: Tariff Name | D3: Units | E3: Rate
A5: Residential
A6: Only available to residential customers
B7: A100 / F100a / T100b | C7: General Purpose
C8: Single rate all times
C9: - Standing charge | D9: $/customer pa | E9: =Prop2019JSTar!D6 -> 0
C10: - Unit rate | D10: ¢/kWh | E10: =Prop2019JSTar!E6 -> 0.109
B12: A10X / F10Xa / T10Xb | C12: Flexible
B13: Available to customers with a remotely read AMI meter
B14: Summer period: is the daylight savings period; Non-summer period: All other times
B15: Peak Summer/Non-summer: 3 PM to 9 PM local time weekdays
B16: Shoulder Summer/Non-summer: 7 AM to 3 PM and 9 PM to 10 PM local time weekdays
B17: and 7 AM to 10 PM local time weekends
B18: Off peak Summer/Non-summer: 10 PM to 7 AM local time all days
C19: - Standing charge | D19: $/customer pa | E19: =Prop2019JSTar!D8 -> 0
C20: Summer rates
C21: - Peak Unit rate | D21: ¢/kWh | E21: =Prop2019JSTar!E8 -> 0.109
C22: - Shoulder Unit rate | D22: ¢/kWh | E22: =Prop2019JSTar!F8 -> 0.109
C23: - Off Peak Unit rate | D23: ¢/kWh | E23: =Prop2019JSTar!I8 -> 0.105
C24: Non-summer rates
C25: - Peak Unit rate | D25: ¢/kWh | E25: =Prop2019JSTar!G8 -> 0.109
C26: - Shoulder Unit rate | D26: ¢/kWh | E26: =Prop2019JSTar!H8 -> 0.109
C27: - Off Peak Unit rate | D27: ¢/kWh | E27: =Prop2019JSTar!J8 -> 0.105
B29: A10D / F10Da / T10Db | C29: General Purpose - Demand
B30: Available to customers with a remotely read AMI meter
C31: Energy consumption - single rate all times
C32: Demand charging window 3pm - 9pm work days; reset monthly
C33: - Standing charge | D33: $/customer pa | E33: =Prop2019JSTar!D7 -> 0
C34: - Unit rate | D34: ¢/kWh | E34: =Prop2019JSTar!E7 -> 0.109
C35: - Demand rate | D35: $/kW pa | E35: =Prop2019JSTar!M7 -> 0
B37: A10I / F10Ia / T10Ib | C37: Time of Use Interval Meter (closed to new entrants)c
B38: Available to customers with an interval meter
C39: Peak: 7 AM to 11 PM AEST "Mon - Fri" ; Off peak all other times
C40: - Standing charge | D40: $/customer pa | E40: =Prop2019JSTar!D9 -> 0
C41: - Peak Unit rate | D41: ¢/kWh | E41: =Prop2019JSTar!E9 -> 0.109
C42: - Off Peak Unit rate | D42: ¢/kWh | E42: =Prop2019JSTar!I9 -> 0.105
B44: A140 | C44: Time of Use (closed to new entrants)
B45: This tariff is not available to existing customers that install an interval meter
C46: Peak: 7 AM to 11 PM AEST "Mon - Fri" ; Off peak all other times
C47: - Standing charge | D47: $/customer pa | E47: =Prop2019JSTar!D10 -> 0
C48: - Peak Unit rate | D48: ¢/kWh | E48: =Prop2019JSTar!E10 -> 0.109
C49: - Off Peak Unit rate | D49: ¢/kWh | E49: =Prop2019JSTar!I10 -> 0.105
B51: A180 | C51: Off Peak Heating Only (dedicated ciruit)
B52: Available as a complementary tariff to the "Residential - General Purpose" A100 tariff only.
B53: This tariff is not available to new or existing customers that install embedded generationd
C54: 11 PM to 7 AM AEST all days
C55: - Standing charge | D55: $/customer pa | E55: 0
C56: - Off Peak Unit rate | D56: ¢/kWh | E56: =Prop2019JSTar!I11 -> 0.103
A58: Small Business
A59: Only available to non-embedded network customers
A60: with annual consumption < 0.4 GWh AND maximum demand < 120 kVA
B62: A200 / F200a / T200b | C62: General Purpose
B63: Only available to customer consuming < 40 MWh pa
C64: Single rate all times
C65: - Standing charge | D65: $/customer pa | E65: =Prop2019JSTar!D12 -> 0
C66: - Unit rate | D66: ¢/kWh | E66: =Prop2019JSTar!E12 -> 0.129
B68: A20D / F20Da / T20Db | C68: General Purpose - Demand
B69: Only available to customers with meter capable of measuring demand AND consuming < 40 MWh pa
C70: Single rate all times
C71: Demand charging window 10am - 8pm work days
C72: - Standing charge | D72: $/customer pa | E72: =Prop2019JSTar!D13 -> 0
C73: - Unit rate | D73: ¢/kWh | E73: =Prop2019JSTar!E13 -> 0.129
C74: - Demand rate | D74: $/kW pa | E74: =Prop2019JSTar!M13 -> 0
B76: A210 / F210a / T210b | C76: Time of Use Weekdays
B77: Only available to customers with two rate accumulation meter (or Interval meter) AND
B78: consuming < 40 MWh pa
C79: Peak: 7 AM to 11 PM AEST "Mon - Fri" ; Off peak all other times
C80: - Standing charge | D80: $/customer pa | E80: =Prop2019JSTar!D14 -> 0
C81: - Peak Unit rate | D81: ¢/kWh | E81: =Prop2019JSTar!E14 -> 0.129
C82: - Off Peak Unit rate | D82: ¢/kWh | E82: =Prop2019JSTar!I14 -> 0.112
B84: A230 / F230a / T230b | C84: Time of Use Weekdays - Demand
B85: Only available to customers with a meter capable of measuring demand AND consuming > 40 MWh pa
C86: Peak: 7 AM to 11 PM AEST "Mon - Fri" ; Off peak all other times
C87: - Standing charge | D87: $/customer pa | E87: =Prop2019JSTar!D15 -> 0
C88: - Peak Unit rate | D88: ¢/kWh | E88: =Prop2019JSTar!E15 -> 0.129
C89: - Off Peak Unit rate | D89: ¢/kWh | E89: =Prop2019JSTar!I15 -> 0.112
C90: - Demand rate | D90: $/kW pa | E90: =Prop2019JSTar!M15 -> 0
B92: A23N / F23Na / T23Nb | C92: Time of Use - Opt-out
B93: Only available to customers with a meter capable of measuring demand AND consuming > 40 MWh pa
C94: Peak: 7 AM to 11 PM AEST "Mon - Fri" ; Off peak all other times
C95: - Standing charge | D95: $/customer pa | E95: =Prop2019JSTar!D16 -> 0
C96: - Peak Unit rate | D96: ¢/kWh | E96: =Prop2019JSTar!E16 -> 0.129
C97: - Off Peak Unit rate | D97: ¢/kWh | E97: =Prop2019JSTar!I16 -> 0.112
C98: - Demand rate | D98: $/kW pa | E98: =Prop2019JSTar!M16 -> 0
B100: A250 / F250a / T250b | C100: Time of Use Extended (closed to new entrants)
B101: Only available to customers with a two rate accumulation meter (or interval meter) AND
B102: consuming < 40 MWh pa
C103: Peak: 7 AM to 11 PM AEST "Mon - Sun" ; Off peak all other times
C104: - Standing charge | D104: $/customer pa | E104: =Prop2019JSTar!D17 -> 0
C105: - Peak Unit rate | D105: ¢/kWh | E105: =Prop2019JSTar!E17 -> 0.129
C106: - Off Peak Unit rate | D106: ¢/kWh | E106: =Prop2019JSTar!I17 -> 0.112
B108: A270 / F270a / T270b | C108: Time of Use Extended - Demand (closed to new entrants)
B109: Only available to customers with a meter capable of measuring demand AND consuming >40 MWh pa
C110: Peak: 7 AM to 11 PM AEST "Mon - Sun" ; Off peak all other times
C111: - Standing charge | D111: $/customer pa | E111: =Prop2019JSTar!D18 -> 0
C112: - Peak Unit rate | D112: ¢/kWh | E112: =Prop2019JSTar!E18 -> 0.129
C113: - Off Peak Unit rate | D113: ¢/kWh | E113: =Prop2019JSTar!I18 -> 0.112
C114: - Demand rate | D114: $/kW pa | E114: =Prop2019JSTar!M18 -> 0
C115: Minimum Chargeable Demand | D115: 60 kW
B117: A290 | C117: Unmetered Supply
C118: Peak: 7 AM to 11 PM AEST "Mon - Fri" ; Off peak all other times
C119: - Peak Unit rate | D119: ¢/kWh | E119: =Prop2019JSTar!E19 -> 0.129
C120: - Off Peak Unit rate | D120: ¢/kWh | E120: =Prop2019JSTar!I19 -> 0.112
A122: Large Business - LV
A123: Low Voltage Tariffs (nominal voltage < 1000 Volts)
A124: Only available to embedded network customers OR non-embedded network customers
A125: with annual consumption ³ 0.4 GWh OR maximum demand ³ 120 kVA
B127: A300 / F300a / T300b | C127: LV 0.4 - 0.8 GWh
B128: Only available to non-embedded network customers consuming £ 0.8 GWh pa
C129: Peak: 7 AM to 11 PM AEST "Mon - Fri" ; Off peak all other times
C130: - Standing charge | D130: $/customer pa | E130: =Prop2019JSTar!D20 -> 0
C131: - Peak Unit rate | D131: ¢/kWh | E131: =Prop2019JSTar!E20 -> 0.145
C132: - Off Peak Unit rate | D132: ¢/kWh | E132: =Prop2019JSTar!I20 -> 0.119
C133: - Demand rate | D133: $/kVA pa | E133: =Prop2019JSTar!M20 -> 0
C134: Minimum Chargeable Demand | D134: 120 kVA
B136: A30E | C136: LVEN Annual Consumption  0.8 GWh
B137: Only available to embedded network customers consuming £ 0.8 GWh pa
C138: Peak: 7 AM to 11 PM AEST "Mon - Fri" ; Off peak all other times
C139: - Standing charge | D139: $/customer pa | E139: =Prop2019JSTar!D21 -> 0
C140: - Peak Unit rate | D140: ¢/kWh | E140: =Prop2019JSTar!E21 -> 0.145
C141: - Off Peak Unit rate | D141: ¢/kWh | E141: =Prop2019JSTar!I21 -> 0.119
C142: - Demand rate | D142: $/kVA pa | E142: =Prop2019JSTar!M21 -> 0
C143: Minimum Chargeable Demand | D143: 120 kVA
B145: A320 | C145: LV 0.8+ - 2.2 GWh
B146: Only available to non-embedded network customers consuming > 0.8 GWh pa BUT £ 2.2 GWh pa
C147: Peak: 7 AM to 11 PM AEST "Mon - Fri" ; Off peak all other times
C148: - Standing charge | D148: $/customer pa | E148: =Prop2019JSTar!D22 -> 0
C149: - Peak Unit rate | D149: ¢/kWh | E149: =Prop2019JSTar!E22 -> 0.145
C150: - Off Peak Unit rate | D150: ¢/kWh | E150: =Prop2019JSTar!I22 -> 0.119
C151: - Demand rate | D151: $/kVA pa | E151: =Prop2019JSTar!M22 -> 0
C152: Minimum Chargeable Demand | D152: 250 kVA
B154: A32E | C154: LVEN 0.8+ - 2.2 GWh
B155: Only available to embedded network customers consuming > 0.8 GWh pa BUT £ 2.2 GWh pa
C156: Peak: 7 AM to 11 PM AEST "Mon - Fri" ; Off peak all other times
C157: - Standing charge | D157: $/customer pa | E157: =Prop2019JSTar!D23 -> 0
C158: - Peak Unit rate | D158: ¢/kWh | E158: =Prop2019JSTar!E23 -> 0.145
C159: - Off Peak Unit rate | D159: ¢/kWh | E159: =Prop2019JSTar!I23 -> 0.119
C160: - Demand rate | D160: $/kVA pa | E160: =Prop2019JSTar!M23 -> 0
C161: Minimum Chargeable Demand | D161: 250 kVA
B163: A340 | C163: LV 2.2+ - 6.0 GWh
B164: Only available to non-embedded network customers consuming > 2.2 GWh pa BUT £ 6.0 GWh pa
C165: Peak: 7 AM to 11 PM AEST "Mon - Fri" ; Off peak all other times
C166: - Standing charge | D166: $/customer pa | E166: =Prop2019JSTar!D24 -> 0
C167: - Peak Unit rate | D167: ¢/kWh | E167: =Prop2019JSTar!E24 -> 0.145
C168: - Off Peak Unit rate | D168: ¢/kWh | E168: =Prop2019JSTar!I24 -> 0.119
C169: - Demand rate | D169: $/kVA pa | E169: =Prop2019JSTar!M24 -> 0
C170: Minimum Chargeable Demand | D170: 250 kVA
B172: A34E | C172: LVEN 2.2+ GWh
B173: Only available to embedded network customers consuming > 2.2 GWh pa
C174: Peak: 7 AM to 11 PM AEST "Mon - Fri" ; Off peak all other times
C175: - Standing charge | D175: $/customer pa | E175: =Prop2019JSTar!D25 -> 0
C176: - Peak Unit rate | D176: ¢/kWh | E176: =Prop2019JSTar!E25 -> 0.145
C177: - Off Peak Unit rate | D177: ¢/kWh | E177: =Prop2019JSTar!I25 -> 0.119
C178: - Demand rate | D178: $/kVA pa | E178: =Prop2019JSTar!M25 -> 0
C179: Minimum Chargeable Demand | D179: 250 kVA
B181: A34M | C181: LVMS 2.2+ - 6.0 GWh (closed to new entrants)e
B182: Only available to non-embedded network customer taking supply from multiple NMIs on a single
B183: site AND the aggregated annual consumption from those NMIs is > 2.2 GWh pa BUT £ 6.0 GWh pa
C185: Peak: 7 AM to 11 PM AEST "Mon - Fri" ; Off peak all other times
C186: - Standing charge | D186: $/customer pa | E186: =Prop2019JSTar!D26 -> 0
C187: - Peak Unit rate | D187: ¢/kWh | E187: =Prop2019JSTar!E26 -> 0.145
C188: - Off Peak Unit rate | D188: ¢/kWh | E188: =Prop2019JSTar!I26 -> 0.119
C189: - Demand rate | D189: $/kVA pa | E189: =Prop2019JSTar!M26 -> 0
C190: Minimum Chargeable Demand | D190: 250 kVA
B192: A370 | C192: LV 6.0+ GWh
B193: Only available to non-embedded network customers consuming > 6.0 GWh pa
C194: Peak: 7 AM to 11 PM AEST "Mon - Fri" ; Off peak all other times
C195: - Standing charge | D195: $/customer pa | E195: =Prop2019JSTar!D27 -> 0
C196: - Peak Unit rate | D196: ¢/kWh | E196: =Prop2019JSTar!E27 -> 0.145
C197: - Off Peak Unit rate | D197: ¢/kWh | E197: =Prop2019JSTar!I27 -> 0.119
C198: - Demand rate | D198: $/kVA pa | E198: =Prop2019JSTar!M27 -> 0
C199: Minimum Chargeable Demand | D199: 450 kVA
B201: A37M | C201: LVMS 6.0+ GWh (closed to new entrants)e
B202: Only available to non-embedded network customer taking supply from multiple NMIs on a single
B203: site AND the aggregated annual consumption from those NMIs is > 6.0 Gwh
C204: Peak: 7 AM to 11 PM AEST "Mon - Fri" ; Off peak all other times
C205: - Standing charge | D205: $/customer pa | E205: =Prop2019JSTar!D28 -> 0
C206: - Peak Unit rate | D206: ¢/kWh | E206: =Prop2019JSTar!E28 -> 0.145
C207: - Off Peak Unit rate | D207: ¢/kWh | E207: =Prop2019JSTar!I28 -> 0.119
C208: - Demand rate | D208: $/kVA pa | E208: =Prop2019JSTar!M28 -> 0
C209: Minimum Chargeable Demand | D209: 450 kVA
A211: Large Business - HV
A212: High Voltage Tariffs (nominal voltage ³ 1000 Volts AND £ 22,000 Volts)
B214: A400 | C214: HV
B215: Only available to non-embedded network customers consuming < 55 GWh pa
C216: Peak: 7 AM to 11 PM AEST "Mon - Fri" ; Off peak all other times
C217: - Standing charge | D217: $/customer pa | E217: =Prop2019JSTar!D29 -> 0
C218: - Peak Unit rate | D218: ¢/kWh | E218: =Prop2019JSTar!E29 -> 0.153
C219: - Off Peak Unit rate | D219: ¢/kWh | E219: =Prop2019JSTar!I29 -> 0.13
C220: - Demand rate | D220: $/kVA pa | E220: =Prop2019JSTar!M29 -> 0
C221: Minimum Chargeable Demand | D221: 1,000 kVA
B223: A40E | C223: HVEN
B224: Only available to embedded network customers
C225: Peak: 7 AM to 11 PM AEST "Mon - Fri" ; Off peak all other times
C226: - Standing charge | D226: $/customer pa | E226: =Prop2019JSTar!D30 -> 0
C227: - Peak Unit rate | D227: ¢/kWh | E227: =Prop2019JSTar!E30 -> 0.153
C228: - Off Peak Unit rate | D228: ¢/kWh | E228: =Prop2019JSTar!I30 -> 0.13
C229: - Demand rate | D229: $/kVA pa | E229: =Prop2019JSTar!M30 -> 0
C230: Minimum Chargeable Demand | D230: 1,000 kVA
... 56 more rows

Sheet NOTES
A2: The model has actual and test data to illustrate the workings of the model.
A4: Issue | B4: Location | C4: Item | D4: Comment
A6: 1 | B6: Model update'!G37:G41 | C6: Real Vanilla WACC (rvw) | D6: Values updated for 2019 cost of debt and inflation correction
A8: =A6+1 -> 2 | B8: Model update'!G54:G58 | C8: DuoS Xt for2019 | D8: Values updated for 2019 cost of debt and inflation correction
A10: =A8+1 -> 3 | B10: Model update'!G66:G70 | C10: Metering Xt for2019 | D10: Values updated for 2019 cost of debt
A12: =A10+1 -> 4 | B12: Model update'!G94:G98 | C12: Ifactor (t) 2019 | D12: Values may require updating
A14: =A12+1 -> 5 | B14: Model update'!G105:G109 | C14: S factor (t) 2019 | D14: Values may require updating
A16: =A14+1 -> 6 | B16: Model update'!G116:G120 | C16: Pass through amounts (t) 2019 | D16: NIL for 2019
A18: =A16+1 -> 7 | B18: Model update'!G127:G131 | C18: Licence Fee (t-1) 2017-18 | D18: Values updated
A20: =A18+1 -> 8 | B20: Metering!D32 | C20: B factor for year t | D20: Formula modified
A22: =A20+1 -> 9 | B22: Metering!E31 and I27 | C22: T - factor | D22: Added Tt-1 and adjusted formula in I27 so that it is (Tt-Tt-1)/R
A24: =A22+1 -> 10 | B24: Metering!E32 and I28 | C24: B - factor | D24: Added Bt-1 and adjusted formula in I28 so that it is (Bt-Bt-1)/R
A26: =A24+1 -> 11 | B26: 2019DistRevCapForm'!C28 | C26: B - factor | D26: Formula modified
A28: =A26+1 -> 12 | B28: 2019TransRevCont'!C15 | C28: DPPC revenue under/over recovery approved | D28: Formula modified
A30: =A28+1 -> 13 | B30: 2019JSRevCont'!B15 | C30: JSA revenue under/over recovery approved | D30: Formula modified
A32: =A30+1 -> 14 | B32: Indicative prices for 2020'!A1:O65 | C32: TSS indicative prices for 2020 | D32: DNSP required to populate with relevant data
A34: =A32+1 -> 15 | B34: The following is test data to illustrate the workings of the model. | D34: Input data required from DNSPs
B35: Metering!D8:D10 | C35: Proposed Metering Tariffs P(t) for 2019
B36: Metering!F8:F10 | C36: Forecast Quantities (Qt) for 2019
B37: Metering!D80:D82 | C37: Estimated Quantities (Qt-1) for 2018
B39: Prop2019DistTar!D6:P35 | C39: Proposed Distribution Tariffs (Pt) for 2019
B40: Prop2019DistTar!AF6:AR35 | C40: Forecast Quantities (Qt) for 2019
B41: Est2018DistRev!R6:AD35 | C41: Estimated Distribution Quantities for 2018 (Qt-1)
B43: Prop2019TransTar!D6:P34 | C43: Proposed Transmission Tariffs (Pt) for 2019
B44: 2019TransRevCont'!C20:C23 | C44: Table 3 - Transmission charges for year t
B45: 2019TransRevCont'!D42:D45 | C45: Transmission charges for year t-1
B47: Prop2019JSTar!D6:P35 | C47: Proposed Jurisdictional scheme Tariffs (Pt) for 2019
B48: 2019JSRevCont'!C20:C21 | C48: Table 3 - PFIT & TFIT charges for year t
B49: 2019JSRevCont'!D40:D41 | C49: PFIT & TFIT charges for year t-1

Sheet Formulae
B2: DUoS
B3: Figure 14.1 Revenue cap formulae
B4: (1) | H4: i=1,..,n and j=1,..,m and t=1,..,5
B5: (2) | H5: t = 1,2,…,5
B6: (3) | H6: t = 1
B7: (4) | H7: t = 2,…,5
B9: where;
C10: is the total annual revenue in year t.
D11: is the price of component 'j' of tariff 'i' in year t.
D12: is the forecast quantity of component 'j' of tariff 'i' in year t.
C13: is the adjusted annual smoothed revenue requirement for year t.
D14: is the annual adjustment f–factor scheme amount in year t. This amount will be calculated as per the method set out in the relevant f–factor scheme.
D15: is the sum of:
B16: · the final carryover amount from the application of the DMIS from the 2011–15 regulatory control period. This amount will be calculated using the method set out in the DMIS and will be deducted from/added to allowed revenue in the 2017 pricing proposal.
D17: is the sum of:
B18: · the recovery of license fee charges by the Victorian Essential Services Commission indexed by one and a half years of interest, calculated using the following method:
B20: where:
C21: are the licence fees paid by DNSP to the Victorian Essential Services Commission in the financial year ending in June of regulatory year t–1,
C22: is the approved nominal weighted average cost of capital (WACC) for the relevant regulatory year using the following method:
B25: · any under or over recovery of actual revenue collected through DUoS charges in regulatory year t–2 as calculated using the method in appendix A,
B26: · the AER approved pass through amounts (positive or negative) with respect to regulatory year t.
C27: is the annual smoothed revenue requirement as stated in the Post Tax Revenue Model (PTRM) for year t (when year t is the first year of the 2016–20 regulatory control period).[43]
C28: is the s‑factor determined in accordance with the service target performance incentive scheme (STPIS) for regulatory year t.[44]
C29: is the annual percentage change in the ABS CPI All Groups, Weighted Average of Eight Capital Cities[45] from the June quarter in year t–2 to the June quarter in year t–1, calculated using the following method :
B30: The ABS CPI All Groups, Weighted Average of Eight Capital Cities for the June quarter in regulatory year t–1
B31: divided by
B32: The ABS CPI All Groups, Weighted Average of Eight Capital Cities for the June quarter in regulatory year t–2
B33: minus one.
B34: For example, for the 2017 regulatory year, t–2 is June quarter 2015 and t–1 is June quarter 2016 and for the 2018 regulatory year, t–2 is June quarter 2016 and t–1 is June quarter 2017 and so on.
C35: is the X factor for each year of the 2016–20 regulatory control period as determined in the PTRM, and annually revised for the return on debt update in accordance with the formula specified in attachment 3—rate of return—calculated for the relevant year.
B38: [43] | C38: Our final F&A stated that if necessary an adjustment for inflation may be required to the annual smoothed revenue requirement for year t. However, as the annual smoothed revenue requirement for year t as stated in our preliminary decision PTRM is in nominal dollars there is no need to adjust it for inflation. This approach is consistent with past regulatory practice.
B39: [44] | C39: For the first two regulatory years of the 2016–20 regulatory control period, the value of St is to be adjusted to account for the change in revenue requirements between the regulatory control periods, as explained in attachment 11. In the formulas in the STPIS, the AR(t+1) is equivalent to ARt in this formula. Calculations of the S factor adjustment are to be made accordingly.
B40: [45] | C40: If the ABS does not or ceases to publish the index, then CPI will mean an index which the AER considers is the best available alternative index
B44: Figure 14.2 Side constraints [46]
C50: where each tariff class has "n" tariffs, with each up to "m" components, and where:
D51: is the proposed price for component ‘j’ of tariff 'i' for year t.
C52: is the price charged for component ‘j’ of tariff 'i' in year t–1.
D53: is the forecast quantity of component ‘j’ of tariff 'i' in year t.
C54: is the annual percentage change in the ABS CPI All Groups, Weighted Average of Eight Capital Cities[4] from the June quarter in year t–2 to the June quarter in year t–1, calculated using the following method :
C55: The ABS CPI All Groups, Weighted Average of Eight Capital Cities[47] for the June quarter in regulatory year t–1
C56: divided by
C57: The ABS CPI All Groups, Weighted Average of Eight Capital Cities for the June quarter in regulatory year t–2
C58: minus one.
B59: For example, for the 2017 regulatory year, t–2 is June quarter 2015 and t–1 is June quarter 2016 and for the 2018 regulatory year, t–2 is June quarter 2016 and t–1 is June quarter 2017 and so on.
D60: is the X factor for each year of the 2016–20 regulatory control period as determined in the PTRM, and annually revised for the return on debt update in accordance with the formula specified in attachment 3—rate of return—calculated for the relevant year. If X>0, then X will be set equal to zero for the purposes of the side constraint formula.
C61: is the s‑factor determined in accordance with the STPIS for regulatory year t.[5]
D62: is the annual percentage change from the f–factor scheme amount in year t. This amount will be calculated as per the method set out in attachment 19—f–factor scheme.
D63: is the annual percentage change from the final carryover amount from the application of the DMIS from the 2011–15 regulatory control period. This amount will be calculated using the method set out in the DMIS and will be deducted from/added to allowed revenue in the 2017 pricing proposal.
D64: is annual percentage change from the sum of:
B65: · the recovery of license fee charges by the Victorian Essential Services Commission indexed by one and a half years of interest, calculated using the following method:
B67: where:
B68: are the licence fees paid byDNSP to the Victorian Essential Services Commission in the financial year ending in June of regulatory year t–1,
C69: is the approved nominal weighted average cost of capital (WACC) for the relevant regulatory year using the following method:
B72: where the
B73: is as set out in our final decision PTRM and updated annually
B74: · the AER approved pass through amounts (positive or negative) with respect to regulatory year t.
B75: With the exception of the CPI, X factor and S factor, the percentage for each of the other factors above can be calculated by dividing the incremental revenues (as used in the total annual revenue formula) for each factor by the expected revenues for regulatory year t–1 (based on the prices in year t–1 multiplied by the forecast quantities for year t).
B77: [46] | C77: All parameters are in nominal terms unless otherwise specified.
B78: [47] | C78: If the ABS does not or ceases to publish the index, then CPI will mean an index which the AER considers is the best available alternative index.
H83: Table 14.1 | I83: Example calculation of DUoS unders and overs account ($'000, nominal)
I84: Year t–2 | J84: Year t–1 | K84: Year t
I85: (actual) | J85: (estimate) | K85: (forecast)
H86: (A) Revenue from DUoS charges | I86: 46 779 | J86: 40 269 | K86: 39 510
H87: (B) Less TAR for regulatory year = | I87: 43 039 | J87: 41 427 | K87: 44 429
H88: + Adjusted annual smoothed revenues (AARt) | I88: 40 189 | J88: 41 393 | K88: 44 393
H89: + f–factor scheme amount (It) | I89: –12 | J89: 10 | K89: 14
H90: + DMIS carryover amount (Tt) | I90: 1013 | J90: 0 | K90: 0
H91: + Annual adjustments (Bt)a = | I91: 1849 | J91: 24 | K91: 22
H92: + License fee recovery | I92: 25 | J92: 24 | K92: 22
H93: + Approved pass through amounts | I93: 1824 | J93: 0 | K93: 0
H95: (A minus B) Under/over recovery of revenue for regulatory year | I95: 3740 | J95: –1158 | K95: –4919b
H97: DUoS unders and overs account
H98: Nominal WACC (per cent) | I98: 0.05 | J98: 0.055 | K98: 0.06
H99: Opening balance | I99: 1737 | J99: 5656c | K99: 4778
H100: Interest on opening balance | I100: 87 | J100: 311 | K100: 287
H101: Under/over recovery of revenue for regulatory year | I101: 3740 | J101: –1158 | K101: –4919b
H102: Interest on under/over recovery for regulatory year | I102: 92 | J102: –31 | K102: –145
H103: Closing balance | I103: 5656 | J103: 4778 | K103: 0d
G104: Notes: | H104: (a) Bt parameter calculations in the DUoS unders and overs account exclude approved DUoS revenue under/over recovery for regulatory year.
H105: (b) Approved DUoS revenue under/over recovery for regulatory year t.
H106: (c) Opening balance is the previous year's closing balance.
H107: (d) The DNSP is expected to achieve a closing balance as close to zero as practicable in its DUoS unders and overs account in each forecast year in its annual pricing proposals in the 2016–20 regulatory control period.
H113: Table 14.2 | I113: Example calculation of designated pricing proposal charges unders and overs account ($'000, nominal)
I114: Year t–2 | J114: Year t–1 | K114: Year t
I115: (actual) | J115: (estimate) | K115: (forecast)
H116: (A) Revenue from designated pricing proposal charges (DPPC) | I116: 40 077 | J116: 34 944 | K116: 36 609
H117: (B) Less DPPC related payments for regulatory year = | I117: 34 365 | J117: 38 734 | K117: 39 200
H118: + DPPC charges to be paid to TNSP | I118: 33 672 | J118: 37 933 | K118: 38 000
H119: + Avoided TUoS/DPPC payments | I119: 572 | J119: 734 | K119: 800
H120: + Inter–distributor payments | I120: 121 | J120: 67 | K120: 400
H122: (A minus B) Under/over recovery of revenue for regulatory year | I122: 5712 | J122: –3790 | K122: –2540a
H124: DPPC unders and overs account
H125: Nominal WACC (per cent) | I125: 0.05 | J125: 0.055 | K125: 0.06
H126: Opening balance | I126: 167 | J126: 6028b | K126: 2467
H127: Interest on opening balance | I127: 8 | J127: 332 | K127: 148
H128: Under/over recovery of revenue for regulatory year | I128: 5712 | J128: –3790 | K128: –2540a
H129: Interest on under/over recovery for regulatory year | I129: 141 | J129: –103 | K129: –75
H130: Closing balance | I130: 6028 | J130: 2467 | K130: 0c
G131: Notes: | H131: (a) Approved DPPC revenue under/over recovery for regulatory year t.
H132: (b) Opening balance is the previous year's closing balance.
H133: (c)The DNSP is expected to achieve a closing balance as close to zero as practicable in its DPPC unders and overs account in each forecast year in its annual pricing proposals in the 2016–20 regulatory control period.
H139: Table 14.3 Example calculation of jurisdictional scheme amounts unders and overs account ($'000, nominal)
I140: Year t–2 | J140: Year t–1 | K140: Year t
I141: (actual) | J141: (estimate) | K141: (forecast)
H142: (A) Revenue from jurisdictional schemes | I142: 19 777 | J142: 23 121 | K142: 26 965
H143: (B) Less jurisdictional scheme payments for regulatory year = | I143: 20 272 | J143: 20 959 | K143: 28 641
H144: + Jurisdictional scheme 1 payments | I144: 14 159 | J144: 13 954 | K144: 13 961
H145: + Jurisdictional scheme 2 payments | I145: 6113 | J145: 7005 | K145: 14 680
H147: (A minus B) Under/over recovery of revenue for regulatory year | I147: –495 | J147: 2162 | K147: –1676a
H149: Jurisdictional scheme amount unders and overs account
H150: Nominal WACC (per cent) | I150: 0.05 | J150: 0.055 | K150: 0.06
H151: Opening balance | I151: –52 | J151: –562b | K151: 1628
H152: Interest on opening balance | I152: –3 | J152: –31 | K152: 98
H153: Under/over recovery of revenue for regulatory year | I153: –495 | J153: 2162 | K153: –1676a
H154: Interest on under/over recovery for regulatory year | I154: –12 | J154: 59 | K154: –50
H155: Closing balance | I155: –562 | J155: 1628 | K155: 0c
G156: Notes: | H156: (a) Approved jurisdictional scheme amounts revenue under/over recovery for regulatory year t.
H157: (b) Opening balance is the previous year's closing balance.
H158: (c) The DNSP is expected to achieve a closing balance as close to zero as practicable in its jurisdictional scheme amount unders and overs account in each forecast year in its annual pricing proposals in the 2016–20 regulatory control period.
B166: Metering
B167: Figure 16.3 | C167: Annual metering charges revenue cap formula
A168: (1) | H168: i=1,..,n and j=1,..,m and t=1,..,5
A170: (2) | H170: t = 1,2,…,5
A172: (3) | H172: t = 1,2,…,5
B175: where;
C176: is the total annual revenue for annual metering charges in year t.
E177: is the price of component 'j' of metering service 'i' in year t.
E178: is the forecast quantity of component 'j' of metering service 'i' in year t.
D179: is the annual revenue requirement for year t. When year t is the first year of the 2016–20 regulatory control period,
D180: is the annual revenue requirement in the annual metering charges Post Tax Revenue Model (PTRM) for year t.
E181: is equal to zero for all years except 2017 and is a once off adjustment to 2017 charges for the unders and overs recoveries relating to Advanced Metering Infrastructure actual revenues and actual costs incurred in 2014 and 2015.
E182: is the sum of annual adjustment factors in year t as calculated in the unders and overs account in appendix C.
D184: is the annual revenue requirement for year t–1.
C185: is the annual percentage change in the ABS CPI All Groups, Weighted Average of Eight Capital Cities[39] from the June quarter in year t–2 to the June quarter in year t–1, calculated using the following method:
B186: The ABS CPI All Groups, Weighted Average of Eight Capital Cities for the June quarter in regulatory year t–1
B187: divided by
B188: The ABS CPI All Groups, Weighted Average of Eight Capital Cities for the June quarter in regulatory year t–2
B189: minus one.
B190: For example, for the 2017 regulatory year, t–2 is June quarter 2015 and t–1 is June quarter 2016 and for the 2018 regulatory year, t–2 is June quarter 2016 and t–1 is June quarter 2017 and so on.
D191: is the X factor for each year of the 2016–20 regulatory control period as determined in the annual metering charges PTRM.
B194: [39] | C194: If the ABS does not or ceases to publish the index, then CPI will mean an index which the AER considers is the best available alternative index
B199: Figure 16.4 Side constraints
B201: where:
E202: is the price of annual metering charges service 'i' in year t.
D203: is the price of annual metering charges service 'i' in year t–1.
C204: is the annual percentage change in the ABS CPI All Groups, Weighted Average of Eight Capital Cities from the June quarter in year t–2 to the June quarter in year t–1, calculated using the following method:
B205: The ABS CPI All Groups, Weighted Average of Eight Capital Cities[40] for the June quarter in regulatory year t–1
B206: divided by
B207: The ABS CPI All Groups, Weighted Average of Eight Capital Cities for the June quarter in regulatory year t–2
B208: minus one.
B209: For example, for the 2017 regulatory year, t–2 is June quarter 2015 and t–1 is June quarter 2016 and for the 2018 regulatory year, t–2 is June quarter 2016 and t–1 is June quarter 2017 and so on.
D210: is the X factor for each year of the 2016–20 regulatory control period as determined in the annual metering charges PTRM.
E211: is the annual percentage change for the unders and overs recoveries relating to Advanced Metering Infrastructure actual revenues and actual costs incurred in 2014 and 2015. It is equal to zero for all years except 2017 and is a once off adjustment to 2017 charges.
E212: is the annual percentage change from the sum of annual adjustment factors in year t as calculated in the unders and overs account in appendix C.
B213: With the exception of the CPI and the X factor, the percentage for each of the other factors above can be calculated by dividing the incremental revenues (as used in the total annual revenue formula) for each factor by the expected revenues for regulatory year t–1 (based on the prices in year t–1 multiplied by the forecast quantities for year t).
B215: [40] | C215: If the ABS does not or ceases to publish the index, then CPI will mean an index which the AER considers is the best available alternative index.
H220: Table 16.xx | I220: Example calculation of annual metering charges unders and overs account ($'000, nominal)
I221: Year t–2 | J221: Year t–1 | K221: Year t
I222: (actual) | J222: (estimate) | K222: (forecast)
H223: (A) Revenue from annual metering charges | I223: 8 449 | J223: 7 389 | K223: 6 460
H224: (B) Less TARM for regulatory year = | I224: 7 366 | J224: 7 422 | K224: 7 573
H225: + Annual revenue requirement (ARt) | I225: 7 349 | J225: 7 412 | K225: 7 559
H226: + T factor (Tt) – true‑ups relating to the AMI–Order in Council | I226: 17 | J226: 10 | K226: 14
H228: (A minus B) Under/over recovery of revenue for regulatory year | I228: 1 083 | J228: –33 | K228: –1 113a
H230: Annual metering charges unders and overs account
H231: Nominal WACC (per cent) | I231: 0.05 | J231: 0.055 | K231: 0.06
H232: Opening balance | I232: –50 | J232: 1 057b | K232: 1 081
H233: Interest on opening balance | I233: –3 | J233: 58 | K233: 65
H234: Under/over recovery of revenue for regulatory year | I234: 1 083 | J234: –33 | K234: –1 113b
H235: Interest on under/over recovery for regulatory year | I235: 27 | J235: –1 | K235: –33
H236: Closing balance | I236: 1 057 | J236: 1 081 | K236: 0c
G237: Notes: | H237: (a) Approved annual metering charges revenue under/over recovery for regulatory year t. This is the Bt parameter in the annual metering charges revenue cap formula.
H238: (b) Opening balance is the previous year's closing balance.
H239: (c) The DNSP is expected to achieve a closing balance as close to zero as practicable in its annual metering charges unders and overs account in each forecast year in its annual pricing proposals in the 2016–20 regulatory control period.

Sheet Model update
A3: Tariff Approval Template for | C3: =A54 -> Jemena
A5: calendar year commencing | C5: 2019
A7: t | B7: = | C7: =C5 -> 2019
A8: t-1 | B8: = | C8: =C7-1 -> 2018
A9: t-2 | B9: = | C9: 2017
A10: t-3 | B10: = | C10: 2016
A11: t-4 | B11: = | C11: 2015
A13: Please fill in yellow highlighted cells where appropriate
A15: CPI | B15: The ABS changed the index reference base in September 2012 from 1989-90 to 2011-12.
A16: CPI Index Sept 2011 | C16: 99.8
A17: CPI Index Sept 2012 | C17: 101.8 | E17: CPI 2013 | F17: =C17/C16-1 -> 0.02004008016
A18: CPI Index Sept 2013 | C18: 104 | E18: CPI 2014 | F18: =C18/C17-1 -> 0.02161100196
A19: CPI Index Sept 2014 | C19: 106.4 | E19: CPI 2015 | F19: =C19/C18-1 -> 0.02307692308
A20: CPI Index Sept 2015 | C20: 108 | E20: CPI 2016 | F20: =C20/C19-1 -> 0.01503759398
A21: CPI Index June 2015 | C21: 107.5
A22: CPI Index June 2016 | C22: 108.6 | E22: CPI 2017 | F22: =IF(OR(C21="",C22=""),0,C22/C21-1) -> 0.01023255814
A23: CPI Index June 2017 | C23: 110.7 | E23: CPI 2018 | F23: =IF(OR(C22="",C23=""),0,C23/C22-1) -> 0.01933701657
A24: CPI Index June 2018 | C24: 113 | E24: CPI 2019 | F24: 0.02077687444
A25: CPI Index June 2019 | E25: CPI 2020 | F25: 0
A28: ="CPI " &$C$9 -> CPI 2017 | C28: =VLOOKUP(A28,E$17:F$25,2,FALSE) -> 0.01023255814 | D28: (t-2)
A29: ="CPI " &$C$8 -> CPI 2018 | C29: =VLOOKUP(A29,E$17:F$25,2,FALSE) -> 0.01933701657 | D29: (t-1)
A30: ="CPI " &$C$5 -> CPI 2019 | C30: 0.02077687444 | D30: (t)
A35: Real Vanilla WACC (rvw)
A36: ="rvw for "&C$5 -> rvw for 2019 | D36: rvw for 2016 | E36: rvw for 2017 | F36: rvw for 2018 | G36: rvw for 2019 | H36: rvw for 2020
A37: =$A$54 -> Jemena | B37: =HLOOKUP($A$36,$D$36:$H$41,2,FALSE) -> 0.03766911607 | D37: 0.03932862871 | E37: 0.03873057145 | F37: 0.03821466541 | G37: 0.03766911607 | H37: 0.03766911607
A38: =$A$55 -> CitiPower | B38: =HLOOKUP($A$36,$D$36:$H$41,3,FALSE) -> 0.03508047475 | D38: 0.0367000241 | E38: 0.03612756881 | F38: 0.03563047885 | G38: 0.03508047475 | H38: 0.03508047475
A39: =$A$56 -> Powercor | B39: =HLOOKUP($A$36,$D$36:$H$41,4,FALSE) -> 0.03508047475 | D39: 0.0367000241 | E39: 0.03612756881 | F39: 0.03563047885 | G39: 0.03508047475 | H39: 0.03508047475
A40: =$A$57 -> AusNet Services | B40: =HLOOKUP($A$36,$D$36:$H$41,5,FALSE) -> 0.03742733406 | D40: 0.03871679489 | E40: 0.03826233619 | F40: 0.03801328469 | G40: 0.03742733406 | H40: 0.03742733406
A41: =$A$58 -> United Energy | B41: =HLOOKUP($A$36,$D$36:$H$41,6,FALSE) -> 0.03751614965 | D41: 0.0393301904 | E41: 0.03869503169 | F41: 0.03812382202 | G41: 0.03751614965 | H41: 0.03751614965
A43: ="rvw (t) "&C$5 -> rvw (t) 2019 | B43: =VLOOKUP(C$3,A37:B41,2,FALSE) -> 0.03766911607 | C43: (t) | D43: =VLOOKUP($C$3,$A$37:$H$41,4,FALSE) -> 0.03932862871 | E43: =VLOOKUP($C$3,$A37:$H$41,5,FALSE) -> 0.03873057145 | F43: =VLOOKUP($C$3,$A$37:$H$41,6,FALSE) -> 0.03821466541 | G43: =VLOOKUP($C$3,$A$37:$H$41,7,FALSE) -> 0.03766911607 | H43: =VLOOKUP($C$3,$A$37:$H$41,8,FALSE) -> 0.03766911607
A45: ="rvw for "&C$5-1 -> rvw for 2018 | B45: =IF(C$5=2016,F$184,HLOOKUP($A45,D$36:H$43,8,FALSE)) -> 0.03821466541 | C45: (t-1)
A47: ="rvw for "&C$5-2 -> rvw for 2017 | B47: =IF(OR(C$5=2016,C$5=2017),F$183,HLOOKUP($A47,D$36:H$43,8,FALSE)) -> 0.03873057145 | C47: (t-2)
A52: DuoS
A53: ="Xt for "&C$5 -> Xt for 2019 | D53: AR for 2016 | E53: Xt for 2017 | F53: Xt for 2018 | G53: Xt for 2019 | H53: Xt for 2020
A54: Jemena | B54: =IF(C$5=2016,"n/a",HLOOKUP($A$53,$E$53:$H$58,2,FALSE)) -> -0.01194800863 | D54: 238498758 | E54: -0.0325 | F54: 0.0027 | G54: -0.01194800863 | H54: -0.02386245157
A55: CitiPower | B55: =IF(C$5=2016,"n/a",HLOOKUP($A$53,$E$53:$H$58,3,FALSE)) -> -0.001232459035 | D55: 282881283 | E55: 0.004 | F55: -0.0005 | G55: -0.001232459035 | H55: -0.02947637269
A56: Powercor | B56: =IF(C$5=2016,"n/a",HLOOKUP($A$53,$E$53:$H$58,4,FALSE)) -> -0.03021164125 | D56: 621773294 | E56: 0.0468 | F56: -0.0081 | G56: -0.03021164125 | H56: -0.03390125883
A57: AusNet Services | B57: =IF(C$5=2016,"n/a",HLOOKUP($A$53,$E$53:$H$58,5,FALSE)) -> -0.03013217637 | D57: 586045137 | E57: 0.003 | F57: -0.0184 | G57: -0.03013217637 | H57: -0.03013217637
A58: United Energy | B58: =IF(C$5=2016,"n/a",HLOOKUP($A$53,$E$53:$H$58,6,FALSE)) -> -0.02611202001 | D58: 375069867 | E58: -0.0383 | F58: -0.0316 | G58: -0.02611202001 | H58: -0.003957117526
A60: ="Xt for"&C$5 -> Xt for2019 | B60: =VLOOKUP(C$3,A54:B58,2,FALSE) -> -0.01194800863 | D60: =VLOOKUP($C$3,$A$54:$H$58,4,FALSE) -> 238498758 | E60: =VLOOKUP($C$3,$A$54:$H$58,5,FALSE) -> -0.0325 | F60: =VLOOKUP($C$3,$A$54:$H$58,6,FALSE) -> 0.0027 | G60: =VLOOKUP($C$3,$A$54:$H$58,7,FALSE) -> -0.01194800863 | H60: =VLOOKUP($C$3,$A$54:$H$58,8,FALSE) -> -0.02386245157
A64: Metering
A65: ="Xt for "&C$5 -> Xt for 2019 | D65: AR for 2016 | E65: Xt for 2017 | F65: Xt for 2018 | G65: Xt for 2019 | H65: Xt for 2020
A66: Jemena | B66: =IF(C$5=2016,"n/a",HLOOKUP($A$65,$E$65:$H$70,2,FALSE)) -> -0.01181844246 | D66: 44212949.02 | E66: 0.3473 | F66: -0.0136 | G66: -0.01181844246 | H66: -0.015
A67: CitiPower | B67: =IF(C$5=2016,"n/a",HLOOKUP($A$65,$E$65:$H$70,3,FALSE)) -> 0.07936799905 | D67: 32973195.04 | E67: 0.1402 | F67: 0.0767 | G67: 0.07936799905 | H67: 0.075
A68: Powercor | B68: =IF(C$5=2016,"n/a",HLOOKUP($A$65,$E$65:$H$70,4,FALSE)) -> 0.08490086085 | D68: 79145313.2 | E68: 0.1096 | F68: 0.0819 | G68: 0.08490086085 | H68: 0.08
A69: AusNet Services | B69: =IF(C$5=2016,"n/a",HLOOKUP($A$65,$E$65:$H$70,5,FALSE)) -> 0.1693485927 | D69: 92754610.44 | E69: 0.0231 | F69: 0.1658 | G69: 0.1693485927 | H69: 0.165
A70: United Energy | B70: =IF(C$5=2016,"n/a",HLOOKUP($A$65,$E$65:$H$70,6,FALSE)) -> 0.05954200889 | D70: 62733316.95 | E70: 0.3081 | F70: 0.057 | G70: 0.05954200889 | H70: 0.055
A72: ="Xt for"&C$5 -> Xt for2019 | B72: =VLOOKUP(C$3,A66:B70,2,FALSE) -> -0.01181844246 | D72: =VLOOKUP($C$3,$A$66:$H$70,4,FALSE) -> 44212949.02 | E72: =VLOOKUP($C$3,$A$66:$H$70,5,FALSE) -> 0.3473 | F72: =VLOOKUP($C$3,$A$66:$H$70,6,FALSE) -> -0.0136 | G72: =VLOOKUP($C$3,$A$66:$H$70,7,FALSE) -> -0.01181844246 | H72: =VLOOKUP($C$3,$A$66:$H$70,8,FALSE) -> -0.015
A76: DuoS
A77: Real Pre-tax WACC (rptw)
A78: ="rptw for "&C$5 -> rptw for 2019 | D78: rptw for 2016 | E78: rptw for 2017 | F78: rptw for 2018 | G78: rptw for 2019 | H78: rptw for 2020
A79: =$A$54 -> Jemena | B79: =HLOOKUP($A$78,$D$78:$H$83,2,FALSE) -> 0.04530393293 | D79: 0.04723374708 | E79: 0.04663553542 | F79: 0.04611949618 | G79: 0.04530393293
A80: =$A$55 -> CitiPower | B80: =HLOOKUP($A$78,$D$78:$H$83,3,FALSE) -> 0.04257942963 | D80: 0.04696344556 | E80: 0.04636538831 | F80: 0.04584948227 | G80: 0.04257942963
A81: =$A$56 -> Powercor | B81: =HLOOKUP($A$78,$D$78:$H$83,4,FALSE) -> 0.04158200864 | D81: 0.04347088828 | E81: 0.0428982852 | F81: 0.0424010669 | G81: 0.04158200864
A82: =$A$57 -> AusNet Services | B82: =HLOOKUP($A$78,$D$78:$H$83,5,FALSE) -> 0.04377949723 | D82: 0.04533877046 | E82: 0.04488419444 | F82: 0.04463507863 | G82: 0.04377949723
A83: =$A$58 -> United Energy | B83: =HLOOKUP($A$78,$D$78:$H$83,6,FALSE) -> 0.04610722815 | D83: 0.04819181771 | E83: 0.04755649502 | F83: 0.04698513788 | G83: 0.04610722815
A85: ="rptw (t) "&C$5 -> rptw (t) 2019 | B85: =VLOOKUP(C$3,A79:B83,2,FALSE) -> 0.04530393293 | C85: (t) | D85: =VLOOKUP($C$3,$A$79:$H$83,4,FALSE) -> 0.04723374708 | E85: =VLOOKUP($C$3,$A79:$H$83,5,FALSE) -> 0.04663553542 | F85: =VLOOKUP($C$3,$A$79:$H$83,6,FALSE) -> 0.04611949618 | G85: =VLOOKUP($C$3,$A$79:$H$83,7,FALSE) -> 0.04530393293 | H85: =VLOOKUP($C$3,$A$79:$H$83,8,FALSE) -> 0
A87: ="rptw for "&C$5-1 -> rptw for 2018 | B87: =IF(C$5=2016,B$184,HLOOKUP($A87,D$78:H$85,8,FALSE)) -> 0.04611949618 | C87: (t-1)
A89: ="rptw for "&C$5-2 -> rptw for 2017 | B89: =IF(OR(C$5=2016,C$5=2017),B$183,HLOOKUP($A89,D$78:H$85,8,FALSE)) -> 0.04663553542 | C89: (t-2)
A93: F factor Scheme | B93: =$C$5 -> 2019 | D93: 2016 | E93: =+D93+1 -> 2017 | F93: =+E93+1 -> 2018 | G93: 2019 | H93: 2020
A94: =$A$54 -> Jemena | B94: =HLOOKUP($B$93,$D$93:$H$98,2,FALSE) -> 117300 | D94: -680000 | E94: 70000 | F94: 655000 | G94: 117300
A95: =$A$55 -> CitiPower | B95: =HLOOKUP($B$93,$D$93:$H$98,3,FALSE) -> 43200 | D95: -15000 | E95: 410000 | F95: 140000 | G95: 43200
A96: =$A$56 -> Powercor | B96: =HLOOKUP($B$93,$D$93:$H$98,4,FALSE) -> 4639200 | D96: -1530000 | E96: 1420000 | F96: 1755000 | G96: 4639200
A97: =$A$57 -> AusNet Services | B97: =HLOOKUP($B$93,$D$93:$H$98,5,FALSE) -> 1485000 | D97: 1870000 | E97: 3420000 | F97: 750000 | G97: 1485000
A98: =$A$58 -> United Energy | B98: =HLOOKUP($B$93,$D$93:$H$98,6,FALSE) -> 224400 | D98: -2245000 | E98: 555000 | F98: 1000000 | G98: 224400
A100: ="Ifactor (t) "&C$5 -> Ifactor (t) 2019 | B100: =VLOOKUP(C$3,A94:B98,2,FALSE) -> 117300 | D100: =VLOOKUP($C$3,$A$94:$H$98,4,FALSE) -> -680000 | E100: =VLOOKUP($C$3,$A$94:$H$98,5,FALSE) -> 70000 | F100: =VLOOKUP($C$3,$A$94:$H$98,6,FALSE) -> 655000 | G100: =VLOOKUP($C$3,$A$94:$H$98,7,FALSE) -> 117300 | H100: =VLOOKUP($C$3,$A$94:$H$98,8,FALSE) -> 0
A104: S factor Scheme | B104: =$C$5 -> 2019 | D104: 2016 | E104: =+D104+1 -> 2017 | F104: =+E104+1 -> 2018 | G104: 2019 | H104: 2020
A105: =$A$54 -> Jemena | B105: =HLOOKUP($B$104,$D$104:$H$109,2,FALSE) -> 0.006950679651 | D105: 0.03997406406 | E105: 0.01488310469 | F105: -0.03971153723 | G105: 0.006950679651
A106: =$A$55 -> CitiPower | B106: =HLOOKUP($B$104,$D$104:$H$109,3,FALSE) -> 0.003830022123 | D106: -0.01268789003 | E106: 0.004032145684 | F106: 0.01857052664 | G106: 0.003830022123
A107: =$A$56 -> Powercor | B107: =HLOOKUP($B$104,$D$104:$H$109,4,FALSE) -> 0.02521273932 | D107: -0.01184910821 | E107: 0.05100648542 | F107: -0.01384168227 | G107: 0.02521273932
A108: =$A$57 -> AusNet Services | B108: =HLOOKUP($B$104,$D$104:$H$109,5,FALSE) -> 0.03014790749 | D108: 0.03357397489 | E108: 0.03217876587 | F108: -0.06343364122 | G108: 0.03014790749
A109: =$A$58 -> United Energy | B109: =HLOOKUP($B$104,$D$104:$H$109,6,FALSE) -> 0.01682414399 | D109: -0.02947870448 | E109: 0.02836672327 | F109: 0.02276703882 | G109: 0.01682414399
A111: ="S factor (t) "&C$5 -> S factor (t) 2019 | B111: =VLOOKUP(C$3,A105:B109,2,FALSE) -> 0.006950679651 | D111: =VLOOKUP($C$3,$A$105:$H$109,4,FALSE) -> 0.03997406406 | E111: =VLOOKUP($C$3,$A$105:$H$109,5,FALSE) -> 0.01488310469 | F111: =VLOOKUP($C$3,$A$105:$H$109,6,FALSE) -> -0.03971153723 | G111: =VLOOKUP($C$3,$A$105:$H$109,7,FALSE) -> 0.006950679651 | H111: =VLOOKUP($C$3,$A$105:$H$109,8,FALSE) -> 0
A115: Pass through Amounts | B115: =$C$5 -> 2019 | D115: 2016 | E115: =+D115+1 -> 2017 | F115: =+E115+1 -> 2018 | G115: 2019 | H115: 2020
A116: =$A$54 -> Jemena | B116: =HLOOKUP($B$115,$D$115:$H$120,2,FALSE) -> 0 | D116: 0 | E116: 0 | F116: 0 | G116: 0
A117: =$A$55 -> CitiPower | B117: =HLOOKUP($B$115,$D$115:$H$120,3,FALSE) -> 0 | D117: 0 | E117: 0 | F117: 0 | G117: 0
A118: =$A$56 -> Powercor | B118: =HLOOKUP($B$115,$D$115:$H$120,4,FALSE) -> 0 | D118: 0 | E118: 0 | F118: 0 | G118: 0
A119: =$A$57 -> AusNet Services | B119: =HLOOKUP($B$115,$D$115:$H$120,5,FALSE) -> 0 | D119: =-(5723000*(1+0.0975)) -> -6280992.5 | E119: 0 | F119: 0 | G119: 0
A120: =$A$58 -> United Energy | B120: =HLOOKUP($B$115,$D$115:$H$120,6,FALSE) -> 0 | D120: 0 | E120: 0 | F120: 0 | G120: 0
A122: ="Pass through amounts (t) "&C$5 -> Pass through amounts (t) 2019 | B122: =VLOOKUP(C$3,A116:B120,2,FALSE) -> 0 | D122: =VLOOKUP($C$3,$A$116:$H$120,4,FALSE) -> 0 | E122: =VLOOKUP($C$3,$A$116:$H$120,5,FALSE) -> 0 | F122: =VLOOKUP($C$3,$A$116:$H$120,6,FALSE) -> 0 | G122: =VLOOKUP($C$3,$A$116:$H$120,7,FALSE) -> 0 | H122: =VLOOKUP($C$3,$A$116:$H$120,8,FALSE) -> 0
A126: License Fees | B126: =$C$5 -> 2019 | D126: 2016 | E126: =+D126+1 -> 2017 | F126: =+E126+1 -> 2018 | G126: 2019 | H126: 2020
A127: =$A$54 -> Jemena | B127: =HLOOKUP($B$126,$D$126:$H$131,2,FALSE) -> 77350 | D127: 36033 | E127: 39516 | F127: 76545 | G127: 77350
A128: =$A$55 -> CitiPower | B128: =HLOOKUP($B$126,$D$126:$H$131,3,FALSE) -> 78912 | D128: 36475 | E128: 40445 | F128: 78091 | G128: 78912
A129: =$A$56 -> Powercor | B129: =HLOOKUP($B$126,$D$126:$H$131,4,FALSE) -> 187026 | D129: 85205 | E129: 94964 | F129: 185081 | G129: 187026
A130: =$A$57 -> AusNet Services | B130: =HLOOKUP($B$126,$D$126:$H$131,5,FALSE) -> 170003 | D130: 74811 | E130: 85031 | F130: 168235 | G130: 170003
A131: =$A$58 -> United Energy | B131: =HLOOKUP($B$126,$D$126:$H$131,6,FALSE) -> 159925 | D131: 74197 | E131: 81712 | F131: 158262 | G131: 159925
A133: ="Licence Fee (t-1) "&TEXT(C$5-2,"####")&"-"&RIGHT(TEXT(C$5-1,"##"),2) -> Licence Fee (t-1) 2017-18 | B133: =VLOOKUP(C$3,A127:B131,2,FALSE) -> 77350 | D133: =VLOOKUP($C$3,$A$127:$H$131,4,FALSE) -> 36033 | E133: =VLOOKUP($C$3,$A$127:$H$131,5,FALSE) -> 39516 | F133: =VLOOKUP($C$3,$A$127:$H$131,6,FALSE) -> 76545 | G133: =VLOOKUP($C$3,$A$127:$H$131,7,FALSE) -> 77350 | H133: =VLOOKUP($C$3,$A$127:$H$131,8,FALSE) -> 0
A137: DMIA Carryover adjustment | B137: =$C$5 -> 2019 | D137: 2016 | E137: =+D137+1 -> 2017 | F137: =+E137+1 -> 2018 | G137: 2019 | H137: 2020
A138: =$A$54 -> Jemena | B138: =HLOOKUP($B$137,$D$137:$H$142,2,FALSE) -> 0 | E138: =H154 -> -91239.84446
A139: =$A$55 -> CitiPower | B139: =HLOOKUP($B$137,$D$137:$H$142,3,FALSE) -> 0
A140: =$A$56 -> Powercor | B140: =HLOOKUP($B$137,$D$137:$H$142,4,FALSE) -> 0
A141: =$A$57 -> AusNet Services | B141: =HLOOKUP($B$137,$D$137:$H$142,5,FALSE) -> 0
A142: =$A$58 -> United Energy | B142: =HLOOKUP($B$137,$D$137:$H$142,6,FALSE) -> 0 | E142: =H163 -> -479660.6938
A144: ="T factor (t) "&C$5 -> T factor (t) 2019 | B144: =VLOOKUP(C$3,A138:B142,2,FALSE) -> 0 | D144: =VLOOKUP($C$3,$A$138:$H$142,4,FALSE) -> 0 | E144: =VLOOKUP($C$3,$A$138:$H$142,5,FALSE) -> -91239.84446 | F144: =VLOOKUP($C$3,$A$138:$H$142,6,FALSE) -> 0 | G144: =VLOOKUP($C$3,$A$138:$H$142,7,FALSE) -> 0 | H144: =VLOOKUP($C$3,$A$138:$H$142,8,FALSE) -> 0
A147: DMIA Carryover adjustment
A148: Jemena | C148: 2011-15 | D148: 2016 | E148: 2017
A149: CPI - PTRM | D149: 0.02323079821 | E149: 0.02323079821
A150: Nominal Vanilla WACC - PTRM | C150: 0.1033058648 | D150: =(1+D149)*(1+D37)-1 -> 0.06347306235 | E150: =(1+E149)*(1+E37)-1 -> 0.06286111175
C152: 2011 | D152: 2012 | E152: 2013 | F152: 2014 | G152: 2015 | H152: Total
A153: Ex-ante revenue minus ex post expenditure ($nominal) | C153: -263938 | D153: -16375.4 | E153: 163676.6714 | F153: 153066.6261 | G153: 125690.5855 | H153: =SUM(C153:G153) -> 162120.4829
A154: DMIA Carryover adjustment | C154: =0-(C153/(1+$C150))*(1+$C150)^5*(1+$D150)*(1+$E150) -> 442067.5528 | D154: =C154-(D153/(1+$C150))*(1+$C150)^4*(1+$D150)*(1+$E150) -> 466926.4987 | E154: =D154-(E153/(1+$C150))*(1+$C150)^3*(1+$D150)*(1+$E150) -> 241719.6213 | F154: =E154-(F153/(1+$C150))*(1+$C150)^2*(1+$D150)*(1+$E150) -> 50831.26114 | G154: =F154-(G153/(1+$C150))*(1+$C150)^1*(1+$D150)*(1+$E150) -> -91239.84446 | H154: =G154 -> -91239.84446
A157: UED | C157: 2011-15 | D157: 2016 | E157: 2017
A158: CPI - PTRM | D158: 0.02323079821 | E158: 0.02323079821
A159: Nominal Vanilla WACC - PTRM | C159: 0.09489772882 | D159: =(1+D158)*(1+D41)-1 -> 0.06347466033 | E159: =(1+E158)*(1+E41)-1 -> 0.06282474637
C161: 2011 | D161: 2012 | E161: 2013 | F161: 2014 | G161: 2015 | H161: Total
A162: Ex-ante revenue minus ex post expenditure ($nominal) | C162: 406960 | D162: 327739.2 | E162: 91075.34272 | F162: -227853.7479 | G162: -450364.8291 | H162: =SUM(C162:G162) -> 147555.9658
A163: DMIA Carryover adjustment | C163: =0-(C162/(1+$C159))*(1+$C159)^5*(1+$D159)*(1+$E159) -> -661050.6678 | D163: =C163-(D162/(1+$C159))*(1+$C159)^4*(1+$D159)*(1+$E159) -> -1147276.309 | E163: =D163-(E162/(1+$C159))*(1+$C159)^3*(1+$D159)*(1+$E159) -> -1270682.438 | F163: =E163-(F162/(1+$C159))*(1+$C159)^2*(1+$D159)*(1+$E159) -> -988702.2892 | G163: =F163-(G162/(1+$C159))*(1+$C159)^1*(1+$D159)*(1+$E159) -> -479660.6938 | H163: =G163 -> -479660.6938
A172: Regulatory Period 2011-15
A174: DuoS
A175: Real Pre-tax WACC for distribution tariffs | D175: Real Vanilla WACC for distribution tariffs
A177: =$A$54 -> Jemena | B177: 0.087 | D177: =$A$54 -> Jemena | F177: 0.0756
A178: =$A$55 -> CitiPower | B178: 0.0786 | D178: =$A$55 -> CitiPower | F178: 0.0674
A179: =$A$56 -> Powercor | B179: 0.0776 | D179: =$A$56 -> Powercor | F179: 0.0674
A180: =$A$57 -> AusNet Services | B180: 0.078 | D180: =$A$57 -> AusNet Services | F180: 0.0699
A181: =$A$58 -> United Energy | B181: 0.0791 | D181: =$A$58 -> United Energy | F181: 0.0674
A183: pretax WACCD | B183: =VLOOKUP($C$3,A177:B181,2,FALSE) -> 0.087 | D183: Real Vanilla WACCD | F183: =VLOOKUP($C$3,D177:F181,3,FALSE) -> 0.0756
A188: Pass Through Costs | E188: 2014 | F188: 2015
A190: =A204 -> F Factor pass through | E190: =B204 -> 370000 | F190: =C204 -> -855000
A191: VBRC | E191: =B215 -> 0 | F191: =C215 -> 0
A192: Powerline Replacement program | E192: =B226 -> 0 | F192: =C226 -> 0
A193: TOTAL PASS THROUGH AMOUNTS | E193: =SUM(E190:E192) -> 370000 | F193: =SUM(F190:F192) -> -855000
A197: F factor Scheme | B197: 2014 | C197: 2015
A198: =$A$54 -> Jemena | B198: 370000 | C198: -855000
A199: =$A$55 -> CitiPower | B199: 10000 | C199: -65000
A200: =$A$56 -> Powercor | B200: 2470000 | C200: -2405000
A201: =$A$57 -> AusNet Services | B201: 1970000 | C201: 2020000
A202: =$A$58 -> United Energy | B202: 980000 | C202: -70000
A204: F Factor pass through | B204: =VLOOKUP($C$3,$A$198:$C$202,2,FALSE) -> 370000 | C204: =VLOOKUP($C$3,$A$198:$C$202,3,FALSE) -> -855000
A208: VBRC | B208: 2014 | C208: 2015
A209: =$A$54 -> Jemena | B209: 0 | C209: 0
A210: =$A$55 -> CitiPower | B210: 0 | C210: 0
A211: =$A$56 -> Powercor | B211: =H245 -> 7193170.454 | C211: =I245 -> 8768550.378
A212: =$A$57 -> AusNet Services | B212: =H262 -> 6039778.158 | C212: =I262 -> 8341755.212
A213: =$A$58 -> United Energy | B213: 0 | C213: 0
A215: VBRC pass through | B215: =VLOOKUP($C$3,$A$209:$C$213,2,FALSE) -> 0 | C215: =VLOOKUP($C$3,$A$209:$C$213,3,FALSE) -> 0
A219: Powerline Replacement program | B219: 2014 | C219: 2015
A220: =$A$54 -> Jemena | B220: 0 | C220: 0
A221: =$A$55 -> CitiPower | B221: 0 | C221: 0
A222: =$A$56 -> Powercor | B222: =H249 -> 0 | C222: 8777690.455
A223: =$A$57 -> AusNet Services | B223: 0 | C223: 5723419.31
A224: =$A$58 -> United Energy | B224: 0 | C224: 0
A226: Powerline Replacement program | B226: =VLOOKUP($C$3,$A$219:$C$224,2,FALSE) -> 0 | C226: =VLOOKUP($C$3,$A$219:$C$224,3,FALSE) -> 0
A231: VBRC
A233: Powercor | E233: 2011 | F233: 2012 | G233: 2013 | H233: 2014 | I233: 2015
A234: Pass through amounts approved (Nominal $) - Forecast CPI | G234: 10270612 | H234: 7181525 | I234: 8777217
A235: (As per AER's Final Decision on Powercor's VBRC pass through, table 7.2, 7 March 2012)
A236: Forecast CPI in PTRM | E236: 0.0257487534 | F236: 0.0257487534 | G236: 0.0257487534 | H236: 0.0257487534 | I236: 0.0257487534
E237: =1+E236 -> 1.025748753 | F237: =E237*(1+F236) -> 1.052160505 | G237: =F237*(1+G236) -> 1.079252326 | H237: =G237*(1+H236) -> 1.107041729 | I237: =H237*(1+I236) -> 1.135546673
A239: Pass through amounts approved (Real $2010) | G239: =G234/G237 -> 9516414.047 | H239: =H234/H237 -> 6487131.257 | I239: =I234/I237 -> 7729507.918
A242: Actual CPI | E242: =173.3/168.6-1 -> 0.02787663108 | F242: =179.4/173.3-1 -> 0.03519907675 | G242: =C17/C16-1 -> 0.02004008016 | H242: =C18/C17-1 -> 0.02161100196 | I242: =C19/C18-1 -> 0.02307692308
E243: =1+E242 -> 1.027876631 | F243: =E243*(1+F242) -> 1.06405694 | G243: =F243*(1+G242) -> 1.085380726 | H243: =G243*(1+H242) -> 1.108836891 | I243: 1.134425434
A245: Pass through amounts approved (Nominal $) - Actual CPI | G245: =G239*G243 -> 10328932.39 | H245: =H239*H243 -> 7193170.454 | I245: =I239*I243 -> 8768550.378
A250: AusNet Services | E250: 2011 | F250: 2012 | G250: 2013 | H250: 2014 | I250: 2015
A251: Pass through amounts approved (Nominal $) - Forecast CPI | G251: 5790000 | H251: 6030000 | I251: 8350000
A252: As per AER's Final Decision on AusNet Services's VBRC pass through, table 1.3, 19 October 2012
A253: Forecast CPI in PTRM | E253: 0.0257487534 | F253: 0.0257487534 | G253: 0.0257487534 | H253: 0.0257487534 | I253: 0.0257487534
E254: =1+E253 -> 1.025748753 | F254: =E254*(1+F253) -> 1.052160505 | G254: =F254*(1+G253) -> 1.079252326 | H254: =G254*(1+H253) -> 1.107041729 | I254: =H254*(1+I253) -> 1.135546673
A256: Pass through amounts approved (Real $2010) | G256: =G251/G254 -> 5364825.127 | H256: =H251/H254 -> 5446949.148 | I256: =I251/I254 -> 7353286.482
A259: Actual CPI | E259: =173.3/168.6-1 -> 0.02787663108 | F259: =179.4/173.3-1 -> 0.03519907675 | G259: =C17/C16-1 -> 0.02004008016 | H259: =C18/C17-1 -> 0.02161100196 | I259: =C19/C18-1 -> 0.02307692308
E260: =1+E259 -> 1.027876631 | F260: =E260*(1+F259) -> 1.06405694 | G260: =F260*(1+G259) -> 1.085380726 | H260: =G260*(1+H259) -> 1.108836891 | I260: 1.134425434
A262: Pass through amounts approved (Nominal $) - Actual CPI | G262: =G256*G260 -> 5822877.791 | H262: =H256*H260 -> 6039778.158 | I262: =I256*I260 -> 8341755.212
A270: AMI Transitional Adjustment in 2018 prices ($)
A271: =C3 -> Jemena
C272: 2009 | D272: 2010 | E272: 2011 | F272: 2012 | G272: 2013 | H272: 2014 | I272: 2015 | J272: 2016 | K272: 2017 | L272: 2018 | M272: 2019 | N272: 2020
A273: CPI | C273: 0.04981084489 | D273: 0.01261261261 | E273: 0.02787663108 | F273: 0.03519907675 | G273: =$F17 -> 0.02004008016 | H273: =$F18 -> 0.02161100196 | I273: =$F19 -> 0.02307692308 | J273: =$F20 -> 0.01503759398 | K273: =$F22 -> 0.01023255814 | L273: =$F23 -> 0.01933701657 | M273: =$F24 -> 0.02077687444 | N273: =$F25 -> 0
A275: Vanilla' WACC (Real) | C275: 0.06771645866 | D275: =$C275 -> 0.06771645866 | E275: =$C275 -> 0.06771645866 | F275: 0.06771645866 | G275: 0.06771645866 | H275: 0.05023909437 | I275: =H275 -> 0.05023909437 | J275: =D43 -> 0.03932862871 | K275: =E43 -> 0.03873057145 | L275: =F43 -> 0.03821466541 | M275: =G43 -> 0.03766911607 | N275: =H43 -> 0.03766911607
A276: Vanilla' WACC (nominal) | C276: =(1+C275)*(1+C273)-1 -> 0.1209003176 | D276: 0.08118315273 | E276: 0.09748079647 | F276: 0.1052990922 | G276: 0.08911358208 | H276: 0.0729358135 | I276: 0.07447538116 | J276: 0.05495763064 | K276: 0.04935944242 | L276: 0.05829063961 | M276: 0.059228637 | N276: 0.03766911607
A278: Future value index | C278: =(1+C276)^0.5 -> 1.058725799 | D278: =C278*(D276+1) -> 1.144676497 | E278: 1.256260474 | F278: 1.388543561 | G278: 1.512281652 | H278: 1.622581145 | I278: 1.743423494 | J278: 1.839237918 | K278: 1.930021676 | L278: 2.042523874 | M278: 2.163499779 | N278: 2.244996904
A280: AMI Transitional Adjustment - Revenue and Costs 2009-2015
A281: Over \ (under) recovery of revenue and costs (000's)
A282: NPV at 1 January 2009 | D282: 1152.528241
A284: AMI Transitional Adjustment in 2018 prices ($) | D284: =-D282*L278*10^3 -> -2354066.449
A286: AMI Transitional Adjustment - Revenue 2016-2020
A287: Increase \ (Reduction) in revenue 2016-2020 (000's)
A288: NPV at 1 January 2016 | D288: -4503.087938
A290: AMI Transitional Adjustment in 2018 prices ($) | D290: =D288*L278/I278*10^3 -> -5275634.207
L291: =L272 -> 2018 | M291: =M272 -> 2019 | N291: 2020
A292: Total AMI Transitional Adjustment in 2018 prices ($) | D292: =SUM(D284,D290) -> -7629700.656 | H292: AMI Transitional Adjustment in Nominal prices ($) | L292: =D292/3 -> -2543233.552 | M292: =L292*M278/L278 -> -2693865.809 | N292: =L292*N278/L278 -> -2795341.353

Sheet Metering
B1: ="Tariff Approval - "&'Model update'!C3 -> Tariff Approval - Jemena
B3: ="PROPOSED "&'Model update'!$C$5&" METERING TARIFFS AND REVENUE" -> PROPOSED 2019 METERING TARIFFS AND REVENUE
D5: ="Proposed Metering Tariffs P(t) for " &'Model update'!$C$5 -> Proposed Metering Tariffs P(t) for 2019 | E5: ="Current Metering Tariffs P(t-1) for" &'Model update'!$C$8 -> Current Metering Tariffs P(t-1) for2018 | F5: ="Forecast Quantities (Qt) for "&'Model update'!$C$5 -> Forecast Quantities (Qt) for 2019 | H5: ="Forecast Revenue (Pt "&'Model update'!$C$5&")*(Qt " &'Model update'!$C$5&")" -> Forecast Revenue (Pt 2019)*(Qt 2019) | I5: ="Revenue (Pt-1 "&'Model update'!$C$8&")*(Qt " &'Model update'!$C$5&")" -> Revenue (Pt-1 2018)*(Qt 2019) | K5: Movement | L5: Side Constraint
B6: Proposed tariff | C6: Existing tariff | D6: PropTar $/Cust/year | E6: ExistTar $/Cust/year | F6: FcastVol Cust # | H6: PropRev Fixed | I6: ExistRev Fixed
B8: Single phase single element meter | C8: Single phase single element meter | D8: 79.84 | E8: 76.09 | F8: 265889 | H8: =D8*F8 -> 21228577.76 | I8: =E8*F8 -> 20231494.01 | K8: =IFERROR(H8/I8,"") -> 1.049283743 | L8: =IF(B8="","",IF(K8<$I$30,"COMPLIANT","BREACHED")) -> COMPLIANT
B9: Single phase single element meter with contactor | C9: Single phase single element meter with contactor | D9: 79.84 | E9: 76.09 | F9: 32554 | H9: 2599111.36 | I9: 2477033.86 | K9: =IFERROR(H9/I9,"") -> 1.049283743 | L9: COMPLIANT
B10: Three phase direct connected meter | C10: Three phase direct connected meter | D10: 96.94 | E10: 92.39 | F10: 40563 | H10: 3932177.22 | I10: 3747615.57 | K10: 1.049247754 | L10: COMPLIANT
B11: Three phase Current transformer connected meter | C11: Three phase Current transformer connected meter | D11: 108.05 | E11: 102.87 | F11: 1702 | H11: 183901.1 | I11: 175084.74 | K11: 1.050354817 | L11: COMPLIANT
H12: 0 | I12: 0
H13: 0 | I13: 0
H14: 0 | I14: 0
H15: 0 | I15: 0
H16: 0 | I16: 0
H17: =SUM(H7:H16) -> 27943767.44 | I17: =SUM(I7:I16) -> 26631228.18
B22: Year (t) | D22: ='Model update'!C5 -> 2019 | E22: =D22-1 -> 2018
B24: Table 1- Compliance with AER Final Determination Total Metering Annual Revenue | H24: Metering tariff rebalancing control
B25: Revenue from Metering charges for year t | D25: =H17 -> 27943767.44 | H25: ="CPI "&'Model update'!$C$5 -> CPI 2019 | I25: =D37 -> 0.02077687444
B26: Total Annual Metering Revenue for year t | D26: =D33 -> 27943806.77 | H26: ="X "& 'Model update'!$C$5 -> X 2019 | I26: =MIN(D38,0) -> -0.01181844246
D27: =IF(D25="","",IF(D26>=D25,"METERING REVENUE CAP FORMULA COMPLIANT","METERING REVENUE CAP FORMULA BREACHED")) -> METERING REVENUE CAP FORMULA COMPLIANT | H27: ="Tt "&'Model update'!$C$5 -> Tt 2019 | I27: =(D31-E31)/I$17 -> -0.005656226436
H28: ="Bt "&'Model update'!$C$5 -> Bt 2019 | I28: =(D32-E32)/I$17 -> 0.01772512972
B29: Table 2 - Total Annual Revenue for year t (TARMt)
B30: Adjusted Annual Smoothed Metering Revenue for year t | D30: =D39 -> 31110161.69 | I30: =(1+I25)*(1-I26)*(1+0.02)+SUM(I27:I28) -> 1.065566588
B31: T factor for year t | D31: =INDEX('Model update'!$L$292:$N$292,1,MATCH($D$22,'Model update'!$L$291:$N$291,0)) -> -2693865.809 | E31: =INDEX('Model update'!$L$292:$N$292,1,MATCH($E$22,'Model update'!$L$291:$N$291,0)) -> -2543233.552
B32: B factor for year t | D32: =-F68*(1+F66)^0.5 -> -472489.115 | E32: -944531.0891
B33: Total Annual Revenue for year t | D33: =SUM(D30:D32) -> 27943806.77
B35: Table 3 - Adjusted Annual Revenue for year t (ARt)
B36: Adjusted Annual Smoothed Revenue for year t-1 | D36: 30120963.14
B37: CPI for period t | D37: ='Model update'!C30 -> 0.02077687444
B38: X factor for period t | D38: ='Model update'!B72 -> -0.01181844246
B39: Adjusted Annual Smoothed Revenue for year t | D39: =IF(D22=2016,'Model update'!D72,(D36*(1+D37)*(1-D38))) -> 31110161.69
B44: Table 4 - Metering Services Recovery Arrangements
D45: Year t-2 | E45: Year t-1 | F45: Year t
D46: (actual) | E46: (estimate) | F46: (forecast)
D47: =E47-1 -> 2017 | E47: =F47-1 -> 2018 | F47: =D$22 -> 2019
B49: (A) Revenue from Metering proposal charges | D49: 29869310.31 | E49: =E89 -> 26631228.18 | F49: =D25 -> 27943767.44
B52: (B) Less TARM for regulatory year = | D52: =SUM(D53:D54) -> 29153080.86 | E52: =SUM(E53:E54) -> 27577729.59 | F52: =SUM(F53:F54) -> 28416295.88
B53: + Adjusted annual smoothed revenue | D53: 29153080.86 | E53: =D36 -> 30120963.14 | F53: =D30 -> 31110161.69
B54: + T factor | D54: 0 | E54: =E31 -> -2543233.552 | F54: =D31 -> -2693865.809
B57: (A minus B) Under/over recovery of revenue for regulatory year | D57: =D49-D52 -> 716229.4542 | E57: =E49-E52 -> -946501.4082 | F57: =F49-F52 -> -472528.4414
B61: Table 5 - Metering Services Unders and Overs Account
D62: Year t-2 | E62: Year t-1 | F62: Year t
D63: (actual) | E63: (estimate) | F63: (forecast)
B64: Calendar year | D64: =E64-1 -> 2017 | E64: =F64-1 -> 2018 | F64: =D$22 -> 2019
B66: Nominal WACC | D66: =(1+'Model update'!$B$47)*(1+'Model update'!$C$28)-1 -> 0.04935944242 | E66: =(1+'Model update'!$B$45)*(1+'Model update'!$C$29)-1 -> 0.05829063961 | F66: =(1+'Model update'!$B$43)*(1+'Model update'!$C$30)-1 -> 0.059228637
B68: Opening balance | D68: 591003.531 | E68: =D72 -> 1353868.032 | F68: =E72 -> 459089.0677
B69: Interest on Opening balance | D69: =D68*D66 -> 29171.60475 | E69: =E68*E66 -> 78917.83354 | F69: =F68*F66 -> 27191.21974
B70: Under/over recovery of revenue for regulatory year | D70: =D57 -> 716229.4542 | E70: =E57 -> -946501.4082 | F70: =F57 -> -472528.4414
B71: Interest on under/over recovery for regulatory year | D71: =D70*((1+D66)^0.5-1) -> 17463.44233 | E71: =E70*((1+E66)^0.5-1) -> -27195.38992 | F71: =F70*((1+F66)^0.5-1) -> -13792.32031
B72: Closing balance of Metering Services overs/ (unders) account | D72: =SUM(D68:D71) -> 1353868.032 | E72: =SUM(E68:E71) -> 459089.0677 | F72: -40.47434275
B74: The DNSP is expected to achieve a closing balance as close to zero as practicable in its annual metering charges unders and overs account in each forecast year in its annual pricing proposals in the 2016–20 regulatory control period.
C77: ="Current Metering Tariffs P(t-1) for " &'Model update'!$C$8 -> Current Metering Tariffs P(t-1) for 2018 | D77: ="Estimated Quantities (Qt-1) for "&'Model update'!$C$5-1 -> Estimated Quantities (Qt-1) for 2018 | E77: ="Revenue (Pt-1 "&'Model update'!$C$8&")*(Qt-1 " &'Model update'!$C$5-1&")" -> Revenue (Pt-1 2018)*(Qt-1 2018)
B78: Existing tariff | C78: ExistTar $/Cust/year | D78: FcastVol Cust # | E78: ExistRev Fixed
B80: Single phase single element meter | C80: =E8 -> 76.09 | D80: 265889 | E80: =C80*D80 -> 20231494.01
B81: Single phase single element meter with contactor | C81: =E9 -> 76.09 | D81: 32554 | E81: 2477033.86
B82: Three phase direct connected meter | C82: 92.39 | D82: 40563 | E82: 3747615.57
B83: Three phase Current transformer connected meter | C83: 102.87 | D83: 1702 | E83: 175084.74
E84: 0
E85: 0
E86: 0
E87: 0
E88: 0
E89: =SUM(E79:E88) -> 26631228.18

Sheet Prop2019DistTar
B1: ="Tariff Approval - "&'Model update'!$C$3 -> Tariff Approval - Jemena
B3: ="PROPOSED "&'Model update'!$C$5&" DISTRIBUTION TARIFFS" -> PROPOSED 2019 DISTRIBUTION TARIFFS
D4: ="Proposed Distribution Tariffs (Pt) for "&'Model update'!$C$5 -> Proposed Distribution Tariffs (Pt) for 2019 | R4: ="Current Distribution Tariffs (Pt-1) for "&'Model update'!$C$8 -> Current Distribution Tariffs (Pt-1) for 2018 | AF4: ="Forecast Quantities (Qt) for "&'Model update'!$C$5 -> Forecast Quantities (Qt) for 2019 | AT4: ="Forecast Revenue (Pt "&'Model update'!$C$5&")*(Qt " &'Model update'!$C$5&")" -> Forecast Revenue (Pt 2019)*(Qt 2019) | BI4: ="Revenue (Pt-1 "&'Model update'!$C$8&")*(Qt " &'Model update'!$C$5&")" -> Revenue (Pt-1 2018)*(Qt 2019)
B5: Proposed tariff | C5: Existing tariff | D5: PropTar Fixed | E5: PropTar PkBlk1 | F5: PropTar Shoulder summer | G5: PropTar peak non-summer | H5: PropTar Shoulder non-summer | I5: PropTar OPkBlk1 | J5: PropTar off peak non-summer | K5: PropTar OPkBlk3 | L5: PropTar OPkBlk4 | M5: PropTar DemBlk1 | N5: PropTar DemBlk2 | O5: PropTar DemBlk3 | P5: PropTar DemBlk4 | R5: ExistTar Fixed | S5: ExistTar PkBlk1 | T5: ExistTar Shoulder summer | U5: ExistTar peak non-summer | V5: ExistTar Shoulder non-summer | W5: ExistTar OPkBlk1 | X5: ExistTar off peak non-summer | Y5: ExistTar OPkBlk3 | Z5: ExistTar OPkBlk4 | AA5: ExistTar DemBlk1 | AB5: ExistTar DemBlk2 | AC5: ExistTar DemBlk3 | AD5: ExistTar DemBlk4 | AF5: FcastVol Fixed | AG5: FcastVol PkBlk1 | AH5: FcastVol Shoulder summer | AI5: FcastVol peak non-summer | AJ5: FcastVol Shoulder non-summer | AK5: FcastVol OPkBlk1 | AL5: FcastVol off peak non-summer | AM5: FcastVol OPkBlk3 | AN5: FcastVol OPkBlk4 | AO5: FcastVol DemBlk1 | AP5: FcastVol DemBlk2 | AQ5: FcastVol DemBlk3 | AR5: FcastVol DemBlk4 | AT5: PropRev Fixed | AU5: PropRev PkBlk1 | AV5: PropRev Shoulder summer | AW5: PropRev peak non-summer | AX5: PropRev Shoulder non-summer | AY5: PropRev OPkBlk1 | AZ5: PropRev off peak non-summer | BA5: PropRev OPkBlk3 | BB5: PropRev OPkBlk4 | BC5: PropRev DemBlk1 | BD5: PropRev DemBlk2 | BE5: PropRev DemBlk3 | BF5: PropRev DemBlk4 | BG5: PropRev Total | BI5: ExistRev Fixed | BJ5: ExistRev PkBlk1 | BK5: ExistRev Shoulder summer | BL5: ExistRev peak non-summer | BM5: ExistRev Shoulder non-summer | BN5: ExistRev OPkBlk1 | BO5: ExistRev off peak non-summer | BP5: ExistRev OPkBlk3 | BQ5: ExistRev OPkBlk4 | BR5: ExistRev DemBlk1 | BS5: ExistRev DemBlk2 | BT5: ExistRev DemBlk3 | BU5: ExistRev DemBlk4 | BV5: ExistRev Total
B6: =C6 -> Residential - General Purpose | C6: =Est2018DistRev!B6 -> Residential - General Purpose | D6: 51.008 | E6: 7.562 | F6: 0 | G6: 0 | H6: 0 | I6: 0 | J6: 0 | K6: 0 | L6: 0 | M6: 0 | N6: 0 | O6: 0 | P6: 0 | R6: =Est2018DistRev!D6 -> 44.355 | S6: =Est2018DistRev!E6 -> 7.562 | T6: =Est2018DistRev!F6 -> 0 | U6: =Est2018DistRev!G6 -> 0 | V6: =Est2018DistRev!H6 -> 0 | W6: =Est2018DistRev!I6 -> 0 | X6: =Est2018DistRev!J6 -> 0 | Y6: =Est2018DistRev!K6 -> 0 | Z6: =Est2018DistRev!L6 -> 0 | AA6: =Est2018DistRev!M6 -> 0 | AB6: =Est2018DistRev!N6 -> 0 | AC6: =Est2018DistRev!O6 -> 0 | AD6: =Est2018DistRev!P6 -> 0 | AF6: 301686.4437 | AG6: 1176483463 | AH6: 0 | AI6: 0 | AJ6: 0 | AK6: 0 | AL6: 0 | AM6: 0 | AN6: 0 | AO6: 0 | AP6: 0 | AQ6: 0 | AR6: 0 | AT6: =D6*AF6 -> 15388422.12 | AU6: =E6/100*AG6 -> 88965679.48 | AV6: 0 | AW6: 0 | AX6: 0 | AY6: 0 | AZ6: 0 | BA6: 0 | BB6: 0 | BC6: =M6*AO6 -> 0 | BD6: 0 | BE6: 0 | BF6: 0 | BG6: =SUM(AT6:BF6) -> 104354101.6 | BI6: =R6*AF6 -> 13381302.21 | BJ6: =S6/100*AG6 -> 88965679.48 | BK6: 0 | BL6: 0 | BM6: 0 | BN6: 0 | BO6: 0 | BP6: 0 | BQ6: 0 | BR6: =AA6*AO6 -> 0 | BS6: 0 | BT6: 0 | BU6: 0 | BV6: =SUM(BI6:BU6) -> 102346981.7
B7: =C7 -> Residential - General Purpose Demand | C7: =Est2018DistRev!B7 -> Residential - General Purpose Demand | D7: 51.008 | E7: 3.329 | F7: 0 | G7: 0 | H7: 0 | I7: 0 | J7: 0 | K7: 0 | L7: 0 | M7: 59.091 | N7: 0 | O7: 0 | P7: 0 | R7: =Est2018DistRev!D7 -> 44.355 | S7: =Est2018DistRev!E7 -> 3.329 | T7: =Est2018DistRev!F7 -> 0 | U7: =Est2018DistRev!G7 -> 0 | V7: =Est2018DistRev!H7 -> 0 | W7: =Est2018DistRev!I7 -> 0 | X7: =Est2018DistRev!J7 -> 0 | Y7: =Est2018DistRev!K7 -> 0 | Z7: =Est2018DistRev!L7 -> 0 | AA7: =Est2018DistRev!M7 -> 59.091 | AB7: =Est2018DistRev!N7 -> 0 | AC7: =Est2018DistRev!O7 -> 0 | AD7: =Est2018DistRev!P7 -> 0 | AF7: 1.001220543 | AG7: 3199.47119 | AH7: 0 | AI7: 0 | AJ7: 0 | AK7: 0 | AL7: 0 | AM7: 0 | AN7: 0 | AO7: 50.58160812 | AP7: 0 | AQ7: 0 | AR7: 0 | AT7: =D7*AF7 -> 51.07025746 | AU7: =E7/100*AG7 -> 106.5103959 | AV7: 0 | AW7: 0 | AX7: 0 | AY7: 0 | AZ7: 0 | BA7: 0 | BB7: 0 | BC7: =M7*AO7 -> 2988.917805 | BD7: =N7*AP7 -> 0 | BE7: =O7*AQ7 -> 0 | BF7: =P7*AR7 -> 0 | BG7: =SUM(AT7:BF7) -> 3146.498458 | BI7: =R7*AF7 -> 44.40913719 | BJ7: =S7/100*AG7 -> 106.5103959 | BK7: =T7/100*AH7 -> 0 | BL7: =U7/100*AI7 -> 0 | BM7: =V7/100*AJ7 -> 0 | BN7: =W7/100*AK7 -> 0 | BO7: =X7/100*AL7 -> 0 | BP7: =Y7/100*AM7 -> 0 | BQ7: =Z7/100*AN7 -> 0 | BR7: =AA7*AO7 -> 2988.917805 | BS7: =AB7*AP7 -> 0 | BT7: =AC7*AQ7 -> 0 | BU7: =AD7*AR7 -> 0 | BV7: =SUM(BI7:BU7) -> 3139.837338
B8: Residential - Flexible | C8: =Est2018DistRev!B8 -> Residential - Flexible | D8: 51.008 | E8: 12.183 | F8: 7.562 | G8: 12.183 | H8: 7.562 | I8: 3.676 | J8: 3.676 | K8: 0 | L8: 0 | M8: 0 | N8: 0 | O8: 0 | P8: 0 | R8: =Est2018DistRev!D8 -> 44.355 | S8: =Est2018DistRev!E8 -> 12.269 | T8: =Est2018DistRev!F8 -> 7.562 | U8: =Est2018DistRev!G8 -> 12.269 | V8: =Est2018DistRev!H8 -> 7.562 | W8: =Est2018DistRev!I8 -> 3.713 | X8: =Est2018DistRev!J8 -> 3.713 | Y8: =Est2018DistRev!K8 -> 0 | Z8: =Est2018DistRev!L8 -> 0 | AA8: =Est2018DistRev!M8 -> 0 | AB8: =Est2018DistRev!N8 -> 0 | AC8: =Est2018DistRev!O8 -> 0 | AD8: =Est2018DistRev!P8 -> 0 | AF8: 1000 | AG8: 729714.5627 | AH8: 1368615.722 | AI8: 960125.0095 | AJ8: 1784990.184 | AK8: 1448837.789 | AL8: 1167051.999 | AM8: 0 | AN8: 0 | AO8: 0 | AP8: 0 | AQ8: 0 | AR8: 0 | AT8: 51008 | AU8: 88901.12517 | AV8: 103494.7209 | AW8: 116972.0299 | AX8: 134980.9577 | AY8: 53259.27714 | AZ8: 42900.8315 | BA8: 0 | BB8: 0 | BC8: 0 | BD8: 0 | BE8: 0 | BF8: 0 | BG8: 591516.9423 | BI8: 44355 | BJ8: 89528.67969 | BK8: 103494.7209 | BL8: 117797.7374 | BM8: 134980.9577 | BN8: 53795.34712 | BO8: 43332.64074 | BP8: 0 | BQ8: 0 | BR8: 0 | BS8: 0 | BT8: 0 | BU8: 0 | BV8: 587285.0836
B9: Residential - Time of Use Interval Meter | C9: =Est2018DistRev!B9 -> Residential - Time of Use Interval Meter | D9: 51.008 | E9: 12.183 | F9: 0 | G9: 0 | H9: 0 | I9: 1.844 | J9: 0 | K9: 0 | L9: 0 | M9: 0 | N9: 0 | O9: 0 | P9: 0 | R9: =Est2018DistRev!D9 -> 44.355 | S9: =Est2018DistRev!E9 -> 12.269 | T9: =Est2018DistRev!F9 -> 0 | U9: =Est2018DistRev!G9 -> 0 | V9: =Est2018DistRev!H9 -> 0 | W9: =Est2018DistRev!I9 -> 1.863 | X9: =Est2018DistRev!J9 -> 0 | Y9: =Est2018DistRev!K9 -> 0 | Z9: =Est2018DistRev!L9 -> 0 | AA9: =Est2018DistRev!M9 -> 0 | AB9: =Est2018DistRev!N9 -> 0 | AC9: =Est2018DistRev!O9 -> 0 | AD9: =Est2018DistRev!P9 -> 0 | AF9: 15783.3079 | AG9: 38414734.81 | AH9: 0 | AI9: 0 | AJ9: 0 | AK9: 39759423.7 | AL9: 0 | AM9: 0 | AN9: 0 | AO9: 0 | AP9: 0 | AQ9: 0 | AR9: 0 | AT9: 805074.9695 | AU9: 4680067.142 | AV9: 0 | AW9: 0 | AX9: 0 | AY9: 733163.773 | AZ9: 0 | BA9: 0 | BB9: 0 | BC9: 0 | BD9: 0 | BE9: 0 | BF9: 0 | BG9: 6218305.885 | BI9: 700068.622 | BJ9: 4713103.814 | BK9: 0 | BL9: 0 | BM9: 0 | BN9: 740718.0635 | BO9: 0 | BP9: 0 | BQ9: 0 | BR9: 0 | BS9: 0 | BT9: 0 | BU9: 0 | BV9: 6153890.5
B10: Residential - TOU | C10: =Est2018DistRev!B10 -> Residential - TOU | D10: 86.193 | E10: 8.403 | F10: 0 | G10: 0 | H10: 0 | I10: 1.475 | J10: 0 | K10: 0 | L10: 0 | M10: 0 | N10: 0 | O10: 0 | P10: 0 | R10: =Est2018DistRev!D10 -> 78.357 | S10: =Est2018DistRev!E10 -> 8.69 | T10: =Est2018DistRev!F10 -> 0 | U10: =Est2018DistRev!G10 -> 0 | V10: =Est2018DistRev!H10 -> 0 | W10: =Est2018DistRev!I10 -> 1.519 | X10: =Est2018DistRev!J10 -> 0 | Y10: =Est2018DistRev!K10 -> 0 | Z10: =Est2018DistRev!L10 -> 0 | AA10: =Est2018DistRev!M10 -> 0 | AB10: =Est2018DistRev!N10 -> 0 | AC10: =Est2018DistRev!O10 -> 0 | AD10: =Est2018DistRev!P10 -> 0 | AF10: 1607.472743 | AG10: 6286480.773 | AH10: 0 | AI10: 0 | AJ10: 0 | AK10: 6884654.453 | AL10: 0 | AM10: 0 | AN10: 0 | AO10: 0 | AP10: 0 | AQ10: 0 | AR10: 0 | AT10: 138552.8981 | AU10: 528252.9793 | AV10: 0 | AW10: 0 | AX10: 0 | AY10: 101548.6532 | AZ10: 0 | BA10: 0 | BB10: 0 | BC10: 0 | BD10: 0 | BE10: 0 | BF10: 0 | BG10: 768354.5306 | BI10: 125956.7417 | BJ10: 546295.1791 | BK10: 0 | BL10: 0 | BM10: 0 | BN10: 104577.9011 | BO10: 0 | BP10: 0 | BQ10: 0 | BR10: 0 | BS10: 0 | BT10: 0 | BU10: 0 | BV10: 776829.822
B11: Residential - Off Peak Only | C11: =Est2018DistRev!B11 -> Residential - Off Peak Only | D11: 0 | E11: 0 | F11: 0 | G11: 0 | H11: 0 | I11: 1.7 | J11: 0 | K11: 0 | L11: 0 | M11: 0 | N11: 0 | O11: 0 | P11: 0 | R11: =Est2018DistRev!D11 -> 0 | S11: =Est2018DistRev!E11 -> 0 | T11: =Est2018DistRev!F11 -> 0 | U11: =Est2018DistRev!G11 -> 0 | V11: =Est2018DistRev!H11 -> 0 | W11: =Est2018DistRev!I11 -> 1.675 | X11: =Est2018DistRev!J11 -> 0 | Y11: =Est2018DistRev!K11 -> 0 | Z11: =Est2018DistRev!L11 -> 0 | AA11: =Est2018DistRev!M11 -> 0 | AB11: =Est2018DistRev!N11 -> 0 | AC11: =Est2018DistRev!O11 -> 0 | AD11: =Est2018DistRev!P11 -> 0 | AF11: 0 | AG11: 0 | AH11: 0 | AI11: 0 | AJ11: 0 | AK11: 35388865.33 | AL11: 0 | AM11: 0 | AN11: 0 | AO11: 0 | AP11: 0 | AQ11: 0 | AR11: 0 | AT11: 0 | AU11: 0 | AV11: 0 | AW11: 0 | AX11: 0 | AY11: 601610.7107 | AZ11: 0 | BA11: 0 | BB11: 0 | BC11: 0 | BD11: 0 | BE11: 0 | BF11: 0 | BG11: 601610.7107 | BI11: 0 | BJ11: 0 | BK11: 0 | BL11: 0 | BM11: 0 | BN11: 592763.4943 | BO11: 0 | BP11: 0 | BQ11: 0 | BR11: 0 | BS11: 0 | BT11: 0 | BU11: 0 | BV11: 592763.4943
B12: Small Business - General Purpose | C12: =Est2018DistRev!B12 -> Small Business - General Purpose | D12: 94.773 | E12: 9.021 | F12: 0 | G12: 0 | H12: 0 | I12: 0 | J12: 0 | K12: 0 | L12: 0 | M12: 0 | N12: 0 | O12: 0 | P12: 0 | R12: =Est2018DistRev!D12 -> 86.157 | S12: =Est2018DistRev!E12 -> 8.896 | T12: =Est2018DistRev!F12 -> 0 | U12: =Est2018DistRev!G12 -> 0 | V12: =Est2018DistRev!H12 -> 0 | W12: =Est2018DistRev!I12 -> 0 | X12: =Est2018DistRev!J12 -> 0 | Y12: =Est2018DistRev!K12 -> 0 | Z12: =Est2018DistRev!L12 -> 0 | AA12: =Est2018DistRev!M12 -> 0 | AB12: =Est2018DistRev!N12 -> 0 | AC12: =Est2018DistRev!O12 -> 0 | AD12: =Est2018DistRev!P12 -> 0 | AF12: 16330.65672 | AG12: 200365882 | AH12: 0 | AI12: 0 | AJ12: 0 | AK12: 0 | AL12: 0 | AM12: 0 | AN12: 0 | AO12: 0 | AP12: 0 | AQ12: 0 | AR12: 0 | AT12: 1547705.329 | AU12: 18075006.22 | AV12: 0 | AW12: 0 | AX12: 0 | AY12: 0 | AZ12: 0 | BA12: 0 | BB12: 0 | BC12: 0 | BD12: 0 | BE12: 0 | BF12: 0 | BG12: 19622711.55 | BI12: 1407000.391 | BJ12: 17824548.87 | BK12: 0 | BL12: 0 | BM12: 0 | BN12: 0 | BO12: 0 | BP12: 0 | BQ12: 0 | BR12: 0 | BS12: 0 | BT12: 0 | BU12: 0 | BV12: 19231549.26
B13: Small Business - General Purpose Demand | C13: =Est2018DistRev!B13 -> Small Business - General Purpose Demand | D13: 94.773 | E13: 7.1 | F13: 0 | G13: 0 | H13: 0 | J13: 0 | K13: 0 | L13: 0 | M13: 57.272 | N13: 0 | O13: 0 | P13: 0 | R13: =Est2018DistRev!D13 -> 86.157 | S13: =Est2018DistRev!E13 -> 7.002 | T13: =Est2018DistRev!F13 -> 0 | U13: =Est2018DistRev!G13 -> 0 | V13: =Est2018DistRev!H13 -> 0 | W13: =Est2018DistRev!I13 -> 0 | X13: =Est2018DistRev!J13 -> 0 | Y13: =Est2018DistRev!K13 -> 0 | Z13: =Est2018DistRev!L13 -> 0 | AA13: =Est2018DistRev!M13 -> 57.272 | AB13: =Est2018DistRev!N13 -> 0 | AC13: =Est2018DistRev!O13 -> 0 | AD13: =Est2018DistRev!P13 -> 0 | AF13: 1.001826222 | AG13: 0 | AH13: 0 | AI13: 0 | AJ13: 0 | AK13: 0 | AL13: 0 | AM13: 0 | AN13: 0 | AO13: 120.4626903 | AP13: 0 | AQ13: 0 | AR13: 0 | AT13: 94.94607653 | AU13: 0 | AV13: 0 | AW13: 0 | AX13: 0 | AY13: 0 | AZ13: 0 | BA13: 0 | BB13: 0 | BC13: 6899.1392 | BD13: 0 | BE13: 0 | BF13: 0 | BG13: 6994.085276 | BI13: 86.3143418 | BJ13: 0 | BK13: 0 | BL13: 0 | BM13: 0 | BN13: 0 | BO13: 0 | BP13: 0 | BQ13: 0 | BR13: 6899.1392 | BS13: 0 | BT13: 0 | BU13: 0 | BV13: 6985.453541
B14: Small Business - TOU Weekdays | C14: =Est2018DistRev!B14 -> Small Business - TOU Weekdays | D14: 141.843 | E14: 10.649 | F14: 0 | G14: 0 | H14: 0 | I14: 1.818 | J14: 0 | K14: 0 | L14: 0 | M14: 0 | N14: 0 | O14: 0 | P14: 0 | R14: =Est2018DistRev!D14 -> 128.948 | S14: =Est2018DistRev!E14 -> 10.502 | T14: =Est2018DistRev!F14 -> 0 | U14: =Est2018DistRev!G14 -> 0 | V14: =Est2018DistRev!H14 -> 0 | W14: =Est2018DistRev!I14 -> 1.791 | X14: =Est2018DistRev!J14 -> 0 | Y14: =Est2018DistRev!K14 -> 0 | Z14: =Est2018DistRev!L14 -> 0 | AA14: =Est2018DistRev!M14 -> 0 | AB14: =Est2018DistRev!N14 -> 0 | AC14: =Est2018DistRev!O14 -> 0 | AD14: =Est2018DistRev!P14 -> 0 | AF14: 7570.796506 | AG14: 164109568.5 | AH14: 0 | AI14: 0 | AJ14: 0 | AK14: 107036487.7 | AL14: 0 | AM14: 0 | AN14: 0 | AP14: 0 | AQ14: 0 | AR14: 0 | AT14: 1073864.489 | AU14: 17476027.95 | AV14: 0 | AW14: 0 | AX14: 0 | AY14: 1945923.347 | AZ14: 0 | BA14: 0 | BB14: 0 | BC14: 0 | BD14: 0 | BE14: 0 | BF14: 0 | BG14: 20495815.79 | BI14: 976239.0679 | BJ14: 17234786.88 | BK14: 0 | BL14: 0 | BM14: 0 | BN14: 1917023.495 | BO14: 0 | BP14: 0 | BQ14: 0 | BR14: 0 | BS14: 0 | BT14: 0 | BU14: 0 | BV14: 20128049.45
B15: Small Business - TOU Weekdays Demand | C15: =Est2018DistRev!B15 -> Small Business - TOU Weekdays Demand | D15: 209.147 | E15: 6.572 | F15: 0 | G15: 0 | H15: 0 | I15: 2.121 | J15: 0 | K15: 0 | L15: 0 | M15: 64.297 | N15: 0 | O15: 0 | P15: 0 | R15: =Est2018DistRev!D15 -> 171.432 | S15: =Est2018DistRev!E15 -> 6.481 | T15: =Est2018DistRev!F15 -> 0 | U15: =Est2018DistRev!G15 -> 0 | V15: =Est2018DistRev!H15 -> 0 | W15: =Est2018DistRev!I15 -> 2.09 | X15: =Est2018DistRev!J15 -> 0 | Y15: =Est2018DistRev!K15 -> 0 | Z15: =Est2018DistRev!L15 -> 0 | AA15: =Est2018DistRev!M15 -> 63.036 | AB15: =Est2018DistRev!N15 -> 0 | AC15: =Est2018DistRev!O15 -> 0 | AD15: =Est2018DistRev!P15 -> 0 | AF15: 724.0324079 | AG15: 73421991.06 | AH15: 0 | AI15: 0 | AJ15: 0 | AK15: 51078288.44 | AL15: 0 | AM15: 0 | AN15: 0 | AO15: 60952.52378 | AP15: 0 | AQ15: 0 | AR15: 0 | AT15: 151429.206 | AU15: 4825293.252 | AV15: 0 | AW15: 0 | AX15: 0 | AY15: 1083370.498 | AZ15: 0 | BA15: 0 | BB15: 0 | BC15: 3919064.422 | BD15: 0 | BE15: 0 | BF15: 0 | BG15: 9979157.378 | BI15: 124122.3238 | BJ15: 4758479.24 | BK15: 0 | BL15: 0 | BM15: 0 | BN15: 1067536.228 | BO15: 0 | BP15: 0 | BQ15: 0 | BR15: 3842203.289 | BS15: 0 | BT15: 0 | BU15: 0 | BV15: 9792341.081
B16: Small Business - TOU Opt out | C16: =Est2018DistRev!B16 -> Small Business - TOU Opt out | D16: 209.147 | E16: 10.649 | F16: 0 | G16: 0 | H16: 0 | I16: 1.818 | J16: 0 | K16: 0 | L16: 0 | M16: 0 | N16: 0 | O16: 0 | P16: 0 | R16: =Est2018DistRev!D16 -> 171.432 | S16: =Est2018DistRev!E16 -> 10.502 | T16: =Est2018DistRev!F16 -> 0 | U16: =Est2018DistRev!G16 -> 0 | V16: =Est2018DistRev!H16 -> 0 | W16: =Est2018DistRev!I16 -> 1.791 | X16: =Est2018DistRev!J16 -> 0 | Y16: =Est2018DistRev!K16 -> 0 | Z16: =Est2018DistRev!L16 -> 0 | AA16: =Est2018DistRev!M16 -> 0 | AB16: =Est2018DistRev!N16 -> 0 | AC16: =Est2018DistRev!O16 -> 0 | AD16: =Est2018DistRev!P16 -> 0 | AF16: 9 | AG16: 0 | AH16: 0 | AI16: 0 | AJ16: 0 | AK16: 0 | AL16: 0 | AM16: 0 | AN16: 0 | AP16: 0 | AQ16: 0 | AR16: 0 | AT16: 1882.323 | AU16: 0 | AV16: 0 | AW16: 0 | AX16: 0 | AY16: 0 | AZ16: 0 | BA16: 0 | BB16: 0 | BC16: 0 | BD16: 0 | BE16: 0 | BF16: 0 | BG16: 1882.323 | BI16: 1542.888 | BJ16: 0 | BK16: 0 | BL16: 0 | BM16: 0 | BN16: 0 | BO16: 0 | BP16: 0 | BQ16: 0 | BR16: 0 | BS16: 0 | BT16: 0 | BU16: 0 | BV16: 1542.888
B17: Small Business - TOU Extended | C17: =Est2018DistRev!B17 -> Small Business - TOU Extended | D17: 141.843 | E17: 9.38 | F17: 0 | G17: 0 | H17: 0 | I17: 1.97 | J17: 0 | K17: 0 | L17: 0 | M17: 0 | N17: 0 | O17: 0 | P17: 0 | R17: =Est2018DistRev!D17 -> 128.948 | S17: =Est2018DistRev!E17 -> 9.25 | T17: =Est2018DistRev!F17 -> 0 | U17: =Est2018DistRev!G17 -> 0 | V17: =Est2018DistRev!H17 -> 0 | W17: =Est2018DistRev!I17 -> 1.941 | X17: =Est2018DistRev!J17 -> 0 | Y17: =Est2018DistRev!K17 -> 0 | Z17: =Est2018DistRev!L17 -> 0 | AA17: =Est2018DistRev!M17 -> 0 | AB17: =Est2018DistRev!N17 -> 0 | AC17: =Est2018DistRev!O17 -> 0 | AD17: =Est2018DistRev!P17 -> 0 | AF17: 2204.800723 | AG17: 44161400.27 | AH17: 0 | AI17: 0 | AJ17: 0 | AK17: 13513510.64 | AL17: 0 | AM17: 0 | AN17: 0 | AP17: 0 | AQ17: 0 | AR17: 0 | AT17: 312735.5489 | AU17: 4142339.345 | AV17: 0 | AW17: 0 | AX17: 0 | AY17: 266216.1596 | AZ17: 0 | BA17: 0 | BB17: 0 | BC17: 0 | BD17: 0 | BE17: 0 | BF17: 0 | BG17: 4721291.053 | BI17: 284304.6436 | BJ17: 4084929.525 | BK17: 0 | BL17: 0 | BM17: 0 | BN17: 262297.2415 | BO17: 0 | BP17: 0 | BQ17: 0 | BR17: 0 | BS17: 0 | BT17: 0 | BU17: 0 | BV17: 4631531.41
B18: Small Business - TOU Extended Demand | C18: =Est2018DistRev!B18 -> Small Business - TOU Extended Demand | D18: 209.147 | E18: 4.945 | F18: 0 | G18: 0 | H18: 0 | I18: 2.261 | J18: 0 | K18: 0 | L18: 0 | M18: 64.297 | N18: 0 | O18: 0 | P18: 0 | R18: =Est2018DistRev!D18 -> 171.432 | S18: =Est2018DistRev!E18 -> 4.877 | T18: =Est2018DistRev!F18 -> 0 | U18: =Est2018DistRev!G18 -> 0 | V18: =Est2018DistRev!H18 -> 0 | W18: =Est2018DistRev!I18 -> 2.228 | X18: =Est2018DistRev!J18 -> 0 | Y18: =Est2018DistRev!K18 -> 0 | Z18: =Est2018DistRev!L18 -> 0 | AA18: =Est2018DistRev!M18 -> 63.036 | AB18: =Est2018DistRev!N18 -> 0 | AC18: =Est2018DistRev!O18 -> 0 | AD18: =Est2018DistRev!P18 -> 0 | AF18: 113.8928135 | AG18: 17007407.77 | AH18: 0 | AI18: 0 | AJ18: 0 | AK18: 5001051.888 | AL18: 0 | AM18: 0 | AN18: 0 | AO18: 10805.42002 | AP18: 0 | AQ18: 0 | AR18: 0 | AT18: 23820.34027 | AU18: 841016.3145 | AV18: 0 | AW18: 0 | AX18: 0 | AY18: 113073.7832 | AZ18: 0 | BA18: 0 | BB18: 0 | BC18: 694756.091 | BD18: 0 | BE18: 0 | BF18: 0 | BG18: 1672666.529 | BI18: 19524.87281 | BJ18: 829451.2772 | BK18: 0 | BL18: 0 | BM18: 0 | BN18: 111423.4361 | BO18: 0 | BP18: 0 | BQ18: 0 | BR18: 681130.4563 | BS18: 0 | BT18: 0 | BU18: 0 | BV18: 1641530.042
B19: Small Business - Unmetered Supply | C19: =Est2018DistRev!B19 -> Small Business - Unmetered Supply | D19: 0 | E19: 10.121 | F19: 0 | G19: 0 | H19: 0 | I19: 1.888 | J19: 0 | K19: 0 | L19: 0 | M19: 0 | N19: 0 | O19: 0 | P19: 0 | R19: =Est2018DistRev!D19 -> 0 | S19: =Est2018DistRev!E19 -> 9.981 | T19: =Est2018DistRev!F19 -> 0 | U19: =Est2018DistRev!G19 -> 0 | V19: =Est2018DistRev!H19 -> 0 | W19: =Est2018DistRev!I19 -> 1.86 | X19: =Est2018DistRev!J19 -> 0 | Y19: =Est2018DistRev!K19 -> 0 | Z19: =Est2018DistRev!L19 -> 0 | AA19: =Est2018DistRev!M19 -> 0 | AB19: =Est2018DistRev!N19 -> 0 | AC19: =Est2018DistRev!O19 -> 0 | AD19: =Est2018DistRev!P19 -> 0 | AG19: 11563166.52 | AH19: 0 | AI19: 0 | AJ19: 0 | AK19: 25740120.96 | AL19: 0 | AM19: 0 | AN19: 0 | AP19: 0 | AQ19: 0 | AR19: 0 | AT19: 0 | AU19: 1170308.083 | AV19: 0 | AW19: 0 | AX19: 0 | AY19: 485973.4837 | AZ19: 0 | BA19: 0 | BB19: 0 | BC19: 0 | BD19: 0 | BE19: 0 | BF19: 0 | BG19: 1656281.567 | BI19: 0 | BJ19: 1154119.65 | BK19: 0 | BL19: 0 | BM19: 0 | BN19: 478766.2498 | BO19: 0 | BP19: 0 | BQ19: 0 | BR19: 0 | BS19: 0 | BT19: 0 | BU19: 0 | BV19: 1632885.9
B20: Large Business - LV 0.4 - 0.8 GWh | C20: =Est2018DistRev!B20 -> Large Business - LV 0.4 - 0.8 GWh | D20: 2231.165 | E20: 1.968 | F20: 0 | G20: 0 | H20: 0 | I20: 0.639 | J20: 0 | K20: 0 | L20: 0 | M20: 96.639 | N20: 0 | O20: 0 | P20: 0 | R20: =Est2018DistRev!D20 -> 2166.18 | S20: =Est2018DistRev!E20 -> 1.914 | T20: =Est2018DistRev!F20 -> 0 | U20: =Est2018DistRev!G20 -> 0 | V20: =Est2018DistRev!H20 -> 0 | W20: =Est2018DistRev!I20 -> 0.626 | X20: =Est2018DistRev!J20 -> 0 | Y20: =Est2018DistRev!K20 -> 0 | Z20: =Est2018DistRev!L20 -> 0 | AA20: =Est2018DistRev!M20 -> 94.651 | AB20: =Est2018DistRev!N20 -> 0 | AC20: =Est2018DistRev!O20 -> 0 | AD20: =Est2018DistRev!P20 -> 0 | AF20: 787.9057242 | AG20: 177669042.6 | AH20: 0 | AI20: 0 | AJ20: 0 | AK20: 114127368.6 | AL20: 0 | AM20: 0 | AN20: 0 | AO20: 148592.5231 | AP20: 0 | AQ20: 0 | AR20: 0 | AT20: 1757947.675 | AU20: 3496526.758 | AV20: 0 | AW20: 0 | AX20: 0 | AY20: 729273.8852 | AZ20: 0 | BA20: 0 | BB20: 0 | BC20: 14359832.84 | BD20: 0 | BE20: 0 | BF20: 0 | BG20: 20343581.16 | BI20: 1706745.622 | BJ20: 3400585.475 | BK20: 0 | BL20: 0 | BM20: 0 | BN20: 714437.3273 | BO20: 0 | BP20: 0 | BQ20: 0 | BR20: 14064430.9 | BS20: 0 | BT20: 0 | BU20: 0 | BV20: 19886199.33
B21: Large Business – LVEN Annual Consumption <= 0.8 GWh | C21: =Est2018DistRev!B21 -> Large Business – LVEN Annual Consumption <= 0.8 GWh | D21: 2231.165 | E21: 1.985 | F21: 0 | G21: 0 | H21: 0 | I21: 0.639 | J21: 0 | K21: 0 | L21: 0 | M21: 109.033 | N21: 0 | O21: 0 | P21: 0 | R21: =Est2018DistRev!D21 -> 2166.18 | S21: =Est2018DistRev!E21 -> 1.931 | T21: =Est2018DistRev!F21 -> 0 | U21: =Est2018DistRev!G21 -> 0 | V21: =Est2018DistRev!H21 -> 0 | W21: =Est2018DistRev!I21 -> 0.626 | X21: =Est2018DistRev!J21 -> 0 | Y21: =Est2018DistRev!K21 -> 0 | Z21: =Est2018DistRev!L21 -> 0 | AA21: =Est2018DistRev!M21 -> 106.79 | AB21: =Est2018DistRev!N21 -> 0 | AC21: =Est2018DistRev!O21 -> 0 | AD21: =Est2018DistRev!P21 -> 0 | AF21: 69.51925736 | AG21: 26628111.53 | AH21: 0 | AI21: 0 | AJ21: 0 | AK21: 18394205.09 | AL21: 0 | AM21: 0 | AN21: 0 | AO21: 12631.46 | AP21: 0 | AQ21: 0 | AR21: 0 | AT21: 155108.9339 | AU21: 528568.0139 | AV21: 0 | AW21: 0 | AX21: 0 | AY21: 117538.9705 | AZ21: 0 | BA21: 0 | BB21: 0 | BC21: 1377245.978 | BD21: 0 | BE21: 0 | BF21: 0 | BG21: 2178461.896 | BI21: 150591.2249 | BJ21: 514188.8336 | BK21: 0 | BL21: 0 | BM21: 0 | BN21: 115147.7238 | BO21: 0 | BP21: 0 | BQ21: 0 | BR21: 1348913.613 | BS21: 0 | BT21: 0 | BU21: 0 | BV21: 2128841.396
B22: Large Business - LV 0.8+ - 2.2 GWh | C22: =Est2018DistRev!B22 -> Large Business - LV 0.8+ - 2.2 GWh | D22: 3905.456 | E22: 1.343 | F22: 0 | G22: 0 | H22: 0 | I22: 0.628 | J22: 0 | K22: 0 | L22: 0 | M22: 89.327 | N22: 0 | O22: 0 | P22: 0 | R22: =Est2018DistRev!D22 -> 3791.705 | S22: =Est2018DistRev!E22 -> 1.306 | T22: =Est2018DistRev!F22 -> 0 | U22: =Est2018DistRev!G22 -> 0 | V22: =Est2018DistRev!H22 -> 0 | W22: =Est2018DistRev!I22 -> 0.616 | X22: =Est2018DistRev!J22 -> 0 | Y22: =Est2018DistRev!K22 -> 0 | Z22: =Est2018DistRev!L22 -> 0 | AA22: =Est2018DistRev!M22 -> 87.49 | AB22: =Est2018DistRev!N22 -> 0 | AC22: =Est2018DistRev!O22 -> 0 | AD22: =Est2018DistRev!P22 -> 0 | AF22: 378.7002524 | AG22: 248248736.1 | AH22: 0 | AI22: 0 | AJ22: 0 | AK22: 171548799.9 | AL22: 0 | AM22: 0 | AN22: 0 | AO22: 177995.9966 | AP22: 0 | AQ22: 0 | AR22: 0 | AT22: 1478997.173 | AU22: 3333980.526 | AV22: 0 | AW22: 0 | AX22: 0 | AY22: 1077326.463 | AZ22: 0 | BA22: 0 | BB22: 0 | BC22: 15899848.39 | BD22: 0 | BE22: 0 | BF22: 0 | BG22: 21790152.55 | BI22: 1435919.641 | BJ22: 3242128.494 | BK22: 0 | BL22: 0 | BM22: 0 | BN22: 1056740.607 | BO22: 0 | BP22: 0 | BQ22: 0 | BR22: 15572869.74 | BS22: 0 | BT22: 0 | BU22: 0 | BV22: 21307658.48
B23: Large Business - LVEN 0.8+ - 2.2 GWh | C23: =Est2018DistRev!B23 -> Large Business - LVEN 0.8+ - 2.2 GWh | D23: 3905.456 | E23: 1.342 | F23: 0 | G23: 0 | H23: 0 | I23: 0.628 | J23: 0 | K23: 0 | L23: 0 | M23: 98.268 | N23: 0 | O23: 0 | P23: 0 | R23: =Est2018DistRev!D23 -> 3791.705 | S23: =Est2018DistRev!E23 -> 1.305 | T23: =Est2018DistRev!F23 -> 0 | U23: =Est2018DistRev!G23 -> 0 | V23: =Est2018DistRev!H23 -> 0 | W23: =Est2018DistRev!I23 -> 0.616 | X23: =Est2018DistRev!J23 -> 0 | Y23: =Est2018DistRev!K23 -> 0 | Z23: =Est2018DistRev!L23 -> 0 | AA23: =Est2018DistRev!M23 -> 96.247 | AB23: =Est2018DistRev!N23 -> 0 | AC23: =Est2018DistRev!O23 -> 0 | AD23: =Est2018DistRev!P23 -> 0 | AF23: 43.7184462 | AG23: 42504195.74 | AH23: 0 | AI23: 0 | AJ23: 0 | AK23: 27960118.15 | AL23: 0 | AM23: 0 | AN23: 0 | AO23: 15557.7673 | AP23: 0 | AQ23: 0 | AR23: 0 | AT23: 170740.468 | AU23: 570406.3069 | AV23: 0 | AW23: 0 | AX23: 0 | AY23: 175589.542 | AZ23: 0 | BA23: 0 | BB23: 0 | BC23: 1528830.677 | BD23: 0 | BE23: 0 | BF23: 0 | BG23: 2445566.994 | BI23: 165767.4511 | BJ23: 554679.7544 | BK23: 0 | BL23: 0 | BM23: 0 | BN23: 172234.3278 | BO23: 0 | BP23: 0 | BQ23: 0 | BR23: 1497388.429 | BS23: 0 | BT23: 0 | BU23: 0 | BV23: 2390069.963
B24: Large Business - LV 2.2+ - 6.0 GWh | C24: =Est2018DistRev!B24 -> Large Business - LV 2.2+ - 6.0 GWh | D24: 5990.235 | E24: 1.229 | F24: 0 | G24: 0 | H24: 0 | I24: 0.511 | J24: 0 | K24: 0 | L24: 0 | M24: 88.362 | N24: 0 | O24: 0 | P24: 0 | R24: =Est2018DistRev!D24 -> 5445.668 | S24: =Est2018DistRev!E24 -> 1.196 | T24: =Est2018DistRev!F24 -> 0 | U24: =Est2018DistRev!G24 -> 0 | V24: =Est2018DistRev!H24 -> 0 | W24: =Est2018DistRev!I24 -> 0.501 | X24: =Est2018DistRev!J24 -> 0 | Y24: =Est2018DistRev!K24 -> 0 | Z24: =Est2018DistRev!L24 -> 0 | AA24: =Est2018DistRev!M24 -> 86.545 | AB24: =Est2018DistRev!N24 -> 0 | AC24: =Est2018DistRev!O24 -> 0 | AD24: =Est2018DistRev!P24 -> 0 | AF24: 68.09921351 | AG24: 112557828.5 | AH24: 0 | AI24: 0 | AJ24: 0 | AK24: 85103892.83 | AL24: 0 | AM24: 0 | AN24: 0 | AO24: 68062.284 | AP24: 0 | AQ24: 0 | AR24: 0 | AT24: 407930.2922 | AU24: 1383335.712 | AV24: 0 | AW24: 0 | AX24: 0 | AY24: 434880.8923 | AZ24: 0 | BA24: 0 | BB24: 0 | BC24: 6014119.539 | BD24: 0 | BE24: 0 | BF24: 0 | BG24: 8240266.436 | BI24: 370845.7078 | BJ24: 1346191.629 | BK24: 0 | BL24: 0 | BM24: 0 | BN24: 426370.5031 | BO24: 0 | BP24: 0 | BQ24: 0 | BR24: 5890450.369 | BS24: 0 | BT24: 0 | BU24: 0 | BV24: 8033858.208
B25: Large Business - LVEN 2.2+ GWh | C25: =Est2018DistRev!B25 -> Large Business - LVEN 2.2+ GWh | D25: 5990.235 | E25: 1.229 | F25: 0 | G25: 0 | H25: 0 | I25: 0.511 | J25: 0 | K25: 0 | L25: 0 | M25: 93.317 | N25: 0 | O25: 0 | P25: 0 | R25: =Est2018DistRev!D25 -> 5445.668 | S25: =Est2018DistRev!E25 -> 1.196 | T25: =Est2018DistRev!F25 -> 0 | U25: =Est2018DistRev!G25 -> 0 | V25: =Est2018DistRev!H25 -> 0 | W25: =Est2018DistRev!I25 -> 0.501 | X25: =Est2018DistRev!J25 -> 0 | Y25: =Est2018DistRev!K25 -> 0 | Z25: =Est2018DistRev!L25 -> 0 | AA25: =Est2018DistRev!M25 -> 91.398 | AB25: =Est2018DistRev!N25 -> 0 | AC25: =Est2018DistRev!O25 -> 0 | AD25: =Est2018DistRev!P25 -> 0 | AF25: 23.7110561 | AG25: 46012309.97 | AH25: 0 | AI25: 0 | AJ25: 0 | AK25: 33126706.47 | AL25: 0 | AM25: 0 | AN25: 0 | AO25: 16068.8071 | AP25: 0 | AQ25: 0 | AR25: 0 | AT25: 142034.7981 | AU25: 565491.2895 | AV25: 0 | AW25: 0 | AX25: 0 | AY25: 169277.4701 | AZ25: 0 | BA25: 0 | BB25: 0 | BC25: 1499492.872 | BD25: 0 | BE25: 0 | BF25: 0 | BG25: 2376296.43 | BI25: 129122.5395 | BJ25: 550307.2272 | BK25: 0 | BL25: 0 | BM25: 0 | BN25: 165964.7994 | BO25: 0 | BP25: 0 | BQ25: 0 | BR25: 1468656.831 | BS25: 0 | BT25: 0 | BU25: 0 | BV25: 2314051.397
B26: Large Business - LVMS 2.2+ - 6.0 GWh | C26: =Est2018DistRev!B26 -> Large Business - LVMS 2.2+ - 6.0 GWh | D26: 3530.574 | E26: 1.216 | F26: 0 | G26: 0 | H26: 0 | I26: 0.511 | J26: 0 | K26: 0 | L26: 0 | M26: 59.988 | N26: 0 | O26: 0 | P26: 0 | R26: =Est2018DistRev!D26 -> 2942.145 | S26: =Est2018DistRev!E26 -> 1.183 | T26: =Est2018DistRev!F26 -> 0 | U26: =Est2018DistRev!G26 -> 0 | V26: =Est2018DistRev!H26 -> 0 | W26: =Est2018DistRev!I26 -> 0.501 | X26: =Est2018DistRev!J26 -> 0 | Y26: =Est2018DistRev!K26 -> 0 | Z26: =Est2018DistRev!L26 -> 0 | AA26: =Est2018DistRev!M26 -> 58.754 | AB26: =Est2018DistRev!N26 -> 0 | AC26: =Est2018DistRev!O26 -> 0 | AD26: =Est2018DistRev!P26 -> 0 | AF26: 9.489905592 | AG26: 10547630.32 | AH26: 0 | AI26: 0 | AJ26: 0 | AK26: 8508704.15 | AL26: 0 | AM26: 0 | AN26: 0 | AO26: 8214.0472 | AP26: 0 | AQ26: 0 | AR26: 0 | AT26: 33504.81395 | AU26: 128259.1847 | AV26: 0 | AW26: 0 | AX26: 0 | AY26: 43479.47821 | AZ26: 0 | BA26: 0 | BB26: 0 | BC26: 492744.2634 | BD26: 0 | BE26: 0 | BF26: 0 | BG26: 697987.7403 | BI26: 27920.67829 | BJ26: 124778.4667 | BK26: 0 | BL26: 0 | BM26: 0 | BN26: 42628.60779 | BO26: 0 | BP26: 0 | BQ26: 0 | BR26: 482608.1292 | BS26: 0 | BT26: 0 | BU26: 0 | BV26: 677935.8819
B27: Large Business - LV 6.0+ GWh | C27: =Est2018DistRev!B27 -> Large Business - LV 6.0+ GWh | D27: 8210.417 | E27: 1.194 | F27: 0 | G27: 0 | H27: 0 | I27: 0.455 | J27: 0 | K27: 0 | L27: 0 | M27: 84.863 | N27: 0 | O27: 0 | P27: 0 | R27: =Est2018DistRev!D27 -> 7464.015 | S27: =Est2018DistRev!E27 -> 1.161 | T27: =Est2018DistRev!F27 -> 0 | U27: =Est2018DistRev!G27 -> 0 | V27: =Est2018DistRev!H27 -> 0 | W27: =Est2018DistRev!I27 -> 0.446 | X27: =Est2018DistRev!J27 -> 0 | Y27: =Est2018DistRev!K27 -> 0 | Z27: =Est2018DistRev!L27 -> 0 | AA27: =Est2018DistRev!M27 -> 83.118 | AB27: =Est2018DistRev!N27 -> 0 | AC27: =Est2018DistRev!O27 -> 0 | AD27: =Est2018DistRev!P27 -> 0 | AF27: 19.94934005 | AG27: 53512172.17 | AH27: 0 | AI27: 0 | AJ27: 0 | AK27: 44845318.59 | AL27: 0 | AM27: 0 | AN27: 0 | AO27: 24090.3584 | AP27: 0 | AQ27: 0 | AR27: 0 | AT27: 163792.4007 | AU27: 638935.3357 | AV27: 0 | AW27: 0 | AX27: 0 | AY27: 204046.1996 | AZ27: 0 | BA27: 0 | BB27: 0 | BC27: 2044380.085 | BD27: 0 | BE27: 0 | BF27: 0 | BG27: 3051154.021 | BI27: 148902.1734 | BJ27: 621276.3189 | BK27: 0 | BL27: 0 | BM27: 0 | BN27: 200010.1209 | BO27: 0 | BP27: 0 | BQ27: 0 | BR27: 2002342.409 | BS27: 0 | BT27: 0 | BU27: 0 | BV27: 2972531.023
B28: Large Business - LVMS 6.0+ GWh | C28: =Est2018DistRev!B28 -> Large Business - LVMS 6.0+ GWh | D28: 4768.3 | E28: 1.194 | F28: 0 | G28: 0 | H28: 0 | I28: 0.455 | J28: 0 | K28: 0 | L28: 0 | M28: 60.09 | N28: 0 | O28: 0 | P28: 0 | R28: =Est2018DistRev!D28 -> 3973.583 | S28: =Est2018DistRev!E28 -> 1.161 | T28: =Est2018DistRev!F28 -> 0 | U28: =Est2018DistRev!G28 -> 0 | V28: =Est2018DistRev!H28 -> 0 | W28: =Est2018DistRev!I28 -> 0.446 | X28: =Est2018DistRev!J28 -> 0 | Y28: =Est2018DistRev!K28 -> 0 | Z28: =Est2018DistRev!L28 -> 0 | AA28: =Est2018DistRev!M28 -> 58.854 | AB28: =Est2018DistRev!N28 -> 0 | AC28: =Est2018DistRev!O28 -> 0 | AD28: =Est2018DistRev!P28 -> 0 | AF28: 31.26710731 | AG28: 45265727.44 | AH28: 0 | AI28: 0 | AJ28: 0 | AK28: 35236918.99 | AL28: 0 | AM28: 0 | AN28: 0 | AO28: 31405.6672 | AP28: 0 | AQ28: 0 | AR28: 0 | AT28: 149090.9478 | AU28: 540472.7856 | AV28: 0 | AW28: 0 | AX28: 0 | AY28: 160327.9814 | AZ28: 0 | BA28: 0 | BB28: 0 | BC28: 1887166.542 | BD28: 0 | BE28: 0 | BF28: 0 | BG28: 2737058.257 | BI28: 124242.4461 | BJ28: 525535.0956 | BK28: 0 | BL28: 0 | BM28: 0 | BN28: 157156.6587 | BO28: 0 | BP28: 0 | BQ28: 0 | BR28: 1848349.137 | BS28: 0 | BT28: 0 | BU28: 0 | BV28: 2655283.338
B29: Large Business - HV | C29: =Est2018DistRev!B29 -> Large Business - HV | D29: 6069.36 | E29: 0.797 | F29: 0 | G29: 0 | H29: 0 | I29: 0.237 | J29: 0 | K29: 0 | L29: 0 | M29: 71.142 | N29: 0 | O29: 0 | P29: 0 | R29: =Est2018DistRev!D29 -> 4046.24 | S29: =Est2018DistRev!E29 -> 0.797 | T29: =Est2018DistRev!F29 -> 0 | U29: =Est2018DistRev!G29 -> 0 | V29: =Est2018DistRev!H29 -> 0 | W29: =Est2018DistRev!I29 -> 0.237 | X29: =Est2018DistRev!J29 -> 0 | Y29: =Est2018DistRev!K29 -> 0 | Z29: =Est2018DistRev!L29 -> 0 | AA29: =Est2018DistRev!M29 -> 69.679 | AB29: =Est2018DistRev!N29 -> 0 | AC29: =Est2018DistRev!O29 -> 0 | AD29: =Est2018DistRev!P29 -> 0 | AF29: 82 | AG29: 234092242.4 | AH29: 0 | AI29: 0 | AJ29: 0 | AK29: 185725976.8 | AL29: 0 | AM29: 0 | AN29: 0 | AO29: 172015.5139 | AP29: 0 | AQ29: 0 | AR29: 0 | AT29: 497687.52 | AU29: 1865715.172 | AV29: 0 | AW29: 0 | AX29: 0 | AY29: 440170.5651 | AZ29: 0 | BA29: 0 | BB29: 0 | BC29: 12237527.69 | BD29: 0 | BE29: 0 | BF29: 0 | BG29: 15041100.95 | BI29: 331791.68 | BJ29: 1865715.172 | BK29: 0 | BL29: 0 | BM29: 0 | BN29: 440170.5651 | BO29: 0 | BP29: 0 | BQ29: 0 | BR29: 11985868.99 | BS29: 0 | BT29: 0 | BU29: 0 | BV29: 14623546.41
B30: Large Business – HVEN | C30: =Est2018DistRev!B30 -> Large Business – HVEN | D30: 6069.36 | E30: 0.8 | F30: 0 | G30: 0 | H30: 0 | I30: 0.237 | J30: 0 | K30: 0 | L30: 0 | M30: 73.298 | N30: 0 | O30: 0 | P30: 0 | R30: =Est2018DistRev!D30 -> 4046.24 | S30: =Est2018DistRev!E30 -> 0.8 | T30: =Est2018DistRev!F30 -> 0 | U30: =Est2018DistRev!G30 -> 0 | V30: =Est2018DistRev!H30 -> 0 | W30: =Est2018DistRev!I30 -> 0.237 | X30: =Est2018DistRev!J30 -> 0 | Y30: =Est2018DistRev!K30 -> 0 | Z30: =Est2018DistRev!L30 -> 0 | AA30: =Est2018DistRev!M30 -> 71.79 | AB30: =Est2018DistRev!N30 -> 0 | AC30: =Est2018DistRev!O30 -> 0 | AD30: =Est2018DistRev!P30 -> 0 | AF30: 2 | AG30: 19354907.87 | AH30: 0 | AI30: 0 | AJ30: 0 | AK30: 15176809.37 | AL30: 0 | AM30: 0 | AN30: 0 | AO30: 3213.3352 | AP30: 0 | AQ30: 0 | AR30: 0 | AT30: 12138.72 | AU30: 154839.2629 | AV30: 0 | AW30: 0 | AX30: 0 | AY30: 35969.03822 | AZ30: 0 | BA30: 0 | BB30: 0 | BC30: 235531.0435 | BD30: 0 | BE30: 0 | BF30: 0 | BG30: 438478.0646 | BI30: 8092.48 | BJ30: 154839.2629 | BK30: 0 | BL30: 0 | BM30: 0 | BN30: 35969.03822 | BO30: 0 | BP30: 0 | BQ30: 0 | BR30: 230685.334 | BS30: 0 | BT30: 0 | BU30: 0 | BV30: 429586.1151
B31: Large Business - HVRF | C31: =Est2018DistRev!B31 -> Large Business - HVRF | D31: 6069.36 | E31: 0.789 | F31: 0 | G31: 0 | H31: 0 | I31: 0.237 | J31: 0 | K31: 0 | L31: 0 | M31: 65.37 | N31: 0 | O31: 0 | P31: 0 | R31: =Est2018DistRev!D31 -> 4046.24 | S31: =Est2018DistRev!E31 -> 0.789 | T31: =Est2018DistRev!F31 -> 0 | U31: =Est2018DistRev!G31 -> 0 | V31: =Est2018DistRev!H31 -> 0 | W31: =Est2018DistRev!I31 -> 0.237 | X31: =Est2018DistRev!J31 -> 0 | Y31: =Est2018DistRev!K31 -> 0 | Z31: =Est2018DistRev!L31 -> 0 | AA31: =Est2018DistRev!M31 -> 64.025 | AB31: =Est2018DistRev!N31 -> 0 | AC31: =Est2018DistRev!O31 -> 0 | AD31: =Est2018DistRev!P31 -> 0 | AF31: 4.649315068 | AG31: 47442355.76 | AH31: 0 | AI31: 0 | AJ31: 0 | AK31: 41773511.2 | AL31: 0 | AM31: 0 | AN31: 0 | AO31: 26423.3271 | AP31: 0 | AQ31: 0 | AR31: 0 | AT31: 28218.3669 | AU31: 374320.1869 | AV31: 0 | AW31: 0 | AX31: 0 | AY31: 99003.22153 | AZ31: 0 | BA31: 0 | BB31: 0 | BC31: 1727292.893 | BD31: 0 | BE31: 0 | BF31: 0 | BG31: 2228834.668 | BI31: 18812.2446 | BJ31: 374320.1869 | BK31: 0 | BL31: 0 | BM31: 0 | BN31: 99003.22153 | BO31: 0 | BP31: 0 | BQ31: 0 | BR31: 1691753.518 | BS31: 0 | BT31: 0 | BU31: 0 | BV31: 2183889.171
B32: Large Business - HV Ann Cons >= 55GWh | C32: =Est2018DistRev!B32 -> Large Business - HV Ann Cons >= 55GWh | D32: 5669.403 | E32: 0.761 | F32: 0 | G32: 0 | H32: 0 | I32: 0.184 | J32: 0 | K32: 0 | L32: 0 | M32: 63.119 | N32: 0 | O32: 0 | P32: 0 | R32: =Est2018DistRev!D32 -> 3779.602 | S32: =Est2018DistRev!E32 -> 0.761 | T32: =Est2018DistRev!F32 -> 0 | U32: =Est2018DistRev!G32 -> 0 | V32: =Est2018DistRev!H32 -> 0 | W32: =Est2018DistRev!I32 -> 0.184 | X32: =Est2018DistRev!J32 -> 0 | Y32: =Est2018DistRev!K32 -> 0 | Z32: =Est2018DistRev!L32 -> 0 | AA32: =Est2018DistRev!M32 -> 61.821 | AB32: =Est2018DistRev!N32 -> 0 | AC32: =Est2018DistRev!O32 -> 0 | AD32: =Est2018DistRev!P32 -> 0 | AF32: 1.084931507 | AG32: 24210050.04 | AH32: 0 | AI32: 0 | AJ32: 0 | AK32: 21527851.13 | AL32: 0 | AM32: 0 | AN32: 0 | AO32: 11217.80112 | AP32: 0 | AQ32: 0 | AR32: 0 | AT32: 6150.91394 | AU32: 184238.4808 | AV32: 0 | AW32: 0 | AX32: 0 | AY32: 39611.24607 | AZ32: 0 | BA32: 0 | BB32: 0 | BC32: 708056.3888 | BD32: 0 | BE32: 0 | BF32: 0 | BG32: 938057.0296 | BI32: 4100.609293 | BJ32: 184238.4808 | BK32: 0 | BL32: 0 | BM32: 0 | BN32: 39611.24607 | BO32: 0 | BP32: 0 | BQ32: 0 | BR32: 693495.683 | BS32: 0 | BT32: 0 | BU32: 0 | BV32: 921446.0191
B33: Large Business - Subtransmission | C33: =Est2018DistRev!B33 -> Large Business - Subtransmission | D33: 39040.5 | E33: 0.149 | F33: 0 | G33: 0 | H33: 0 | I33: 0.045 | J33: 0 | K33: 0 | L33: 0 | M33: 19.514 | N33: 0 | O33: 0 | P33: 0 | R33: =Est2018DistRev!D33 -> 28918.889 | S33: =Est2018DistRev!E33 -> 0.146 | T33: =Est2018DistRev!F33 -> 0 | U33: =Est2018DistRev!G33 -> 0 | V33: =Est2018DistRev!H33 -> 0 | W33: =Est2018DistRev!I33 -> 0.044 | X33: =Est2018DistRev!J33 -> 0 | Y33: =Est2018DistRev!K33 -> 0 | Z33: =Est2018DistRev!L33 -> 0 | AA33: =Est2018DistRev!M33 -> 19.226 | AB33: =Est2018DistRev!N33 -> 0 | AC33: =Est2018DistRev!O33 -> 0 | AD33: =Est2018DistRev!P33 -> 0 | AE33: =Est2018DistRev!Q33 -> 0 | AF33: 2 | AG33: 110447526.3 | AH33: 0 | AI33: 0 | AJ33: 0 | AK33: 119100805.6 | AL33: 0 | AM33: 0 | AN33: 0 | AO33: 39635.49 | AP33: 0 | AQ33: 0 | AR33: 0 | AT33: 78081 | AU33: 164566.8142 | AV33: 0 | AW33: 0 | AX33: 0 | AY33: 53595.3625 | AZ33: 0 | BA33: 0 | BB33: 0 | BC33: 773446.9519 | BD33: 0 | BE33: 0 | BF33: 0 | BG33: 1069690.129 | BI33: 57837.778 | BJ33: 161253.3884 | BK33: 0 | BL33: 0 | BM33: 0 | BN33: 52404.35444 | BO33: 0 | BP33: 0 | BQ33: 0 | BR33: 762031.9307 | BS33: 0 | BT33: 0 | BU33: 0 | BV33: 1033527.452
B34: Large Business - Subtransmission MA | C34: =Est2018DistRev!B34 -> Large Business - Subtransmission MA | D34: 39040.5 | E34: 0.149 | F34: 0 | G34: 0 | H34: 0 | I34: 0.045 | J34: 0 | K34: 0 | L34: 0 | M34: 19.595 | N34: 0 | O34: 0 | P34: 0 | R34: =Est2018DistRev!D34 -> 28918.889 | S34: =Est2018DistRev!E34 -> 0.146 | T34: =Est2018DistRev!F34 -> 0 | U34: =Est2018DistRev!G34 -> 0 | V34: =Est2018DistRev!H34 -> 0 | W34: =Est2018DistRev!I34 -> 0.044 | X34: =Est2018DistRev!J34 -> 0 | Y34: =Est2018DistRev!K34 -> 0 | Z34: =Est2018DistRev!L34 -> 0 | AA34: =Est2018DistRev!M34 -> 19.305 | AB34: =Est2018DistRev!N34 -> 0 | AC34: =Est2018DistRev!O34 -> 0 | AD34: =Est2018DistRev!P34 -> 0 | AE34: =Est2018DistRev!Q34 -> 0 | AF34: 1 | AG34: 68232338.71 | AH34: 0 | AI34: 0 | AJ34: 0 | AK34: 67928284.49 | AL34: 0 | AM34: 0 | AN34: 0 | AO34: 42484 | AP34: 0 | AQ34: 0 | AR34: 0 | AT34: 39040.5 | AU34: 101666.1847 | AV34: 0 | AW34: 0 | AX34: 0 | AY34: 30567.72802 | AZ34: 0 | BA34: 0 | BB34: 0 | BC34: 832473.98 | BD34: 0 | BE34: 0 | BF34: 0 | BG34: 1003748.393 | BI34: 28918.889 | BJ34: 99619.21451 | BK34: 0 | BL34: 0 | BM34: 0 | BN34: 29888.44518 | BO34: 0 | BP34: 0 | BQ34: 0 | BR34: 820153.62 | BS34: 0 | BT34: 0 | BU34: 0 | BV34: 978580.1687
B35: =C35 -> Large Business - Subtransmission EG | C35: =Est2018DistRev!B35 -> Large Business - Subtransmission EG | D35: 30333.863 | E35: 0.142 | F35: 0 | G35: 0 | H35: 0 | I35: 0.023 | J35: 0 | K35: 0 | L35: 0 | M35: 3.36 | N35: 0 | O35: 0 | P35: 0 | R35: =Est2018DistRev!D35 -> 28889.393 | S35: =Est2018DistRev!E35 -> 0.139 | T35: =Est2018DistRev!F35 -> 0 | U35: =Est2018DistRev!G35 -> 0 | V35: =Est2018DistRev!H35 -> 0 | W35: =Est2018DistRev!I35 -> 0.023 | X35: =Est2018DistRev!J35 -> 0 | Y35: =Est2018DistRev!K35 -> 0 | Z35: =Est2018DistRev!L35 -> 0 | AA35: =Est2018DistRev!M35 -> 3.31 | AB35: =Est2018DistRev!N35 -> 0 | AC35: =Est2018DistRev!O35 -> 0 | AD35: =Est2018DistRev!P35 -> 0 | AE35: =Est2018DistRev!Q35 -> 0 | AF35: 1 | AG35: 7138026.819 | AH35: 0 | AI35: 0 | AJ35: 0 | AK35: 8479174.156 | AL35: 0 | AM35: 0 | AN35: 0 | AO35: 36401.09 | AP35: 0 | AQ35: 0 | AR35: 0 | AT35: =D35*AF35 -> 30333.863 | AU35: =E35/100*AG35 -> 10135.99808 | AV35: 0 | AW35: 0 | AX35: 0 | AY35: 1950.210056 | AZ35: 0 | BA35: 0 | BB35: 0 | BC35: =M35*AO35 -> 122307.6624 | BD35: =N35*AP35 -> 0 | BE35: =O35*AQ35 -> 0 | BF35: =P35*AR35 -> 0 | BG35: =SUM(AT35:BF35) -> 164727.7335 | BI35: =R35*AF35 -> 28889.393 | BJ35: =S35/100*AG35 -> 9921.857278 | BK35: =T35/100*AH35 -> 0 | BL35: =U35/100*AI35 -> 0 | BM35: =V35/100*AJ35 -> 0 | BN35: =W35/100*AK35 -> 1950.210056 | BO35: =X35/100*AL35 -> 0 | BP35: =Y35/100*AM35 -> 0 | BQ35: =Z35/100*AN35 -> 0 | BR35: =AA35*AO35 -> 120487.6079 | BS35: =AB35*AP35 -> 0 | BT35: =AC35*AQ35 -> 0 | BU35: =AD35*AR35 -> 0 | BV35: =SUM(BI35:BU35) -> 161249.0682
AT36: 0 | AU36: 0 | AV36: 0 | AW36: 0 | AX36: 0 | AY36: 0 | AZ36: 0 | BA36: 0 | BB36: 0 | BC36: 0 | BD36: 0 | BE36: 0 | BF36: 0 | BG36: 0 | BI36: 0 | BJ36: 0 | BK36: 0 | BL36: 0 | BM36: 0 | BN36: 0 | BO36: 0 | BP36: 0 | BQ36: 0 | BR36: 0 | BS36: 0 | BT36: 0 | BU36: 0 | BV36: 0
AT37: 0 | AU37: 0 | AV37: 0 | AW37: 0 | AX37: 0 | AY37: 0 | AZ37: 0 | BA37: 0 | BB37: 0 | BC37: 0 | BD37: 0 | BE37: 0 | BF37: 0 | BG37: 0 | BI37: 0 | BJ37: 0 | BK37: 0 | BL37: 0 | BM37: 0 | BN37: 0 | BO37: 0 | BP37: 0 | BQ37: 0 | BR37: 0 | BS37: 0 | BT37: 0 | BU37: 0 | BV37: 0
AT38: 0 | AU38: 0 | AV38: 0 | AW38: 0 | AX38: 0 | AY38: 0 | AZ38: 0 | BA38: 0 | BB38: =L38/100*AN38 -> 0 | BC38: 0 | BD38: 0 | BE38: 0 | BF38: 0 | BG38: 0 | BI38: 0 | BJ38: 0 | BK38: 0 | BL38: 0 | BM38: 0 | BN38: 0 | BO38: 0 | BP38: 0 | BQ38: 0 | BR38: 0 | BS38: 0 | BT38: 0 | BU38: 0 | BV38: 0
AT39: 0 | AU39: 0 | AV39: 0 | AW39: 0 | AX39: 0 | AY39: 0 | AZ39: 0 | BA39: 0 | BB39: 0 | BC39: 0 | BD39: 0 | BE39: 0 | BF39: 0 | BG39: 0 | BI39: 0 | BJ39: 0 | BK39: 0 | BL39: 0 | BM39: 0 | BN39: 0 | BO39: 0 | BP39: 0 | BQ39: 0 | BR39: 0 | BS39: 0 | BT39: 0 | BU39: 0 | BV39: 0
AT40: 0 | AU40: 0 | AV40: 0 | AW40: 0 | AX40: 0 | AY40: 0 | AZ40: 0 | BA40: 0 | BB40: 0 | BC40: 0 | BD40: 0 | BE40: 0 | BF40: 0 | BG40: 0 | BI40: 0 | BJ40: 0 | BK40: 0 | BL40: 0 | BM40: 0 | BN40: 0 | BO40: 0 | BP40: 0 | BQ40: 0 | BR40: 0 | BS40: 0 | BT40: 0 | BU40: 0 | BV40: 0
AT41: 0 | AU41: 0 | AV41: 0 | AW41: 0 | AX41: 0 | AY41: 0 | AZ41: 0 | BA41: 0 | BB41: 0 | BC41: 0 | BD41: 0 | BE41: 0 | BF41: 0 | BG41: 0 | BI41: 0 | BJ41: 0 | BK41: 0 | BL41: 0 | BM41: 0 | BN41: 0 | BO41: 0 | BP41: 0 | BQ41: 0 | BR41: 0 | BS41: 0 | BT41: 0 | BU41: 0 | BV41: 0
AT42: 0 | AU42: 0 | AV42: 0 | AW42: 0 | AX42: 0 | AY42: 0 | AZ42: 0 | BA42: 0 | BB42: 0 | BC42: 0 | BD42: 0 | BE42: 0 | BF42: 0 | BG42: 0 | BI42: 0 | BJ42: 0 | BK42: 0 | BL42: 0 | BM42: 0 | BN42: 0 | BO42: 0 | BP42: 0 | BQ42: 0 | BR42: 0 | BS42: 0 | BT42: 0 | BU42: 0 | BV42: 0
AT43: 0 | AU43: 0 | AV43: 0 | AW43: 0 | AX43: 0 | AY43: 0 | AZ43: 0 | BA43: 0 | BB43: 0 | BC43: 0 | BD43: 0 | BE43: 0 | BF43: 0 | BG43: 0 | BI43: 0 | BJ43: 0 | BK43: 0 | BL43: 0 | BM43: 0 | BN43: 0 | BO43: 0 | BP43: 0 | BQ43: 0 | BR43: 0 | BS43: 0 | BT43: 0 | BU43: 0 | BV43: 0
AT44: 0 | AU44: 0 | AV44: 0 | AW44: 0 | AX44: 0 | AY44: 0 | AZ44: 0 | BA44: 0 | BB44: 0 | BC44: 0 | BD44: 0 | BE44: 0 | BF44: 0 | BG44: 0 | BI44: 0 | BJ44: 0 | BK44: 0 | BL44: 0 | BM44: 0 | BN44: 0 | BO44: 0 | BP44: 0 | BQ44: 0 | BR44: 0 | BS44: 0 | BT44: 0 | BU44: 0 | BV44: 0
AT45: 0 | AU45: 0 | AV45: 0 | AW45: 0 | AX45: 0 | AY45: 0 | AZ45: 0 | BA45: 0 | BB45: 0 | BC45: 0 | BD45: 0 | BE45: 0 | BF45: 0 | BG45: 0 | BI45: 0 | BJ45: 0 | BK45: 0 | BL45: 0 | BM45: 0 | BN45: 0 | BO45: 0 | BP45: 0 | BQ45: 0 | BR45: 0 | BS45: 0 | BT45: 0 | BU45: 0 | BV45: 0
AT46: 0 | AU46: 0 | AV46: 0 | AW46: 0 | AX46: 0 | AY46: 0 | AZ46: 0 | BA46: 0 | BB46: 0 | BC46: 0 | BD46: 0 | BE46: 0 | BF46: 0 | BG46: 0 | BI46: 0 | BJ46: 0 | BK46: 0 | BL46: 0 | BM46: 0 | BN46: 0 | BO46: 0 | BP46: 0 | BQ46: 0 | BR46: 0 | BS46: 0 | BT46: 0 | BU46: 0 | BV46: 0
AT47: 0 | AU47: 0 | AV47: 0 | AW47: 0 | AX47: 0 | AY47: 0 | AZ47: 0 | BA47: 0 | BB47: 0 | BC47: 0 | BD47: 0 | BE47: 0 | BF47: 0 | BG47: 0 | BI47: 0 | BJ47: 0 | BK47: 0 | BL47: 0 | BM47: 0 | BN47: 0 | BO47: 0 | BP47: 0 | BQ47: 0 | BR47: 0 | BS47: 0 | BT47: 0 | BU47: 0 | BV47: 0
AT48: 0 | AU48: 0 | AV48: 0 | AW48: 0 | AX48: 0 | AY48: 0 | AZ48: 0 | BA48: 0 | BB48: 0 | BC48: 0 | BD48: 0 | BE48: 0 | BF48: 0 | BG48: 0 | BI48: 0 | BJ48: 0 | BK48: 0 | BL48: 0 | BM48: 0 | BN48: 0 | BO48: 0 | BP48: 0 | BQ48: 0 | BR48: 0 | BS48: 0 | BT48: 0 | BU48: 0 | BV48: 0
AT49: 0 | AU49: 0 | AV49: 0 | AW49: 0 | AX49: 0 | AY49: 0 | AZ49: 0 | BA49: 0 | BB49: 0 | BC49: 0 | BD49: 0 | BE49: 0 | BF49: 0 | BG49: 0 | BI49: 0 | BJ49: 0 | BK49: 0 | BL49: 0 | BM49: 0 | BN49: 0 | BO49: 0 | BP49: 0 | BQ49: 0 | BR49: 0 | BS49: 0 | BT49: 0 | BU49: 0 | BV49: 0
AT50: 0 | AU50: 0 | AV50: 0 | AW50: 0 | AX50: 0 | AY50: 0 | AZ50: 0 | BA50: 0 | BB50: 0 | BC50: 0 | BD50: 0 | BE50: 0 | BF50: 0 | BG50: 0 | BI50: 0 | BJ50: 0 | BK50: 0 | BL50: 0 | BM50: 0 | BN50: 0 | BO50: 0 | BP50: 0 | BQ50: 0 | BR50: 0 | BS50: 0 | BT50: 0 | BU50: 0 | BV50: 0
AT51: 0 | AU51: 0 | AV51: 0 | AW51: 0 | AX51: 0 | AY51: 0 | AZ51: 0 | BA51: 0 | BB51: 0 | BC51: 0 | BD51: 0 | BE51: 0 | BF51: 0 | BG51: 0 | BI51: 0 | BJ51: 0 | BK51: 0 | BL51: 0 | BM51: 0 | BN51: 0 | BO51: 0 | BP51: 0 | BQ51: 0 | BR51: 0 | BS51: 0 | BT51: 0 | BU51: 0 | BV51: 0
AT52: 0 | AU52: 0 | AV52: 0 | AW52: 0 | AX52: 0 | AY52: 0 | AZ52: 0 | BA52: 0 | BB52: 0 | BC52: 0 | BD52: 0 | BE52: 0 | BF52: 0 | BG52: 0 | BI52: 0 | BJ52: 0 | BK52: 0 | BL52: 0 | BM52: 0 | BN52: 0 | BO52: 0 | BP52: 0 | BQ52: 0 | BR52: 0 | BS52: 0 | BT52: 0 | BU52: 0 | BV52: 0
AT53: 0 | AU53: 0 | AV53: 0 | AW53: 0 | AX53: 0 | AY53: 0 | AZ53: 0 | BA53: 0 | BB53: 0 | BC53: 0 | BD53: 0 | BE53: 0 | BF53: 0 | BG53: 0 | BI53: 0 | BJ53: 0 | BK53: 0 | BL53: 0 | BM53: 0 | BN53: 0 | BO53: 0 | BP53: 0 | BQ53: 0 | BR53: 0 | BS53: 0 | BT53: 0 | BU53: 0 | BV53: 0
AT54: 0 | AU54: 0 | AV54: 0 | AW54: 0 | AX54: 0 | AY54: 0 | AZ54: 0 | BA54: 0 | BB54: 0 | BC54: 0 | BD54: 0 | BE54: 0 | BF54: 0 | BG54: 0 | BI54: 0 | BJ54: 0 | BK54: 0 | BL54: 0 | BM54: 0 | BN54: 0 | BO54: 0 | BP54: 0 | BQ54: 0 | BR54: 0 | BS54: 0 | BT54: 0 | BU54: 0 | BV54: 0
AT55: 0 | AU55: 0 | AV55: 0 | AW55: 0 | AX55: 0 | AY55: 0 | AZ55: 0 | BA55: 0 | BB55: 0 | BC55: 0 | BD55: 0 | BE55: 0 | BF55: 0 | BG55: 0 | BI55: 0 | BJ55: 0 | BK55: 0 | BL55: 0 | BM55: 0 | BN55: 0 | BO55: 0 | BP55: 0 | BQ55: 0 | BR55: 0 | BS55: 0 | BT55: 0 | BU55: 0 | BV55: 0
AT56: 0 | AU56: 0 | AV56: 0 | AW56: 0 | AX56: 0 | AY56: 0 | AZ56: 0 | BA56: 0 | BB56: 0 | BC56: 0 | BD56: 0 | BE56: 0 | BF56: 0 | BG56: 0 | BI56: 0 | BJ56: 0 | BK56: 0 | BL56: 0 | BM56: 0 | BN56: 0 | BO56: 0 | BP56: 0 | BQ56: 0 | BR56: 0 | BS56: 0 | BT56: 0 | BU56: 0 | BV56: 0
AT57: 0 | AU57: 0 | AV57: 0 | AW57: 0 | AX57: 0 | AY57: 0 | AZ57: 0 | BA57: 0 | BB57: 0 | BC57: 0 | BD57: 0 | BE57: 0 | BF57: 0 | BG57: 0 | BI57: 0 | BJ57: 0 | BK57: 0 | BL57: 0 | BM57: 0 | BN57: 0 | BO57: 0 | BP57: 0 | BQ57: 0 | BR57: 0 | BS57: 0 | BT57: 0 | BU57: 0 | BV57: 0
AT58: 0 | AU58: 0 | AV58: 0 | AW58: 0 | AX58: 0 | AY58: 0 | AZ58: 0 | BA58: 0 | BB58: 0 | BC58: 0 | BD58: 0 | BE58: 0 | BF58: 0 | BG58: 0 | BI58: 0 | BJ58: 0 | BK58: 0 | BL58: 0 | BM58: 0 | BN58: 0 | BO58: 0 | BP58: 0 | BQ58: 0 | BR58: 0 | BS58: 0 | BT58: 0 | BU58: 0 | BV58: 0
AT59: 0 | AU59: 0 | AV59: 0 | AW59: 0 | AX59: 0 | AY59: 0 | AZ59: 0 | BA59: 0 | BB59: 0 | BC59: 0 | BD59: 0 | BE59: 0 | BF59: 0 | BG59: 0 | BI59: 0 | BJ59: 0 | BK59: 0 | BL59: 0 | BM59: 0 | BN59: 0 | BO59: 0 | BP59: 0 | BQ59: 0 | BR59: 0 | BS59: 0 | BT59: 0 | BU59: 0 | BV59: 0
AT60: 0 | AU60: 0 | AV60: 0 | AW60: 0 | AX60: 0 | AY60: 0 | AZ60: 0 | BA60: 0 | BB60: 0 | BC60: 0 | BD60: 0 | BE60: 0 | BF60: 0 | BG60: 0 | BI60: 0 | BJ60: 0 | BK60: 0 | BL60: 0 | BM60: 0 | BN60: 0 | BO60: 0 | BP60: 0 | BQ60: 0 | BR60: 0 | BS60: 0 | BT60: 0 | BU60: 0 | BV60: 0
AT61: 0 | AU61: 0 | AV61: 0 | AW61: 0 | AX61: 0 | AY61: 0 | AZ61: 0 | BA61: 0 | BB61: 0 | BC61: 0 | BD61: 0 | BE61: 0 | BF61: 0 | BG61: 0 | BI61: 0 | BJ61: 0 | BK61: 0 | BL61: 0 | BM61: 0 | BN61: 0 | BO61: 0 | BP61: 0 | BQ61: 0 | BR61: 0 | BS61: 0 | BT61: 0 | BU61: 0 | BV61: 0
AT62: 0 | AU62: 0 | AV62: 0 | AW62: 0 | AX62: 0 | AY62: 0 | AZ62: 0 | BA62: 0 | BB62: 0 | BC62: 0 | BD62: 0 | BE62: 0 | BF62: 0 | BG62: 0 | BI62: 0 | BJ62: 0 | BK62: 0 | BL62: 0 | BM62: 0 | BN62: 0 | BO62: 0 | BP62: 0 | BQ62: 0 | BR62: 0 | BS62: 0 | BT62: 0 | BU62: 0 | BV62: 0
AT63: 0 | AU63: 0 | AV63: 0 | AW63: 0 | AX63: 0 | AY63: 0 | AZ63: 0 | BA63: 0 | BB63: 0 | BC63: 0 | BD63: 0 | BE63: 0 | BF63: 0 | BG63: 0 | BI63: 0 | BJ63: 0 | BK63: 0 | BL63: 0 | BM63: 0 | BN63: 0 | BO63: 0 | BP63: 0 | BQ63: 0 | BR63: 0 | BS63: 0 | BT63: 0 | BU63: 0 | BV63: 0
AT64: 0 | AU64: 0 | AV64: 0 | AW64: 0 | AX64: 0 | AY64: 0 | AZ64: 0 | BA64: 0 | BB64: 0 | BC64: 0 | BD64: 0 | BE64: 0 | BF64: 0 | BG64: 0 | BI64: 0 | BJ64: 0 | BK64: 0 | BL64: 0 | BM64: 0 | BN64: 0 | BO64: 0 | BP64: 0 | BQ64: 0 | BR64: 0 | BS64: 0 | BT64: 0 | BU64: 0 | BV64: 0
AT65: 0 | AU65: 0 | AV65: 0 | AW65: 0 | AX65: 0 | AY65: 0 | AZ65: 0 | BA65: 0 | BB65: 0 | BC65: 0 | BD65: 0 | BE65: 0 | BF65: 0 | BG65: 0 | BI65: 0 | BJ65: 0 | BK65: 0 | BL65: 0 | BM65: 0 | BN65: 0 | BO65: 0 | BP65: 0 | BQ65: 0 | BR65: 0 | BS65: 0 | BT65: 0 | BU65: 0 | BV65: 0
AF66: =SUM(AF6:AF65) -> 348558.5011 | AG66: 3006410211 | AH66: 1368615.722 | AI66: 960125.0095 | AJ66: 1784990.184 | AK66: 1284415686 | AL66: 1167051.999 | AM66: 0 | AN66: 0 | AO66: 905938.4563 | AP66: 0 | AQ66: 0 | AR66: 0 | AT66: =SUM(AT6:AT65) -> 24645439.63 | AU66: 154834456.4 | AV66: 103494.7209 | AW66: 116972.0299 | AX66: 134980.9577 | AY66: 9196747.939 | AZ66: 42900.8315 | BA66: 0 | BB66: 0 | BC66: 66364006.36 | BD66: 0 | BE66: 0 | BF66: 0 | BG66: 255438998.9 | BI66: =SUM(BI6:BI65) -> 21803048.04 | BJ66: 153930608 | BK66: 103494.7209 | BL66: 117797.7374 | BM66: 134980.9577 | BN66: 9078589.214 | BO66: 43332.64074 | BP66: 0 | BQ66: 0 | BR66: 65013708.05 | BS66: 0 | BT66: 0 | BU66: 0 | BV66: 250225559.3

Sheet 2019DistRevCapForm
B2: ="Tariff Approval - "&'Model update'!$C$3 -> Tariff Approval - Jemena
B4: DUoS
B6: Year (t) | C6: ='Model update'!C5 -> 2019 | H6: =C6-1 -> 2018
B8: Table 1- Compliance with AER Final Determination Total Annual Revenue
B9: Revenue from DUoS charges for year t | C9: =Prop2019DistTar!BG66 -> 255438998.9
B10: Total Annual Revenue for year t | C10: =C18 -> 255439073.1
C11: =IF(C9="","",IF(C10>=C9,"DUoS REVENUE CAP FORMULA COMPLIANT","DUoS REVENUE CAP FORMULA BREACHED")) -> DUoS REVENUE CAP FORMULA COMPLIANT
B13: Table 2 - Total Annual Revenue for year t (TARt)
B14: Adjusted Annual Smoothed Revenue for year t | C14: =C25 -> 266611342.8 | H14: =H25 -> 256319354.1
B15: I factor for year t (F factor Scheme) | C15: ='Model update'!B$100 -> 117300 | H15: =INDEX('Model update'!$D$100:$H$100,1,MATCH($H$6,'Model update'!$D$93:$H$93,0)) -> 655000
B16: T factor for year t (DMIS carry over amount) | C16: ='Model update'!B144 -> 0 | H16: =INDEX('Model update'!$D$144:$H$144,1,MATCH($H$6,'Model update'!$D$137:$H$137,0)) -> 0
B17: B factor for year t | C17: =C32 -> -11289569.63 | H17: =H32 -> -7422099.262
B18: Total Annual Revenue for year t | C18: =C14+C15+C16+C17 -> 255439073.1 | H18: =H14+H15+H16+H17 -> 249552254.9
B20: Table 3 - Adjusted Annual Revenue for year t (AARt)
B21: Adjusted Annual Smoothed Revenue for year t-1 | C21: =H25 -> 256319354.1 | H21: 262564540.7
B22: CPI for period t | C22: ='Model update'!C30 -> 0.02077687444 | H22: ='Model update'!C29 -> 0.01933701657
B23: X factor for period t | C23: ='Model update'!B60 -> -0.01194800863 | H23: =INDEX('Model update'!$E$60:$H$60,1,MATCH("Xt for "&$H$6,'Model update'!$E$53:$H$53,0)) -> 0.0027
B24: S factor for period t | C24: ='Model update'!B111 -> 0.006950679651 | H24: =INDEX('Model update'!$D$111:$H$111,1,MATCH($H$6,'Model update'!$D$104:$H$104,0)) -> -0.03971153723
B25: Adjusted Annual Smoothed Revenue for year t | C25: =IF(C6=2016,'Model update'!D60*(1+C24),(C21*(1+C22)*(1-C23)*(1+C24))) -> 266611342.8 | H25: =IF(H6=2016,'Model update'!D60*(1+H24),(H21*(1+H22)*(1-H23)*(1+H24))) -> 256319354.1
B27: Table 4- B factor for year t
B28: DUoS revenue under/over recovery approved | C28: =-E71*(1+E69)^0.5 -> -11373855.06 | H28: -7505081.267
B29: License Fee Recovery Amount for year t | C29: =C38 -> 84285.43046 | H29: =H38 -> 82982.00417
B30: Approved Pass through Amount for year t | C30: ='Model update'!B122 -> 0 | H30: =INDEX('Model update'!$D$122:$H$122,1,MATCH($H$6,'Model update'!$D$115:$H$115,0)) -> 0
B31: Pass Through revenue under/over recovery for years 2014 and 2015
B32: B factor for year t | C32: =SUM(C28:C31) -> -11289569.63 | H32: =SUM(H28:H31) -> -7422099.262
B34: Table 5 - License Fee Recovery Amount for year t
B35: Lt-1 | C35: ='Model update'!B133 -> 77350 | H35: =INDEX('Model update'!$D$133:$H$133,1,MATCH($H$6,'Model update'!$D$126:$H$126,0)) -> 76545
B36: Nominal WACC t | C36: =(1+'Model update'!$B$43)*(1+'Model update'!$C$30)-1 -> 0.059228637 | H36: =(1+'Model update'!$B$45)*(1+'Model update'!$C$29)-1 -> 0.05829063961
B37: Nominal WACC t-1 | C37: =(1+'Model update'!$B$45)*(1+'Model update'!$C$29)-1 -> 0.05829063961 | H37: =(1+'Model update'!$B$47)*(1+'Model update'!$C$28)-1 -> 0.04935944242
B38: License Fee Recovery Amount for year t | C38: =C35*(1+C36)*(1+C37)^0.5 -> 84285.43046 | H38: =H35*(1+H36)*(1+H37)^0.5 -> 82982.00417
B42: Table 6 - DUoS Recovery Arrangements
C43: Year t-2 | D43: Year t-1 | E43: Year t
C44: (actual) | D44: (estimate) | E44: (forecast)
C45: =D45-1 -> 2017 | D45: =E45-1 -> 2018 | E45: =C$6 -> 2019
B47: (A) Revenue from DUoS Charges | C47: 271460983.5 | D47: =Est2018DistRev!AS66 -> 249552287 | E47: =C9 -> 255438998.9
B50: (B) Less TAR for regulatory year = | C50: =SUM(C51:C54) -> 262573077.1 | D50: =SUM(D51:D54) -> 257057336.1 | E50: =SUM(E51:E54) -> 266812928.2
B51: + Adjusted annual smoothed revenue | C51: =H21 -> 262564540.7 | D51: =C21 -> 256319354.1 | E51: =C14 -> 266611342.8
B52: +It | C52: =INDEX('Model update'!$D$100:$H$100,1,MATCH($C$45,'Model update'!$D$93:$H$93,0)) -> 70000 | D52: =H15 -> 655000 | E52: =C15 -> 117300
B53: +Tt | C53: =INDEX('Model update'!$D$144:$H$144,1,MATCH($C$45,'Model update'!$D$137:$H$137,0)) -> -91239.84446 | D53: =H16 -> 0 | E53: =C16 -> 0
B54: +Bt = | C54: =SUM(C55:C57) -> 29776.24841 | D54: =SUM(D55:D57) -> 82982.00417 | E54: =SUM(E55:E57) -> 84285.43046
B55: +Licence fee recovery | C55: 42607.19323 | D55: =H29 -> 82982.00417 | E55: =C29 -> 84285.43046
B56: +Approved pass throughs | C56: =INDEX('Model update'!$D$122:$H$122,1,MATCH($C$45,'Model update'!$D$115:$H$115,0)) -> 0 | D56: =H30 -> 0 | E56: =C30 -> 0
B57: +Pass Through revenue under/over recovery for years 2014 and 2015 | C57: -12830.94482 | D57: =H31 -> 0
B60: (A minus B) Under/over recovery of revenue for regulatory year | C60: =C47-C50 -> 8887906.421 | D60: =D47-D50 -> -7505049.128 | E60: =E47-E50 -> -11373929.3
B64: Table 7 - DUoS Unders and Overs Account
C65: Year t-2 | D65: Year t-1 | E65: Year t
C66: (actual) | D66: (estimate) | E66: (forecast)
B67: Calendar year | C67: =D67-1 -> 2017 | D67: =E67-1 -> 2018 | E67: =C$6 -> 2019
B69: Nominal WACC | C69: =(1+'Model update'!$B$47)*(1+'Model update'!$C$28)-1 -> 0.04935944242 | D69: =(1+'Model update'!$B$45)*(1+'Model update'!$C$29)-1 -> 0.05829063961 | E69: =(1+'Model update'!$B$43)*(1+'Model update'!$C$30)-1 -> 0.059228637
B71: Opening balance | C71: 8227303.771 | D71: =C75 -> 17738014.42 | E71: =D75 -> 11051286.37
B72: Interest on Opening balance | C72: =C71*C69 -> 406095.1267 | D72: =D71*D69 -> 1033960.206 | E72: =E71*E69 -> 654552.6288
B73: Under/over recovery of revenue for regulatory year | C73: =C60 -> 8887906.421 | D73: =D60 -> -7505049.128 | E73: =E60 -> -11373929.3
B74: Interest on under/over recovery for regulatory year | C74: =C73*((1+C69)^0.5-1) -> 216709.1012 | D74: =D73*((1+D69)^0.5-1) -> -215639.127 | E74: =E73*((1+E69)^0.5-1) -> -331986.1033
B75: Closing balance of DUoS overs/ (unders) account | C75: =SUM(C71:C74) -> 17738014.42 | D75: =SUM(D71:D74) -> 11051286.37 | E75: -76.40128118
B77: The DNSP is expected to achieve a closing balance as close to zero as practicable in its DUoS unders and overs account in each forecast year in its annual pricing proposals in the 2016–20 regulatory control period.

Sheet 2019DistTarRebalCont
B1: ="Tariff Approval - "&'Model update'!C3 -> Tariff Approval - Jemena
B3: ='Model update'!C5&" DISTRIBUTION TARIFF REBALANCING CONTROL" -> 2019 DISTRIBUTION TARIFF REBALANCING CONTROL
B6: Distribution tariff rebalancing control
B8: ="CPI "&'Model update'!$C$5 -> CPI 2019 | C8: ='2019DistRevCapForm'!C22 -> 0.02077687444
B9: ="X "& 'Model update'!$C$5 -> X 2019 | C9: =MIN('2019DistRevCapForm'!C23,0) -> -0.01194800863
B10: ="St "&'Model update'!$C$5 -> St 2019 | C10: ='2019DistRevCapForm'!C24 -> 0.006950679651
B11: ="It "&'Model update'!$C$5 -> It 2019 | C11: =('2019DistRevCapForm'!C15-'2019DistRevCapForm'!H15)/Prop2019DistTar!BV$66 -> -0.002148861217
B12: ="Tt "&'Model update'!$C$5 -> Tt 2019 | C12: =('2019DistRevCapForm'!C16-'2019DistRevCapForm'!H16)/Prop2019DistTar!BV$66 -> 0
B13: ="Bt "&'Model update'!$C$5 -> Bt 2019 | C13: =('2019DistRevCapForm'!C17-'2019DistRevCapForm'!H17)/Prop2019DistTar!BV$66 -> -0.01545593656
C16: =(1+C8)*(1-C9)*(1+0.02)*(1+C10)+SUM(C11:C13) -> 1.043351253
B20: Rebalancing control summary | C20: ="Pt-1*(Qt " &'Model update'!$C$5&")" -> Pt-1*(Qt 2019) | D20: ="Pt*(Qt " &'Model update'!$C$5&")" -> Pt*(Qt 2019)
B21: Tariff Class (Input Class Name) | C21: Existing ($) | D21: Proposed ($) | E21: Movement
B22: Residential | C22: =IF(B22="","",SUMIF($B$39:$B$98,$B22,$I$39:$I$98)) -> 110460890.4 | D22: =IF(B22="","",SUMIF($B$39:$B$98,$B22,$F$39:$F$98)) -> 112537036.2 | E22: =IF(B22="","",D22/C22) -> 1.018795302 | F22: =IF(B22="","",IF(E22<$C$16,"COMPLIANT","BREACHED")) -> COMPLIANT
B23: Small Business | C23: 57066415.48 | D23: 58156800.27 | E23: 1.019107294 | F23: COMPLIANT
B24: Large Business - LV | C24: 62366429.02 | D24: 63860525.48 | E24: 1.023956742 | F24: COMPLIANT
B25: Large Business - HV | C25: 18158467.72 | D25: 18646470.71 | E25: 1.026874679 | F25: COMPLIANT
B26: Large Business - Subtransmission | C26: 2173356.688 | D26: 2238166.255 | E26: 1.029820032 | F26: COMPLIANT
B34: Check Total | C34: =IF(ABS(SUM(C22:C33)-I99)<0.01,"Ok","Error") -> Ok | D34: =IF(ABS(SUM(D22:D33)-F99)<0.01,"Ok","Error") -> Ok
C35: =IF(ABS(SUM(C22:C33)-Prop2019DistTar!BV66)<0.01,"Ok","Error") -> Ok | D35: =IF(ABS(SUM(D22:D33)-Prop2019DistTar!BG66)<0.01,"Ok","Error") -> Ok
F37: ="Revenue (Pt "&'Model update'!$C$5&")*(Qt " &'Model update'!$C$5&")" -> Revenue (Pt 2019)*(Qt 2019) | I37: ="Revenue (Pt-1 "&'Model update'!$C$8&")*(Qt " &'Model update'!$C$5&")" -> Revenue (Pt-1 2018)*(Qt 2019)
A38: New Tariff Test | B38: Destination tariff class | C38: Source tariff class | D38: Proposed tariff | E38: Existing tariff | F38: PropRev Total | I38: ExistRev Total
A39: =OR(EXACT(D39,Prop2019DistTar!C$6:C$65)) -> TRUE | B39: Residential | C39: Residential | D39: =IF(Prop2019DistTar!B6="","",Prop2019DistTar!B6) -> Residential - General Purpose | E39: =IF(Prop2019DistTar!C6="","",Prop2019DistTar!C6) -> Residential - General Purpose | F39: =Prop2019DistTar!BG6 -> 104354101.6 | I39: =Prop2019DistTar!BV6 -> 102346981.7
A40: =OR(EXACT(D40,Prop2019DistTar!C$6:C$65)) -> TRUE | B40: Residential | C40: Residential | D40: =IF(Prop2019DistTar!B7="","",Prop2019DistTar!B7) -> Residential - General Purpose Demand | E40: =IF(Prop2019DistTar!C7="","",Prop2019DistTar!C7) -> Residential - General Purpose Demand | F40: =Prop2019DistTar!BG7 -> 3146.498458 | I40: =Prop2019DistTar!BV7 -> 3139.837338
A41: =OR(EXACT(D41,Prop2019DistTar!C$6:C$65)) -> TRUE | B41: Residential | C41: Residential | D41: =IF(Prop2019DistTar!B8="","",Prop2019DistTar!B8) -> Residential - Flexible | E41: =IF(Prop2019DistTar!C8="","",Prop2019DistTar!C8) -> Residential - Flexible | F41: =Prop2019DistTar!BG8 -> 591516.9423 | I41: =Prop2019DistTar!BV8 -> 587285.0836
A42: =OR(EXACT(D42,Prop2019DistTar!C$6:C$65)) -> TRUE | B42: Residential | C42: Residential | D42: =IF(Prop2019DistTar!B9="","",Prop2019DistTar!B9) -> Residential - Time of Use Interval Meter | E42: =IF(Prop2019DistTar!C9="","",Prop2019DistTar!C9) -> Residential - Time of Use Interval Meter | F42: =Prop2019DistTar!BG9 -> 6218305.885 | I42: =Prop2019DistTar!BV9 -> 6153890.5
A43: =OR(EXACT(D43,Prop2019DistTar!C$6:C$65)) -> TRUE | B43: Residential | C43: Residential | D43: =IF(Prop2019DistTar!B10="","",Prop2019DistTar!B10) -> Residential - TOU | E43: =IF(Prop2019DistTar!C10="","",Prop2019DistTar!C10) -> Residential - TOU | F43: =Prop2019DistTar!BG10 -> 768354.5306 | I43: =Prop2019DistTar!BV10 -> 776829.822
A44: =OR(EXACT(D44,Prop2019DistTar!C$6:C$65)) -> TRUE | B44: Residential | C44: Residential | D44: =IF(Prop2019DistTar!B11="","",Prop2019DistTar!B11) -> Residential - Off Peak Only | E44: =IF(Prop2019DistTar!C11="","",Prop2019DistTar!C11) -> Residential - Off Peak Only | F44: =Prop2019DistTar!BG11 -> 601610.7107 | I44: =Prop2019DistTar!BV11 -> 592763.4943
A45: =OR(EXACT(D45,Prop2019DistTar!C$6:C$65)) -> TRUE | B45: Small Business | C45: Small Business | D45: =IF(Prop2019DistTar!B12="","",Prop2019DistTar!B12) -> Small Business - General Purpose | E45: =IF(Prop2019DistTar!C12="","",Prop2019DistTar!C12) -> Small Business - General Purpose | F45: =Prop2019DistTar!BG12 -> 19622711.55 | I45: =Prop2019DistTar!BV12 -> 19231549.26
A46: =OR(EXACT(D46,Prop2019DistTar!C$6:C$65)) -> TRUE | B46: Small Business | C46: Small Business | D46: =IF(Prop2019DistTar!B13="","",Prop2019DistTar!B13) -> Small Business - General Purpose Demand | E46: =IF(Prop2019DistTar!C13="","",Prop2019DistTar!C13) -> Small Business - General Purpose Demand | F46: =Prop2019DistTar!BG13 -> 6994.085276 | I46: =Prop2019DistTar!BV13 -> 6985.453541
A47: =OR(EXACT(D47,Prop2019DistTar!C$6:C$65)) -> TRUE | B47: Small Business | C47: Small Business | D47: =IF(Prop2019DistTar!B14="","",Prop2019DistTar!B14) -> Small Business - TOU Weekdays | E47: =IF(Prop2019DistTar!C14="","",Prop2019DistTar!C14) -> Small Business - TOU Weekdays | F47: =Prop2019DistTar!BG14 -> 20495815.79 | I47: =Prop2019DistTar!BV14 -> 20128049.45
A48: =OR(EXACT(D48,Prop2019DistTar!C$6:C$65)) -> TRUE | B48: Small Business | C48: Small Business | D48: =IF(Prop2019DistTar!B15="","",Prop2019DistTar!B15) -> Small Business - TOU Weekdays Demand | E48: =IF(Prop2019DistTar!C15="","",Prop2019DistTar!C15) -> Small Business - TOU Weekdays Demand | F48: =Prop2019DistTar!BG15 -> 9979157.378 | I48: =Prop2019DistTar!BV15 -> 9792341.081
A49: =OR(EXACT(D49,Prop2019DistTar!C$6:C$65)) -> TRUE | B49: Small Business | C49: Small Business | D49: =IF(Prop2019DistTar!B16="","",Prop2019DistTar!B16) -> Small Business - TOU Opt out | E49: =IF(Prop2019DistTar!C16="","",Prop2019DistTar!C16) -> Small Business - TOU Opt out | F49: =Prop2019DistTar!BG16 -> 1882.323 | I49: =Prop2019DistTar!BV16 -> 1542.888
A50: =OR(EXACT(D50,Prop2019DistTar!C$6:C$65)) -> TRUE | B50: Small Business | C50: Small Business | D50: =IF(Prop2019DistTar!B17="","",Prop2019DistTar!B17) -> Small Business - TOU Extended | E50: =IF(Prop2019DistTar!C17="","",Prop2019DistTar!C17) -> Small Business - TOU Extended | F50: =Prop2019DistTar!BG17 -> 4721291.053 | I50: =Prop2019DistTar!BV17 -> 4631531.41
A51: =OR(EXACT(D51,Prop2019DistTar!C$6:C$65)) -> TRUE | B51: Small Business | C51: Small Business | D51: =IF(Prop2019DistTar!B18="","",Prop2019DistTar!B18) -> Small Business - TOU Extended Demand | E51: =IF(Prop2019DistTar!C18="","",Prop2019DistTar!C18) -> Small Business - TOU Extended Demand | F51: =Prop2019DistTar!BG18 -> 1672666.529 | I51: =Prop2019DistTar!BV18 -> 1641530.042
A52: =OR(EXACT(D52,Prop2019DistTar!C$6:C$65)) -> TRUE | B52: Small Business | C52: Small Business | D52: =IF(Prop2019DistTar!B19="","",Prop2019DistTar!B19) -> Small Business - Unmetered Supply | E52: =IF(Prop2019DistTar!C19="","",Prop2019DistTar!C19) -> Small Business - Unmetered Supply | F52: =Prop2019DistTar!BG19 -> 1656281.567 | I52: =Prop2019DistTar!BV19 -> 1632885.9
A53: =OR(EXACT(D53,Prop2019DistTar!C$6:C$65)) -> TRUE | B53: Large Business - LV | C53: Large Business - LV | D53: =IF(Prop2019DistTar!B20="","",Prop2019DistTar!B20) -> Large Business - LV 0.4 - 0.8 GWh | E53: =IF(Prop2019DistTar!C20="","",Prop2019DistTar!C20) -> Large Business - LV 0.4 - 0.8 GWh | F53: =Prop2019DistTar!BG20 -> 20343581.16 | I53: =Prop2019DistTar!BV20 -> 19886199.33
A54: =OR(EXACT(D54,Prop2019DistTar!C$6:C$65)) -> TRUE | B54: Large Business - LV | C54: Large Business - LV | D54: =IF(Prop2019DistTar!B21="","",Prop2019DistTar!B21) -> Large Business – LVEN Annual Consumption <= 0.8 GWh | E54: =IF(Prop2019DistTar!C21="","",Prop2019DistTar!C21) -> Large Business – LVEN Annual Consumption <= 0.8 GWh | F54: =Prop2019DistTar!BG21 -> 2178461.896 | I54: =Prop2019DistTar!BV21 -> 2128841.396
A55: =OR(EXACT(D55,Prop2019DistTar!C$6:C$65)) -> TRUE | B55: Large Business - LV | C55: Large Business - LV | D55: =IF(Prop2019DistTar!B22="","",Prop2019DistTar!B22) -> Large Business - LV 0.8+ - 2.2 GWh | E55: =IF(Prop2019DistTar!C22="","",Prop2019DistTar!C22) -> Large Business - LV 0.8+ - 2.2 GWh | F55: =Prop2019DistTar!BG22 -> 21790152.55 | I55: =Prop2019DistTar!BV22 -> 21307658.48
A56: =OR(EXACT(D56,Prop2019DistTar!C$6:C$65)) -> TRUE | B56: Large Business - LV | C56: Large Business - LV | D56: =IF(Prop2019DistTar!B23="","",Prop2019DistTar!B23) -> Large Business - LVEN 0.8+ - 2.2 GWh | E56: =IF(Prop2019DistTar!C23="","",Prop2019DistTar!C23) -> Large Business - LVEN 0.8+ - 2.2 GWh | F56: =Prop2019DistTar!BG23 -> 2445566.994 | I56: =Prop2019DistTar!BV23 -> 2390069.963
A57: =OR(EXACT(D57,Prop2019DistTar!C$6:C$65)) -> TRUE | B57: Large Business - LV | C57: Large Business - LV | D57: =IF(Prop2019DistTar!B24="","",Prop2019DistTar!B24) -> Large Business - LV 2.2+ - 6.0 GWh | E57: =IF(Prop2019DistTar!C24="","",Prop2019DistTar!C24) -> Large Business - LV 2.2+ - 6.0 GWh | F57: =Prop2019DistTar!BG24 -> 8240266.436 | I57: =Prop2019DistTar!BV24 -> 8033858.208
A58: =OR(EXACT(D58,Prop2019DistTar!C$6:C$65)) -> TRUE | B58: Large Business - LV | C58: Large Business - LV | D58: =IF(Prop2019DistTar!B25="","",Prop2019DistTar!B25) -> Large Business - LVEN 2.2+ GWh | E58: =IF(Prop2019DistTar!C25="","",Prop2019DistTar!C25) -> Large Business - LVEN 2.2+ GWh | F58: =Prop2019DistTar!BG25 -> 2376296.43 | I58: =Prop2019DistTar!BV25 -> 2314051.397
A59: =OR(EXACT(D59,Prop2019DistTar!C$6:C$65)) -> TRUE | B59: Large Business - LV | C59: Large Business - LV | D59: =IF(Prop2019DistTar!B26="","",Prop2019DistTar!B26) -> Large Business - LVMS 2.2+ - 6.0 GWh | E59: =IF(Prop2019DistTar!C26="","",Prop2019DistTar!C26) -> Large Business - LVMS 2.2+ - 6.0 GWh | F59: =Prop2019DistTar!BG26 -> 697987.7403 | I59: =Prop2019DistTar!BV26 -> 677935.8819
A60: =OR(EXACT(D60,Prop2019DistTar!C$6:C$65)) -> TRUE | B60: Large Business - LV | C60: Large Business - LV | D60: =IF(Prop2019DistTar!B27="","",Prop2019DistTar!B27) -> Large Business - LV 6.0+ GWh | E60: =IF(Prop2019DistTar!C27="","",Prop2019DistTar!C27) -> Large Business - LV 6.0+ GWh | F60: =Prop2019DistTar!BG27 -> 3051154.021 | I60: =Prop2019DistTar!BV27 -> 2972531.023
A61: =OR(EXACT(D61,Prop2019DistTar!C$6:C$65)) -> TRUE | B61: Large Business - LV | C61: Large Business - LV | D61: =IF(Prop2019DistTar!B28="","",Prop2019DistTar!B28) -> Large Business - LVMS 6.0+ GWh | E61: =IF(Prop2019DistTar!C28="","",Prop2019DistTar!C28) -> Large Business - LVMS 6.0+ GWh | F61: =Prop2019DistTar!BG28 -> 2737058.257 | I61: =Prop2019DistTar!BV28 -> 2655283.338
A62: =OR(EXACT(D62,Prop2019DistTar!C$6:C$65)) -> TRUE | B62: Large Business - HV | C62: Large Business - HV | D62: =IF(Prop2019DistTar!B29="","",Prop2019DistTar!B29) -> Large Business - HV | E62: =IF(Prop2019DistTar!C29="","",Prop2019DistTar!C29) -> Large Business - HV | F62: =Prop2019DistTar!BG29 -> 15041100.95 | I62: =Prop2019DistTar!BV29 -> 14623546.41
A63: =OR(EXACT(D63,Prop2019DistTar!C$6:C$65)) -> TRUE | B63: Large Business - HV | C63: Large Business - HV | D63: =IF(Prop2019DistTar!B30="","",Prop2019DistTar!B30) -> Large Business – HVEN | E63: =IF(Prop2019DistTar!C30="","",Prop2019DistTar!C30) -> Large Business – HVEN | F63: =Prop2019DistTar!BG30 -> 438478.0646 | I63: =Prop2019DistTar!BV30 -> 429586.1151
A64: =OR(EXACT(D64,Prop2019DistTar!C$6:C$65)) -> TRUE | B64: Large Business - HV | C64: Large Business - HV | D64: =IF(Prop2019DistTar!B31="","",Prop2019DistTar!B31) -> Large Business - HVRF | E64: =IF(Prop2019DistTar!C31="","",Prop2019DistTar!C31) -> Large Business - HVRF | F64: =Prop2019DistTar!BG31 -> 2228834.668 | I64: =Prop2019DistTar!BV31 -> 2183889.171
A65: =OR(EXACT(D65,Prop2019DistTar!C$6:C$65)) -> TRUE | B65: Large Business - HV | C65: Large Business - HV | D65: =IF(Prop2019DistTar!B32="","",Prop2019DistTar!B32) -> Large Business - HV Ann Cons >= 55GWh | E65: =IF(Prop2019DistTar!C32="","",Prop2019DistTar!C32) -> Large Business - HV Ann Cons >= 55GWh | F65: =Prop2019DistTar!BG32 -> 938057.0296 | I65: =Prop2019DistTar!BV32 -> 921446.0191
A66: =OR(EXACT(D66,Prop2019DistTar!C$6:C$65)) -> TRUE | B66: Large Business - Subtransmission | C66: Large Business - Subtransmission | D66: =IF(Prop2019DistTar!B33="","",Prop2019DistTar!B33) -> Large Business - Subtransmission | E66: =IF(Prop2019DistTar!C33="","",Prop2019DistTar!C33) -> Large Business - Subtransmission | F66: =Prop2019DistTar!BG33 -> 1069690.129 | I66: =Prop2019DistTar!BV33 -> 1033527.452
A67: =OR(EXACT(D67,Prop2019DistTar!C$6:C$65)) -> TRUE | B67: Large Business - Subtransmission | C67: Large Business - Subtransmission | D67: =IF(Prop2019DistTar!B34="","",Prop2019DistTar!B34) -> Large Business - Subtransmission MA | E67: =IF(Prop2019DistTar!C34="","",Prop2019DistTar!C34) -> Large Business - Subtransmission MA | F67: =Prop2019DistTar!BG34 -> 1003748.393 | I67: =Prop2019DistTar!BV34 -> 978580.1687
A68: =OR(EXACT(D68,Prop2019DistTar!C$6:C$65)) -> TRUE | B68: Large Business - Subtransmission | C68: Large Business - Subtransmission | D68: =IF(Prop2019DistTar!B35="","",Prop2019DistTar!B35) -> Large Business - Subtransmission EG | E68: =IF(Prop2019DistTar!C35="","",Prop2019DistTar!C35) -> Large Business - Subtransmission EG | F68: =Prop2019DistTar!BG35 -> 164727.7335 | I68: =Prop2019DistTar!BV35 -> 161249.0682
A69: =OR(EXACT(D69,Prop2019DistTar!C$6:C$65)) -> TRUE | D69: =IF(Prop2019DistTar!B36="","",Prop2019DistTar!B36) ->  | E69: =IF(Prop2019DistTar!C36="","",Prop2019DistTar!C36) ->  | F69: =Prop2019DistTar!BG36 -> 0 | I69: =Prop2019DistTar!BV36 -> 0
A70: =OR(EXACT(D70,Prop2019DistTar!C$6:C$65)) -> TRUE | D70: =IF(Prop2019DistTar!B37="","",Prop2019DistTar!B37) ->  | E70: =IF(Prop2019DistTar!C37="","",Prop2019DistTar!C37) ->  | F70: =Prop2019DistTar!BG37 -> 0 | I70: =Prop2019DistTar!BV37 -> 0
A71: =OR(EXACT(D71,Prop2019DistTar!C$6:C$65)) -> TRUE | D71: =IF(Prop2019DistTar!B38="","",Prop2019DistTar!B38) ->  | E71: =IF(Prop2019DistTar!C38="","",Prop2019DistTar!C38) ->  | F71: =Prop2019DistTar!BG38 -> 0 | I71: =Prop2019DistTar!BV38 -> 0
A72: =OR(EXACT(D72,Prop2019DistTar!C$6:C$65)) -> TRUE | D72: =IF(Prop2019DistTar!B39="","",Prop2019DistTar!B39) ->  | E72: =IF(Prop2019DistTar!C39="","",Prop2019DistTar!C39) ->  | F72: =Prop2019DistTar!BG39 -> 0 | I72: =Prop2019DistTar!BV39 -> 0
A73: =OR(EXACT(D73,Prop2019DistTar!C$6:C$65)) -> TRUE | D73: =IF(Prop2019DistTar!B40="","",Prop2019DistTar!B40) ->  | E73: =IF(Prop2019DistTar!C40="","",Prop2019DistTar!C40) ->  | F73: =Prop2019DistTar!BG40 -> 0 | I73: =Prop2019DistTar!BV40 -> 0
A74: =OR(EXACT(D74,Prop2019DistTar!C$6:C$65)) -> TRUE | D74: =IF(Prop2019DistTar!B41="","",Prop2019DistTar!B41) ->  | E74: =IF(Prop2019DistTar!C41="","",Prop2019DistTar!C41) ->  | F74: =Prop2019DistTar!BG41 -> 0 | I74: =Prop2019DistTar!BV41 -> 0
A75: =OR(EXACT(D75,Prop2019DistTar!C$6:C$65)) -> TRUE | D75: =IF(Prop2019DistTar!B42="","",Prop2019DistTar!B42) ->  | E75: =IF(Prop2019DistTar!C42="","",Prop2019DistTar!C42) ->  | F75: =Prop2019DistTar!BG42 -> 0 | I75: =Prop2019DistTar!BV42 -> 0
A76: =OR(EXACT(D76,Prop2019DistTar!C$6:C$65)) -> TRUE | D76: =IF(Prop2019DistTar!B43="","",Prop2019DistTar!B43) ->  | E76: =IF(Prop2019DistTar!C43="","",Prop2019DistTar!C43) ->  | F76: =Prop2019DistTar!BG43 -> 0 | I76: =Prop2019DistTar!BV43 -> 0
A77: =OR(EXACT(D77,Prop2019DistTar!C$6:C$65)) -> TRUE | D77: =IF(Prop2019DistTar!B44="","",Prop2019DistTar!B44) ->  | E77: =IF(Prop2019DistTar!C44="","",Prop2019DistTar!C44) ->  | F77: =Prop2019DistTar!BG44 -> 0 | I77: =Prop2019DistTar!BV44 -> 0
A78: =OR(EXACT(D78,Prop2019DistTar!C$6:C$65)) -> TRUE | D78: =IF(Prop2019DistTar!B45="","",Prop2019DistTar!B45) ->  | E78: =IF(Prop2019DistTar!C45="","",Prop2019DistTar!C45) ->  | F78: =Prop2019DistTar!BG45 -> 0 | I78: =Prop2019DistTar!BV45 -> 0
A79: =OR(EXACT(D79,Prop2019DistTar!C$6:C$65)) -> TRUE | D79: =IF(Prop2019DistTar!B46="","",Prop2019DistTar!B46) ->  | E79: =IF(Prop2019DistTar!C46="","",Prop2019DistTar!C46) ->  | F79: =Prop2019DistTar!BG46 -> 0 | I79: =Prop2019DistTar!BV46 -> 0
A80: =OR(EXACT(D80,Prop2019DistTar!C$6:C$65)) -> TRUE | D80: =IF(Prop2019DistTar!B47="","",Prop2019DistTar!B47) ->  | E80: =IF(Prop2019DistTar!C47="","",Prop2019DistTar!C47) ->  | F80: =Prop2019DistTar!BG47 -> 0 | I80: =Prop2019DistTar!BV47 -> 0
A81: =OR(EXACT(D81,Prop2019DistTar!C$6:C$65)) -> TRUE | D81: =IF(Prop2019DistTar!B48="","",Prop2019DistTar!B48) ->  | E81: =IF(Prop2019DistTar!C48="","",Prop2019DistTar!C48) ->  | F81: =Prop2019DistTar!BG48 -> 0 | I81: =Prop2019DistTar!BV48 -> 0
A82: =OR(EXACT(D82,Prop2019DistTar!C$6:C$65)) -> TRUE | D82: =IF(Prop2019DistTar!B49="","",Prop2019DistTar!B49) ->  | E82: =IF(Prop2019DistTar!C49="","",Prop2019DistTar!C49) ->  | F82: =Prop2019DistTar!BG49 -> 0 | I82: =Prop2019DistTar!BV49 -> 0
A83: =OR(EXACT(D83,Prop2019DistTar!C$6:C$65)) -> TRUE | D83: =IF(Prop2019DistTar!B50="","",Prop2019DistTar!B50) ->  | E83: =IF(Prop2019DistTar!C50="","",Prop2019DistTar!C50) ->  | F83: =Prop2019DistTar!BG50 -> 0 | I83: =Prop2019DistTar!BV50 -> 0
A84: =OR(EXACT(D84,Prop2019DistTar!C$6:C$65)) -> TRUE | D84: =IF(Prop2019DistTar!B51="","",Prop2019DistTar!B51) ->  | E84: =IF(Prop2019DistTar!C51="","",Prop2019DistTar!C51) ->  | F84: =Prop2019DistTar!BG51 -> 0 | I84: =Prop2019DistTar!BV51 -> 0
A85: =OR(EXACT(D85,Prop2019DistTar!C$6:C$65)) -> TRUE | D85: =IF(Prop2019DistTar!B52="","",Prop2019DistTar!B52) ->  | E85: =IF(Prop2019DistTar!C52="","",Prop2019DistTar!C52) ->  | F85: =Prop2019DistTar!BG52 -> 0 | I85: =Prop2019DistTar!BV52 -> 0
A86: =OR(EXACT(D86,Prop2019DistTar!C$6:C$65)) -> TRUE | D86: =IF(Prop2019DistTar!B53="","",Prop2019DistTar!B53) ->  | E86: =IF(Prop2019DistTar!C53="","",Prop2019DistTar!C53) ->  | F86: =Prop2019DistTar!BG53 -> 0 | I86: =Prop2019DistTar!BV53 -> 0
A87: =OR(EXACT(D87,Prop2019DistTar!C$6:C$65)) -> TRUE | D87: =IF(Prop2019DistTar!B54="","",Prop2019DistTar!B54) ->  | E87: =IF(Prop2019DistTar!C54="","",Prop2019DistTar!C54) ->  | F87: =Prop2019DistTar!BG54 -> 0 | I87: =Prop2019DistTar!BV54 -> 0
A88: =OR(EXACT(D88,Prop2019DistTar!C$6:C$65)) -> TRUE | D88: =IF(Prop2019DistTar!B55="","",Prop2019DistTar!B55) ->  | E88: =IF(Prop2019DistTar!C55="","",Prop2019DistTar!C55) ->  | F88: =Prop2019DistTar!BG55 -> 0 | I88: =Prop2019DistTar!BV55 -> 0
A89: =OR(EXACT(D89,Prop2019DistTar!C$6:C$65)) -> TRUE | D89: =IF(Prop2019DistTar!B56="","",Prop2019DistTar!B56) ->  | E89: =IF(Prop2019DistTar!C56="","",Prop2019DistTar!C56) ->  | F89: =Prop2019DistTar!BG56 -> 0 | I89: =Prop2019DistTar!BV56 -> 0
A90: =OR(EXACT(D90,Prop2019DistTar!C$6:C$65)) -> TRUE | D90: =IF(Prop2019DistTar!B57="","",Prop2019DistTar!B57) ->  | E90: =IF(Prop2019DistTar!C57="","",Prop2019DistTar!C57) ->  | F90: =Prop2019DistTar!BG57 -> 0 | I90: =Prop2019DistTar!BV57 -> 0
A91: =OR(EXACT(D91,Prop2019DistTar!C$6:C$65)) -> TRUE | D91: =IF(Prop2019DistTar!B58="","",Prop2019DistTar!B58) ->  | E91: =IF(Prop2019DistTar!C58="","",Prop2019DistTar!C58) ->  | F91: =Prop2019DistTar!BG58 -> 0 | I91: =Prop2019DistTar!BV58 -> 0
A92: =OR(EXACT(D92,Prop2019DistTar!C$6:C$65)) -> TRUE | D92: =IF(Prop2019DistTar!B59="","",Prop2019DistTar!B59) ->  | E92: =IF(Prop2019DistTar!C59="","",Prop2019DistTar!C59) ->  | F92: =Prop2019DistTar!BG59 -> 0 | I92: =Prop2019DistTar!BV59 -> 0
A93: =OR(EXACT(D93,Prop2019DistTar!C$6:C$65)) -> TRUE | D93: =IF(Prop2019DistTar!B60="","",Prop2019DistTar!B60) ->  | E93: =IF(Prop2019DistTar!C60="","",Prop2019DistTar!C60) ->  | F93: =Prop2019DistTar!BG60 -> 0 | I93: =Prop2019DistTar!BV60 -> 0
A94: =OR(EXACT(D94,Prop2019DistTar!C$6:C$65)) -> TRUE | D94: =IF(Prop2019DistTar!B61="","",Prop2019DistTar!B61) ->  | E94: =IF(Prop2019DistTar!C61="","",Prop2019DistTar!C61) ->  | F94: =Prop2019DistTar!BG61 -> 0 | I94: =Prop2019DistTar!BV61 -> 0
A95: =OR(EXACT(D95,Prop2019DistTar!C$6:C$65)) -> TRUE | D95: =IF(Prop2019DistTar!B62="","",Prop2019DistTar!B62) ->  | E95: =IF(Prop2019DistTar!C62="","",Prop2019DistTar!C62) ->  | F95: =Prop2019DistTar!BG62 -> 0 | I95: =Prop2019DistTar!BV62 -> 0
A96: =OR(EXACT(D96,Prop2019DistTar!C$6:C$65)) -> TRUE | D96: =IF(Prop2019DistTar!B63="","",Prop2019DistTar!B63) ->  | E96: =IF(Prop2019DistTar!C63="","",Prop2019DistTar!C63) ->  | F96: =Prop2019DistTar!BG63 -> 0 | I96: =Prop2019DistTar!BV63 -> 0
A97: =OR(EXACT(D97,Prop2019DistTar!C$6:C$65)) -> TRUE | D97: =IF(Prop2019DistTar!B64="","",Prop2019DistTar!B64) ->  | E97: =IF(Prop2019DistTar!C64="","",Prop2019DistTar!C64) ->  | F97: =Prop2019DistTar!BG64 -> 0 | I97: =Prop2019DistTar!BV64 -> 0
A98: =OR(EXACT(D98,Prop2019DistTar!C$6:C$65)) -> TRUE | D98: =IF(Prop2019DistTar!B65="","",Prop2019DistTar!B65) ->  | E98: =IF(Prop2019DistTar!C65="","",Prop2019DistTar!C65) ->  | F98: =Prop2019DistTar!BG65 -> 0 | I98: =Prop2019DistTar!BV65 -> 0
F99: =SUM(F39:F98) -> 255438998.9 | I99: =SUM(I39:I98) -> 250225559.3 | BJ99: =SUM(BJ39:BJ98) -> 0

Sheet Est2018DistRev
B1: ="Tariff Approval - "&'Model update'!C3 -> Tariff Approval - Jemena
B3: ="ESTIMATED "&'Model update'!$C$8&" Distribution Revenue" -> ESTIMATED 2018 Distribution Revenue
D4: ="Current Distribution Tariffs (Pt-1) for "&'Model update'!$C$8 -> Current Distribution Tariffs (Pt-1) for 2018 | R4: =" Estimated Distribution Quantities for "&'Model update'!$C$8&" (Qt-1)" -> Estimated Distribution Quantities for 2018 (Qt-1) | AF4: ="Estimated Revenue (Pt-1 "&'Model update'!$C$8&")*(Qt-1 " &'Model update'!$C$8&")" -> Estimated Revenue (Pt-1 2018)*(Qt-1 2018)
B5: ="Tariffs "&'Model update'!C8 -> Tariffs 2018 | D5: CurrentTar Fixed | E5: CurrentTar PkBlk1 | F5: CurrentTar Shoulder summer | G5: CurrentTar peak non-summer | H5: CurrentTar Shoulder non-summer | I5: CurrentTar OPkBlk1 | J5: CurrentTar off peak non-summer | K5: CurrentTar OPkBlk3 | L5: CurrentTar OPkBlk4 | M5: CurrentTar DemBlk1 | N5: CurrentTar DemBlk2 | O5: CurrentTar DemBlk3 | P5: CurrentTar DemBlk4 | R5: EstVol Fixed | S5: EstVol PkBlk1 | T5: EstVol Shoulder summer | U5: EstVol peak non-summer | V5: EstVol Shoulder non-summer | W5: EstVol OPkBlk1 | X5: EstVol off peak non-summer | Y5: EstVol OPkBlk3 | Z5: EstVol OPkBlk4 | AA5: EstVol DemBlk1 | AB5: EstVol DemBlk2 | AC5: EstVol DemBlk3 | AD5: EstVol DemBlk4 | AF5: EstRev Fixed | AG5: EstRev PkBlk1 | AH5: EstRev Shoulder summer | AI5: EstRev peak non-summer | AJ5: EstRev Shoulder non-summer | AK5: EstRev OPkBlk1 | AL5: EstRev off peak non-summer | AM5: EstRev OPkBlk3 | AN5: EstRev OPkBlk4 | AO5: EstRev DemBlk1 | AP5: EstRev DemBlk2 | AQ5: EstRev DemBlk3 | AR5: EstRev DemBlk4 | AS5: EstRev Total
B6: Residential - General Purpose | D6: 44.355 | E6: 7.562 | F6: 0 | G6: 0 | H6: 0 | I6: 0 | J6: 0 | K6: 0 | L6: 0 | M6: 0 | N6: 0 | O6: 0 | P6: 0 | R6: 291394.2956 | S6: 1218137238 | T6: 0 | U6: 0 | V6: 0 | W6: 0 | X6: 0 | Y6: 0 | Z6: 0 | AA6: 0 | AB6: 0 | AC6: 0 | AD6: 0 | AF6: =D6*R6 -> 12924793.98 | AG6: =E6/100*S6 -> 92115537.96 | AH6: 0 | AI6: 0 | AJ6: 0 | AK6: 0 | AL6: 0 | AM6: 0 | AN6: 0 | AO6: =M6*AA6 -> 0 | AP6: 0 | AQ6: 0 | AR6: 0 | AS6: =SUM(AF6:AR6) -> 105040331.9
B7: Residential - General Purpose Demand | D7: 44.355 | E7: 3.329 | F7: 0 | G7: 0 | H7: 0 | I7: 0 | J7: 0 | K7: 0 | L7: 0 | M7: 59.091 | N7: 0 | O7: 0 | P7: 0 | R7: 10 | S7: 136229.9896 | T7: 0 | U7: 0 | V7: 0 | W7: 0 | X7: 0 | Y7: 0 | Z7: 0 | AA7: 50.58160812 | AB7: 0 | AC7: 0 | AD7: 0 | AF7: =D7*R7 -> 443.55 | AG7: =E7/100*S7 -> 4535.096354 | AH7: 0 | AI7: 0 | AJ7: 0 | AK7: 0 | AL7: 0 | AM7: 0 | AN7: 0 | AO7: =M7*AA7 -> 2988.917805 | AP7: =N7*AB7 -> 0 | AQ7: =O7*AC7 -> 0 | AR7: =P7*AD7 -> 0 | AS7: =SUM(AF7:AR7) -> 7967.56416
B8: Residential - Flexible | D8: 44.355 | E8: 12.269 | F8: 7.562 | G8: 12.269 | H8: 7.562 | I8: 3.713 | J8: 3.713 | K8: 0 | L8: 0 | M8: 0 | N8: 0 | O8: 0 | P8: 0 | R8: 1261.272197 | S8: 622144.1999 | T8: 1166862.191 | U8: 818588.8515 | V8: 1521857.102 | W8: 1235258.378 | X8: 995011.8437 | Y8: 0 | Z8: 0 | AA8: 0 | AB8: 0 | AC8: 0 | AD8: 0 | AF8: 55943.72832 | AG8: 76330.87188 | AH8: 88238.11889 | AI8: 100432.6662 | AJ8: 115082.8341 | AK8: 45865.14358 | AL8: 36944.78976 | AM8: 0 | AN8: 0 | AO8: 0 | AP8: 0 | AQ8: 0 | AR8: 0 | AS8: 518838.1527
B9: Residential - Time of Use Interval Meter | D9: 44.355 | E9: 12.269 | F9: 0 | G9: 0 | H9: 0 | I9: 1.863 | J9: 0 | K9: 0 | L9: 0 | M9: 0 | N9: 0 | O9: 0 | P9: 0 | R9: 15741.20213 | S9: 33234190.77 | T9: 0 | U9: 0 | V9: 0 | W9: 34397537.27 | X9: 0 | Y9: 0 | Z9: 0 | AA9: 0 | AB9: 0 | AC9: 0 | AD9: 0 | AF9: 698201.0205 | AG9: 4077502.866 | AH9: 0 | AI9: 0 | AJ9: 0 | AK9: 640826.1193 | AL9: 0 | AM9: 0 | AN9: 0 | AO9: 0 | AP9: 0 | AQ9: 0 | AR9: 0 | AS9: 5416530.006
B10: Residential - TOU | D10: 78.357 | E10: 8.69 | F10: 0 | G10: 0 | H10: 0 | I10: 1.519 | J10: 0 | K10: 0 | L10: 0 | M10: 0 | N10: 0 | O10: 0 | P10: 0 | R10: 1758.230063 | S10: 6918791.855 | T10: 0 | U10: 0 | V10: 0 | W10: 7577131.448 | X10: 0 | Y10: 0 | Z10: 0 | AA10: 0 | AB10: 0 | AC10: 0 | AD10: 0 | AF10: 137769.633 | AG10: 601243.0122 | AH10: 0 | AI10: 0 | AJ10: 0 | AK10: 115096.6267 | AL10: 0 | AM10: 0 | AN10: 0 | AO10: 0 | AP10: 0 | AQ10: 0 | AR10: 0 | AS10: 854109.272
B11: Residential - Off Peak Only | D11: 0 | E11: 0 | F11: 0 | G11: 0 | H11: 0 | I11: 1.675 | J11: 0 | K11: 0 | L11: 0 | M11: 0 | N11: 0 | O11: 0 | P11: 0 | R11: 0 | S11: 0 | T11: 0 | U11: 0 | V11: 0 | W11: 34373741.33 | X11: 0 | Y11: 0 | Z11: 0 | AA11: 0 | AB11: 0 | AC11: 0 | AD11: 0 | AF11: 0 | AG11: 0 | AH11: 0 | AI11: 0 | AJ11: 0 | AK11: 575760.1673 | AL11: 0 | AM11: 0 | AN11: 0 | AO11: 0 | AP11: 0 | AQ11: 0 | AR11: 0 | AS11: 575760.1673
B12: Small Business - General Purpose | D12: 86.157 | E12: 8.896 | F12: 0 | G12: 0 | H12: 0 | I12: 0 | J12: 0 | K12: 0 | L12: 0 | M12: 0 | N12: 0 | O12: 0 | P12: 0 | R12: 15300.52844 | S12: 201179602 | T12: 0 | U12: 0 | V12: 0 | W12: 0 | X12: 0 | Y12: 0 | Z12: 0 | AA12: 0 | AB12: 0 | AC12: 0 | AD12: 0 | AF12: 1318247.629 | AG12: 17896937.39 | AH12: 0 | AI12: 0 | AJ12: 0 | AK12: 0 | AL12: 0 | AM12: 0 | AN12: 0 | AO12: 0 | AP12: 0 | AQ12: 0 | AR12: 0 | AS12: 19215185.02
B13: Small Business - General Purpose Demand | D13: 86.157 | E13: 7.002 | F13: 0 | G13: 0 | H13: 0 | I13: 0 | J13: 0 | K13: 0 | L13: 0 | M13: 57.272 | N13: 0 | O13: 0 | P13: 0 | R13: 5 | S13: 350786.2516 | T13: 0 | U13: 0 | V13: 0 | W13: 0 | X13: 0 | Y13: 0 | Z13: 0 | AA13: 120.4626903 | AB13: 0 | AC13: 0 | AD13: 0 | AF13: 430.785 | AG13: 24562.05334 | AH13: 0 | AI13: 0 | AJ13: 0 | AK13: 0 | AL13: 0 | AM13: 0 | AN13: 0 | AO13: 6899.1392 | AP13: 0 | AQ13: 0 | AR13: 0 | AS13: 31891.97754
B14: Small Business - TOU Weekdays | D14: 128.948 | E14: 10.502 | F14: 0 | G14: 0 | H14: 0 | I14: 1.791 | J14: 0 | K14: 0 | L14: 0 | M14: 0 | N14: 0 | O14: 0 | P14: 0 | R14: 7690.730324 | S14: 173895220.7 | T14: 0 | U14: 0 | V14: 0 | W14: 113418942.2 | X14: 0 | Y14: 0 | Z14: 0 | AA14: 0 | AB14: 0 | AC14: 0 | AD14: 0 | AF14: 991704.2938 | AG14: 18262476.08 | AH14: 0 | AI14: 0 | AJ14: 0 | AK14: 2031333.254 | AL14: 0 | AM14: 0 | AN14: 0 | AO14: 0 | AP14: 0 | AQ14: 0 | AR14: 0 | AS14: 21285513.63
B15: Small Business - TOU Weekdays Demand | D15: 171.432 | E15: 6.481 | F15: 0 | G15: 0 | H15: 0 | I15: 2.09 | J15: 0 | K15: 0 | L15: 0 | M15: 63.036 | N15: 0 | O15: 0 | P15: 0 | R15: 595 | S15: 62531289.1 | T15: 0 | U15: 0 | V15: 0 | W15: 43501833.37 | X15: 0 | Y15: 0 | Z15: 0 | AA15: 53635.17502 | AB15: 0 | AC15: 0 | AD15: 0 | AF15: 102002.04 | AG15: 4052652.847 | AH15: 0 | AI15: 0 | AJ15: 0 | AK15: 909188.3175 | AL15: 0 | AM15: 0 | AN15: 0 | AO15: 3380946.892 | AP15: 0 | AQ15: 0 | AR15: 0 | AS15: 8444790.096
B16: Small Business - TOU Opt out | D16: 171.432 | E16: 10.502 | F16: 0 | G16: 0 | H16: 0 | I16: 1.791 | J16: 0 | K16: 0 | L16: 0 | M16: 0 | N16: 0 | O16: 0 | P16: 0 | R16: 5 | S16: 525473.0177 | T16: 0 | U16: 0 | V16: 0 | W16: 365561.625 | X16: 0 | Y16: 0 | Z16: 0 | AA16: 450.7157564 | AB16: 0 | AC16: 0 | AD16: 0 | AF16: 857.16 | AG16: 55185.17631 | AH16: 0 | AI16: 0 | AJ16: 0 | AK16: 6547.208704 | AL16: 0 | AM16: 0 | AN16: 0 | AO16: 0 | AP16: 0 | AQ16: 0 | AR16: 0 | AS16: 62589.54502
B17: Small Business - TOU Extended | D17: 128.948 | E17: 9.25 | F17: 0 | G17: 0 | H17: 0 | I17: 1.941 | J17: 0 | K17: 0 | L17: 0 | M17: 0 | N17: 0 | O17: 0 | P17: 0 | R17: 2378.349806 | S17: 43931692.89 | T17: 0 | U17: 0 | V17: 0 | W17: 13443219.54 | X17: 0 | Y17: 0 | Z17: 0 | AA17: 0 | AB17: 0 | AC17: 0 | AD17: 0 | AF17: 306683.4508 | AG17: 4063681.592 | AH17: 0 | AI17: 0 | AJ17: 0 | AK17: 260932.8914 | AL17: 0 | AM17: 0 | AN17: 0 | AO17: 0 | AP17: 0 | AQ17: 0 | AR17: 0 | AS17: 4631297.934
B18: Small Business - TOU Extended Demand | D18: 171.432 | E18: 4.877 | F18: 0 | G18: 0 | H18: 0 | I18: 2.228 | J18: 0 | K18: 0 | L18: 0 | M18: 63.036 | N18: 0 | O18: 0 | P18: 0 | R18: 111 | S18: 18609914.1 | T18: 0 | U18: 0 | V18: 0 | W18: 5472271.099 | X18: 0 | Y18: 0 | Z18: 0 | AA18: 11388.5715 | AB18: 0 | AC18: 0 | AD18: 0 | AF18: 19028.952 | AG18: 907605.5106 | AH18: 0 | AI18: 0 | AJ18: 0 | AK18: 121922.2001 | AL18: 0 | AM18: 0 | AN18: 0 | AO18: 717889.9932 | AP18: 0 | AQ18: 0 | AR18: 0 | AS18: 1766446.656
B19: Small Business - Unmetered Supply | D19: 0 | E19: 9.981 | F19: 0 | G19: 0 | H19: 0 | I19: 1.86 | J19: 0 | K19: 0 | L19: 0 | M19: 0 | N19: 0 | O19: 0 | P19: 0 | R19: 0 | S19: 9570716.92 | T19: 0 | U19: 0 | V19: 0 | W19: 21304839.88 | X19: 0 | Y19: 0 | Z19: 0 | AA19: 0 | AB19: 0 | AC19: 0 | AD19: 0 | AF19: 0 | AG19: 955253.2558 | AH19: 0 | AI19: 0 | AJ19: 0 | AK19: 396270.0218 | AL19: 0 | AM19: 0 | AN19: 0 | AO19: 0 | AP19: 0 | AQ19: 0 | AR19: 0 | AS19: 1351523.278
B20: Large Business - LV 0.4 - 0.8 GWh | D20: 2166.18 | E20: 1.914 | F20: 0 | G20: 0 | H20: 0 | I20: 0.626 | J20: 0 | K20: 0 | L20: 0 | M20: 94.651 | N20: 0 | O20: 0 | P20: 0 | R20: 749.7124853 | S20: 172319345.3 | T20: 0 | U20: 0 | V20: 0 | W20: 110690940.6 | X20: 0 | Y20: 0 | Z20: 0 | AA20: 149039.4351 | AB20: 0 | AC20: 0 | AD20: 0 | AF20: 1624012.191 | AG20: 3298192.269 | AH20: 0 | AI20: 0 | AJ20: 0 | AK20: 692925.2879 | AL20: 0 | AM20: 0 | AN20: 0 | AO20: 14106731.57 | AP20: 0 | AQ20: 0 | AR20: 0 | AS20: 19721861.32
B21: Large Business – LVEN Annual Consumption <= 0.8 GWh | D21: 2166.18 | E21: 1.931 | F21: 0 | G21: 0 | H21: 0 | I21: 0.626 | J21: 0 | K21: 0 | L21: 0 | M21: 106.79 | N21: 0 | O21: 0 | P21: 0 | R21: 43.94245125 | S21: 15886296.25 | T21: 0 | U21: 0 | V21: 0 | W21: 10973958.51 | X21: 0 | Y21: 0 | Z21: 0 | AA21: 3916.039528 | AB21: 0 | AC21: 0 | AD21: 0 | AF21: 95187.25905 | AG21: 306764.3805 | AH21: 0 | AI21: 0 | AJ21: 0 | AK21: 68696.98029 | AL21: 0 | AM21: 0 | AN21: 0 | AO21: 418193.8612 | AP21: 0 | AQ21: 0 | AR21: 0 | AS21: 888842.4811
B22: Large Business - LV 0.8+ - 2.2 GWh | D22: 3791.705 | E22: 1.306 | F22: 0 | G22: 0 | H22: 0 | I22: 0.616 | J22: 0 | K22: 0 | L22: 0 | M22: 87.49 | N22: 0 | O22: 0 | P22: 0 | R22: 365.5812896 | S22: 267861226.6 | T22: 0 | U22: 0 | V22: 0 | W22: 185101735.7 | X22: 0 | Y22: 0 | Z22: 0 | AA22: 176021.6236 | AB22: 0 | AC22: 0 | AD22: 0 | AF22: 1386176.404 | AG22: 3498267.619 | AH22: 0 | AI22: 0 | AJ22: 0 | AK22: 1140226.692 | AL22: 0 | AM22: 0 | AN22: 0 | AO22: 15400131.85 | AP22: 0 | AQ22: 0 | AR22: 0 | AS22: 21424802.56
B23: Large Business - LVEN 0.8+ - 2.2 GWh | D23: 3791.705 | E23: 1.305 | F23: 0 | G23: 0 | H23: 0 | I23: 0.616 | J23: 0 | K23: 0 | L23: 0 | M23: 96.247 | N23: 0 | O23: 0 | P23: 0 | R23: 22.40332663 | S23: 13579960.45 | T23: 0 | U23: 0 | V23: 0 | W23: 8933172.172 | X23: 0 | Y23: 0 | Z23: 0 | AA23: 17103.65887 | AB23: 0 | AC23: 0 | AD23: 0 | AF23: 84946.8056 | AG23: 177218.4838 | AH23: 0 | AI23: 0 | AJ23: 0 | AK23: 55028.34058 | AL23: 0 | AM23: 0 | AN23: 0 | AO23: 1646175.855 | AP23: 0 | AQ23: 0 | AR23: 0 | AS23: 1963369.485
B24: Large Business - LV 2.2+ - 6.0 GWh | D24: 5445.668 | E24: 1.196 | F24: 0 | G24: 0 | H24: 0 | I24: 0.501 | J24: 0 | K24: 0 | L24: 0 | M24: 86.545 | N24: 0 | O24: 0 | P24: 0 | R24: 65.21522765 | S24: 108173226.1 | T24: 0 | U24: 0 | V24: 0 | W24: 81788737.09 | X24: 0 | Y24: 0 | Z24: 0 | AA24: 62864.83331 | AB24: 0 | AC24: 0 | AD24: 0 | AF24: 355140.4783 | AG24: 1293751.784 | AH24: 0 | AI24: 0 | AJ24: 0 | AK24: 409761.5728 | AL24: 0 | AM24: 0 | AN24: 0 | AO24: 5440636.999 | AP24: 0 | AQ24: 0 | AR24: 0 | AS24: 7499290.834
B25: Large Business - LVEN 2.2+ GWh | D25: 5445.668 | E25: 1.196 | F25: 0 | G25: 0 | H25: 0 | I25: 0.501 | J25: 0 | K25: 0 | L25: 0 | M25: 91.398 | N25: 0 | O25: 0 | P25: 0 | R25: 12.90726059 | S25: 24107193 | T25: 0 | U25: 0 | V25: 0 | W25: 17356049 | X25: 0 | Y25: 0 | Z25: 0 | AA25: 13050.8266 | AB25: 0 | AC25: 0 | AD25: 0 | AF25: 70288.65598 | AG25: 288322.0283 | AH25: 0 | AI25: 0 | AJ25: 0 | AK25: 86953.80549 | AL25: 0 | AM25: 0 | AN25: 0 | AO25: 1192819.45 | AP25: 0 | AQ25: 0 | AR25: 0 | AS25: 1638383.94
B26: Large Business - LVMS 2.2+ - 6.0 GWh | D26: 2942.145 | E26: 1.183 | F26: 0 | G26: 0 | H26: 0 | I26: 0.501 | J26: 0 | K26: 0 | L26: 0 | M26: 58.754 | N26: 0 | O26: 0 | P26: 0 | R26: 11.01899131 | S26: 11690467 | T26: 0 | U26: 0 | V26: 0 | W26: 9430623 | X26: 0 | Y26: 0 | Z26: 0 | AA26: 7985.577547 | AB26: 0 | AC26: 0 | AD26: 0 | AF26: 32419.47019 | AG26: 138298.2246 | AH26: 0 | AI26: 0 | AJ26: 0 | AK26: 47247.42123 | AL26: 0 | AM26: 0 | AN26: 0 | AO26: 469184.6232 | AP26: 0 | AQ26: 0 | AR26: 0 | AS26: 687149.7392
B27: Large Business - LV 6.0+ GWh | D27: 7464.015 | E27: 1.161 | F27: 0 | G27: 0 | H27: 0 | I27: 0.446 | J27: 0 | K27: 0 | L27: 0 | M27: 83.118 | N27: 0 | O27: 0 | P27: 0 | R27: 18.59386664 | S27: 52965640 | T27: 0 | U27: 0 | V27: 0 | W27: 44387303 | X27: 0 | Y27: 0 | Z27: 0 | AA27: 22863.47009 | AB27: 0 | AC27: 0 | AD27: 0 | AF27: 138784.8995 | AG27: 614931.0804 | AH27: 0 | AI27: 0 | AJ27: 0 | AK27: 197967.3714 | AL27: 0 | AM27: 0 | AN27: 0 | AO27: 1900365.907 | AP27: 0 | AQ27: 0 | AR27: 0 | AS27: 2852049.259
B28: Large Business - LVMS 6.0+ GWh | D28: 3973.583 | E28: 1.161 | F28: 0 | G28: 0 | H28: 0 | I28: 0.446 | J28: 0 | K28: 0 | L28: 0 | M28: 58.854 | N28: 0 | O28: 0 | P28: 0 | R28: 32.49022067 | S28: 55887902 | T28: 0 | U28: 0 | V28: 0 | W28: 43505707 | X28: 0 | Y28: 0 | Z28: 0 | AA28: 29643.8083 | AB28: 0 | AC28: 0 | AD28: 0 | AF28: 129102.5885 | AG28: 648858.5422 | AH28: 0 | AI28: 0 | AJ28: 0 | AK28: 194035.4532 | AL28: 0 | AM28: 0 | AN28: 0 | AO28: 1744656.694 | AP28: 0 | AQ28: 0 | AR28: 0 | AS28: 2716653.278
B29: Large Business - HV | D29: 4046.24 | E29: 0.797 | F29: 0 | G29: 0 | H29: 0 | I29: 0.237 | J29: 0 | K29: 0 | L29: 0 | M29: 69.679 | N29: 0 | O29: 0 | P29: 0 | R29: 69.69725069 | S29: 230209280 | T29: 0 | U29: 0 | V29: 0 | W29: 182645281 | X29: 0 | Y29: 0 | Z29: 0 | AA29: 178383.8421 | AB29: 0 | AC29: 0 | AD29: 0 | AF29: 282011.8037 | AG29: 1834767.962 | AH29: 0 | AI29: 0 | AJ29: 0 | AK29: 432869.316 | AL29: 0 | AM29: 0 | AN29: 0 | AO29: 12429607.74 | AP29: 0 | AQ29: 0 | AR29: 0 | AS29: 14979256.82
B30: Large Business – HVEN | D30: 4046.24 | E30: 0.8 | F30: 0 | G30: 0 | H30: 0 | I30: 0.237 | J30: 0 | K30: 0 | L30: 0 | M30: 71.79 | N30: 0 | O30: 0 | P30: 0 | R30: 1.994535519 | S30: 7360825 | T30: 0 | U30: 0 | V30: 0 | W30: 5771861 | X30: 0 | Y30: 0 | Z30: 0 | AA30: 4004.584906 | AB30: 0 | AC30: 0 | AD30: 0 | AF30: 8070.369399 | AG30: 58886.6 | AH30: 0 | AI30: 0 | AJ30: 0 | AK30: 13679.31057 | AL30: 0 | AM30: 0 | AN30: 0 | AO30: 287489.1504 | AP30: 0 | AQ30: 0 | AR30: 0 | AS30: 368125.4303
B31: Large Business - HVRF | D31: 4046.24 | E31: 0.789 | F31: 0 | G31: 0 | H31: 0 | I31: 0.237 | J31: 0 | K31: 0 | L31: 0 | M31: 64.025 | N31: 0 | O31: 0 | P31: 0 | R31: 4.901870764 | S31: 46937577 | T31: 0 | U31: 0 | V31: 0 | W31: 41329048 | X31: 0 | Y31: 0 | Z31: 0 | AA31: 28730.45636 | AB31: 0 | AC31: 0 | AD31: 0 | AF31: 19834.14556 | AG31: 370337.4825 | AH31: 0 | AI31: 0 | AJ31: 0 | AK31: 97949.84376 | AL31: 0 | AM31: 0 | AN31: 0 | AO31: 1839467.468 | AP31: 0 | AQ31: 0 | AR31: 0 | AS31: 2327588.94
B32: Large Business - HV Ann Cons >= 55GWh | D32: 3779.602 | E32: 0.761 | F32: 0 | G32: 0 | H32: 0 | I32: 0.184 | J32: 0 | K32: 0 | L32: 0 | M32: 61.821 | N32: 0 | O32: 0 | P32: 0 | R32: 1.994535519 | S32: 59097684 | T32: 0 | U32: 0 | V32: 0 | W32: 52550331 | X32: 0 | Y32: 0 | Z32: 0 | AA32: 11767.75472 | AB32: 0 | AC32: 0 | AD32: 0 | AF32: 7538.550437 | AG32: 449733.3752 | AH32: 0 | AI32: 0 | AJ32: 0 | AK32: 96692.60904 | AL32: 0 | AM32: 0 | AN32: 0 | AO32: 727494.3644 | AP32: 0 | AQ32: 0 | AR32: 0 | AS32: 1281458.899
B33: Large Business - Subtransmission | D33: 28918.889 | E33: 0.146 | F33: 0 | G33: 0 | H33: 0 | I33: 0.044 | J33: 0 | K33: 0 | L33: 0 | M33: 19.226 | N33: 0 | O33: 0 | P33: 0 | R33: 0.9972677596 | S33: 80383076 | T33: 0 | U33: 0 | V33: 0 | W33: 86680883 | X33: 0 | Y33: 0 | Z33: 0 | AA33: 32216.67212 | AB33: 0 | AC33: 0 | AD33: 0 | AF33: 28839.87564 | AG33: 117359.291 | AH33: 0 | AI33: 0 | AJ33: 0 | AK33: 38139.58852 | AL33: 0 | AM33: 0 | AN33: 0 | AO33: 619397.7381 | AP33: 0 | AQ33: 0 | AR33: 0 | AS33: 803736.4933
B34: Large Business - Subtransmission MA | D34: 28918.889 | E34: 0.146 | F34: 0 | G34: 0 | H34: 0 | I34: 0.044 | J34: 0 | K34: 0 | L34: 0 | M34: 19.305 | N34: 0 | O34: 0 | P34: 0 | R34: 0.9972677596 | S34: 73056848 | T34: 0 | U34: 0 | V34: 0 | W34: 72731295 | X34: 0 | Y34: 0 | Z34: 0 | AA34: 47088.83491 | AB34: 0 | AC34: 0 | AD34: 0 | AF34: 28839.87564 | AG34: 106662.9981 | AH34: 0 | AI34: 0 | AJ34: 0 | AK34: 32001.7698 | AL34: 0 | AM34: 0 | AN34: 0 | AO34: 909049.9579 | AP34: 0 | AQ34: 0 | AR34: 0 | AS34: 1076554.601
B35: Large Business - Subtransmission EG | D35: 28889.393 | E35: 0.139 | F35: 0 | G35: 0 | H35: 0 | I35: 0.023 | J35: 0 | K35: 0 | L35: 0 | M35: 3.31 | N35: 0 | O35: 0 | P35: 0 | R35: 0.9972677596 | S35: 665488 | T35: 0 | U35: 0 | V35: 0 | W35: 790525 | X35: 0 | Y35: 0 | Z35: 0 | AA35: 27332.44 | AB35: 0 | AC35: 0 | AD35: 0 | AF35: 28810.46023 | AG35: 925.02832 | AH35: 0 | AI35: 0 | AJ35: 0 | AK35: 181.82075 | AL35: 0 | AM35: 0 | AN35: 0 | AO35: 90470.3764 | AP35: 0 | AQ35: 0 | AR35: 0 | AS35: 120387.6857
AF36: 0 | AG36: 0 | AH36: 0 | AI36: 0 | AJ36: 0 | AK36: 0 | AL36: 0 | AM36: 0 | AN36: 0 | AO36: 0 | AP36: 0 | AQ36: 0 | AR36: 0 | AS36: 0
AF37: 0 | AG37: 0 | AH37: 0 | AI37: 0 | AJ37: 0 | AK37: 0 | AL37: 0 | AM37: 0 | AN37: 0 | AO37: 0 | AP37: 0 | AQ37: 0 | AR37: 0 | AS37: 0
AF38: 0 | AG38: 0 | AH38: 0 | AI38: 0 | AJ38: 0 | AK38: 0 | AL38: 0 | AM38: 0 | AN38: =L38/100*Z38 -> 0 | AO38: 0 | AP38: 0 | AQ38: 0 | AR38: 0 | AS38: 0
AF39: 0 | AG39: 0 | AH39: 0 | AI39: 0 | AJ39: 0 | AK39: 0 | AL39: 0 | AM39: 0 | AN39: 0 | AO39: 0 | AP39: 0 | AQ39: 0 | AR39: 0 | AS39: 0
AF40: 0 | AG40: 0 | AH40: 0 | AI40: 0 | AJ40: 0 | AK40: 0 | AL40: 0 | AM40: 0 | AN40: 0 | AO40: 0 | AP40: 0 | AQ40: 0 | AR40: 0 | AS40: 0
AF41: 0 | AG41: 0 | AH41: 0 | AI41: 0 | AJ41: 0 | AK41: 0 | AL41: 0 | AM41: 0 | AN41: 0 | AO41: 0 | AP41: 0 | AQ41: 0 | AR41: 0 | AS41: 0
AF42: 0 | AG42: 0 | AH42: 0 | AI42: 0 | AJ42: 0 | AK42: 0 | AL42: 0 | AM42: 0 | AN42: 0 | AO42: 0 | AP42: 0 | AQ42: 0 | AR42: 0 | AS42: 0
AF43: 0 | AG43: 0 | AH43: 0 | AI43: 0 | AJ43: 0 | AK43: 0 | AL43: 0 | AM43: 0 | AN43: 0 | AO43: 0 | AP43: 0 | AQ43: 0 | AR43: 0 | AS43: 0
AF44: 0 | AG44: 0 | AH44: 0 | AI44: 0 | AJ44: 0 | AK44: 0 | AL44: 0 | AM44: 0 | AN44: 0 | AO44: 0 | AP44: 0 | AQ44: 0 | AR44: 0 | AS44: 0
AF45: 0 | AG45: 0 | AH45: 0 | AI45: 0 | AJ45: 0 | AK45: 0 | AL45: 0 | AM45: 0 | AN45: 0 | AO45: 0 | AP45: 0 | AQ45: 0 | AR45: 0 | AS45: 0
AF46: 0 | AG46: 0 | AH46: 0 | AI46: 0 | AJ46: 0 | AK46: 0 | AL46: 0 | AM46: 0 | AN46: 0 | AO46: 0 | AP46: 0 | AQ46: 0 | AR46: 0 | AS46: 0
AF47: 0 | AG47: 0 | AH47: 0 | AI47: 0 | AJ47: 0 | AK47: 0 | AL47: 0 | AM47: 0 | AN47: 0 | AO47: 0 | AP47: 0 | AQ47: 0 | AR47: 0 | AS47: 0
AF48: 0 | AG48: 0 | AH48: 0 | AI48: 0 | AJ48: 0 | AK48: 0 | AL48: 0 | AM48: 0 | AN48: 0 | AO48: 0 | AP48: 0 | AQ48: 0 | AR48: 0 | AS48: 0
AF49: 0 | AG49: 0 | AH49: 0 | AI49: 0 | AJ49: 0 | AK49: 0 | AL49: 0 | AM49: 0 | AN49: 0 | AO49: 0 | AP49: 0 | AQ49: 0 | AR49: 0 | AS49: 0
AF50: 0 | AG50: 0 | AH50: 0 | AI50: 0 | AJ50: 0 | AK50: 0 | AL50: 0 | AM50: 0 | AN50: 0 | AO50: 0 | AP50: 0 | AQ50: 0 | AR50: 0 | AS50: 0
AF51: 0 | AG51: 0 | AH51: 0 | AI51: 0 | AJ51: 0 | AK51: 0 | AL51: 0 | AM51: 0 | AN51: 0 | AO51: 0 | AP51: 0 | AQ51: 0 | AR51: 0 | AS51: 0
AF52: 0 | AG52: 0 | AH52: 0 | AI52: 0 | AJ52: 0 | AK52: 0 | AL52: 0 | AM52: 0 | AN52: 0 | AO52: 0 | AP52: 0 | AQ52: 0 | AR52: 0 | AS52: 0
AF53: 0 | AG53: 0 | AH53: 0 | AI53: 0 | AJ53: 0 | AK53: 0 | AL53: 0 | AM53: 0 | AN53: 0 | AO53: 0 | AP53: 0 | AQ53: 0 | AR53: 0 | AS53: 0
AF54: 0 | AG54: 0 | AH54: 0 | AI54: 0 | AJ54: 0 | AK54: 0 | AL54: 0 | AM54: 0 | AN54: 0 | AO54: 0 | AP54: 0 | AQ54: 0 | AR54: 0 | AS54: 0
AF55: 0 | AG55: 0 | AH55: 0 | AI55: 0 | AJ55: 0 | AK55: 0 | AL55: 0 | AM55: 0 | AN55: 0 | AO55: 0 | AP55: 0 | AQ55: 0 | AR55: 0 | AS55: 0
AF56: 0 | AG56: 0 | AH56: 0 | AI56: 0 | AJ56: 0 | AK56: 0 | AL56: 0 | AM56: 0 | AN56: 0 | AO56: 0 | AP56: 0 | AQ56: 0 | AR56: 0 | AS56: 0
AF57: 0 | AG57: 0 | AH57: 0 | AI57: 0 | AJ57: 0 | AK57: 0 | AL57: 0 | AM57: 0 | AN57: 0 | AO57: 0 | AP57: 0 | AQ57: 0 | AR57: 0 | AS57: 0
AF58: 0 | AG58: 0 | AH58: 0 | AI58: 0 | AJ58: 0 | AK58: 0 | AL58: 0 | AM58: 0 | AN58: 0 | AO58: 0 | AP58: 0 | AQ58: 0 | AR58: 0 | AS58: 0
AF59: 0 | AG59: 0 | AH59: 0 | AI59: 0 | AJ59: 0 | AK59: 0 | AL59: 0 | AM59: 0 | AN59: 0 | AO59: 0 | AP59: 0 | AQ59: 0 | AR59: 0 | AS59: 0
AF60: 0 | AG60: 0 | AH60: 0 | AI60: 0 | AJ60: 0 | AK60: 0 | AL60: 0 | AM60: 0 | AN60: 0 | AO60: 0 | AP60: 0 | AQ60: 0 | AR60: 0 | AS60: 0
AF61: 0 | AG61: 0 | AH61: 0 | AI61: 0 | AJ61: 0 | AK61: 0 | AL61: 0 | AM61: 0 | AN61: 0 | AO61: 0 | AP61: 0 | AQ61: 0 | AR61: 0 | AS61: 0
AF62: 0 | AG62: 0 | AH62: 0 | AI62: 0 | AJ62: 0 | AK62: 0 | AL62: 0 | AM62: 0 | AN62: 0 | AO62: 0 | AP62: 0 | AQ62: 0 | AR62: 0 | AS62: 0
AF63: 0 | AG63: 0 | AH63: 0 | AI63: 0 | AJ63: 0 | AK63: 0 | AL63: 0 | AM63: 0 | AN63: 0 | AO63: 0 | AP63: 0 | AQ63: 0 | AR63: 0 | AS63: 0
AF64: 0 | AG64: 0 | AH64: 0 | AI64: 0 | AJ64: 0 | AK64: 0 | AL64: 0 | AM64: 0 | AN64: 0 | AO64: 0 | AP64: 0 | AQ64: 0 | AR64: 0 | AS64: 0
AF65: 0 | AG65: 0 | AH65: 0 | AI65: 0 | AJ65: 0 | AK65: 0 | AL65: 0 | AM65: 0 | AN65: 0 | AO65: 0 | AP65: 0 | AQ65: 0 | AR65: 0 | AS65: 0
R66: =SUM(R6:R65) -> 337654.0537 | S66: 2989825325 | T66: 1166862.191 | U66: 818588.8515 | V66: 1521857.102 | W66: 1229757786 | X66: 995011.8437 | Y66: 0 | Z66: 0 | AA66: =SUM(AA6:AA65) -> 877659.3646 | AB66: 0 | AC66: 0 | AD66: 0 | AF66: 20876110.06 | AG66: 156296780.9 | AH66: 88238.11889 | AI66: 100432.6662 | AJ66: 115082.8341 | AK66: 8708099.134 | AL66: 36944.78976 | AM66: =SUM(AM6:AM65) -> 0 | AN66: 0 | AO66: 63330598.54 | AP66: 0 | AQ66: 0 | AR66: 0 | AS66: 249552287

Sheet Prop2019TransTar
B1: ="Tariff Approval - "&'Model update'!C3 -> Tariff Approval - Jemena
B3: ="PROPOSED "&'Model update'!$C$5&" TRANSMISSION TARIFFS" -> PROPOSED 2019 TRANSMISSION TARIFFS
D4: ="Proposed Transmission Tariffs (Pt) for "&'Model update'!$C$5 -> Proposed Transmission Tariffs (Pt) for 2019 | R4: ="Forecast Quantities (Qt) for "&'Model update'!$C$5 -> Forecast Quantities (Qt) for 2019 | AF4: ="Forecast Revenue (Pt "&'Model update'!$C$5&")*(Qt " &'Model update'!$C$5&")" -> Forecast Revenue (Pt 2019)*(Qt 2019)
B5: Proposed tariff | D5: =Prop2019DistTar!D5 -> PropTar Fixed | E5: =Prop2019DistTar!E5 -> PropTar PkBlk1 | F5: =Prop2019DistTar!F5 -> PropTar Shoulder summer | G5: =Prop2019DistTar!G5 -> PropTar peak non-summer | H5: =Prop2019DistTar!H5 -> PropTar Shoulder non-summer | I5: =Prop2019DistTar!I5 -> PropTar OPkBlk1 | J5: =Prop2019DistTar!J5 -> PropTar off peak non-summer | K5: =Prop2019DistTar!K5 -> PropTar OPkBlk3 | L5: =Prop2019DistTar!L5 -> PropTar OPkBlk4 | M5: =Prop2019DistTar!M5 -> PropTar DemBlk1 | N5: =Prop2019DistTar!N5 -> PropTar DemBlk2 | O5: =Prop2019DistTar!O5 -> PropTar DemBlk3 | P5: =Prop2019DistTar!P5 -> PropTar DemBlk4 | R5: =Prop2019DistTar!AF5 -> FcastVol Fixed | S5: =Prop2019DistTar!AG5 -> FcastVol PkBlk1 | T5: =Prop2019DistTar!AH5 -> FcastVol Shoulder summer | U5: =Prop2019DistTar!AI5 -> FcastVol peak non-summer | V5: =Prop2019DistTar!AJ5 -> FcastVol Shoulder non-summer | W5: =Prop2019DistTar!AK5 -> FcastVol OPkBlk1 | X5: =Prop2019DistTar!AL5 -> FcastVol off peak non-summer | Y5: =Prop2019DistTar!AM5 -> FcastVol OPkBlk3 | Z5: =Prop2019DistTar!AN5 -> FcastVol OPkBlk4 | AA5: =Prop2019DistTar!AO5 -> FcastVol DemBlk1 | AB5: =Prop2019DistTar!AP5 -> FcastVol DemBlk2 | AC5: =Prop2019DistTar!AQ5 -> FcastVol DemBlk3 | AD5: =Prop2019DistTar!AR5 -> FcastVol DemBlk4 | AF5: PropRev Fixed | AG5: PropRev PkBlk1 | AH5: PropRev PkBlk2 | AI5: PropRev PkBlk3 | AJ5: PropRev PkBlk4 | AK5: PropRev OPkBlk1 | AL5: PropRev OPkBlk2 | AM5: PropRev OPkBlk3 | AN5: PropRev OPkBlk4 | AO5: PropRev DemBlk1 | AP5: PropRev DemBlk2 | AQ5: PropRev DemBlk3 | AR5: PropRev DemBlk4 | AS5: PropRev Total
B6: =Prop2019DistTar!B6 -> Residential - General Purpose | D6: 0.3 | E6: 0.299 | F6: 0 | G6: 0 | H6: 0 | I6: 0 | J6: 0 | K6: 0 | L6: 0 | M6: 0 | N6: 0 | O6: 0 | P6: 0 | R6: =Prop2019DistTar!AF6 -> 301686.4437 | S6: =Prop2019DistTar!AG6 -> 1176483463 | T6: =Prop2019DistTar!AH6 -> 0 | U6: =Prop2019DistTar!AI6 -> 0 | V6: =Prop2019DistTar!AJ6 -> 0 | W6: =Prop2019DistTar!AK6 -> 0 | X6: =Prop2019DistTar!AL6 -> 0 | Y6: =Prop2019DistTar!AM6 -> 0 | Z6: =Prop2019DistTar!AN6 -> 0 | AA6: =Prop2019DistTar!AO6 -> 0 | AB6: =Prop2019DistTar!AP6 -> 0 | AC6: =Prop2019DistTar!AQ6 -> 0 | AD6: =Prop2019DistTar!AR6 -> 0 | AF6: =D6*R6 -> 90505.93312 | AG6: =E6/100*S6 -> 3517685.555 | AH6: 0 | AI6: 0 | AJ6: 0 | AK6: 0 | AL6: 0 | AM6: 0 | AN6: 0 | AO6: =M6*AA6 -> 0 | AP6: 0 | AQ6: 0 | AR6: 0 | AS6: =SUM(AF6:AR6) -> 3608191.488
B7: =Prop2019DistTar!B7 -> Residential - General Purpose Demand | D7: 0.3 | E7: 0.299 | F7: 0 | G7: 0 | H7: 0 | I7: 0 | J7: 0 | K7: 0 | L7: 0 | M7: 0 | N7: 0 | O7: 0 | P7: 0 | R7: =Prop2019DistTar!AF7 -> 1.001220543 | S7: =Prop2019DistTar!AG7 -> 3199.47119 | T7: =Prop2019DistTar!AH7 -> 0 | U7: =Prop2019DistTar!AI7 -> 0 | V7: =Prop2019DistTar!AJ7 -> 0 | W7: =Prop2019DistTar!AK7 -> 0 | X7: =Prop2019DistTar!AL7 -> 0 | Y7: =Prop2019DistTar!AM7 -> 0 | Z7: =Prop2019DistTar!AN7 -> 0 | AA7: =Prop2019DistTar!AO7 -> 50.58160812 | AB7: =Prop2019DistTar!AP7 -> 0 | AC7: =Prop2019DistTar!AQ7 -> 0 | AD7: =Prop2019DistTar!AR7 -> 0 | AF7: =D7*R7 -> 0.3003661629 | AG7: =E7/100*S7 -> 9.566418857 | AH7: 0 | AI7: 0 | AJ7: 0 | AK7: 0 | AL7: 0 | AM7: 0 | AN7: 0 | AO7: =M7*AA7 -> 0 | AP7: =N7*AB7 -> 0 | AQ7: =O7*AC7 -> 0 | AR7: =P7*AD7 -> 0 | AS7: =SUM(AF7:AR7) -> 9.86678502
B8: =Prop2019DistTar!B8 -> Residential - Flexible | D8: 0.3 | E8: 0.074 | F8: 0.299 | G8: 0.074 | H8: 0.299 | I8: 0.017 | J8: 0.017 | K8: 0 | L8: 0 | M8: 0 | N8: 0 | O8: 0 | P8: 0 | R8: =Prop2019DistTar!AF8 -> 1000 | S8: =Prop2019DistTar!AG8 -> 729714.5627 | T8: =Prop2019DistTar!AH8 -> 1368615.722 | U8: =Prop2019DistTar!AI8 -> 960125.0095 | V8: =Prop2019DistTar!AJ8 -> 1784990.184 | W8: =Prop2019DistTar!AK8 -> 1448837.789 | X8: =Prop2019DistTar!AL8 -> 1167051.999 | Y8: =Prop2019DistTar!AM8 -> 0 | Z8: =Prop2019DistTar!AN8 -> 0 | AA8: =Prop2019DistTar!AO8 -> 0 | AB8: =Prop2019DistTar!AP8 -> 0 | AC8: =Prop2019DistTar!AQ8 -> 0 | AD8: =Prop2019DistTar!AR8 -> 0 | AF8: 300 | AG8: 539.9887764 | AH8: 4092.161009 | AI8: 710.492507 | AJ8: 5337.12065 | AK8: 246.3024242 | AL8: 198.3988399 | AM8: 0 | AN8: 0 | AO8: 0 | AP8: 0 | AQ8: 0 | AR8: 0 | AS8: 11424.46421
B9: =Prop2019DistTar!B9 -> Residential - Time of Use Interval Meter | D9: 0.3 | E9: 0.074 | F9: 0 | G9: 0 | H9: 0 | I9: 0.381 | J9: 0 | K9: 0 | L9: 0 | M9: 0 | N9: 0 | O9: 0 | P9: 0 | R9: =Prop2019DistTar!AF9 -> 15783.3079 | S9: =Prop2019DistTar!AG9 -> 38414734.81 | T9: =Prop2019DistTar!AH9 -> 0 | U9: =Prop2019DistTar!AI9 -> 0 | V9: =Prop2019DistTar!AJ9 -> 0 | W9: =Prop2019DistTar!AK9 -> 39759423.7 | X9: =Prop2019DistTar!AL9 -> 0 | Y9: =Prop2019DistTar!AM9 -> 0 | Z9: =Prop2019DistTar!AN9 -> 0 | AA9: =Prop2019DistTar!AO9 -> 0 | AB9: =Prop2019DistTar!AP9 -> 0 | AC9: =Prop2019DistTar!AQ9 -> 0 | AD9: =Prop2019DistTar!AR9 -> 0 | AF9: 4734.992371 | AG9: 28426.90376 | AH9: 0 | AI9: 0 | AJ9: 0 | AK9: 151483.4043 | AL9: 0 | AM9: 0 | AN9: 0 | AO9: 0 | AP9: 0 | AQ9: 0 | AR9: 0 | AS9: 184645.3004
B10: =Prop2019DistTar!B10 -> Residential - TOU | D10: 0.3 | E10: 1.774 | F10: 0 | G10: 0 | H10: 0 | I10: 1.013 | J10: 0 | K10: 0 | L10: 0 | M10: 0 | N10: 0 | O10: 0 | P10: 0 | R10: =Prop2019DistTar!AF10 -> 1607.472743 | S10: =Prop2019DistTar!AG10 -> 6286480.773 | T10: =Prop2019DistTar!AH10 -> 0 | U10: =Prop2019DistTar!AI10 -> 0 | V10: =Prop2019DistTar!AJ10 -> 0 | W10: =Prop2019DistTar!AK10 -> 6884654.453 | X10: =Prop2019DistTar!AL10 -> 0 | Y10: =Prop2019DistTar!AM10 -> 0 | Z10: =Prop2019DistTar!AN10 -> 0 | AA10: =Prop2019DistTar!AO10 -> 0 | AB10: =Prop2019DistTar!AP10 -> 0 | AC10: =Prop2019DistTar!AQ10 -> 0 | AD10: =Prop2019DistTar!AR10 -> 0 | AF10: 482.2418228 | AG10: 111522.1689 | AH10: 0 | AI10: 0 | AJ10: 0 | AK10: 69741.54961 | AL10: 0 | AM10: 0 | AN10: 0 | AO10: 0 | AP10: 0 | AQ10: 0 | AR10: 0 | AS10: 181745.9603
B11: =Prop2019DistTar!B11 -> Residential - Off Peak Only | D11: 0 | E11: 0 | F11: 0 | G11: 0 | H11: 0 | I11: 0.765 | J11: 0 | K11: 0 | L11: 0 | M11: 0 | N11: 0 | O11: 0 | P11: 0 | R11: =Prop2019DistTar!AF11 -> 0 | S11: =Prop2019DistTar!AG11 -> 0 | T11: =Prop2019DistTar!AH11 -> 0 | U11: =Prop2019DistTar!AI11 -> 0 | V11: =Prop2019DistTar!AJ11 -> 0 | W11: =Prop2019DistTar!AK11 -> 35388865.33 | X11: =Prop2019DistTar!AL11 -> 0 | Y11: =Prop2019DistTar!AM11 -> 0 | Z11: =Prop2019DistTar!AN11 -> 0 | AA11: =Prop2019DistTar!AO11 -> 0 | AB11: =Prop2019DistTar!AP11 -> 0 | AC11: =Prop2019DistTar!AQ11 -> 0 | AD11: =Prop2019DistTar!AR11 -> 0 | AF11: 0 | AG11: 0 | AH11: 0 | AI11: 0 | AJ11: 0 | AK11: 270724.8198 | AL11: 0 | AM11: 0 | AN11: 0 | AO11: 0 | AP11: 0 | AQ11: 0 | AR11: 0 | AS11: 270724.8198
B12: =Prop2019DistTar!B12 -> Small Business - General Purpose | D12: 0.761 | E12: 0.755 | F12: 0 | G12: 0 | H12: 0 | I12: 0 | J12: 0 | K12: 0 | L12: 0 | M12: 0 | N12: 0 | O12: 0 | P12: 0 | R12: =Prop2019DistTar!AF12 -> 16330.65672 | S12: =Prop2019DistTar!AG12 -> 200365882 | T12: =Prop2019DistTar!AH12 -> 0 | U12: =Prop2019DistTar!AI12 -> 0 | V12: =Prop2019DistTar!AJ12 -> 0 | W12: =Prop2019DistTar!AK12 -> 0 | X12: =Prop2019DistTar!AL12 -> 0 | Y12: =Prop2019DistTar!AM12 -> 0 | Z12: =Prop2019DistTar!AN12 -> 0 | AA12: =Prop2019DistTar!AO12 -> 0 | AB12: =Prop2019DistTar!AP12 -> 0 | AC12: =Prop2019DistTar!AQ12 -> 0 | AD12: =Prop2019DistTar!AR12 -> 0 | AF12: 12427.62976 | AG12: 1512762.409 | AH12: 0 | AI12: 0 | AJ12: 0 | AK12: 0 | AL12: 0 | AM12: 0 | AN12: 0 | AO12: 0 | AP12: 0 | AQ12: 0 | AR12: 0 | AS12: 1525190.039
B13: =Prop2019DistTar!B13 -> Small Business - General Purpose Demand | D13: 0.761 | E13: 0.755 | F13: 0 | G13: 0 | H13: 0 | J13: 0 | K13: 0 | L13: 0 | M13: 0 | N13: 0 | O13: 0 | P13: 0 | R13: =Prop2019DistTar!AF13 -> 1.001826222 | S13: =Prop2019DistTar!AG13 -> 0 | T13: =Prop2019DistTar!AH13 -> 0 | U13: =Prop2019DistTar!AI13 -> 0 | V13: =Prop2019DistTar!AJ13 -> 0 | W13: =Prop2019DistTar!AK13 -> 0 | X13: =Prop2019DistTar!AL13 -> 0 | Y13: =Prop2019DistTar!AM13 -> 0 | Z13: =Prop2019DistTar!AN13 -> 0 | AA13: =Prop2019DistTar!AO13 -> 120.4626903 | AB13: =Prop2019DistTar!AP13 -> 0 | AC13: =Prop2019DistTar!AQ13 -> 0 | AD13: =Prop2019DistTar!AR13 -> 0 | AF13: 0.7623897549 | AG13: 0 | AH13: 0 | AI13: 0 | AJ13: 0 | AK13: 0 | AL13: 0 | AM13: 0 | AN13: 0 | AO13: 0 | AP13: 0 | AQ13: 0 | AR13: 0 | AS13: 0.7623897549
B14: =Prop2019DistTar!B14 -> Small Business - TOU Weekdays | D14: 10.017 | E14: 1.324 | F14: 0 | G14: 0 | H14: 0 | I14: 0.695 | J14: 0 | K14: 0 | L14: 0 | M14: 0 | N14: 0 | O14: 0 | P14: 0 | R14: =Prop2019DistTar!AF14 -> 7570.796506 | S14: =Prop2019DistTar!AG14 -> 164109568.5 | T14: =Prop2019DistTar!AH14 -> 0 | U14: =Prop2019DistTar!AI14 -> 0 | V14: =Prop2019DistTar!AJ14 -> 0 | W14: =Prop2019DistTar!AK14 -> 107036487.7 | X14: =Prop2019DistTar!AL14 -> 0 | Y14: =Prop2019DistTar!AM14 -> 0 | Z14: =Prop2019DistTar!AN14 -> 0 | AA14: =Prop2019DistTar!AO14 -> 0 | AB14: =Prop2019DistTar!AP14 -> 0 | AC14: =Prop2019DistTar!AQ14 -> 0 | AD14: =Prop2019DistTar!AR14 -> 0 | AF14: 75836.6686 | AG14: 2172810.687 | AH14: 0 | AI14: 0 | AJ14: 0 | AK14: 743903.5897 | AL14: 0 | AM14: 0 | AN14: 0 | AO14: 0 | AP14: 0 | AQ14: 0 | AR14: 0 | AS14: 2992550.945
B15: =Prop2019DistTar!B15 -> Small Business - TOU Weekdays Demand | D15: 95.249 | E15: 0.643 | F15: 0 | G15: 0 | H15: 0 | I15: 0.481 | J15: 0 | K15: 0 | L15: 0 | M15: 0.386 | N15: 0 | O15: 0 | P15: 0 | R15: =Prop2019DistTar!AF15 -> 724.0324079 | S15: =Prop2019DistTar!AG15 -> 73421991.06 | T15: =Prop2019DistTar!AH15 -> 0 | U15: =Prop2019DistTar!AI15 -> 0 | V15: =Prop2019DistTar!AJ15 -> 0 | W15: =Prop2019DistTar!AK15 -> 51078288.44 | X15: =Prop2019DistTar!AL15 -> 0 | Y15: =Prop2019DistTar!AM15 -> 0 | Z15: =Prop2019DistTar!AN15 -> 0 | AA15: =Prop2019DistTar!AO15 -> 60952.52378 | AB15: =Prop2019DistTar!AP15 -> 0 | AC15: =Prop2019DistTar!AQ15 -> 0 | AD15: =Prop2019DistTar!AR15 -> 0 | AF15: 68963.36282 | AG15: 472103.4025 | AH15: 0 | AI15: 0 | AJ15: 0 | AK15: 245686.5674 | AL15: 0 | AM15: 0 | AN15: 0 | AO15: 23527.67418 | AP15: 0 | AQ15: 0 | AR15: 0 | AS15: 810281.0069
B16: =Prop2019DistTar!B16 -> Small Business - TOU Opt out | D16: 95.249 | E16: 1.324 | F16: 0 | G16: 0 | H16: 0 | I16: 0.695 | J16: 0 | K16: 0 | L16: 0 | M16: 0 | N16: 0 | O16: 0 | P16: 0 | R16: =Prop2019DistTar!AF16 -> 9 | S16: =Prop2019DistTar!AG16 -> 0 | T16: =Prop2019DistTar!AH16 -> 0 | U16: =Prop2019DistTar!AI16 -> 0 | V16: =Prop2019DistTar!AJ16 -> 0 | W16: =Prop2019DistTar!AK16 -> 0 | X16: =Prop2019DistTar!AL16 -> 0 | Y16: =Prop2019DistTar!AM16 -> 0 | Z16: =Prop2019DistTar!AN16 -> 0 | AA16: =Prop2019DistTar!AO16 -> 0 | AB16: =Prop2019DistTar!AP16 -> 0 | AC16: =Prop2019DistTar!AQ16 -> 0 | AD16: =Prop2019DistTar!AR16 -> 0 | AF16: 857.241 | AG16: 0 | AH16: 0 | AI16: 0 | AJ16: 0 | AK16: 0 | AL16: 0 | AM16: 0 | AN16: 0 | AO16: 0 | AP16: 0 | AQ16: 0 | AR16: 0 | AS16: 857.241
B17: =Prop2019DistTar!B17 -> Small Business - TOU Extended | D17: 10.017 | E17: 1.186 | F17: 0 | G17: 0 | H17: 0 | I17: 0.726 | J17: 0 | K17: 0 | L17: 0 | M17: 0 | N17: 0 | O17: 0 | P17: 0 | R17: =Prop2019DistTar!AF17 -> 2204.800723 | S17: =Prop2019DistTar!AG17 -> 44161400.27 | T17: =Prop2019DistTar!AH17 -> 0 | U17: =Prop2019DistTar!AI17 -> 0 | V17: =Prop2019DistTar!AJ17 -> 0 | W17: =Prop2019DistTar!AK17 -> 13513510.64 | X17: =Prop2019DistTar!AL17 -> 0 | Y17: =Prop2019DistTar!AM17 -> 0 | Z17: =Prop2019DistTar!AN17 -> 0 | AA17: =Prop2019DistTar!AO17 -> 0 | AB17: =Prop2019DistTar!AP17 -> 0 | AC17: =Prop2019DistTar!AQ17 -> 0 | AD17: =Prop2019DistTar!AR17 -> 0 | AF17: 22085.48884 | AG17: 523754.2072 | AH17: 0 | AI17: 0 | AJ17: 0 | AK17: 98108.08723 | AL17: 0 | AM17: 0 | AN17: 0 | AO17: 0 | AP17: 0 | AQ17: 0 | AR17: 0 | AS17: 643947.7832
B18: =Prop2019DistTar!B18 -> Small Business - TOU Extended Demand | D18: 95.249 | E18: 1.061 | F18: 0 | G18: 0 | H18: 0 | I18: 0.468 | J18: 0 | K18: 0 | L18: 0 | M18: 0.386 | N18: 0 | O18: 0 | P18: 0 | R18: =Prop2019DistTar!AF18 -> 113.8928135 | S18: =Prop2019DistTar!AG18 -> 17007407.77 | T18: =Prop2019DistTar!AH18 -> 0 | U18: =Prop2019DistTar!AI18 -> 0 | V18: =Prop2019DistTar!AJ18 -> 0 | W18: =Prop2019DistTar!AK18 -> 5001051.888 | X18: =Prop2019DistTar!AL18 -> 0 | Y18: =Prop2019DistTar!AM18 -> 0 | Z18: =Prop2019DistTar!AN18 -> 0 | AA18: =Prop2019DistTar!AO18 -> 10805.42002 | AB18: =Prop2019DistTar!AP18 -> 0 | AC18: =Prop2019DistTar!AQ18 -> 0 | AD18: =Prop2019DistTar!AR18 -> 0 | AF18: 10848.1766 | AG18: 180448.5965 | AH18: 0 | AI18: 0 | AJ18: 0 | AK18: 23404.92283 | AL18: 0 | AM18: 0 | AN18: 0 | AO18: 4170.892128 | AP18: 0 | AQ18: 0 | AR18: 0 | AS18: 218872.588
B19: =Prop2019DistTar!B19 -> Small Business - Unmetered Supply | D19: 0 | E19: 0.803 | F19: 0 | G19: 0 | H19: 0 | I19: 0.829 | J19: 0 | K19: 0 | L19: 0 | M19: 0 | N19: 0 | O19: 0 | P19: 0 | R19: =Prop2019DistTar!AF19 -> 0 | S19: =Prop2019DistTar!AG19 -> 11563166.52 | T19: =Prop2019DistTar!AH19 -> 0 | U19: =Prop2019DistTar!AI19 -> 0 | V19: =Prop2019DistTar!AJ19 -> 0 | W19: =Prop2019DistTar!AK19 -> 25740120.96 | X19: =Prop2019DistTar!AL19 -> 0 | Y19: =Prop2019DistTar!AM19 -> 0 | Z19: =Prop2019DistTar!AN19 -> 0 | AA19: =Prop2019DistTar!AO19 -> 0 | AB19: =Prop2019DistTar!AP19 -> 0 | AC19: =Prop2019DistTar!AQ19 -> 0 | AD19: =Prop2019DistTar!AR19 -> 0 | AF19: 0 | AG19: 92852.22714 | AH19: 0 | AI19: 0 | AJ19: 0 | AK19: 213385.6027 | AL19: 0 | AM19: 0 | AN19: 0 | AO19: 0 | AP19: 0 | AQ19: 0 | AR19: 0 | AS19: 306237.8299
B20: =Prop2019DistTar!B20 -> Large Business - LV 0.4 - 0.8 GWh | D20: 67.903 | E20: 2.144 | F20: 0 | G20: 0 | H20: 0 | I20: 1.021 | J20: 0 | K20: 0 | L20: 0 | M20: 1.046 | N20: 0 | O20: 0 | P20: 0 | R20: =Prop2019DistTar!AF20 -> 787.9057242 | S20: =Prop2019DistTar!AG20 -> 177669042.6 | T20: =Prop2019DistTar!AH20 -> 0 | U20: =Prop2019DistTar!AI20 -> 0 | V20: =Prop2019DistTar!AJ20 -> 0 | W20: =Prop2019DistTar!AK20 -> 114127368.6 | X20: =Prop2019DistTar!AL20 -> 0 | Y20: =Prop2019DistTar!AM20 -> 0 | Z20: =Prop2019DistTar!AN20 -> 0 | AA20: =Prop2019DistTar!AO20 -> 148592.5231 | AB20: =Prop2019DistTar!AP20 -> 0 | AC20: =Prop2019DistTar!AQ20 -> 0 | AD20: =Prop2019DistTar!AR20 -> 0 | AF20: 53501.16239 | AG20: 3809224.273 | AH20: 0 | AI20: 0 | AJ20: 0 | AK20: 1165240.433 | AL20: 0 | AM20: 0 | AN20: 0 | AO20: 155427.7792 | AP20: 0 | AQ20: 0 | AR20: 0 | AS20: 5183393.648
B21: =Prop2019DistTar!B21 -> Large Business – LVEN Annual Consumption <= 0.8 GWh | D21: 67.903 | E21: 2.156 | F21: 0 | G21: 0 | H21: 0 | I21: 1.021 | J21: 0 | K21: 0 | L21: 0 | M21: 1.416 | N21: 0 | O21: 0 | P21: 0 | R21: =Prop2019DistTar!AF21 -> 69.51925736 | S21: =Prop2019DistTar!AG21 -> 26628111.53 | T21: =Prop2019DistTar!AH21 -> 0 | U21: =Prop2019DistTar!AI21 -> 0 | V21: =Prop2019DistTar!AJ21 -> 0 | W21: =Prop2019DistTar!AK21 -> 18394205.09 | X21: =Prop2019DistTar!AL21 -> 0 | Y21: =Prop2019DistTar!AM21 -> 0 | Z21: =Prop2019DistTar!AN21 -> 0 | AA21: =Prop2019DistTar!AO21 -> 12631.46 | AB21: =Prop2019DistTar!AP21 -> 0 | AC21: =Prop2019DistTar!AQ21 -> 0 | AD21: =Prop2019DistTar!AR21 -> 0 | AF21: 4720.566133 | AG21: 574102.0846 | AH21: 0 | AI21: 0 | AJ21: 0 | AK21: 187804.8339 | AL21: 0 | AM21: 0 | AN21: 0 | AO21: 17886.14736 | AP21: 0 | AQ21: 0 | AR21: 0 | AS21: 784513.632
B22: =Prop2019DistTar!B22 -> Large Business - LV 0.8+ - 2.2 GWh | D22: 143.759 | E22: 2.318 | F22: 0 | G22: 0 | H22: 0 | I22: 1.027 | J22: 0 | K22: 0 | L22: 0 | M22: 1.814 | N22: 0 | O22: 0 | P22: 0 | R22: =Prop2019DistTar!AF22 -> 378.7002524 | S22: =Prop2019DistTar!AG22 -> 248248736.1 | T22: =Prop2019DistTar!AH22 -> 0 | U22: =Prop2019DistTar!AI22 -> 0 | V22: =Prop2019DistTar!AJ22 -> 0 | W22: =Prop2019DistTar!AK22 -> 171548799.9 | X22: =Prop2019DistTar!AL22 -> 0 | Y22: =Prop2019DistTar!AM22 -> 0 | Z22: =Prop2019DistTar!AN22 -> 0 | AA22: =Prop2019DistTar!AO22 -> 177995.9966 | AB22: =Prop2019DistTar!AP22 -> 0 | AC22: =Prop2019DistTar!AQ22 -> 0 | AD22: =Prop2019DistTar!AR22 -> 0 | AF22: 54441.56959 | AG22: 5754405.704 | AH22: 0 | AI22: 0 | AJ22: 0 | AK22: 1761806.175 | AL22: 0 | AM22: 0 | AN22: 0 | AO22: 322884.7378 | AP22: 0 | AQ22: 0 | AR22: 0 | AS22: 7893538.186
B23: =Prop2019DistTar!B23 -> Large Business - LVEN 0.8+ - 2.2 GWh | D23: 143.759 | E23: 2.171 | F23: 0 | G23: 0 | H23: 0 | I23: 1.027 | J23: 0 | K23: 0 | L23: 0 | M23: 2.346 | N23: 0 | O23: 0 | P23: 0 | R23: =Prop2019DistTar!AF23 -> 43.7184462 | S23: =Prop2019DistTar!AG23 -> 42504195.74 | T23: =Prop2019DistTar!AH23 -> 0 | U23: =Prop2019DistTar!AI23 -> 0 | V23: =Prop2019DistTar!AJ23 -> 0 | W23: =Prop2019DistTar!AK23 -> 27960118.15 | X23: =Prop2019DistTar!AL23 -> 0 | Y23: =Prop2019DistTar!AM23 -> 0 | Z23: =Prop2019DistTar!AN23 -> 0 | AA23: =Prop2019DistTar!AO23 -> 15557.7673 | AB23: =Prop2019DistTar!AP23 -> 0 | AC23: =Prop2019DistTar!AQ23 -> 0 | AD23: =Prop2019DistTar!AR23 -> 0 | AF23: 6284.920108 | AG23: 922766.0896 | AH23: 0 | AI23: 0 | AJ23: 0 | AK23: 287150.4134 | AL23: 0 | AM23: 0 | AN23: 0 | AO23: 36498.52209 | AP23: 0 | AQ23: 0 | AR23: 0 | AS23: 1252699.945
B24: =Prop2019DistTar!B24 -> Large Business - LV 2.2+ - 6.0 GWh | D24: 955.545 | E24: 2.388 | F24: 0 | G24: 0 | H24: 0 | I24: 1.026 | J24: 0 | K24: 0 | L24: 0 | M24: 1.87 | N24: 0 | O24: 0 | P24: 0 | R24: =Prop2019DistTar!AF24 -> 68.09921351 | S24: =Prop2019DistTar!AG24 -> 112557828.5 | T24: =Prop2019DistTar!AH24 -> 0 | U24: =Prop2019DistTar!AI24 -> 0 | V24: =Prop2019DistTar!AJ24 -> 0 | W24: =Prop2019DistTar!AK24 -> 85103892.83 | X24: =Prop2019DistTar!AL24 -> 0 | Y24: =Prop2019DistTar!AM24 -> 0 | Z24: =Prop2019DistTar!AN24 -> 0 | AA24: =Prop2019DistTar!AO24 -> 68062.284 | AB24: =Prop2019DistTar!AP24 -> 0 | AC24: =Prop2019DistTar!AQ24 -> 0 | AD24: =Prop2019DistTar!AR24 -> 0 | AF24: 65071.86297 | AG24: 2687880.944 | AH24: 0 | AI24: 0 | AJ24: 0 | AK24: 873165.9404 | AL24: 0 | AM24: 0 | AN24: 0 | AO24: 127276.4711 | AP24: 0 | AQ24: 0 | AR24: 0 | AS24: 3753395.219
B25: =Prop2019DistTar!B25 -> Large Business - LVEN 2.2+ GWh | D25: 955.545 | E25: 2.017 | F25: 0 | G25: 0 | H25: 0 | I25: 1.022 | J25: 0 | K25: 0 | L25: 0 | M25: 3.234 | N25: 0 | O25: 0 | P25: 0 | R25: =Prop2019DistTar!AF25 -> 23.7110561 | S25: =Prop2019DistTar!AG25 -> 46012309.97 | T25: =Prop2019DistTar!AH25 -> 0 | U25: =Prop2019DistTar!AI25 -> 0 | V25: =Prop2019DistTar!AJ25 -> 0 | W25: =Prop2019DistTar!AK25 -> 33126706.47 | X25: =Prop2019DistTar!AL25 -> 0 | Y25: =Prop2019DistTar!AM25 -> 0 | Z25: =Prop2019DistTar!AN25 -> 0 | AA25: =Prop2019DistTar!AO25 -> 16068.8071 | AB25: =Prop2019DistTar!AP25 -> 0 | AC25: =Prop2019DistTar!AQ25 -> 0 | AD25: =Prop2019DistTar!AR25 -> 0 | AF25: 22656.9811 | AG25: 928068.292 | AH25: 0 | AI25: 0 | AJ25: 0 | AK25: 338554.9401 | AL25: 0 | AM25: 0 | AN25: 0 | AO25: 51966.52216 | AP25: 0 | AQ25: 0 | AR25: 0 | AS25: 1341246.735
B26: =Prop2019DistTar!B26 -> Large Business - LVMS 2.2+ - 6.0 GWh | D26: 1276.617 | E26: 2.626 | F26: 0 | G26: 0 | H26: 0 | I26: 1.019 | J26: 0 | K26: 0 | L26: 0 | M26: 2.5 | N26: 0 | O26: 0 | P26: 0 | R26: =Prop2019DistTar!AF26 -> 9.489905592 | S26: =Prop2019DistTar!AG26 -> 10547630.32 | T26: =Prop2019DistTar!AH26 -> 0 | U26: =Prop2019DistTar!AI26 -> 0 | V26: =Prop2019DistTar!AJ26 -> 0 | W26: =Prop2019DistTar!AK26 -> 8508704.15 | X26: =Prop2019DistTar!AL26 -> 0 | Y26: =Prop2019DistTar!AM26 -> 0 | Z26: =Prop2019DistTar!AN26 -> 0 | AA26: =Prop2019DistTar!AO26 -> 8214.0472 | AB26: =Prop2019DistTar!AP26 -> 0 | AC26: =Prop2019DistTar!AQ26 -> 0 | AD26: =Prop2019DistTar!AR26 -> 0 | AF26: 12114.97481 | AG26: 276980.7722 | AH26: 0 | AI26: 0 | AJ26: 0 | AK26: 86703.69529 | AL26: 0 | AM26: 0 | AN26: 0 | AO26: 20535.118 | AP26: 0 | AQ26: 0 | AR26: 0 | AS26: 396334.5603
B27: =Prop2019DistTar!B27 -> Large Business - LV 6.0+ GWh | D27: 2462.269 | E27: 2.119 | F27: 0 | G27: 0 | H27: 0 | I27: 1.018 | J27: 0 | K27: 0 | L27: 0 | M27: 2.042 | N27: 0 | O27: 0 | P27: 0 | R27: =Prop2019DistTar!AF27 -> 19.94934005 | S27: =Prop2019DistTar!AG27 -> 53512172.17 | T27: =Prop2019DistTar!AH27 -> 0 | U27: =Prop2019DistTar!AI27 -> 0 | V27: =Prop2019DistTar!AJ27 -> 0 | W27: =Prop2019DistTar!AK27 -> 44845318.59 | X27: =Prop2019DistTar!AL27 -> 0 | Y27: =Prop2019DistTar!AM27 -> 0 | Z27: =Prop2019DistTar!AN27 -> 0 | AA27: =Prop2019DistTar!AO27 -> 24090.3584 | AB27: =Prop2019DistTar!AP27 -> 0 | AC27: =Prop2019DistTar!AQ27 -> 0 | AD27: =Prop2019DistTar!AR27 -> 0 | AF27: 49120.64157 | AG27: 1133922.928 | AH27: 0 | AI27: 0 | AJ27: 0 | AK27: 456525.3433 | AL27: 0 | AM27: 0 | AN27: 0 | AO27: 49192.51185 | AP27: 0 | AQ27: 0 | AR27: 0 | AS27: 1688761.425
B28: =Prop2019DistTar!B28 -> Large Business - LVMS 6.0+ GWh | D28: 3060.085 | E28: 2.225 | F28: 0 | G28: 0 | H28: 0 | I28: 1.018 | J28: 0 | K28: 0 | L28: 0 | M28: 2.537 | N28: 0 | O28: 0 | P28: 0 | R28: =Prop2019DistTar!AF28 -> 31.26710731 | S28: =Prop2019DistTar!AG28 -> 45265727.44 | T28: =Prop2019DistTar!AH28 -> 0 | U28: =Prop2019DistTar!AI28 -> 0 | V28: =Prop2019DistTar!AJ28 -> 0 | W28: =Prop2019DistTar!AK28 -> 35236918.99 | X28: =Prop2019DistTar!AL28 -> 0 | Y28: =Prop2019DistTar!AM28 -> 0 | Z28: =Prop2019DistTar!AN28 -> 0 | AA28: =Prop2019DistTar!AO28 -> 31405.6672 | AB28: =Prop2019DistTar!AP28 -> 0 | AC28: =Prop2019DistTar!AQ28 -> 0 | AD28: =Prop2019DistTar!AR28 -> 0 | AF28: 95680.00607 | AG28: 1007162.436 | AH28: 0 | AI28: 0 | AJ28: 0 | AK28: 358711.8353 | AL28: 0 | AM28: 0 | AN28: 0 | AO28: 79676.17769 | AP28: 0 | AQ28: 0 | AR28: 0 | AS28: 1541230.455
B29: =Prop2019DistTar!B29 -> Large Business - HV | D29: 7214.176 | E29: 2.424 | F29: 0 | G29: 0 | H29: 0 | I29: 0.757 | J29: 0 | K29: 0 | L29: 0 | M29: 2.321 | N29: 0 | O29: 0 | P29: 0 | R29: =Prop2019DistTar!AF29 -> 82 | S29: =Prop2019DistTar!AG29 -> 234092242.4 | T29: =Prop2019DistTar!AH29 -> 0 | U29: =Prop2019DistTar!AI29 -> 0 | V29: =Prop2019DistTar!AJ29 -> 0 | W29: =Prop2019DistTar!AK29 -> 185725976.8 | X29: =Prop2019DistTar!AL29 -> 0 | Y29: =Prop2019DistTar!AM29 -> 0 | Z29: =Prop2019DistTar!AN29 -> 0 | AA29: =Prop2019DistTar!AO29 -> 172015.5139 | AB29: =Prop2019DistTar!AP29 -> 0 | AC29: =Prop2019DistTar!AQ29 -> 0 | AD29: =Prop2019DistTar!AR29 -> 0 | AF29: 591562.432 | AG29: 5674395.957 | AH29: 0 | AI29: 0 | AJ29: 0 | AK29: 1405945.645 | AL29: 0 | AM29: 0 | AN29: 0 | AO29: 399248.0078 | AP29: 0 | AQ29: 0 | AR29: 0 | AS29: 8071152.041
B30: =Prop2019DistTar!B30 -> Large Business – HVEN | D30: 7214.176 | E30: 2.249 | F30: 0 | G30: 0 | H30: 0 | I30: 0.757 | J30: 0 | K30: 0 | L30: 0 | M30: 2.249 | N30: 0 | O30: 0 | P30: 0 | R30: =Prop2019DistTar!AF30 -> 2 | S30: =Prop2019DistTar!AG30 -> 19354907.87 | T30: =Prop2019DistTar!AH30 -> 0 | U30: =Prop2019DistTar!AI30 -> 0 | V30: =Prop2019DistTar!AJ30 -> 0 | W30: =Prop2019DistTar!AK30 -> 15176809.37 | X30: =Prop2019DistTar!AL30 -> 0 | Y30: =Prop2019DistTar!AM30 -> 0 | Z30: =Prop2019DistTar!AN30 -> 0 | AA30: =Prop2019DistTar!AO30 -> 3213.3352 | AB30: =Prop2019DistTar!AP30 -> 0 | AC30: =Prop2019DistTar!AQ30 -> 0 | AD30: =Prop2019DistTar!AR30 -> 0 | AF30: 14428.352 | AG30: 435291.8779 | AH30: 0 | AI30: 0 | AJ30: 0 | AK30: 114888.447 | AL30: 0 | AM30: 0 | AN30: 0 | AO30: 7226.790865 | AP30: 0 | AQ30: 0 | AR30: 0 | AS30: 571835.4677
B31: =Prop2019DistTar!B31 -> Large Business - HVRF | D31: 7214.176 | E31: 2.428 | F31: 0 | G31: 0 | H31: 0 | I31: 0.757 | J31: 0 | K31: 0 | L31: 0 | M31: 5.627 | N31: 0 | O31: 0 | P31: 0 | R31: =Prop2019DistTar!AF31 -> 4.649315068 | S31: =Prop2019DistTar!AG31 -> 47442355.76 | T31: =Prop2019DistTar!AH31 -> 0 | U31: =Prop2019DistTar!AI31 -> 0 | V31: =Prop2019DistTar!AJ31 -> 0 | W31: =Prop2019DistTar!AK31 -> 41773511.2 | X31: =Prop2019DistTar!AL31 -> 0 | Y31: =Prop2019DistTar!AM31 -> 0 | Z31: =Prop2019DistTar!AN31 -> 0 | AA31: =Prop2019DistTar!AO31 -> 26423.3271 | AB31: =Prop2019DistTar!AP31 -> 0 | AC31: =Prop2019DistTar!AQ31 -> 0 | AD31: =Prop2019DistTar!AR31 -> 0 | AF31: 33540.97718 | AG31: 1151900.398 | AH31: 0 | AI31: 0 | AJ31: 0 | AK31: 316225.4798 | AL31: 0 | AM31: 0 | AN31: 0 | AO31: 148684.0616 | AP31: 0 | AQ31: 0 | AR31: 0 | AS31: 1650350.916
B32: =Prop2019DistTar!B32 -> Large Business - HV Ann Cons >= 55GWh | D32: 7991.139 | E32: 2.232 | F32: 0 | G32: 0 | H32: 0 | I32: 0.726 | J32: 0 | K32: 0 | L32: 0 | M32: 5.373 | N32: 0 | O32: 0 | P32: 0 | R32: =Prop2019DistTar!AF32 -> 1.084931507 | S32: =Prop2019DistTar!AG32 -> 24210050.04 | T32: =Prop2019DistTar!AH32 -> 0 | U32: =Prop2019DistTar!AI32 -> 0 | V32: =Prop2019DistTar!AJ32 -> 0 | W32: =Prop2019DistTar!AK32 -> 21527851.13 | X32: =Prop2019DistTar!AL32 -> 0 | Y32: =Prop2019DistTar!AM32 -> 0 | Z32: =Prop2019DistTar!AN32 -> 0 | AA32: =Prop2019DistTar!AO32 -> 11217.80112 | AB32: =Prop2019DistTar!AP32 -> 0 | AC32: =Prop2019DistTar!AQ32 -> 0 | AD32: =Prop2019DistTar!AR32 -> 0 | AF32: 8669.838477 | AG32: 540368.3168 | AH32: 0 | AI32: 0 | AJ32: 0 | AK32: 156292.1992 | AL32: 0 | AM32: 0 | AN32: 0 | AO32: 60273.24541 | AP32: 0 | AQ32: 0 | AR32: 0 | AS32: 765603.5999
B33: =Prop2019DistTar!B33 -> Large Business - Subtransmission | D33: 12678.034 | E33: 1.955 | F33: 0 | G33: 0 | H33: 0 | I33: 0.499 | J33: 0 | K33: 0 | L33: 0 | M33: 3.784 | N33: 0 | O33: 0 | P33: 0 | R33: =Prop2019DistTar!AF33 -> 2 | S33: =Prop2019DistTar!AG33 -> 110447526.3 | T33: =Prop2019DistTar!AH33 -> 0 | U33: =Prop2019DistTar!AI33 -> 0 | V33: =Prop2019DistTar!AJ33 -> 0 | W33: =Prop2019DistTar!AK33 -> 119100805.6 | X33: =Prop2019DistTar!AL33 -> 0 | Y33: =Prop2019DistTar!AM33 -> 0 | Z33: =Prop2019DistTar!AN33 -> 0 | AA33: =Prop2019DistTar!AO33 -> 39635.49 | AB33: =Prop2019DistTar!AP33 -> 0 | AC33: =Prop2019DistTar!AQ33 -> 0 | AD33: =Prop2019DistTar!AR33 -> 0 | AF33: 25356.068 | AG33: 2159249.139 | AH33: 0 | AI33: 0 | AJ33: 0 | AK33: 594313.0197 | AL33: 0 | AM33: 0 | AN33: 0 | AO33: 149980.6942 | AP33: 0 | AQ33: 0 | AR33: 0 | AS33: 2928898.921
B34: =Prop2019DistTar!B34 -> Large Business - Subtransmission MA | D34: 12678.034 | E34: 1.955 | F34: 0 | G34: 0 | H34: 0 | I34: 0.499 | J34: 0 | K34: 0 | L34: 0 | M34: 3.803 | N34: 0 | O34: 0 | P34: 0 | R34: =Prop2019DistTar!AF34 -> 1 | S34: =Prop2019DistTar!AG34 -> 68232338.71 | T34: =Prop2019DistTar!AH34 -> 0 | U34: =Prop2019DistTar!AI34 -> 0 | V34: =Prop2019DistTar!AJ34 -> 0 | W34: =Prop2019DistTar!AK34 -> 67928284.49 | X34: =Prop2019DistTar!AL34 -> 0 | Y34: =Prop2019DistTar!AM34 -> 0 | Z34: =Prop2019DistTar!AN34 -> 0 | AA34: =Prop2019DistTar!AO34 -> 42484 | AB34: =Prop2019DistTar!AP34 -> 0 | AC34: =Prop2019DistTar!AQ34 -> 0 | AD34: =Prop2019DistTar!AR34 -> 0 | AF34: 12678.034 | AG34: 1333942.222 | AH34: 0 | AI34: 0 | AJ34: 0 | AK34: 338962.1396 | AL34: 0 | AM34: 0 | AN34: 0 | AO34: 161566.652 | AP34: 0 | AQ34: 0 | AR34: 0 | AS34: 1847149.047
B35: =Prop2019DistTar!B35 -> Large Business - Subtransmission EG | D35: 4046.972 | E35: 1.986 | F35: 0 | G35: 0 | H35: 0 | I35: 0.508 | J35: 0 | K35: 0 | L35: 0 | M35: 4.369 | N35: 0 | O35: 0 | P35: 0 | R35: =Prop2019DistTar!AF35 -> 1 | S35: =Prop2019DistTar!AG35 -> 7138026.819 | T35: =Prop2019DistTar!AH35 -> 0 | U35: =Prop2019DistTar!AI35 -> 0 | V35: =Prop2019DistTar!AJ35 -> 0 | W35: =Prop2019DistTar!AK35 -> 8479174.156 | X35: =Prop2019DistTar!AL35 -> 0 | Y35: =Prop2019DistTar!AM35 -> 0 | Z35: =Prop2019DistTar!AN35 -> 0 | AA35: =Prop2019DistTar!AO35 -> 36401.09 | AB35: =Prop2019DistTar!AP35 -> 0 | AC35: =Prop2019DistTar!AQ35 -> 0 | AD35: =Prop2019DistTar!AR35 -> 0 | AF35: 4046.972 | AG35: 141761.2126 | AH35: 0 | AI35: 0 | AJ35: 0 | AK35: 43074.20471 | AL35: 0 | AM35: 0 | AN35: 0 | AO35: 159036.3622 | AP35: 0 | AQ35: 0 | AR35: 0 | AS35: 347918.7515
AF36: 0 | AG36: 0 | AH36: 0 | AI36: 0 | AJ36: 0 | AK36: 0 | AL36: 0 | AM36: 0 | AN36: 0 | AO36: 0 | AP36: 0 | AQ36: 0 | AR36: 0 | AS36: 0
AF37: 0 | AG37: 0 | AH37: 0 | AI37: 0 | AJ37: 0 | AK37: 0 | AL37: 0 | AM37: 0 | AN37: 0 | AO37: 0 | AP37: 0 | AQ37: 0 | AR37: 0 | AS37: 0
AF38: 0 | AG38: 0 | AH38: 0 | AI38: 0 | AJ38: 0 | AK38: 0 | AL38: 0 | AM38: 0 | AN38: =L38/100*Z38 -> 0 | AO38: 0 | AP38: 0 | AQ38: 0 | AR38: 0 | AS38: 0
AF39: 0 | AG39: 0 | AH39: 0 | AI39: 0 | AJ39: 0 | AK39: 0 | AL39: 0 | AM39: 0 | AN39: 0 | AO39: 0 | AP39: 0 | AQ39: 0 | AR39: 0 | AS39: 0
AF40: 0 | AG40: 0 | AH40: 0 | AI40: 0 | AJ40: 0 | AK40: 0 | AL40: 0 | AM40: 0 | AN40: 0 | AO40: 0 | AP40: 0 | AQ40: 0 | AR40: 0 | AS40: 0
AF41: 0 | AG41: 0 | AH41: 0 | AI41: 0 | AJ41: 0 | AK41: 0 | AL41: 0 | AM41: 0 | AN41: 0 | AO41: 0 | AP41: 0 | AQ41: 0 | AR41: 0 | AS41: 0
AF42: 0 | AG42: 0 | AH42: 0 | AI42: 0 | AJ42: 0 | AK42: 0 | AL42: 0 | AM42: 0 | AN42: 0 | AO42: 0 | AP42: 0 | AQ42: 0 | AR42: 0 | AS42: 0
AF43: 0 | AG43: 0 | AH43: 0 | AI43: 0 | AJ43: 0 | AK43: 0 | AL43: 0 | AM43: 0 | AN43: 0 | AO43: 0 | AP43: 0 | AQ43: 0 | AR43: 0 | AS43: 0
AF44: 0 | AG44: 0 | AH44: 0 | AI44: 0 | AJ44: 0 | AK44: 0 | AL44: 0 | AM44: 0 | AN44: 0 | AO44: 0 | AP44: 0 | AQ44: 0 | AR44: 0 | AS44: 0
AF45: 0 | AG45: 0 | AH45: 0 | AI45: 0 | AJ45: 0 | AK45: 0 | AL45: 0 | AM45: 0 | AN45: 0 | AO45: 0 | AP45: 0 | AQ45: 0 | AR45: 0 | AS45: 0
AF46: 0 | AG46: 0 | AH46: 0 | AI46: 0 | AJ46: 0 | AK46: 0 | AL46: 0 | AM46: 0 | AN46: 0 | AO46: 0 | AP46: 0 | AQ46: 0 | AR46: 0 | AS46: 0
AF47: 0 | AG47: 0 | AH47: 0 | AI47: 0 | AJ47: 0 | AK47: 0 | AL47: 0 | AM47: 0 | AN47: 0 | AO47: 0 | AP47: 0 | AQ47: 0 | AR47: 0 | AS47: 0
AF48: 0 | AG48: 0 | AH48: 0 | AI48: 0 | AJ48: 0 | AK48: 0 | AL48: 0 | AM48: 0 | AN48: 0 | AO48: 0 | AP48: 0 | AQ48: 0 | AR48: 0 | AS48: 0
AF49: 0 | AG49: 0 | AH49: 0 | AI49: 0 | AJ49: 0 | AK49: 0 | AL49: 0 | AM49: 0 | AN49: 0 | AO49: 0 | AP49: 0 | AQ49: 0 | AR49: 0 | AS49: 0
AF50: 0 | AG50: 0 | AH50: 0 | AI50: 0 | AJ50: 0 | AK50: 0 | AL50: 0 | AM50: 0 | AN50: 0 | AO50: 0 | AP50: 0 | AQ50: 0 | AR50: 0 | AS50: 0
AF51: 0 | AG51: 0 | AH51: 0 | AI51: 0 | AJ51: 0 | AK51: 0 | AL51: 0 | AM51: 0 | AN51: 0 | AO51: 0 | AP51: 0 | AQ51: 0 | AR51: 0 | AS51: 0
AF52: 0 | AG52: 0 | AH52: 0 | AI52: 0 | AJ52: 0 | AK52: 0 | AL52: 0 | AM52: 0 | AN52: 0 | AO52: 0 | AP52: 0 | AQ52: 0 | AR52: 0 | AS52: 0
AF53: 0 | AG53: 0 | AH53: 0 | AI53: 0 | AJ53: 0 | AK53: 0 | AL53: 0 | AM53: 0 | AN53: 0 | AO53: 0 | AP53: 0 | AQ53: 0 | AR53: 0 | AS53: 0
AF54: 0 | AG54: 0 | AH54: 0 | AI54: 0 | AJ54: 0 | AK54: 0 | AL54: 0 | AM54: 0 | AN54: 0 | AO54: 0 | AP54: 0 | AQ54: 0 | AR54: 0 | AS54: 0
AF55: 0 | AG55: 0 | AH55: 0 | AI55: 0 | AJ55: 0 | AK55: 0 | AL55: 0 | AM55: 0 | AN55: 0 | AO55: 0 | AP55: 0 | AQ55: 0 | AR55: 0 | AS55: 0
AF56: 0 | AG56: 0 | AH56: 0 | AI56: 0 | AJ56: 0 | AK56: 0 | AL56: 0 | AM56: 0 | AN56: 0 | AO56: 0 | AP56: 0 | AQ56: 0 | AR56: 0 | AS56: 0
AF57: 0 | AG57: 0 | AH57: 0 | AI57: 0 | AJ57: 0 | AK57: 0 | AL57: 0 | AM57: 0 | AN57: 0 | AO57: 0 | AP57: 0 | AQ57: 0 | AR57: 0 | AS57: 0
AF58: 0 | AG58: 0 | AH58: 0 | AI58: 0 | AJ58: 0 | AK58: 0 | AL58: 0 | AM58: 0 | AN58: 0 | AO58: 0 | AP58: 0 | AQ58: 0 | AR58: 0 | AS58: 0
AF59: 0 | AG59: 0 | AH59: 0 | AI59: 0 | AJ59: 0 | AK59: 0 | AL59: 0 | AM59: 0 | AN59: 0 | AO59: 0 | AP59: 0 | AQ59: 0 | AR59: 0 | AS59: 0
AF60: 0 | AG60: 0 | AH60: 0 | AI60: 0 | AJ60: 0 | AK60: 0 | AL60: 0 | AM60: 0 | AN60: 0 | AO60: 0 | AP60: 0 | AQ60: 0 | AR60: 0 | AS60: 0
AF61: 0 | AG61: 0 | AH61: 0 | AI61: 0 | AJ61: 0 | AK61: 0 | AL61: 0 | AM61: 0 | AN61: 0 | AO61: 0 | AP61: 0 | AQ61: 0 | AR61: 0 | AS61: 0
AF62: 0 | AG62: 0 | AH62: 0 | AI62: 0 | AJ62: 0 | AK62: 0 | AL62: 0 | AM62: 0 | AN62: 0 | AO62: 0 | AP62: 0 | AQ62: 0 | AR62: 0 | AS62: 0
AF63: 0 | AG63: 0 | AH63: 0 | AI63: 0 | AJ63: 0 | AK63: 0 | AL63: 0 | AM63: 0 | AN63: 0 | AO63: 0 | AP63: 0 | AQ63: 0 | AR63: 0 | AS63: 0
AF64: 0 | AG64: 0 | AH64: 0 | AI64: 0 | AJ64: 0 | AK64: 0 | AL64: 0 | AM64: 0 | AN64: 0 | AO64: 0 | AP64: 0 | AQ64: 0 | AR64: 0 | AS64: 0
AF65: 0 | AG65: 0 | AH65: 0 | AI65: 0 | AJ65: 0 | AK65: 0 | AL65: 0 | AM65: 0 | AN65: 0 | AO65: 0 | AP65: 0 | AQ65: 0 | AR65: 0 | AS65: 0
R66: =SUM(R6:R65) -> 348558.5011 | S66: 3006410211 | T66: 1368615.722 | U66: 960125.0095 | V66: 1784990.184 | W66: 1284415686 | X66: 1167051.999 | Y66: =SUM(Y6:Y65) -> 0 | Z66: 0 | AA66: 905938.4563 | AB66: 0 | AC66: 0 | AD66: 0 | AF66: =SUM(AF6:AF65) -> 1340918.156 | AG66: 37144338.36 | AH66: 4092.161009 | AI66: 710.492507 | AJ66: 5337.12065 | AK66: 10302049.59 | AL66: 198.3988399 | AM66: =SUM(AM6:AM65) -> 0 | AN66: 0 | AO66: 1975058.368 | AP66: 0 | AQ66: 0 | AR66: 0 | AS66: 50772702.64

Sheet Est2018TransRev
B1: ="Tariff Approval - "&'Model update'!C3 -> Tariff Approval - Jemena
B3: ="ESTIMATED "&'Model update'!C8&" TRANSMISSION TARIFF REVENUE" -> ESTIMATED 2018 TRANSMISSION TARIFF REVENUE
D4: ="Current Transmission Tariffs (Pt-1) for "&'Model update'!$C$8 -> Current Transmission Tariffs (Pt-1) for 2018 | R4: ="Estimated Quantities (Qt-1) for "&'Model update'!$C$8 -> Estimated Quantities (Qt-1) for 2018 | AF4: ="Estimated Revenue (Pt-1 "&'Model update'!$C$8&")*(Qt-1 " &'Model update'!$C$8&")" -> Estimated Revenue (Pt-1 2018)*(Qt-1 2018)
B5: ="Tariffs "&'Model update'!C8 -> Tariffs 2018 | D5: CurrentTar Fixed | E5: CurrentTar PkBlk1 | F5: CurrentTar Shoulder summer | G5: CurrentTar peak non-summer | H5: CurrentTar Shoulder non-summer | I5: CurrentTar OPkBlk1 | J5: CurrentTar off peak non-summer | K5: CurrentTar OPkBlk3 | L5: CurrentTar OPkBlk4 | M5: CurrentTar DemBlk1 | N5: CurrentTar DemBlk2 | O5: CurrentTar DemBlk3 | P5: CurrentTar DemBlk4 | R5: EstVol Fixed | S5: EstVol PkBlk1 | T5: EstVol Shoulder summer | U5: EstVol peak non-summer | V5: EstVol Shoulder non-summer | W5: EstVol OPkBlk1 | X5: EstVol off peak non-summer | Y5: EstVol OPkBlk3 | Z5: EstVol OPkBlk4 | AA5: EstVol DemBlk1 | AB5: EstVol DemBlk2 | AC5: EstVol DemBlk3 | AD5: EstVol DemBlk4 | AF5: EstRev Fixed | AG5: EstRev PkBlk1 | AH5: EstRev Shoulder summer | AI5: EstRev peak non-summer | AJ5: EstRev Shoulder non-summer | AK5: EstRev OPkBlk1 | AL5: EstRev off peak non-summer | AM5: EstRev OPkBlk3 | AN5: EstRev OPkBlk4 | AO5: EstRev DemBlk1 | AP5: EstRev DemBlk2 | AQ5: EstRev DemBlk3 | AR5: EstRev DemBlk4 | AS5: EstRev Total
B6: =Est2018DistRev!B6 -> Residential - General Purpose | D6: 0.3 | E6: 0.499 | F6: 0 | G6: 0 | H6: 0 | I6: 0 | J6: 0 | K6: 0 | L6: 0 | M6: 0 | N6: 0 | O6: 0 | P6: 0 | R6: =Est2018DistRev!R6 -> 291394.2956 | S6: =Est2018DistRev!S6 -> 1218137238 | T6: =Est2018DistRev!T6 -> 0 | U6: =Est2018DistRev!U6 -> 0 | V6: =Est2018DistRev!V6 -> 0 | W6: =Est2018DistRev!W6 -> 0 | X6: =Est2018DistRev!X6 -> 0 | Y6: =Est2018DistRev!Y6 -> 0 | Z6: =Est2018DistRev!Z6 -> 0 | AA6: =Est2018DistRev!AA6 -> 0 | AB6: =Est2018DistRev!AB6 -> 0 | AC6: =Est2018DistRev!AC6 -> 0 | AD6: =Est2018DistRev!AD6 -> 0 | AF6: =D6*R6 -> 87418.28868 | AG6: =E6/100*S6 -> 6078504.819 | AH6: 0 | AI6: 0 | AJ6: 0 | AK6: 0 | AL6: 0 | AM6: 0 | AN6: 0 | AO6: =M6*AA6 -> 0 | AP6: 0 | AQ6: 0 | AR6: 0 | AS6: =SUM(AF6:AR6) -> 6165923.108
B7: =Est2018DistRev!B7 -> Residential - General Purpose Demand | D7: 0.3 | E7: 0.499 | F7: 0 | G7: 0 | H7: 0 | I7: 0 | J7: 0 | K7: 0 | L7: 0 | M7: 0 | N7: 0 | O7: 0 | P7: 0 | R7: =Est2018DistRev!R7 -> 10 | S7: =Est2018DistRev!S7 -> 136229.9896 | T7: =Est2018DistRev!T7 -> 0 | U7: =Est2018DistRev!U7 -> 0 | V7: =Est2018DistRev!V7 -> 0 | W7: =Est2018DistRev!W7 -> 0 | X7: =Est2018DistRev!X7 -> 0 | Y7: =Est2018DistRev!Y7 -> 0 | Z7: =Est2018DistRev!Z7 -> 0 | AA7: =Est2018DistRev!AA7 -> 50.58160812 | AB7: =Est2018DistRev!AB7 -> 0 | AC7: =Est2018DistRev!AC7 -> 0 | AD7: =Est2018DistRev!AD7 -> 0 | AF7: =D7*R7 -> 3 | AG7: =E7/100*S7 -> 679.7876482 | AH7: 0 | AI7: 0 | AJ7: 0 | AK7: 0 | AL7: 0 | AM7: 0 | AN7: 0 | AO7: =M7*AA7 -> 0 | AP7: =N7*AB7 -> 0 | AQ7: =O7*AC7 -> 0 | AR7: =P7*AD7 -> 0 | AS7: =SUM(AF7:AR7) -> 682.7876482
B8: =Est2018DistRev!B8 -> Residential - Flexible | D8: 0.3 | E8: 0.736 | F8: 0.499 | G8: 0.736 | H8: 0.499 | I8: 0.021 | J8: 0.021 | K8: 0 | L8: 0 | M8: 0 | N8: 0 | O8: 0 | P8: 0 | R8: =Est2018DistRev!R8 -> 1261.272197 | S8: =Est2018DistRev!S8 -> 622144.1999 | T8: =Est2018DistRev!T8 -> 1166862.191 | U8: =Est2018DistRev!U8 -> 818588.8515 | V8: =Est2018DistRev!V8 -> 1521857.102 | W8: =Est2018DistRev!W8 -> 1235258.378 | X8: =Est2018DistRev!X8 -> 995011.8437 | Y8: =Est2018DistRev!Y8 -> 0 | Z8: =Est2018DistRev!Z8 -> 0 | AA8: =Est2018DistRev!AA8 -> 0 | AB8: =Est2018DistRev!AB8 -> 0 | AC8: =Est2018DistRev!AC8 -> 0 | AD8: =Est2018DistRev!AD8 -> 0 | AF8: 378.3816592 | AG8: 4578.981311 | AH8: 5822.642333 | AI8: 6024.813947 | AJ8: 7594.066941 | AK8: 259.4042594 | AL8: 208.9524872 | AM8: 0 | AN8: 0 | AO8: 0 | AP8: 0 | AQ8: 0 | AR8: 0 | AS8: 24867.24294
B9: =Est2018DistRev!B9 -> Residential - Time of Use Interval Meter | D9: 0.3 | E9: 0.736 | F9: 0 | G9: 0 | H9: 0 | I9: 0.414 | J9: 0 | K9: 0 | L9: 0 | M9: 0 | N9: 0 | O9: 0 | P9: 0 | R9: =Est2018DistRev!R9 -> 15741.20213 | S9: =Est2018DistRev!S9 -> 33234190.77 | T9: =Est2018DistRev!T9 -> 0 | U9: =Est2018DistRev!U9 -> 0 | V9: =Est2018DistRev!V9 -> 0 | W9: =Est2018DistRev!W9 -> 34397537.27 | X9: =Est2018DistRev!X9 -> 0 | Y9: =Est2018DistRev!Y9 -> 0 | Z9: =Est2018DistRev!Z9 -> 0 | AA9: =Est2018DistRev!AA9 -> 0 | AB9: =Est2018DistRev!AB9 -> 0 | AC9: =Est2018DistRev!AC9 -> 0 | AD9: =Est2018DistRev!AD9 -> 0 | AF9: 4722.360639 | AG9: 244603.6441 | AH9: 0 | AI9: 0 | AJ9: 0 | AK9: 142405.8043 | AL9: 0 | AM9: 0 | AN9: 0 | AO9: 0 | AP9: 0 | AQ9: 0 | AR9: 0 | AS9: 391731.809
B10: =Est2018DistRev!B10 -> Residential - TOU | D10: 0.3 | E10: 1.867 | F10: 0 | G10: 0 | H10: 0 | I10: 1.101 | J10: 0 | K10: 0 | L10: 0 | M10: 0 | N10: 0 | O10: 0 | P10: 0 | R10: =Est2018DistRev!R10 -> 1758.230063 | S10: =Est2018DistRev!S10 -> 6918791.855 | T10: =Est2018DistRev!T10 -> 0 | U10: =Est2018DistRev!U10 -> 0 | V10: =Est2018DistRev!V10 -> 0 | W10: =Est2018DistRev!W10 -> 7577131.448 | X10: =Est2018DistRev!X10 -> 0 | Y10: =Est2018DistRev!Y10 -> 0 | Z10: =Est2018DistRev!Z10 -> 0 | AA10: =Est2018DistRev!AA10 -> 0 | AB10: =Est2018DistRev!AB10 -> 0 | AC10: =Est2018DistRev!AC10 -> 0 | AD10: =Est2018DistRev!AD10 -> 0 | AF10: 527.4690189 | AG10: 129173.8439 | AH10: 0 | AI10: 0 | AJ10: 0 | AK10: 83424.21724 | AL10: 0 | AM10: 0 | AN10: 0 | AO10: 0 | AP10: 0 | AQ10: 0 | AR10: 0 | AS10: 213125.5302
B11: =Est2018DistRev!B11 -> Residential - Off Peak Only | D11: 0 | E11: 0 | F11: 0 | G11: 0 | H11: 0 | I11: 0.831 | J11: 0 | K11: 0 | L11: 0 | M11: 0 | N11: 0 | O11: 0 | P11: 0 | R11: =Est2018DistRev!R11 -> 0 | S11: =Est2018DistRev!S11 -> 0 | T11: =Est2018DistRev!T11 -> 0 | U11: =Est2018DistRev!U11 -> 0 | V11: =Est2018DistRev!V11 -> 0 | W11: =Est2018DistRev!W11 -> 34373741.33 | X11: =Est2018DistRev!X11 -> 0 | Y11: =Est2018DistRev!Y11 -> 0 | Z11: =Est2018DistRev!Z11 -> 0 | AA11: =Est2018DistRev!AA11 -> 0 | AB11: =Est2018DistRev!AB11 -> 0 | AC11: =Est2018DistRev!AC11 -> 0 | AD11: =Est2018DistRev!AD11 -> 0 | AF11: 0 | AG11: 0 | AH11: 0 | AI11: 0 | AJ11: 0 | AK11: 285645.7905 | AL11: 0 | AM11: 0 | AN11: 0 | AO11: 0 | AP11: 0 | AQ11: 0 | AR11: 0 | AS11: 285645.7905
B12: =Est2018DistRev!B12 -> Small Business - General Purpose | D12: 1.015 | E12: 0.993 | F12: 0 | G12: 0 | H12: 0 | I12: 0 | J12: 0 | K12: 0 | L12: 0 | M12: 0 | N12: 0 | O12: 0 | P12: 0 | R12: =Est2018DistRev!R12 -> 15300.52844 | S12: =Est2018DistRev!S12 -> 201179602 | T12: =Est2018DistRev!T12 -> 0 | U12: =Est2018DistRev!U12 -> 0 | V12: =Est2018DistRev!V12 -> 0 | W12: =Est2018DistRev!W12 -> 0 | X12: =Est2018DistRev!X12 -> 0 | Y12: =Est2018DistRev!Y12 -> 0 | Z12: =Est2018DistRev!Z12 -> 0 | AA12: =Est2018DistRev!AA12 -> 0 | AB12: =Est2018DistRev!AB12 -> 0 | AC12: =Est2018DistRev!AC12 -> 0 | AD12: =Est2018DistRev!AD12 -> 0 | AF12: 15530.03636 | AG12: 1997713.447 | AH12: 0 | AI12: 0 | AJ12: 0 | AK12: 0 | AL12: 0 | AM12: 0 | AN12: 0 | AO12: 0 | AP12: 0 | AQ12: 0 | AR12: 0 | AS12: 2013243.484
B13: =Est2018DistRev!B13 -> Small Business - General Purpose Demand | D13: 1.015 | E13: 0.993 | F13: 0 | G13: 0 | H13: 0 | I13: 0 | J13: 0 | K13: 0 | L13: 0 | M13: 0 | N13: 0 | O13: 0 | P13: 0 | R13: =Est2018DistRev!R13 -> 5 | S13: =Est2018DistRev!S13 -> 350786.2516 | T13: =Est2018DistRev!T13 -> 0 | U13: =Est2018DistRev!U13 -> 0 | V13: =Est2018DistRev!V13 -> 0 | W13: =Est2018DistRev!W13 -> 0 | X13: =Est2018DistRev!X13 -> 0 | Y13: =Est2018DistRev!Y13 -> 0 | Z13: =Est2018DistRev!Z13 -> 0 | AA13: =Est2018DistRev!AA13 -> 120.4626903 | AB13: =Est2018DistRev!AB13 -> 0 | AC13: =Est2018DistRev!AC13 -> 0 | AD13: =Est2018DistRev!AD13 -> 0 | AF13: 5.075 | AG13: 3483.307478 | AH13: 0 | AI13: 0 | AJ13: 0 | AK13: 0 | AL13: 0 | AM13: 0 | AN13: 0 | AO13: 0 | AP13: 0 | AQ13: 0 | AR13: 0 | AS13: 3488.382478
B14: =Est2018DistRev!B14 -> Small Business - TOU Weekdays | D14: 13.356 | E14: 1.522 | F14: 0 | G14: 0 | H14: 0 | I14: 0.848 | J14: 0 | K14: 0 | L14: 0 | M14: 0 | N14: 0 | O14: 0 | P14: 0 | R14: =Est2018DistRev!R14 -> 7690.730324 | S14: =Est2018DistRev!S14 -> 173895220.7 | T14: =Est2018DistRev!T14 -> 0 | U14: =Est2018DistRev!U14 -> 0 | V14: =Est2018DistRev!V14 -> 0 | W14: =Est2018DistRev!W14 -> 113418942.2 | X14: =Est2018DistRev!X14 -> 0 | Y14: =Est2018DistRev!Y14 -> 0 | Z14: =Est2018DistRev!Z14 -> 0 | AA14: =Est2018DistRev!AA14 -> 0 | AB14: =Est2018DistRev!AB14 -> 0 | AC14: =Est2018DistRev!AC14 -> 0 | AD14: =Est2018DistRev!AD14 -> 0 | AF14: 102717.3942 | AG14: 2646685.26 | AH14: 0 | AI14: 0 | AJ14: 0 | AK14: 961792.6297 | AL14: 0 | AM14: 0 | AN14: 0 | AO14: 0 | AP14: 0 | AQ14: 0 | AR14: 0 | AS14: 3711195.284
B15: =Est2018DistRev!B15 -> Small Business - TOU Weekdays Demand | D15: 126.999 | E15: 0.775 | F15: 0 | G15: 0 | H15: 0 | I15: 0.587 | J15: 0 | K15: 0 | L15: 0 | M15: 0.471 | N15: 0 | O15: 0 | P15: 0 | R15: =Est2018DistRev!R15 -> 595 | S15: =Est2018DistRev!S15 -> 62531289.1 | T15: =Est2018DistRev!T15 -> 0 | U15: =Est2018DistRev!U15 -> 0 | V15: =Est2018DistRev!V15 -> 0 | W15: =Est2018DistRev!W15 -> 43501833.37 | X15: =Est2018DistRev!X15 -> 0 | Y15: =Est2018DistRev!Y15 -> 0 | Z15: =Est2018DistRev!Z15 -> 0 | AA15: =Est2018DistRev!AA15 -> 53635.17502 | AB15: =Est2018DistRev!AB15 -> 0 | AC15: =Est2018DistRev!AC15 -> 0 | AD15: =Est2018DistRev!AD15 -> 0 | AF15: 75564.405 | AG15: 484617.4905 | AH15: 0 | AI15: 0 | AJ15: 0 | AK15: 255355.7619 | AL15: 0 | AM15: 0 | AN15: 0 | AO15: 25262.16743 | AP15: 0 | AQ15: 0 | AR15: 0 | AS15: 840799.8249
B16: =Est2018DistRev!B16 -> Small Business - TOU Opt out | D16: 126.999 | E16: 1.522 | F16: 0 | G16: 0 | H16: 0 | I16: 0.848 | J16: 0 | K16: 0 | L16: 0 | M16: 0 | N16: 0 | O16: 0 | P16: 0 | R16: =Est2018DistRev!R16 -> 5 | S16: =Est2018DistRev!S16 -> 525473.0177 | T16: =Est2018DistRev!T16 -> 0 | U16: =Est2018DistRev!U16 -> 0 | V16: =Est2018DistRev!V16 -> 0 | W16: =Est2018DistRev!W16 -> 365561.625 | X16: =Est2018DistRev!X16 -> 0 | Y16: =Est2018DistRev!Y16 -> 0 | Z16: =Est2018DistRev!Z16 -> 0 | AA16: =Est2018DistRev!AA16 -> 450.7157564 | AB16: =Est2018DistRev!AB16 -> 0 | AC16: =Est2018DistRev!AC16 -> 0 | AD16: =Est2018DistRev!AD16 -> 0 | AF16: 634.995 | AG16: 7997.699329 | AH16: 0 | AI16: 0 | AJ16: 0 | AK16: 3099.96258 | AL16: 0 | AM16: 0 | AN16: 0 | AO16: 0 | AP16: 0 | AQ16: 0 | AR16: 0 | AS16: 11732.65691
B17: =Est2018DistRev!B17 -> Small Business - TOU Extended | D17: 13.356 | E17: 1.395 | F17: 0 | G17: 0 | H17: 0 | I17: 0.885 | J17: 0 | K17: 0 | L17: 0 | M17: 0 | N17: 0 | O17: 0 | P17: 0 | R17: =Est2018DistRev!R17 -> 2378.349806 | S17: =Est2018DistRev!S17 -> 43931692.89 | T17: =Est2018DistRev!T17 -> 0 | U17: =Est2018DistRev!U17 -> 0 | V17: =Est2018DistRev!V17 -> 0 | W17: =Est2018DistRev!W17 -> 13443219.54 | X17: =Est2018DistRev!X17 -> 0 | Y17: =Est2018DistRev!Y17 -> 0 | Z17: =Est2018DistRev!Z17 -> 0 | AA17: =Est2018DistRev!AA17 -> 0 | AB17: =Est2018DistRev!AB17 -> 0 | AC17: =Est2018DistRev!AC17 -> 0 | AD17: =Est2018DistRev!AD17 -> 0 | AF17: 31765.24001 | AG17: 612847.1158 | AH17: 0 | AI17: 0 | AJ17: 0 | AK17: 118972.493 | AL17: 0 | AM17: 0 | AN17: 0 | AO17: 0 | AP17: 0 | AQ17: 0 | AR17: 0 | AS17: 763584.8487
B18: =Est2018DistRev!B18 -> Small Business - TOU Extended Demand | D18: 126.999 | E18: 1.248 | F18: 0 | G18: 0 | H18: 0 | I18: 0.571 | J18: 0 | K18: 0 | L18: 0 | M18: 0.471 | N18: 0 | O18: 0 | P18: 0 | R18: =Est2018DistRev!R18 -> 111 | S18: =Est2018DistRev!S18 -> 18609914.1 | T18: =Est2018DistRev!T18 -> 0 | U18: =Est2018DistRev!U18 -> 0 | V18: =Est2018DistRev!V18 -> 0 | W18: =Est2018DistRev!W18 -> 5472271.099 | X18: =Est2018DistRev!X18 -> 0 | Y18: =Est2018DistRev!Y18 -> 0 | Z18: =Est2018DistRev!Z18 -> 0 | AA18: =Est2018DistRev!AA18 -> 11388.5715 | AB18: =Est2018DistRev!AB18 -> 0 | AC18: =Est2018DistRev!AC18 -> 0 | AD18: =Est2018DistRev!AD18 -> 0 | AF18: 14096.889 | AG18: 232251.7279 | AH18: 0 | AI18: 0 | AJ18: 0 | AK18: 31246.66797 | AL18: 0 | AM18: 0 | AN18: 0 | AO18: 5364.017177 | AP18: 0 | AQ18: 0 | AR18: 0 | AS18: 282959.3021
B19: =Est2018DistRev!B19 -> Small Business - Unmetered Supply | D19: 0 | E19: 0.912 | F19: 0 | G19: 0 | H19: 0 | I19: 0.921 | J19: 0 | K19: 0 | L19: 0 | M19: 0 | N19: 0 | O19: 0 | P19: 0 | R19: =Est2018DistRev!R19 -> 0 | S19: =Est2018DistRev!S19 -> 9570716.92 | T19: =Est2018DistRev!T19 -> 0 | U19: =Est2018DistRev!U19 -> 0 | V19: =Est2018DistRev!V19 -> 0 | W19: =Est2018DistRev!W19 -> 21304839.88 | X19: =Est2018DistRev!X19 -> 0 | Y19: =Est2018DistRev!Y19 -> 0 | Z19: =Est2018DistRev!Z19 -> 0 | AA19: =Est2018DistRev!AA19 -> 0 | AB19: =Est2018DistRev!AB19 -> 0 | AC19: =Est2018DistRev!AC19 -> 0 | AD19: =Est2018DistRev!AD19 -> 0 | AF19: 0 | AG19: 87284.93831 | AH19: 0 | AI19: 0 | AJ19: 0 | AK19: 196217.5753 | AL19: 0 | AM19: 0 | AN19: 0 | AO19: 0 | AP19: 0 | AQ19: 0 | AR19: 0 | AS19: 283502.5136
B20: =Est2018DistRev!B20 -> Large Business - LV 0.4 - 0.8 GWh | D20: 135.805 | E20: 2.368 | F20: 0 | G20: 0 | H20: 0 | I20: 1.11 | J20: 0 | K20: 0 | L20: 0 | M20: 1.137 | N20: 0 | O20: 0 | P20: 0 | R20: =Est2018DistRev!R20 -> 749.7124853 | S20: =Est2018DistRev!S20 -> 172319345.3 | T20: =Est2018DistRev!T20 -> 0 | U20: =Est2018DistRev!U20 -> 0 | V20: =Est2018DistRev!V20 -> 0 | W20: =Est2018DistRev!W20 -> 110690940.6 | X20: =Est2018DistRev!X20 -> 0 | Y20: =Est2018DistRev!Y20 -> 0 | Z20: =Est2018DistRev!Z20 -> 0 | AA20: =Est2018DistRev!AA20 -> 149039.4351 | AB20: =Est2018DistRev!AB20 -> 0 | AC20: =Est2018DistRev!AC20 -> 0 | AD20: =Est2018DistRev!AD20 -> 0 | AF20: 101814.7041 | AG20: 4080522.097 | AH20: 0 | AI20: 0 | AJ20: 0 | AK20: 1228669.44 | AL20: 0 | AM20: 0 | AN20: 0 | AO20: 169457.8377 | AP20: 0 | AQ20: 0 | AR20: 0 | AS20: 5580464.079
B21: =Est2018DistRev!B21 -> Large Business – LVEN Annual Consumption <= 0.8 GWh | D21: 135.805 | E21: 2.299 | F21: 0 | G21: 0 | H21: 0 | I21: 1.11 | J21: 0 | K21: 0 | L21: 0 | M21: 1.491 | N21: 0 | O21: 0 | P21: 0 | R21: =Est2018DistRev!R21 -> 43.94245125 | S21: =Est2018DistRev!S21 -> 15886296.25 | T21: =Est2018DistRev!T21 -> 0 | U21: =Est2018DistRev!U21 -> 0 | V21: =Est2018DistRev!V21 -> 0 | W21: =Est2018DistRev!W21 -> 10973958.51 | X21: =Est2018DistRev!X21 -> 0 | Y21: =Est2018DistRev!Y21 -> 0 | Z21: =Est2018DistRev!Z21 -> 0 | AA21: =Est2018DistRev!AA21 -> 3916.039528 | AB21: =Est2018DistRev!AB21 -> 0 | AC21: =Est2018DistRev!AC21 -> 0 | AD21: =Est2018DistRev!AD21 -> 0 | AF21: 5967.604592 | AG21: 365225.9507 | AH21: 0 | AI21: 0 | AJ21: 0 | AK21: 121810.9395 | AL21: 0 | AM21: 0 | AN21: 0 | AO21: 5838.814937 | AP21: 0 | AQ21: 0 | AR21: 0 | AS21: 498843.3097
B22: =Est2018DistRev!B22 -> Large Business - LV 0.8+ - 2.2 GWh | D22: 287.517 | E22: 2.506 | F22: 0 | G22: 0 | H22: 0 | I22: 1.116 | J22: 0 | K22: 0 | L22: 0 | M22: 1.972 | N22: 0 | O22: 0 | P22: 0 | R22: =Est2018DistRev!R22 -> 365.5812896 | S22: =Est2018DistRev!S22 -> 267861226.6 | T22: =Est2018DistRev!T22 -> 0 | U22: =Est2018DistRev!U22 -> 0 | V22: =Est2018DistRev!V22 -> 0 | W22: =Est2018DistRev!W22 -> 185101735.7 | X22: =Est2018DistRev!X22 -> 0 | Y22: =Est2018DistRev!Y22 -> 0 | Z22: =Est2018DistRev!Z22 -> 0 | AA22: =Est2018DistRev!AA22 -> 176021.6236 | AB22: =Est2018DistRev!AB22 -> 0 | AC22: =Est2018DistRev!AC22 -> 0 | AD22: =Est2018DistRev!AD22 -> 0 | AF22: 105110.8356 | AG22: 6712602.339 | AH22: 0 | AI22: 0 | AJ22: 0 | AK22: 2065735.371 | AL22: 0 | AM22: 0 | AN22: 0 | AO22: 347114.6417 | AP22: 0 | AQ22: 0 | AR22: 0 | AS22: 9230563.187
B23: =Est2018DistRev!B23 -> Large Business - LVEN 0.8+ - 2.2 GWh | D23: 287.517 | E23: 2.285 | F23: 0 | G23: 0 | H23: 0 | I23: 1.116 | J23: 0 | K23: 0 | L23: 0 | M23: 2.496 | N23: 0 | O23: 0 | P23: 0 | R23: =Est2018DistRev!R23 -> 22.40332663 | S23: =Est2018DistRev!S23 -> 13579960.45 | T23: =Est2018DistRev!T23 -> 0 | U23: =Est2018DistRev!U23 -> 0 | V23: =Est2018DistRev!V23 -> 0 | W23: =Est2018DistRev!W23 -> 8933172.172 | X23: =Est2018DistRev!X23 -> 0 | Y23: =Est2018DistRev!Y23 -> 0 | Z23: =Est2018DistRev!Z23 -> 0 | AA23: =Est2018DistRev!AA23 -> 17103.65887 | AB23: =Est2018DistRev!AB23 -> 0 | AC23: =Est2018DistRev!AC23 -> 0 | AD23: =Est2018DistRev!AD23 -> 0 | AF23: 6441.337263 | AG23: 310302.0962 | AH23: 0 | AI23: 0 | AJ23: 0 | AK23: 99694.20144 | AL23: 0 | AM23: 0 | AN23: 0 | AO23: 42690.73253 | AP23: 0 | AQ23: 0 | AR23: 0 | AS23: 459128.3674
B24: =Est2018DistRev!B24 -> Large Business - LV 2.2+ - 6.0 GWh | D24: 1592.575 | E24: 2.582 | F24: 0 | G24: 0 | H24: 0 | I24: 1.115 | J24: 0 | K24: 0 | L24: 0 | M24: 2.033 | N24: 0 | O24: 0 | P24: 0 | R24: =Est2018DistRev!R24 -> 65.21522765 | S24: =Est2018DistRev!S24 -> 108173226.1 | T24: =Est2018DistRev!T24 -> 0 | U24: =Est2018DistRev!U24 -> 0 | V24: =Est2018DistRev!V24 -> 0 | W24: =Est2018DistRev!W24 -> 81788737.09 | X24: =Est2018DistRev!X24 -> 0 | Y24: =Est2018DistRev!Y24 -> 0 | Z24: =Est2018DistRev!Z24 -> 0 | AA24: =Est2018DistRev!AA24 -> 62864.83331 | AB24: =Est2018DistRev!AB24 -> 0 | AC24: =Est2018DistRev!AC24 -> 0 | AD24: =Est2018DistRev!AD24 -> 0 | AF24: 103860.1412 | AG24: 2793032.698 | AH24: 0 | AI24: 0 | AJ24: 0 | AK24: 911944.4185 | AL24: 0 | AM24: 0 | AN24: 0 | AO24: 127804.2061 | AP24: 0 | AQ24: 0 | AR24: 0 | AS24: 3936641.464
B25: =Est2018DistRev!B25 -> Large Business - LVEN 2.2+ GWh | D25: 1592.575 | E25: 2.134 | F25: 0 | G25: 0 | H25: 0 | I25: 1.111 | J25: 0 | K25: 0 | L25: 0 | M25: 3.515 | N25: 0 | O25: 0 | P25: 0 | R25: =Est2018DistRev!R25 -> 12.90726059 | S25: =Est2018DistRev!S25 -> 24107193 | T25: =Est2018DistRev!T25 -> 0 | U25: =Est2018DistRev!U25 -> 0 | V25: =Est2018DistRev!V25 -> 0 | W25: =Est2018DistRev!W25 -> 17356049 | X25: =Est2018DistRev!X25 -> 0 | Y25: =Est2018DistRev!Y25 -> 0 | Z25: =Est2018DistRev!Z25 -> 0 | AA25: =Est2018DistRev!AA25 -> 13050.8266 | AB25: =Est2018DistRev!AB25 -> 0 | AC25: =Est2018DistRev!AC25 -> 0 | AD25: =Est2018DistRev!AD25 -> 0 | AF25: 20555.78054 | AG25: 514447.4986 | AH25: 0 | AI25: 0 | AJ25: 0 | AK25: 192825.7044 | AL25: 0 | AM25: 0 | AN25: 0 | AO25: 45873.65551 | AP25: 0 | AQ25: 0 | AR25: 0 | AS25: 773702.6391
B26: =Est2018DistRev!B26 -> Large Business - LVMS 2.2+ - 6.0 GWh | D26: 1877.378 | E26: 2.794 | F26: 0 | G26: 0 | H26: 0 | I26: 1.108 | J26: 0 | K26: 0 | L26: 0 | M26: 2.66 | N26: 0 | O26: 0 | P26: 0 | R26: =Est2018DistRev!R26 -> 11.01899131 | S26: =Est2018DistRev!S26 -> 11690467 | T26: =Est2018DistRev!T26 -> 0 | U26: =Est2018DistRev!U26 -> 0 | V26: =Est2018DistRev!V26 -> 0 | W26: =Est2018DistRev!W26 -> 9430623 | X26: =Est2018DistRev!X26 -> 0 | Y26: =Est2018DistRev!Y26 -> 0 | Z26: =Est2018DistRev!Z26 -> 0 | AA26: =Est2018DistRev!AA26 -> 7985.577547 | AB26: =Est2018DistRev!AB26 -> 0 | AC26: =Est2018DistRev!AC26 -> 0 | AD26: =Est2018DistRev!AD26 -> 0 | AF26: 20686.81187 | AG26: 326631.648 | AH26: 0 | AI26: 0 | AJ26: 0 | AK26: 104491.3028 | AL26: 0 | AM26: 0 | AN26: 0 | AO26: 21241.63628 | AP26: 0 | AQ26: 0 | AR26: 0 | AS26: 473051.399
B27: =Est2018DistRev!B27 -> Large Business - LV 6.0+ GWh | D27: 3283.025 | E27: 2.279 | F27: 0 | G27: 0 | H27: 0 | I27: 1.107 | J27: 0 | K27: 0 | L27: 0 | M27: 2.22 | N27: 0 | O27: 0 | P27: 0 | R27: =Est2018DistRev!R27 -> 18.59386664 | S27: =Est2018DistRev!S27 -> 52965640 | T27: =Est2018DistRev!T27 -> 0 | U27: =Est2018DistRev!U27 -> 0 | V27: =Est2018DistRev!V27 -> 0 | W27: =Est2018DistRev!W27 -> 44387303 | X27: =Est2018DistRev!X27 -> 0 | Y27: =Est2018DistRev!Y27 -> 0 | Z27: =Est2018DistRev!Z27 -> 0 | AA27: =Est2018DistRev!AA27 -> 22863.47009 | AB27: =Est2018DistRev!AB27 -> 0 | AC27: =Est2018DistRev!AC27 -> 0 | AD27: =Est2018DistRev!AD27 -> 0 | AF27: 61044.12903 | AG27: 1207086.936 | AH27: 0 | AI27: 0 | AJ27: 0 | AK27: 491367.4442 | AL27: 0 | AM27: 0 | AN27: 0 | AO27: 50756.90361 | AP27: 0 | AQ27: 0 | AR27: 0 | AS27: 1810255.412
B28: =Est2018DistRev!B28 -> Large Business - LVMS 6.0+ GWh | D28: 3923.186 | E28: 2.393 | F28: 0 | G28: 0 | H28: 0 | I28: 1.107 | J28: 0 | K28: 0 | L28: 0 | M28: 2.758 | N28: 0 | O28: 0 | P28: 0 | R28: =Est2018DistRev!R28 -> 32.49022067 | S28: =Est2018DistRev!S28 -> 55887902 | T28: =Est2018DistRev!T28 -> 0 | U28: =Est2018DistRev!U28 -> 0 | V28: =Est2018DistRev!V28 -> 0 | W28: =Est2018DistRev!W28 -> 43505707 | X28: =Est2018DistRev!X28 -> 0 | Y28: =Est2018DistRev!Y28 -> 0 | Z28: =Est2018DistRev!Z28 -> 0 | AA28: =Est2018DistRev!AA28 -> 29643.8083 | AB28: =Est2018DistRev!AB28 -> 0 | AC28: =Est2018DistRev!AC28 -> 0 | AD28: =Est2018DistRev!AD28 -> 0 | AF28: 127465.1789 | AG28: 1337397.495 | AH28: 0 | AI28: 0 | AJ28: 0 | AK28: 481608.1765 | AL28: 0 | AM28: 0 | AN28: 0 | AO28: 81757.6233 | AP28: 0 | AQ28: 0 | AR28: 0 | AS28: 2028228.474
B29: =Est2018DistRev!B29 -> Large Business - HV | D29: 9618.901 | E29: 2.558 | F29: 0 | G29: 0 | H29: 0 | I29: 0.814 | J29: 0 | K29: 0 | L29: 0 | M29: 2.496 | N29: 0 | O29: 0 | P29: 0 | R29: =Est2018DistRev!R29 -> 69.69725069 | S29: =Est2018DistRev!S29 -> 230209280 | T29: =Est2018DistRev!T29 -> 0 | U29: =Est2018DistRev!U29 -> 0 | V29: =Est2018DistRev!V29 -> 0 | W29: =Est2018DistRev!W29 -> 182645281 | X29: =Est2018DistRev!X29 -> 0 | Y29: =Est2018DistRev!Y29 -> 0 | Z29: =Est2018DistRev!Z29 -> 0 | AA29: =Est2018DistRev!AA29 -> 178383.8421 | AB29: =Est2018DistRev!AB29 -> 0 | AC29: =Est2018DistRev!AC29 -> 0 | AD29: =Est2018DistRev!AD29 -> 0 | AF29: 670410.9544 | AG29: 5888753.382 | AH29: 0 | AI29: 0 | AJ29: 0 | AK29: 1486732.587 | AL29: 0 | AM29: 0 | AN29: 0 | AO29: 445246.0699 | AP29: 0 | AQ29: 0 | AR29: 0 | AS29: 8491142.994
B30: =Est2018DistRev!B30 -> Large Business – HVEN | D30: 9618.901 | E30: 2.295 | F30: 0 | G30: 0 | H30: 0 | I30: 0.814 | J30: 0 | K30: 0 | L30: 0 | M30: 2.418 | N30: 0 | O30: 0 | P30: 0 | R30: =Est2018DistRev!R30 -> 1.994535519 | S30: =Est2018DistRev!S30 -> 7360825 | T30: =Est2018DistRev!T30 -> 0 | U30: =Est2018DistRev!U30 -> 0 | V30: =Est2018DistRev!V30 -> 0 | W30: =Est2018DistRev!W30 -> 5771861 | X30: =Est2018DistRev!X30 -> 0 | Y30: =Est2018DistRev!Y30 -> 0 | Z30: =Est2018DistRev!Z30 -> 0 | AA30: =Est2018DistRev!AA30 -> 4004.584906 | AB30: =Est2018DistRev!AB30 -> 0 | AC30: =Est2018DistRev!AC30 -> 0 | AD30: =Est2018DistRev!AD30 -> 0 | AF30: 19185.2397 | AG30: 168930.9337 | AH30: 0 | AI30: 0 | AJ30: 0 | AK30: 46982.94854 | AL30: 0 | AM30: 0 | AN30: 0 | AO30: 9683.086302 | AP30: 0 | AQ30: 0 | AR30: 0 | AS30: 244782.2083
B31: =Est2018DistRev!B31 -> Large Business - HVRF | D31: 9618.901 | E31: 2.556 | F31: 0 | G31: 0 | H31: 0 | I31: 0.814 | J31: 0 | K31: 0 | L31: 0 | M31: 6.051 | N31: 0 | O31: 0 | P31: 0 | R31: =Est2018DistRev!R31 -> 4.901870764 | S31: =Est2018DistRev!S31 -> 46937577 | T31: =Est2018DistRev!T31 -> 0 | U31: =Est2018DistRev!U31 -> 0 | V31: =Est2018DistRev!V31 -> 0 | W31: =Est2018DistRev!W31 -> 41329048 | X31: =Est2018DistRev!X31 -> 0 | Y31: =Est2018DistRev!Y31 -> 0 | Z31: =Est2018DistRev!Z31 -> 0 | AA31: =Est2018DistRev!AA31 -> 28730.45636 | AB31: =Est2018DistRev!AB31 -> 0 | AC31: =Est2018DistRev!AC31 -> 0 | AD31: =Est2018DistRev!AD31 -> 0 | AF31: 47150.60959 | AG31: 1199724.468 | AH31: 0 | AI31: 0 | AJ31: 0 | AK31: 336418.4507 | AL31: 0 | AM31: 0 | AN31: 0 | AO31: 173847.9914 | AP31: 0 | AQ31: 0 | AR31: 0 | AS31: 1757141.52
B32: =Est2018DistRev!B32 -> Large Business - HV Ann Cons >= 55GWh | D32: 10245.05 | E32: 2.349 | F32: 0 | G32: 0 | H32: 0 | I32: 0.781 | J32: 0 | K32: 0 | L32: 0 | M32: 5.777 | N32: 0 | O32: 0 | P32: 0 | R32: =Est2018DistRev!R32 -> 1.994535519 | S32: =Est2018DistRev!S32 -> 59097684 | T32: =Est2018DistRev!T32 -> 0 | U32: =Est2018DistRev!U32 -> 0 | V32: =Est2018DistRev!V32 -> 0 | W32: =Est2018DistRev!W32 -> 52550331 | X32: =Est2018DistRev!X32 -> 0 | Y32: =Est2018DistRev!Y32 -> 0 | Z32: =Est2018DistRev!Z32 -> 0 | AA32: =Est2018DistRev!AA32 -> 11767.75472 | AB32: =Est2018DistRev!AB32 -> 0 | AC32: =Est2018DistRev!AC32 -> 0 | AD32: =Est2018DistRev!AD32 -> 0 | AF32: 20434.11612 | AG32: 1388204.597 | AH32: 0 | AI32: 0 | AJ32: 0 | AK32: 410418.0851 | AL32: 0 | AM32: 0 | AN32: 0 | AO32: 67982.319 | AP32: 0 | AQ32: 0 | AR32: 0 | AS32: 1887039.117
B33: =Est2018DistRev!B33 -> Large Business - Subtransmission | D33: 23050.971 | E33: 2.008 | F33: 0 | G33: 0 | H33: 0 | I33: 0.514 | J33: 0 | K33: 0 | L33: 0 | M33: 3.901 | N33: 0 | O33: 0 | P33: 0 | R33: =Est2018DistRev!R33 -> 0.9972677596 | S33: =Est2018DistRev!S33 -> 80383076 | T33: =Est2018DistRev!T33 -> 0 | U33: =Est2018DistRev!U33 -> 0 | V33: =Est2018DistRev!V33 -> 0 | W33: =Est2018DistRev!W33 -> 86680883 | X33: =Est2018DistRev!X33 -> 0 | Y33: =Est2018DistRev!Y33 -> 0 | Z33: =Est2018DistRev!Z33 -> 0 | AA33: =Est2018DistRev!AA33 -> 32216.67212 | AB33: =Est2018DistRev!AB33 -> 0 | AC33: =Est2018DistRev!AC33 -> 0 | AD33: =Est2018DistRev!AD33 -> 0 | AF33: =D33*R33 -> 22987.9902 | AG33: =E33/100*S33 -> 1614092.166 | AH33: 0 | AI33: 0 | AJ33: 0 | AK33: 445539.7386 | AL33: 0 | AM33: 0 | AN33: 0 | AO33: =M33*AA33 -> 125677.2379 | AP33: =N33*AB33 -> 0 | AQ33: =O33*AC33 -> 0 | AR33: =P33*AD33 -> 0 | AS33: =SUM(AF33:AR33) -> 2208297.133
B34: =Est2018DistRev!B34 -> Large Business - Subtransmission MA | D34: 23050.971 | E34: 2.008 | F34: 0 | G34: 0 | H34: 0 | I34: 0.514 | J34: 0 | K34: 0 | L34: 0 | M34: 3.921 | N34: 0 | O34: 0 | P34: 0 | R34: =Est2018DistRev!R34 -> 0.9972677596 | S34: =Est2018DistRev!S34 -> 73056848 | T34: =Est2018DistRev!T34 -> 0 | U34: =Est2018DistRev!U34 -> 0 | V34: =Est2018DistRev!V34 -> 0 | W34: =Est2018DistRev!W34 -> 72731295 | X34: =Est2018DistRev!X34 -> 0 | Y34: =Est2018DistRev!Y34 -> 0 | Z34: =Est2018DistRev!Z34 -> 0 | AA34: =Est2018DistRev!AA34 -> 47088.83491 | AB34: =Est2018DistRev!AB34 -> 0 | AC34: =Est2018DistRev!AC34 -> 0 | AD34: =Est2018DistRev!AD34 -> 0 | AF34: 22987.9902 | AG34: 1466981.508 | AH34: 0 | AI34: 0 | AJ34: 0 | AK34: 373838.8563 | AL34: 0 | AM34: 0 | AN34: 0 | AO34: 184635.3217 | AP34: 0 | AQ34: 0 | AR34: 0 | AS34: 2048443.676
B35: =Est2018DistRev!B35 -> Large Business - Subtransmission EG | D35: 5781.388 | E35: 2.04 | F35: 0 | G35: 0 | H35: 0 | I35: 0.523 | J35: 0 | K35: 0 | L35: 0 | M35: 4.721 | N35: 0 | O35: 0 | P35: 0 | R35: =Est2018DistRev!R35 -> 0.9972677596 | S35: =Est2018DistRev!S35 -> 665488 | T35: =Est2018DistRev!T35 -> 0 | U35: =Est2018DistRev!U35 -> 0 | V35: =Est2018DistRev!V35 -> 0 | W35: =Est2018DistRev!W35 -> 790525 | X35: =Est2018DistRev!X35 -> 0 | Y35: =Est2018DistRev!Y35 -> 0 | Z35: =Est2018DistRev!Z35 -> 0 | AA35: =Est2018DistRev!AA35 -> 27332.44 | AB35: =Est2018DistRev!AB35 -> 0 | AC35: =Est2018DistRev!AC35 -> 0 | AD35: =Est2018DistRev!AD35 -> 0 | AF35: =D35*R35 -> 5765.591858 | AG35: =E35/100*S35 -> 13575.9552 | AH35: =F35/100*T35 -> 0 | AI35: =G35/100*U35 -> 0 | AJ35: =H35/100*V35 -> 0 | AK35: =I35/100*W35 -> 4134.44575 | AL35: =J35/100*X35 -> 0 | AM35: =K35/100*Y35 -> 0 | AN35: =L35/100*Z35 -> 0 | AO35: =M35*AA35 -> 129036.4492 | AP35: =N35*AB35 -> 0 | AQ35: =O35*AC35 -> 0 | AR35: =P35*AD35 -> 0 | AS35: =SUM(AF35:AR35) -> 152512.442
AF36: 0 | AG36: 0 | AH36: 0 | AI36: 0 | AJ36: 0 | AK36: 0 | AL36: 0 | AM36: 0 | AN36: 0 | AO36: 0 | AP36: 0 | AQ36: 0 | AR36: 0 | AS36: 0
AF37: 0 | AG37: 0 | AH37: 0 | AI37: 0 | AJ37: 0 | AK37: 0 | AL37: 0 | AM37: 0 | AN37: 0 | AO37: 0 | AP37: 0 | AQ37: 0 | AR37: 0 | AS37: 0
AF38: 0 | AG38: 0 | AH38: 0 | AI38: 0 | AJ38: 0 | AK38: 0 | AL38: 0 | AM38: 0 | AN38: =L38/100*Z38 -> 0 | AO38: 0 | AP38: 0 | AQ38: 0 | AR38: 0 | AS38: 0
AF39: 0 | AG39: 0 | AH39: 0 | AI39: 0 | AJ39: 0 | AK39: 0 | AL39: 0 | AM39: 0 | AN39: 0 | AO39: 0 | AP39: 0 | AQ39: 0 | AR39: 0 | AS39: 0
AF40: 0 | AG40: 0 | AH40: 0 | AI40: 0 | AJ40: 0 | AK40: 0 | AL40: 0 | AM40: 0 | AN40: 0 | AO40: 0 | AP40: 0 | AQ40: 0 | AR40: 0 | AS40: 0
AF41: 0 | AG41: 0 | AH41: 0 | AI41: 0 | AJ41: 0 | AK41: 0 | AL41: 0 | AM41: 0 | AN41: 0 | AO41: 0 | AP41: 0 | AQ41: 0 | AR41: 0 | AS41: 0
AF42: 0 | AG42: 0 | AH42: 0 | AI42: 0 | AJ42: 0 | AK42: 0 | AL42: 0 | AM42: 0 | AN42: 0 | AO42: 0 | AP42: 0 | AQ42: 0 | AR42: 0 | AS42: 0
AF43: 0 | AG43: 0 | AH43: 0 | AI43: 0 | AJ43: 0 | AK43: 0 | AL43: 0 | AM43: 0 | AN43: 0 | AO43: 0 | AP43: 0 | AQ43: 0 | AR43: 0 | AS43: 0
AF44: 0 | AG44: 0 | AH44: 0 | AI44: 0 | AJ44: 0 | AK44: 0 | AL44: 0 | AM44: 0 | AN44: 0 | AO44: 0 | AP44: 0 | AQ44: 0 | AR44: 0 | AS44: 0
AF45: 0 | AG45: 0 | AH45: 0 | AI45: 0 | AJ45: 0 | AK45: 0 | AL45: 0 | AM45: 0 | AN45: 0 | AO45: 0 | AP45: 0 | AQ45: 0 | AR45: 0 | AS45: 0
AF46: 0 | AG46: 0 | AH46: 0 | AI46: 0 | AJ46: 0 | AK46: 0 | AL46: 0 | AM46: 0 | AN46: 0 | AO46: 0 | AP46: 0 | AQ46: 0 | AR46: 0 | AS46: 0
AF47: 0 | AG47: 0 | AH47: 0 | AI47: 0 | AJ47: 0 | AK47: 0 | AL47: 0 | AM47: 0 | AN47: 0 | AO47: 0 | AP47: 0 | AQ47: 0 | AR47: 0 | AS47: 0
AF48: 0 | AG48: 0 | AH48: 0 | AI48: 0 | AJ48: 0 | AK48: 0 | AL48: 0 | AM48: 0 | AN48: 0 | AO48: 0 | AP48: 0 | AQ48: 0 | AR48: 0 | AS48: 0
AF49: 0 | AG49: 0 | AH49: 0 | AI49: 0 | AJ49: 0 | AK49: 0 | AL49: 0 | AM49: 0 | AN49: 0 | AO49: 0 | AP49: 0 | AQ49: 0 | AR49: 0 | AS49: 0
AF50: 0 | AG50: 0 | AH50: 0 | AI50: 0 | AJ50: 0 | AK50: 0 | AL50: 0 | AM50: 0 | AN50: 0 | AO50: 0 | AP50: 0 | AQ50: 0 | AR50: 0 | AS50: 0
AF51: 0 | AG51: 0 | AH51: 0 | AI51: 0 | AJ51: 0 | AK51: 0 | AL51: 0 | AM51: 0 | AN51: 0 | AO51: 0 | AP51: 0 | AQ51: 0 | AR51: 0 | AS51: 0
AF52: 0 | AG52: 0 | AH52: 0 | AI52: 0 | AJ52: 0 | AK52: 0 | AL52: 0 | AM52: 0 | AN52: 0 | AO52: 0 | AP52: 0 | AQ52: 0 | AR52: 0 | AS52: 0
AF53: 0 | AG53: 0 | AH53: 0 | AI53: 0 | AJ53: 0 | AK53: 0 | AL53: 0 | AM53: 0 | AN53: 0 | AO53: 0 | AP53: 0 | AQ53: 0 | AR53: 0 | AS53: 0
AF54: 0 | AG54: 0 | AH54: 0 | AI54: 0 | AJ54: 0 | AK54: 0 | AL54: 0 | AM54: 0 | AN54: 0 | AO54: 0 | AP54: 0 | AQ54: 0 | AR54: 0 | AS54: 0
AF55: 0 | AG55: 0 | AH55: 0 | AI55: 0 | AJ55: 0 | AK55: 0 | AL55: 0 | AM55: 0 | AN55: 0 | AO55: 0 | AP55: 0 | AQ55: 0 | AR55: 0 | AS55: 0
AF56: 0 | AG56: 0 | AH56: 0 | AI56: 0 | AJ56: 0 | AK56: 0 | AL56: 0 | AM56: 0 | AN56: 0 | AO56: 0 | AP56: 0 | AQ56: 0 | AR56: 0 | AS56: 0
AF57: 0 | AG57: 0 | AH57: 0 | AI57: 0 | AJ57: 0 | AK57: 0 | AL57: 0 | AM57: 0 | AN57: 0 | AO57: 0 | AP57: 0 | AQ57: 0 | AR57: 0 | AS57: 0
AF58: 0 | AG58: 0 | AH58: 0 | AI58: 0 | AJ58: 0 | AK58: 0 | AL58: 0 | AM58: 0 | AN58: 0 | AO58: 0 | AP58: 0 | AQ58: 0 | AR58: 0 | AS58: 0
AF59: 0 | AG59: 0 | AH59: 0 | AI59: 0 | AJ59: 0 | AK59: 0 | AL59: 0 | AM59: 0 | AN59: 0 | AO59: 0 | AP59: 0 | AQ59: 0 | AR59: 0 | AS59: 0
AF60: 0 | AG60: 0 | AH60: 0 | AI60: 0 | AJ60: 0 | AK60: 0 | AL60: 0 | AM60: 0 | AN60: 0 | AO60: 0 | AP60: 0 | AQ60: 0 | AR60: 0 | AS60: 0
AF61: 0 | AG61: 0 | AH61: 0 | AI61: 0 | AJ61: 0 | AK61: 0 | AL61: 0 | AM61: 0 | AN61: 0 | AO61: 0 | AP61: 0 | AQ61: 0 | AR61: 0 | AS61: 0
AF62: 0 | AG62: 0 | AH62: 0 | AI62: 0 | AJ62: 0 | AK62: 0 | AL62: 0 | AM62: 0 | AN62: 0 | AO62: 0 | AP62: 0 | AQ62: 0 | AR62: 0 | AS62: 0
AF63: 0 | AG63: 0 | AH63: 0 | AI63: 0 | AJ63: 0 | AK63: 0 | AL63: 0 | AM63: 0 | AN63: 0 | AO63: 0 | AP63: 0 | AQ63: 0 | AR63: 0 | AS63: 0
AF64: 0 | AG64: 0 | AH64: 0 | AI64: 0 | AJ64: 0 | AK64: 0 | AL64: 0 | AM64: 0 | AN64: 0 | AO64: 0 | AP64: 0 | AQ64: 0 | AR64: 0 | AS64: 0
AF65: 0 | AG65: 0 | AH65: 0 | AI65: 0 | AJ65: 0 | AK65: 0 | AL65: 0 | AM65: 0 | AN65: 0 | AO65: 0 | AP65: 0 | AQ65: 0 | AR65: 0 | AS65: 0
R66: =SUM(R6:R65) -> 337654.0537 | S66: 2989825325 | T66: 1166862.191 | U66: 818588.8515 | V66: 1521857.102 | W66: 1229757786 | X66: 995011.8437 | Y66: 0 | Z66: 0 | AA66: 877659.3646 | AB66: 0 | AC66: 0 | AD66: 0 | AF66: =SUM(AF6:AF65) -> 1695232.55 | AG66: 41917933.83 | AH66: 5822.642333 | AI66: 6024.813947 | AJ66: 7594.066941 | AK66: 10880632.42 | AL66: 208.9524872 | AM66: =SUM(AM6:AM65) -> 0 | AN66: 0 | AO66: 2059270.712 | AP66: 0 | AQ66: 0 | AR66: 0 | AS66: 56572719.99

Sheet 2019TransRevCont
B2: ="Tariff Approval - "&'Model update'!$C$3 -> Tariff Approval - Jemena
B4: Designated pricing proposal charges (DPPC)
B6: Year (t) | C6: ='Model update'!C5 -> 2019
B8: Table 1- Compliance with DPPC Revenue Formula
B9: Revenue from designated pricing proposal charges for year t | C9: =Prop2019TransTar!AS66 -> 50772702.64
B10: Total DPPC related payments for year t | C10: =C17 -> 50772721.31
C11: =IF(C9="","",IF(C10>=C9,"DPPC REVENUE FORMULA COMPLIANT","DPPC REVENUE FORMULA BREACHED")) -> DPPC REVENUE FORMULA COMPLIANT
B13: Table 2 - Total DPPC related payments for year t
B14: Transmission charges for year t | C14: =C24 -> 57190440
B15: DPPC revenue under/over recovery approved | C15: =-E60*(1+E58)^0.5 -> -6417718.691
B16: Transmission revenue under/over recovery for years 2014 and 2015
B17: Total DPPC related payments for year t | C17: =SUM(C14:C16) -> 50772721.31
B19: Table 3 - Transmission charges for year t
B20: AEMO (TCt) | C20: 55939000
B21: Transmission connection (TCt) | C21: 4983254
B22: Embedded generators (Gt) | C22: 700000
B23: Inter-network (Dt) | C23: 4431814
B24: TC + G - D | C24: =C20+C21+C22-C23 -> 57190440
B29: Table 4 - DPPC Recovery Arrangements
C30: Year t-2 | D30: Year t-1 | E30: Year t
C31: (actual) | D31: (estimate) | E31: (forecast)
C32: =D32-1 -> 2017 | D32: =E32-1 -> 2018 | E32: =C$6 -> 2019
B34: (A) Revenue from designated pricing proposal charges | C34: 57765956.37 | D34: =Est2018TransRev!AS66 -> 56572719.99 | E34: =C9 -> 50772702.64
B37: (B) Less Total DPPC related payments = | C37: =SUM(C39:C41) -> 54487802.24 | D37: =SUM(D39:D41) -> 56846875.82 | E37: =SUM(E39:E41) -> 57190440
B39: + Transmission revenue under/over recovery for years 2014 and 2015 | C39: -1033325.874
B41: +Transmission charges = | C41: =C42+C43+C44-C45 -> 55521128.11 | D41: =D42+D43+D44-D45 -> 56846875.82 | E41: =E42+E43+E44-E45 -> 57190440
B42: +AEMO | C42: ='TUoS cost audit template'!F7 -> 55609937.47 | D42: 55328828.9 | E42: =C20 -> 55939000
B43: +PowerNet | C43: ='TUoS cost audit template'!F14 -> 5206270.77 | D43: 4949860.92 | E43: =C21 -> 4983254
B44: +Embedded generators | C44: ='TUoS cost audit template'!F42 -> 384747.34 | D44: 1000000 | E44: =C22 -> 700000
B45: -Inter-network | C45: ='TUoS cost audit template'!F24 -> 5679827.467 | D45: 4431814 | E45: =C23 -> 4431814
B49: (A minus B) Under/over recovery of revenue for regulatory year | C49: =C34-C37 -> 3278154.13 | D49: =D34-D37 -> -274155.8388 | E49: =E34-E37 -> -6417737.355
B53: Table 5 - DPPC Unders and Overs Account
C54: Year t-2 | D54: Year t-1 | E54: Year t
C55: (actual) | D55: (estimate) | E55: (forecast)
B56: Calendar year | C56: =D56-1 -> 2017 | D56: =E56-1 -> 2018 | E56: =C$6 -> 2019
B58: Nominal WACC | C58: =(1+'Model update'!$B$47)*(1+'Model update'!$C$28)-1 -> 0.04935944242 | D58: =(1+'Model update'!$B$45)*(1+'Model update'!$C$29)-1 -> 0.05829063961 | E58: =(1+'Model update'!$B$43)*(1+'Model update'!$C$30)-1 -> 0.059228637
B60: Opening balance | C60: 2668924.344 | D60: =C64 -> 6158744.583 | E60: =D64 -> 6235708.711
B61: Interest on Opening balance | C61: =C60*C58 -> 131736.6175 | D61: =D60*D58 -> 358997.1609 | E61: =E60*E58 -> 369332.5277
B62: Under/over recovery of revenue for regulatory year | C62: =C49 -> 3278154.13 | D62: =D49 -> -274155.8388 | E62: =E49 -> -6417737.355
B63: Interest on under/over recovery for regulatory year | C63: =C62*((1+C58)^0.5-1) -> 79929.49086 | D63: =D62*((1+D58)^0.5-1) -> -7877.193703 | E63: =E62*((1+E58)^0.5-1) -> -187323.0931
B64: Closing balance of DPPC overs/ (unders) account | C64: =SUM(C60:C63) -> 6158744.583 | D64: =SUM(D60:D63) -> 6235708.711 | E64: -19.20956496
B66: The DNSP is expected to achieve a closing balance as close to zero as practicable in its DPPC unders and overs account in each forecast year in its annual pricing proposals in the 2016–20 regulatory control period.

Sheet TUoS cost audit template
B1: ="Tariff Approval - "&'Model update'!C3 -> Tariff Approval - Jemena
B2: TUOS charges (AEMO) | F2: t-2 actual
B4: AEMO Charges 2017 | F4: 55609937.47
E7: Total | F7: =SUM(F3:F6) -> 55609937.47
B9: Transmission connection fees (SPI Powernet) | F9: t-2 actual
B11: Prescribed Services charge | F11: 5066172
B12: Excluded Services charge | F12: 140098.77
E14: Total | F14: =SUM(F10:F13) -> 5206270.77
B16: Cross boundary network charges (internetwork charges) | F16: t-2 actual
B17: Distribution Business | C17: Amount (payable)/receivable
C18: HV crossings | D18: Subtransmission crossings | E18: TUoS Adjustment | F18: Total
B20: CitiPower | C20: 1894203.833 | D20: -45176.82667 | E20: 1581362.167 | F20: =SUM(C20:E20) -> 3430389.174
B21: Powercor | C21: -276924.4781 | D21: 5815477.772 | E21: 0 | F21: =SUM(C21:E21) -> 5538553.294
B22: AusNet | C22: -2965970 | D22: 96912 | E22: -420057 | F22: =SUM(C22:E22) -> -3289115
F23: =SUM(C23:E23) -> 0
B24: Total | F24: =SUM(F19:F23) -> 5679827.467
B26: Payments to embedded generators | F26: t-2 actual
B27: Avoided transmission costs
B29: Embedded generators | F29: 384747.34
B33: Total | F33: =SUM(F28:F32) -> 384747.34
B35: Avoided TUoS usage charges
B41: Total | F41: =SUM(F36:F40) -> 0
B42: Total payments to embedded generators | F42: =F41+F33 -> 384747.34
B44: Where the following definitions apply
B45: HV Crossings | C45: Payments/Receipts for energy transferred utilising the distributor’s HV and LV line assets.
B46: Sub-transmission Crossings | C46: Payments/Receipts for the Sub-transmission assets in shared loops that support each distributor’s Zone Substation capacity to ensure N-1 reliability is maintained.
B47: TuoS Adjustment | C47: Payments/Receipts for the adjustment of TuoS paid by a distributor for energy delivered to another distribution business through a shared loop.

Sheet Prop2019JSTar
B1: ="Tariff Approval - "&'Model update'!C3 -> Tariff Approval - Jemena
B3: ="PROPOSED "&'Model update'!$C$5&" JURISDICTIONAL SCHEME TARIFFS" -> PROPOSED 2019 JURISDICTIONAL SCHEME TARIFFS
D4: ="Proposed Jurisdictional scheme Tariffs (Pt) for "&'Model update'!$C$5 -> Proposed Jurisdictional scheme Tariffs (Pt) for 2019 | R4: ="Forecast Quantities (Qt) for "&'Model update'!$C$5 -> Forecast Quantities (Qt) for 2019 | AF4: ="Forecast Revenue (Pt "&'Model update'!$C$5&")*(Qt " &'Model update'!$C$5&")" -> Forecast Revenue (Pt 2019)*(Qt 2019)
B5: Proposed tariff | D5: =Prop2019DistTar!D5 -> PropTar Fixed | E5: =Prop2019DistTar!E5 -> PropTar PkBlk1 | F5: =Prop2019DistTar!F5 -> PropTar Shoulder summer | G5: =Prop2019DistTar!G5 -> PropTar peak non-summer | H5: =Prop2019DistTar!H5 -> PropTar Shoulder non-summer | I5: =Prop2019DistTar!I5 -> PropTar OPkBlk1 | J5: =Prop2019DistTar!J5 -> PropTar off peak non-summer | K5: =Prop2019DistTar!K5 -> PropTar OPkBlk3 | L5: =Prop2019DistTar!L5 -> PropTar OPkBlk4 | M5: =Prop2019DistTar!M5 -> PropTar DemBlk1 | N5: =Prop2019DistTar!N5 -> PropTar DemBlk2 | O5: =Prop2019DistTar!O5 -> PropTar DemBlk3 | P5: =Prop2019DistTar!P5 -> PropTar DemBlk4 | R5: =Prop2019DistTar!AF5 -> FcastVol Fixed | S5: =Prop2019DistTar!AG5 -> FcastVol PkBlk1 | T5: =Prop2019DistTar!AH5 -> FcastVol Shoulder summer | U5: =Prop2019DistTar!AI5 -> FcastVol peak non-summer | V5: =Prop2019DistTar!AJ5 -> FcastVol Shoulder non-summer | W5: =Prop2019DistTar!AK5 -> FcastVol OPkBlk1 | X5: =Prop2019DistTar!AL5 -> FcastVol off peak non-summer | Y5: =Prop2019DistTar!AM5 -> FcastVol OPkBlk3 | Z5: =Prop2019DistTar!AN5 -> FcastVol OPkBlk4 | AA5: =Prop2019DistTar!AO5 -> FcastVol DemBlk1 | AB5: =Prop2019DistTar!AP5 -> FcastVol DemBlk2 | AC5: =Prop2019DistTar!AQ5 -> FcastVol DemBlk3 | AD5: =Prop2019DistTar!AR5 -> FcastVol DemBlk4 | AF5: PropRev Fixed | AG5: PropRev PkBlk1 | AH5: PropRev PkBlk2 | AI5: PropRev PkBlk3 | AJ5: PropRev PkBlk4 | AK5: PropRev OPkBlk1 | AL5: PropRev OPkBlk2 | AM5: PropRev OPkBlk3 | AN5: PropRev OPkBlk4 | AO5: PropRev DemBlk1 | AP5: PropRev DemBlk2 | AQ5: PropRev DemBlk3 | AR5: PropRev DemBlk4 | AS5: PropRev Total
B6: =Prop2019DistTar!B6 -> Residential - General Purpose | D6: 0 | E6: 0.109 | F6: 0 | G6: 0 | H6: 0 | I6: 0 | J6: 0 | K6: 0 | L6: 0 | M6: 0 | N6: 0 | O6: 0 | P6: 0 | R6: =Prop2019DistTar!AF6 -> 301686.4437 | S6: =Prop2019DistTar!AG6 -> 1176483463 | T6: =Prop2019DistTar!AH6 -> 0 | U6: =Prop2019DistTar!AI6 -> 0 | V6: =Prop2019DistTar!AJ6 -> 0 | W6: =Prop2019DistTar!AK6 -> 0 | X6: =Prop2019DistTar!AL6 -> 0 | Y6: =Prop2019DistTar!AM6 -> 0 | Z6: =Prop2019DistTar!AN6 -> 0 | AA6: =Prop2019DistTar!AO6 -> 0 | AB6: =Prop2019DistTar!AP6 -> 0 | AC6: =Prop2019DistTar!AQ6 -> 0 | AD6: =Prop2019DistTar!AR6 -> 0 | AF6: =D6*R6 -> 0 | AG6: =E6/100*S6 -> 1282366.975 | AH6: 0 | AI6: 0 | AJ6: 0 | AK6: 0 | AL6: 0 | AM6: 0 | AN6: 0 | AO6: =M6*AA6 -> 0 | AP6: 0 | AQ6: 0 | AR6: 0 | AS6: =SUM(AF6:AR6) -> 1282366.975
B7: =Prop2019DistTar!B7 -> Residential - General Purpose Demand | D7: 0 | E7: 0.109 | F7: 0 | G7: 0 | H7: 0 | I7: 0 | J7: 0 | K7: 0 | L7: 0 | M7: 0 | N7: 0 | O7: 0 | P7: 0 | R7: =Prop2019DistTar!AF7 -> 1.001220543 | S7: =Prop2019DistTar!AG7 -> 3199.47119 | T7: =Prop2019DistTar!AH7 -> 0 | U7: =Prop2019DistTar!AI7 -> 0 | V7: =Prop2019DistTar!AJ7 -> 0 | W7: =Prop2019DistTar!AK7 -> 0 | X7: =Prop2019DistTar!AL7 -> 0 | Y7: =Prop2019DistTar!AM7 -> 0 | Z7: =Prop2019DistTar!AN7 -> 0 | AA7: =Prop2019DistTar!AO7 -> 50.58160812 | AB7: =Prop2019DistTar!AP7 -> 0 | AC7: =Prop2019DistTar!AQ7 -> 0 | AD7: =Prop2019DistTar!AR7 -> 0 | AF7: =D7*R7 -> 0 | AG7: =E7/100*S7 -> 3.487423597 | AH7: 0 | AI7: 0 | AJ7: 0 | AK7: 0 | AL7: 0 | AM7: 0 | AN7: 0 | AO7: =M7*AA7 -> 0 | AP7: =N7*AB7 -> 0 | AQ7: =O7*AC7 -> 0 | AR7: =P7*AD7 -> 0 | AS7: =SUM(AF7:AR7) -> 3.487423597
B8: =Prop2019DistTar!B8 -> Residential - Flexible | D8: 0 | E8: 0.109 | F8: 0.109 | G8: 0.109 | H8: 0.109 | I8: 0.105 | J8: 0.105 | K8: 0 | L8: 0 | M8: 0 | N8: 0 | O8: 0 | P8: 0 | R8: =Prop2019DistTar!AF8 -> 1000 | S8: =Prop2019DistTar!AG8 -> 729714.5627 | T8: =Prop2019DistTar!AH8 -> 1368615.722 | U8: =Prop2019DistTar!AI8 -> 960125.0095 | V8: =Prop2019DistTar!AJ8 -> 1784990.184 | W8: =Prop2019DistTar!AK8 -> 1448837.789 | X8: =Prop2019DistTar!AL8 -> 1167051.999 | Y8: =Prop2019DistTar!AM8 -> 0 | Z8: =Prop2019DistTar!AN8 -> 0 | AA8: =Prop2019DistTar!AO8 -> 0 | AB8: =Prop2019DistTar!AP8 -> 0 | AC8: =Prop2019DistTar!AQ8 -> 0 | AD8: =Prop2019DistTar!AR8 -> 0 | AF8: 0 | AG8: 795.3888733 | AH8: 1491.791137 | AI8: 1046.53626 | AJ8: 1945.639301 | AK8: 1521.279679 | AL8: 1225.404599 | AM8: 0 | AN8: 0 | AO8: 0 | AP8: 0 | AQ8: 0 | AR8: 0 | AS8: 8026.03985
B9: =Prop2019DistTar!B9 -> Residential - Time of Use Interval Meter | D9: 0 | E9: 0.109 | F9: 0 | G9: 0 | H9: 0 | I9: 0.105 | J9: 0 | K9: 0 | L9: 0 | M9: 0 | N9: 0 | O9: 0 | P9: 0 | R9: =Prop2019DistTar!AF9 -> 15783.3079 | S9: =Prop2019DistTar!AG9 -> 38414734.81 | T9: =Prop2019DistTar!AH9 -> 0 | U9: =Prop2019DistTar!AI9 -> 0 | V9: =Prop2019DistTar!AJ9 -> 0 | W9: =Prop2019DistTar!AK9 -> 39759423.7 | X9: =Prop2019DistTar!AL9 -> 0 | Y9: =Prop2019DistTar!AM9 -> 0 | Z9: =Prop2019DistTar!AN9 -> 0 | AA9: =Prop2019DistTar!AO9 -> 0 | AB9: =Prop2019DistTar!AP9 -> 0 | AC9: =Prop2019DistTar!AQ9 -> 0 | AD9: =Prop2019DistTar!AR9 -> 0 | AF9: 0 | AG9: 41872.06094 | AH9: 0 | AI9: 0 | AJ9: 0 | AK9: 41747.39489 | AL9: 0 | AM9: 0 | AN9: 0 | AO9: 0 | AP9: 0 | AQ9: 0 | AR9: 0 | AS9: 83619.45583
